{"text_format":"1","workbook":"xlsx","n_sheets":4,"sheets":["PERCURSO","Planilha2","Planilha1","ARQUIVO_TXT"],"not_rendered":{"charts":0,"images":6,"macros":1,"external_links":0,"defined_names":1,"comments":0,"pivot_tables":1},"unopened":[],"bounds":{"document_bytes":16777216,"sheet_cells":100000,"rows_first":2000,"rows_last":500,"rows_between":2000,"halvings":0,"cell_chars":16384,"cell_head_chars":4096},"cells_cut":0,"cells_raw":0,"read":"whole","date_system":"1900"}

{"sheet":"PERCURSO","index":0,"n_rows":10514,"n_cols":19,"rows_kept":10514,"cut":false,"hidden":false,"merged":[]}
["REGISTRO","Codigo Zona de Transporte Origem","Cidade Origem","UF Origem","Codigo  Zona de Transporte Destino","Cidade Destino","UF Destino","Tarifa","REGISTRO","Data de início","Meio de Transporte","Tipo Carga","Entrega urgente","Qtde prazo Minimo","Qtde prazo Maximo","Un prazo entrega (1) dias (2) horas","Vr distancia KM","000^INTTRP^5.0a^GKO^FRETE","200^A^44215713000300^TRANSPORTES VIA SATELITE"]
[260,null,"Aparecida do Taboado","MS",null,"ACRELANDIA","AC",null,265,"2023-02-02",null,null,null,1,10,1,null,"260^^Aparecida do Taboado^MS^^ACRELANDIA^AC^","265^^^^1^10^1^^02/02/2023"]
[260,null,"Diadema","SP",null,"SOBRAL","CE",null,265,"2024-01-01",null,null,null,null,null,null,null,"260^^Diadema^SP^^SOBRAL^CE^"]
[null,null,null,null,null,null,null,null,265]
[null,null,null,null,null,null,null,null,265]
[null,null,null,null,null,null,null,null,265]
[null,null,null,null,null,null,null,null,265]
[null,null,null,null,null,null,null,null,265]
[null,null,null,null,null,null,null,null,265]
[null,null,null,null,null,null,null,null,265]
[null,null,null,null,null,null,null,null,265]
[null,null,null,null,null,null,null,null,265]
[null,null,null,null,null,null,null,null,265]
[null,null,null,null,null,null,null,null,265]
[null,null,null,null,null,null,null,null,265]
[null,null,null,null,null,null,null,null,265]
[null,null,null,null,null,null,null,null,265]
[]
[]
[]
[]
[]
[]
[]
[]
[]
[]
[]
[]
[]
[]
[]
[]
[]
[]
[]
[]
[]
[]
[]
[]
[]
[]
[]
[]
[]
[]
[]
[]
[]
[]
[]
[]
[]
[]
[]
[]
[]
[]
[]
[]
[]
[]
[]
[]
[]
[]
[]
[]
[]
[]
[]
[]
[]
[]
[]
[]
[]
[]
[]
[]
[]
[]
[]
[]
[]
[]
[]
[]
[]
[]
[]
[]
[]
[]
[]
[]
[]
[]
[]
[]
[]
[]
[]
[]
[]
[]
[]
[]
[]
[]
[]
[]
[]
[]
[]
[]
[]
[]
[]
[]
[]
[]
[]
[]
[]
[]
[]
[]
[]
[]
[]
[]
[]
[]
[]
[]
[]
[]
[]
[]
[]
[]
[]
[]
[]
[]
[]
[]
[]
[]
[]
[]
[]
[]
[]
[]
[]
[]
[]
[]
[]
[]
[]
[]
[]
[]
[]
[]
[]
[]
[]
[]
[]
[]
[]
[]
[]
[]
[]
[]
[]
[]
[]
[]
[]
[]
[]
[]
[]
[]
[]
[]
[]
[]
[]
[]
[]
[]
[]
[]
[]
[]
[]
[]
[]
[]
[]
[]
[]
[]
[]
[]
[]
[]
[]
[]
[]
[]
[]
[]
[]
[]
[]
[]
[]
[]
[]
[]
[]
[]
[]
[]
[]
[]
[]
[]
[]
[]
[]
[]
[]
[]
[]
[]
[]
[]
[]
[]
[]
[]
[]
[]
[]
[]
[]
[]
[]
[]
[]
[]
[]
[]
[]
[]
[]
[]
[]
[]
[]
[]
[]
[]
[]
[]
[]
[]
[]
[]
[]
[]
[]
[]
[]
[]
[]
[]
[]
[]
[]
[]
[]
[]
[]
[]
[]
[]
[]
[]
[]
[]
[]
[]
[]
[]
[]
[]
[]
[]
[]
[]
[]
[]
[]
[]
[]
[]
[]
[]
[]
[]
[]
[]
[]
[]
[]
[]
[]
[]
[]
[]
[]
[]
[]
[]
[]
[]
[]
[]
[]
[]
[]
[]
[]
[]
[]
[]
[]
[]
[]
[]
[]
[]
[]
[]
[]
[]
[]
[]
[]
[]
[]
[]
[]
[]
[]
[]
[]
[]
[]
[]
[]
[]
[]
[]
[]
[]
[]
[]
[]
[]
[]
[]
[]
[]
[]
[]
[]
[]
[]
[]
[]
[]
[]
[]
[]
[]
[]
[]
[]
[]
[]
[]
[]
[]
[]
[]
[]
[]
[]
[]
[]
[]
[]
[]
[]
[]
[]
[]
[]
[]
[]
[]
[]
[]
[]
[]
[]
[]
[]
[]
[]
[]
[]
[]
[]
[]
[]
[]
[]
[]
[]
[]
[]
[]
[]
[]
[]
[]
[]
[]
[]
[]
[]
[]
[]
[]
[]
[]
[]
[]
[]
[]
[]
[]
[]
[]
[]
[]
[]
[]
[]
[]
[]
[]
[]
[]
[]
[]
[]
[]
[]
[]
[]
[]
[]
[]
[]
[]
[]
[]
[]
[]
[]
[]
[]
[]
[]
[]
[]
[]
[]
[]
[]
[]
[]
[]
[]
[]
[]
[]
[]
[]
[]
[]
[]
[]
[]
[]
[]
[]
[]
[]
[]
[]
[]
[]
[]
[]
[]
[]
[]
[]
[]
[]
[]
[]
[]
[]
[]
[]
[]
[]
[]
[]
[]
[]
[]
[]
[]
[]
[]
[]
[]
[]
[]
[]
[]
[]
[]
[]
[]
[]
[]
[]
[]
[]
[]
[]
[]
[]
[]
[]
[]
[]
[]
[]
[]
[]
[]
[]
[]
[]
[]
[]
[]
[]
[]
[]
[]
[]
[]
[]
[]
[]
[]
[]
[]
[]
[]
[]
[]
[]
[]
[]
[]
[]
[]
[]
[]
[]
[]
[]
[]
[]
[]
[]
[]
[]
[]
[]
[]
[]
[]
[]
[]
[]
[]
[]
[]
[]
[]
[]
[]
[]
[]
[]
[]
[]
[]
[]
[]
[]
[]
[]
[]
[]
[]
[]
[]
[]
[]
[]
[]
[]
[]
[]
[]
[]
[]
[]
[]
[]
[]
[]
[]
[]
[]
[]
[]
[]
[]
[]
[]
[]
[]
[]
[]
[]
[]
[]
[]
[]
[]
[]
[]
[]
[]
[]
[]
[]
[]
[]
[]
[]
[]
[]
[]
[]
[]
[]
[]
[]
[]
[]
[]
[]
[]
[]
[]
[]
[]
[]
[]
[]
[]
[]
[]
[]
[]
[]
[]
[]
[]
[]
[]
[]
[]
[]
[]
[]
[]
[]
[]
[]
[]
[]
[]
[]
[]
[]
[]
[]
[]
[]
[]
[]
[]
[]
[]
[]
[]
[]
[]
[]
[]
[]
[]
[]
[]
[]
[]
[]
[]
[]
[]
[]
[]
[]
[]
[]
[]
[]
[]
[]
[]
[]
[]
[]
[]
[]
[]
[]
[]
[]
[]
[]
[]
[]
[]
[]
[]
[]
[]
[]
[]
[]
[]
[]
[]
[]
[]
[]
[]
[]
[]
[]
[]
[]
[]
[]
[]
[]
[]
[]
[]
[]
[]
[]
[]
[]
[]
[]
[]
[]
[]
[]
[]
[]
[]
[]
[]
[]
[]
[]
[]
[]
[]
[]
[]
[]
[]
[]
[]
[]
[]
[]
[]
[]
[]
[]
[]
[]
[]
[]
[]
[]
[]
[]
[]
[]
[]
[]
[]
[]
[]
[]
[]
[]
[]
[]
[]
[]
[]
[]
[]
[]
[]
[]
[]
[]
[]
[]
[]
[]
[]
[]
[]
[]
[]
[]
[]
[]
[]
[]
[]
[]
[]
[]
[]
[]
[]
[]
[]
[]
[]
[]
[]
[]
[]
[]
[]
[]
[]
[]
[]
[]
[]
[]
[]
[]
[]
[]
[]
[]
[]
[]
[]
[]
[]
[]
[]
[]
[]
[]
[]
[]
[]
[]
[]
[]
[]
[]
[]
[]
[]
[]
[]
[]
[]
[]
[]
[]
[]
[]
[]
[]
[]
[]
[]
[]
[]
[]
[]
[]
[]
[]
[]
[]
[]
[]
[]
[]
[]
[]
[]
[]
[]
[]
[]
[]
[]
[]
[]
[]
[]
[]
[]
[]
[]
[]
[]
[]
[]
[]
[]
[]
[]
[]
[]
[]
[]
[]
[]
[]
[]
[]
[]
[]
[]
[]
[]
[]
[]
[]
[]
[]
[]
[]
[]
[]
[]
[]
[]
[]
[]
[]
[]
[]
[]
[]
[]
[]
[]
[]
[]
[]
[]
[]
[]
[]
[]
[]
[]
[]
[]
[]
[]
[]
[]
[]
[]
[]
[]
[]
[]
[]
[]
[]
[]
[]
[]
[]
[]
[]
[]
[]
[]
[]
[]
[]
[]
[]
[]
[]
[]
[]
[]
[]
[]
[]
[]
[]
[]
[]
[]
[]
[]
[]
[]
[]
[]
[]
[]
[]
[]
[]
[]
[]
[]
[]
[]
[]
[]
[]
[]
[]
[]
[]
[]
[]
[]
[]
[]
[]
[]
[]
[]
[]
[]
[]
[]
[]
[]
[]
[]
[]
[]
[]
[]
[]
[]
[]
[]
[]
[]
[]
[]
[]
[]
[]
[]
[]
[]
[]
[]
[]
[]
[]
[]
[]
[]
[]
[]
[]
[]
[]
[]
[]
[]
[]
[]
[]
[]
[]
[]
[]
[]
[]
[]
[]
[]
[]
[]
[]
[]
[]
[]
[]
[]
[]
[]
[]
[]
[]
[]
[]
[]
[]
[]
[]
[]
[]
[]
[]
[]
[]
[]
[]
[]
[]
[]
[]
[]
[]
[]
[]
[]
[]
[]
[]
[]
[]
[]
[]
[]
[]
[]
[]
[]
[]
[]
[]
[]
[]
[]
[]
[]
[]
[]
[]
[]
[]
[]
[]
[]
[]
[]
[]
[]
[]
[]
[]
[]
[]
[]
[]
[]
[]
[]
[]
[]
[]
[]
[]
[]
[]
[]
[]
[]
[]
[]
[]
[]
[]
[]
[]
[]
[]
[]
[]
[]
[]
[]
[]
[]
[]
[]
[]
[]
[]
[]
[]
[]
[]
[]
[]
[]
[]
[]
[]
[]
[]
[]
[]
[]
[]
[]
[]
[]
[]
[]
[]
[]
[]
[]
[]
[]
[]
[]
[]
[]
[]
[]
[]
[]
[]
[]
[]
[]
[]
[]
[]
[]
[]
[]
[]
[]
[]
[]
[]
[]
[]
[]
[]
[]
[]
[]
[]
[]
[]
[]
[]
[]
[]
[]
[]
[]
[]
[]
[]
[]
[]
[]
[]
[]
[]
[]
[]
[]
[]
[]
[]
[]
[]
[]
[]
[]
[]
[]
[]
[]
[]
[]
[]
[]
[]
[]
[]
[]
[]
[]
[]
[]
[]
[]
[]
[]
[]
[]
[]
[]
[]
[]
[]
[]
[]
[]
[]
[]
[]
[]
[]
[]
[]
[]
[]
[]
[]
[]
[]
[]
[]
[]
[]
[]
[]
[]
[]
[]
[]
[]
[]
[]
[]
[]
[]
[]
[]
[]
[]
[]
[]
[]
[]
[]
[]
[]
[]
[]
[]
[]
[]
[]
[]
[]
[]
[]
[]
[]
[]
[]
[]
[]
[]
[]
[]
[]
[]
[]
[]
[]
[]
[]
[]
[]
[]
[]
[]
[]
[]
[]
[]
[]
[]
[]
[]
[]
[]
[]
[]
[]
[]
[]
[]
[]
[]
[]
[]
[]
[]
[]
[]
[]
[]
[]
[]
[]
[]
[]
[]
[]
[]
[]
[]
[]
[]
[]
[]
[]
[]
[]
[]
[]
[]
[]
[]
[]
[]
[]
[]
[]
[]
[]
[]
[]
[]
[]
[]
[]
[]
[]
[]
[]
[]
[]
[]
[]
[]
[]
[]
[]
[]
[]
[]
[]
[]
[]
[]
[]
[]
[]
[]
[]
[]
[]
[]
[]
[]
[]
[]
[]
[]
[]
[]
[]
[]
[]
[]
[]
[]
[]
[]
[]
[]
[]
[]
[]
[]
[]
[]
[]
[]
[]
[]
[]
[]
[]
[]
[]
[]
[]
[]
[]
[]
[]
[]
[]
[]
[]
[]
[]
[]
[]
[]
[]
[]
[]
[]
[]
[]
[]
[]
[]
[]
[]
[]
[]
[]
[]
[]
[]
[]
[]
[]
[]
[]
[]
[]
[]
[]
[]
[]
[]
[]
[]
[]
[]
[]
[]
[]
[]
[]
[]
[]
[]
[]
[]
[]
[]
[]
[]
[]
[]
[]
[]
[]
[]
[]
[]
[]
[]
[]
[]
[]
[]
[]
[]
[]
[]
[]
[]
[]
[]
[]
[]
[]
[]
[]
[]
[]
[]
[]
[]
[]
[]
[]
[]
[]
[]
[]
[]
[]
[]
[]
[]
[]
[]
[]
[]
[]
[]
[]
[]
[]
[]
[]
[]
[]
[]
[]
[]
[]
[]
[]
[]
[]
[]
[]
[]
[]
[]
[]
[]
[]
[]
[]
[]
[]
[]
[]
[]
[]
[]
[]
[]
[]
[]
[]
[]
[]
[]
[]
[]
[]
[]
[]
[]
[]
[]
[]
[]
[]
[]
[]
[]
[]
[]
[]
[]
[]
[]
[]
[]
[]
[]
[]
[]
[]
[]
[]
[]
[]
[]
[]
[]
[]
[]
[]
[]
[]
[]
[]
[]
[]
[]
[]
[]
[]
[]
[]
[]
[]
[]
[]
[]
[]
[]
[]
[]
[]
[]
[]
[]
[]
[]
[]
[]
[]
[]
[]
[]
[]
[]
[]
[]
[]
[]
[]
[]
[]
[]
[]
[]
[]
[]
[]
[]
[]
[]
[]
[]
[]
[]
[]
[]
[]
[]
[]
[]
[]
[]
[]
[]
[]
[]
[]
[]
[]
[]
[]
[]
[]
[]
[]
[]
[]
[]
[]
[]
[]
[]
[]
[]
[]
[]
[]
[]
[]
[]
[]
[]
[]
[]
[]
[]
[]
[]
[]
[]
[]
[]
[]
[]
[]
[]
[]
[]
[]
[]
[]
[]
[]
[]
[]
[]
[]
[]
[]
[]
[]
[]
[]
[]
[]
[]
[]
[]
[]
[]
[]
[]
[]
[]
[]
[]
[]
[]
[]
[]
[]
[]
[]
[]
[]
[]
[]
[]
[]
[]
[]
[]
[]
[]
[]
[]
[]
[]
[]
[]
[]
[]
[]
[]
[]
[]
[]
[]
[]
[]
[]
[]
[]
[]
[]
[]
[]
[]
[]
[]
[]
[]
[]
[]
[]
[]
[]
[]
[]
[]
[]
[]
[]
[]
[]
[]
[]
[]
[]
[]
[]
[]
[]
[]
[]
[]
[]
[]
[]
[]
[]
[]
[]
[]
[]
[]
[]
[]
[]
[]
[]
[]
[]
[]
[]
[]
[]
[]
[]
[]
[]
[]
[]
[]
[]
[]
[]
[]
[]
[]
[]
[]
[]
[]
[]
[]
[]
[]
[]
[]
[]
[]
[]
[]
[]
[]
[]
[]
[]
[]
[]
[]
[]
[]
[]
[]
[]
[]
[]
[]
[]
[]
[]
[]
[]
[]
[]
[]
[]
[]
[]
[]
[]
[]
[]
[]
[]
[]
[]
[]
[]
[]
[]
[]
[]
[]
[]
[]
[]
[]
[]
[]
[]
[]
[]
[]
[]
[]
[]
[]
[]
[]
[]
[]
[]
[]
[]
[]
[]
[]
[]
[]
[]
[]
[]
[]
[]
[]
[]
[]
[]
[]
[]
[]
[]
[]
[]
[]
[]
[]
[]
[]
[]
[]
[]
[]
[]
[]
[]
[]
[]
[]
[]
[]
[]
[]
[]
[]
[]
[]
[]
[]
[]
[]
[]
[]
[]
[]
[]
[]
[]
[]
[]
[]
[]
[]
[]
[]
[]
[]
[]
[]
[]
[]
[]
[]
[]
[]
[]
[]
[]
[]
[]
[]
[]
[]
[]
[]
[]
[]
[]
[]
[]
[]
[]
[]
[]
[]
[]
[]
[]
[]
[]
[]
[]
[]
[]
[]
[]
[]
[]
[]
[]
[]
[]
[]
[]
[]
[]
[]
[]
[]
[]
[]
[]
[]
[]
[]
[]
[]
[]
[]
[]
[]
[]
[]
[]
[]
[]
[]
[]
[]
[]
[]
[]
[]
[]
[]
[]
[]
[]
[]
[]
[]
[]
[]
[]
[]
[]
[]
[]
[]
[]
[]
[]
[]
[]
[]
[]
[]
[]
[]
[]
[]
[]
[]
[]
[]
[]
[]
[]
[]
[]
[]
[]
[]
[]
[]
[]
[]
[]
[]
[]
[]
[]
[]
[]
[]
[]
[]
[]
[]
[]
[]
[]
[]
[]
[]
[]
[]
[]
[]
[]
[]
[]
[]
[]
[]
[]
[]
[]
[]
[]
[]
[]
[]
[]
[]
[]
[]
[]
[]
[]
[]
[]
[]
[]
[]
[]
[]
[]
[]
[]
[]
[]
[]
[]
[]
[]
[]
[]
[]
[]
[]
[]
[]
[]
[]
[]
[]
[]
[]
[]
[]
[]
[]
[]
[]
[]
[]
[]
[]
[]
[]
[]
[]
[]
[]
[]
[]
[]
[]
[]
[]
[]
[]
[]
[]
[]
[]
[]
[]
[]
[]
[]
[]
[]
[]
[]
[]
[]
[]
[]
[]
[]
[]
[]
[]
[]
[]
[]
[]
[]
[]
[]
[]
[]
[]
[]
[]
[]
[]
[]
[]
[]
[]
[]
[]
[]
[]
[]
[]
[]
[]
[]
[]
[]
[]
[]
[]
[]
[]
[]
[]
[]
[]
[]
[]
[]
[]
[]
[]
[]
[]
[]
[]
[]
[]
[]
[]
[]
[]
[]
[]
[]
[]
[]
[]
[]
[]
[]
[]
[]
[]
[]
[]
[]
[]
[]
[]
[]
[]
[]
[]
[]
[]
[]
[]
[]
[]
[]
[]
[]
[]
[]
[]
[]
[]
[]
[]
[]
[]
[]
[]
[]
[]
[]
[]
[]
[]
[]
[]
[]
[]
[]
[]
[]
[]
[]
[]
[]
[]
[]
[]
[]
[]
[]
[]
[]
[]
[]
[]
[]
[]
[]
[]
[]
[]
[]
[]
[]
[]
[]
[]
[]
[]
[]
[]
[]
[]
[]
[]
[]
[]
[]
[]
[]
[]
[]
[]
[]
[]
[]
[]
[]
[]
[]
[]
[]
[]
[]
[]
[]
[]
[]
[]
[]
[]
[]
[]
[]
[]
[]
[]
[]
[]
[]
[]
[]
[]
[]
[]
[]
[]
[]
[]
[]
[]
[]
[]
[]
[]
[]
[]
[]
[]
[]
[]
[]
[]
[]
[]
[]
[]
[]
[]
[]
[]
[]
[]
[]
[]
[]
[]
[]
[]
[]
[]
[]
[]
[]
[]
[]
[]
[]
[]
[]
[]
[]
[]
[]
[]
[]
[]
[]
[]
[]
[]
[]
[]
[]
[]
[]
[]
[]
[]
[]
[]
[]
[]
[]
[]
[]
[]
[]
[]
[]
[]
[]
[]
[]
[]
[]
[]
[]
[]
[]
[]
[]
[]
[]
[]
[]
[]
[]
[]
[]
[]
[]
[]
[]
[]
[]
[]
[]
[]
[]
[]
[]
[]
[]
[]
[]
[]
[]
[]
[]
[]
[]
[]
[]
[]
[]
[]
[]
[]
[]
[]
[]
[]
[]
[]
[]
[]
[]
[]
[]
[]
[]
[]
[]
[]
[]
[]
[]
[]
[]
[]
[]
[]
[]
[]
[]
[]
[]
[]
[]
[]
[]
[]
[]
[]
[]
[]
[]
[]
[]
[]
[]
[]
[]
[]
[]
[]
[]
[]
[]
[]
[]
[]
[]
[]
[]
[]
[]
[]
[]
[]
[]
[]
[]
[]
[]
[]
[]
[]
[]
[]
[]
[]
[]
[]
[]
[]
[]
[]
[]
[]
[]
[]
[]
[]
[]
[]
[]
[]
[]
[]
[]
[]
[]
[]
[]
[]
[]
[]
[]
[]
[]
[]
[]
[]
[]
[]
[]
[]
[]
[]
[]
[]
[]
[]
[]
[]
[]
[]
[]
[]
[]
[]
[]
[]
[]
[]
[]
[]
[]
[]
[]
[]
[]
[]
[]
[]
[]
[]
[]
[]
[]
[]
[]
[]
[]
[]
[]
[]
[]
[]
[]
[]
[]
[]
[]
[]
[]
[]
[]
[]
[]
[]
[]
[]
[]
[]
[]
[]
[]
[]
[]
[]
[]
[]
[]
[]
[]
[]
[]
[]
[]
[]
[]
[]
[]
[]
[]
[]
[]
[]
[]
[]
[]
[]
[]
[]
[]
[]
[]
[]
[]
[]
[]
[]
[]
[]
[]
[]
[]
[]
[]
[]
[]
[]
[]
[]
[]
[]
[]
[]
[]
[]
[]
[]
[]
[]
[]
[]
[]
[]
[]
[]
[]
[]
[]
[]
[]
[]
[]
[]
[]
[]
[]
[]
[]
[]
[]
[]
[]
[]
[]
[]
[]
[]
[]
[]
[]
[]
[]
[]
[]
[]
[]
[]
[]
[]
[]
[]
[]
[]
[]
[]
[]
[]
[]
[]
[]
[]
[]
[]
[]
[]
[]
[]
[]
[]
[]
[]
[]
[]
[]
[]
[]
[]
[]
[]
[]
[]
[]
[]
[]
[]
[]
[]
[]
[]
[]
[]
[]
[]
[]
[]
[]
[]
[]
[]
[]
[]
[]
[]
[]
[]
[]
[]
[]
[]
[]
[]
[]
[]
[]
[]
[]
[]
[]
[]
[]
[]
[]
[]
[]
[]
[]
[]
[]
[]
[]
[]
[]
[]
[]
[]
[]
[]
[]
[]
[]
[]
[]
[]
[]
[]
[]
[]
[]
[]
[]
[]
[]
[]
[]
[]
[]
[]
[]
[]
[]
[]
[]
[]
[]
[]
[]
[]
[]
[]
[]
[]
[]
[]
[]
[]
[]
[]
[]
[]
[]
[]
[]
[]
[]
[]
[]
[]
[]
[]
[]
[]
[]
[]
[]
[]
[]
[]
[]
[]
[]
[]
[]
[]
[]
[]
[]
[]
[]
[]
[]
[]
[]
[]
[]
[]
[]
[]
[]
[]
[]
[]
[]
[]
[]
[]
[]
[]
[]
[]
[]
[]
[]
[]
[]
[]
[]
[]
[]
[]
[]
[]
[]
[]
[]
[]
[]
[]
[]
[]
[]
[]
[]
[]
[]
[]
[]
[]
[]
[]
[]
[]
[]
[]
[]
[]
[]
[]
[]
[]
[]
[]
[]
[]
[]
[]
[]
[]
[]
[]
[]
[]
[]
[]
[]
[]
[]
[]
[]
[]
[]
[]
[]
[]
[]
[]
[]
[]
[]
[]
[]
[]
[]
[]
[]
[]
[]
[]
[]
[]
[]
[]
[]
[]
[]
[]
[]
[]
[]
[]
[]
[]
[]
[]
[]
[]
[]
[]
[]
[]
[]
[]
[]
[]
[]
[]
[]
[]
[]
[]
[]
[]
[]
[]
[]
[]
[]
[]
[]
[]
[]
[]
[]
[]
[]
[]
[]
[]
[]
[]
[]
[]
[]
[]
[]
[]
[]
[]
[]
[]
[]
[]
[]
[]
[]
[]
[]
[]
[]
[]
[]
[]
[]
[]
[]
[]
[]
[]
[]
[]
[]
[]
[]
[]
[]
[]
[]
[]
[]
[]
[]
[]
[]
[]
[]
[]
[]
[]
[]
[]
[]
[]
[]
[]
[]
[]
[]
[]
[]
[]
[]
[]
[]
[]
[]
[]
[]
[]
[]
[]
[]
[]
[]
[]
[]
[]
[]
[]
[]
[]
[]
[]
[]
[]
[]
[]
[]
[]
[]
[]
[]
[]
[]
[]
[]
[]
[]
[]
[]
[]
[]
[]
[]
[]
[]
[]
[]
[]
[]
[]
[]
[]
[]
[]
[]
[]
[]
[]
[]
[]
[]
[]
[]
[]
[]
[]
[]
[]
[]
[]
[]
[]
[]
[]
[]
[]
[]
[]
[]
[]
[]
[]
[]
[]
[]
[]
[]
[]
[]
[]
[]
[]
[]
[]
[]
[]
[]
[]
[]
[]
[]
[]
[]
[]
[]
[]
[]
[]
[]
[]
[]
[]
[]
[]
[]
[]
[]
[]
[]
[]
[]
[]
[]
[]
[]
[]
[]
[]
[]
[]
[]
[]
[]
[]
[]
[]
[]
[]
[]
[]
[]
[]
[]
[]
[]
[]
[]
[]
[]
[]
[]
[]
[]
[]
[]
[]
[]
[]
[]
[]
[]
[]
[]
[]
[]
[]
[]
[]
[]
[]
[]
[]
[]
[]
[]
[]
[]
[]
[]
[]
[]
[]
[]
[]
[]
[]
[]
[]
[]
[]
[]
[]
[]
[]
[]
[]
[]
[]
[]
[]
[]
[]
[]
[]
[]
[]
[]
[]
[]
[]
[]
[]
[]
[]
[]
[]
[]
[]
[]
[]
[]
[]
[]
[]
[]
[]
[]
[]
[]
[]
[]
[]
[]
[]
[]
[]
[]
[]
[]
[]
[]
[]
[]
[]
[]
[]
[]
[]
[]
[]
[]
[]
[]
[]
[]
[]
[]
[]
[]
[]
[]
[]
[]
[]
[]
[]
[]
[]
[]
[]
[]
[]
[]
[]
[]
[]
[]
[]
[]
[]
[]
[]
[]
[]
[]
[]
[]
[]
[]
[]
[]
[]
[]
[]
[]
[]
[]
[]
[]
[]
[]
[]
[]
[]
[]
[]
[]
[]
[]
[]
[]
[]
[]
[]
[]
[]
[]
[]
[]
[]
[]
[]
[]
[]
[]
[]
[]
[]
[]
[]
[]
[]
[]
[]
[]
[]
[]
[]
[]
[]
[]
[]
[]
[]
[]
[]
[]
[]
[]
[]
[]
[]
[]
[]
[]
[]
[]
[]
[]
[]
[]
[]
[]
[]
[]
[]
[]
[]
[]
[]
[]
[]
[]
[]
[]
[]
[]
[]
[]
[]
[]
[]
[]
[]
[]
[]
[]
[]
[]
[]
[]
[]
[]
[]
[]
[]
[]
[]
[]
[]
[]
[]
[]
[]
[]
[]
[]
[]
[]
[]
[]
[]
[]
[]
[]
[]
[]
[]
[]
[]
[]
[null,null,null,null,null,null,null,{"$f":"_xlfn.CONCAT(D3766,\"X\",G3766)","v":"X"}]
[null,null,null,null,null,null,null,"X"]
[null,null,null,null,null,null,null,"X"]
[null,null,null,null,null,null,null,"X"]
[null,null,null,null,null,null,null,"X"]
[null,null,null,null,null,null,null,"X"]
[null,null,null,null,null,null,null,"X"]
[null,null,null,null,null,null,null,"X"]
[null,null,null,null,null,null,null,"X"]
[null,null,null,null,null,null,null,"X"]
[null,null,null,null,null,null,null,"X"]
[null,null,null,null,null,null,null,"X"]
[null,null,null,null,null,null,null,"X"]
[null,null,null,null,null,null,null,{"$f":"_xlfn.CONCAT(D3779,\"X\",G3779)","v":"X"}]
[null,null,null,null,null,null,null,"X"]
[null,null,null,null,null,null,null,"X"]
[null,null,null,null,null,null,null,"X"]
[null,null,null,null,null,null,null,"X"]
[null,null,null,null,null,null,null,"X"]
[null,null,null,null,null,null,null,"X"]
[null,null,null,null,null,null,null,"X"]
[null,null,null,null,null,null,null,"X"]
[null,null,null,null,null,null,null,"X"]
[null,null,null,null,null,null,null,"X"]
[null,null,null,null,null,null,null,"X"]
[null,null,null,null,null,null,null,"X"]
[null,null,null,null,null,null,null,"X"]
[null,null,null,null,null,null,null,"X"]
[null,null,null,null,null,null,null,"X"]
[null,null,null,null,null,null,null,"X"]
[null,null,null,null,null,null,null,"X"]
[null,null,null,null,null,null,null,"X"]
[null,null,null,null,null,null,null,"X"]
[null,null,null,null,null,null,null,"X"]
[null,null,null,null,null,null,null,"X"]
[null,null,null,null,null,null,null,"X"]
[null,null,null,null,null,null,null,"X"]
[null,null,null,null,null,null,null,"X"]
[null,null,null,null,null,null,null,"X"]
[null,null,null,null,null,null,null,"X"]
[null,null,null,null,null,null,null,"X"]
[null,null,null,null,null,null,null,"X"]
[null,null,null,null,null,null,null,"X"]
[null,null,null,null,null,null,null,"X"]
[null,null,null,null,null,null,null,"X"]
[null,null,null,null,null,null,null,"X"]
[null,null,null,null,null,null,null,"X"]
[null,null,null,null,null,null,null,"X"]
[null,null,null,null,null,null,null,"X"]
[null,null,null,null,null,null,null,"X"]
[null,null,null,null,null,null,null,"X"]
[null,null,null,null,null,null,null,"X"]
[null,null,null,null,null,null,null,"X"]
[null,null,null,null,null,null,null,"X"]
[null,null,null,null,null,null,null,"X"]
[null,null,null,null,null,null,null,"X"]
[null,null,null,null,null,null,null,"X"]
[null,null,null,null,null,null,null,"X"]
[null,null,null,null,null,null,null,"X"]
[null,null,null,null,null,null,null,"X"]
[null,null,null,null,null,null,null,"X"]
[null,null,null,null,null,null,null,"X"]
[null,null,null,null,null,null,null,"X"]
[null,null,null,null,null,null,null,"X"]
[null,null,null,null,null,null,null,"X"]
[null,null,null,null,null,null,null,"X"]
[null,null,null,null,null,null,null,"X"]
[null,null,null,null,null,null,null,"X"]
[null,null,null,null,null,null,null,"X"]
[null,null,null,null,null,null,null,"X"]
[null,null,null,null,null,null,null,"X"]
[null,null,null,null,null,null,null,"X"]
[null,null,null,null,null,null,null,"X"]
[null,null,null,null,null,null,null,"X"]
[null,null,null,null,null,null,null,"X"]
[null,null,null,null,null,null,null,"X"]
[null,null,null,null,null,null,null,"X"]
[null,null,null,null,null,null,null,{"$f":"_xlfn.CONCAT(D3843,\"X\",G3843)","v":"X"}]
[null,null,null,null,null,null,null,"X"]
[null,null,null,null,null,null,null,"X"]
[null,null,null,null,null,null,null,"X"]
[null,null,null,null,null,null,null,"X"]
[null,null,null,null,null,null,null,"X"]
[null,null,null,null,null,null,null,"X"]
[null,null,null,null,null,null,null,"X"]
[null,null,null,null,null,null,null,"X"]
[null,null,null,null,null,null,null,"X"]
[null,null,null,null,null,null,null,"X"]
[null,null,null,null,null,null,null,"X"]
[null,null,null,null,null,null,null,"X"]
[null,null,null,null,null,null,null,"X"]
[null,null,null,null,null,null,null,"X"]
[null,null,null,null,null,null,null,"X"]
[null,null,null,null,null,null,null,"X"]
[null,null,null,null,null,null,null,"X"]
[null,null,null,null,null,null,null,"X"]
[null,null,null,null,null,null,null,"X"]
[null,null,null,null,null,null,null,"X"]
[null,null,null,null,null,null,null,"X"]
[null,null,null,null,null,null,null,"X"]
[null,null,null,null,null,null,null,"X"]
[null,null,null,null,null,null,null,"X"]
[null,null,null,null,null,null,null,"X"]
[null,null,null,null,null,null,null,"X"]
[null,null,null,null,null,null,null,"X"]
[null,null,null,null,null,null,null,"X"]
[null,null,null,null,null,null,null,"X"]
[null,null,null,null,null,null,null,"X"]
[null,null,null,null,null,null,null,"X"]
[null,null,null,null,null,null,null,"X"]
[null,null,null,null,null,null,null,"X"]
[null,null,null,null,null,null,null,"X"]
[null,null,null,null,null,null,null,"X"]
[null,null,null,null,null,null,null,"X"]
[null,null,null,null,null,null,null,"X"]
[null,null,null,null,null,null,null,"X"]
[null,null,null,null,null,null,null,"X"]
[null,null,null,null,null,null,null,"X"]
[null,null,null,null,null,null,null,"X"]
[null,null,null,null,null,null,null,"X"]
[null,null,null,null,null,null,null,"X"]
[null,null,null,null,null,null,null,"X"]
[null,null,null,null,null,null,null,"X"]
[null,null,null,null,null,null,null,"X"]
[null,null,null,null,null,null,null,"X"]
[null,null,null,null,null,null,null,"X"]
[null,null,null,null,null,null,null,"X"]
[null,null,null,null,null,null,null,"X"]
[null,null,null,null,null,null,null,"X"]
[null,null,null,null,null,null,null,"X"]
[null,null,null,null,null,null,null,"X"]
[null,null,null,null,null,null,null,"X"]
[null,null,null,null,null,null,null,"X"]
[null,null,null,null,null,null,null,"X"]
[null,null,null,null,null,null,null,"X"]
[null,null,null,null,null,null,null,"X"]
[null,null,null,null,null,null,null,"X"]
[null,null,null,null,null,null,null,"X"]
[null,null,null,null,null,null,null,"X"]
[null,null,null,null,null,null,null,"X"]
[null,null,null,null,null,null,null,"X"]
[null,null,null,null,null,null,null,{"$f":"_xlfn.CONCAT(D3907,\"X\",G3907)","v":"X"}]
[null,null,null,null,null,null,null,"X"]
[null,null,null,null,null,null,null,"X"]
[null,null,null,null,null,null,null,"X"]
[null,null,null,null,null,null,null,"X"]
[null,null,null,null,null,null,null,"X"]
[null,null,null,null,null,null,null,"X"]
[null,null,null,null,null,null,null,"X"]
[null,null,null,null,null,null,null,"X"]
[null,null,null,null,null,null,null,"X"]
[null,null,null,null,null,null,null,"X"]
[null,null,null,null,null,null,null,"X"]
[null,null,null,null,null,null,null,"X"]
[null,null,null,null,null,null,null,"X"]
[null,null,null,null,null,null,null,"X"]
[null,null,null,null,null,null,null,"X"]
[null,null,null,null,null,null,null,"X"]
[null,null,null,null,null,null,null,"X"]
[null,null,null,null,null,null,null,"X"]
[null,null,null,null,null,null,null,"X"]
[null,null,null,null,null,null,null,"X"]
[null,null,null,null,null,null,null,"X"]
[null,null,null,null,null,null,null,"X"]
[null,null,null,null,null,null,null,"X"]
[null,null,null,null,null,null,null,"X"]
[null,null,null,null,null,null,null,"X"]
[null,null,null,null,null,null,null,"X"]
[null,null,null,null,null,null,null,"X"]
[null,null,null,null,null,null,null,"X"]
[null,null,null,null,null,null,null,"X"]
[null,null,null,null,null,null,null,"X"]
[null,null,null,null,null,null,null,"X"]
[null,null,null,null,null,null,null,"X"]
[null,null,null,null,null,null,null,"X"]
[null,null,null,null,null,null,null,"X"]
[null,null,null,null,null,null,null,"X"]
[null,null,null,null,null,null,null,"X"]
[null,null,null,null,null,null,null,"X"]
[null,null,null,null,null,null,null,"X"]
[null,null,null,null,null,null,null,"X"]
[null,null,null,null,null,null,null,"X"]
[null,null,null,null,null,null,null,"X"]
[null,null,null,null,null,null,null,"X"]
[null,null,null,null,null,null,null,"X"]
[null,null,null,null,null,null,null,"X"]
[null,null,null,null,null,null,null,"X"]
[null,null,null,null,null,null,null,"X"]
[null,null,null,null,null,null,null,"X"]
[null,null,null,null,null,null,null,"X"]
[null,null,null,null,null,null,null,"X"]
[null,null,null,null,null,null,null,"X"]
[null,null,null,null,null,null,null,"X"]
[null,null,null,null,null,null,null,"X"]
[null,null,null,null,null,null,null,"X"]
[null,null,null,null,null,null,null,"X"]
[null,null,null,null,null,null,null,"X"]
[null,null,null,null,null,null,null,"X"]
[null,null,null,null,null,null,null,"X"]
[null,null,null,null,null,null,null,"X"]
[null,null,null,null,null,null,null,"X"]
[null,null,null,null,null,null,null,"X"]
[null,null,null,null,null,null,null,"X"]
[null,null,null,null,null,null,null,"X"]
[null,null,null,null,null,null,null,"X"]
[null,null,null,null,null,null,null,{"$f":"_xlfn.CONCAT(D3971,\"X\",G3971)","v":"X"}]
[null,null,null,null,null,null,null,"X"]
[null,null,null,null,null,null,null,"X"]
[null,null,null,null,null,null,null,"X"]
[null,null,null,null,null,null,null,"X"]
[null,null,null,null,null,null,null,"X"]
[null,null,null,null,null,null,null,"X"]
[null,null,null,null,null,null,null,"X"]
[null,null,null,null,null,null,null,"X"]
[null,null,null,null,null,null,null,"X"]
[null,null,null,null,null,null,null,"X"]
[null,null,null,null,null,null,null,"X"]
[null,null,null,null,null,null,null,"X"]
[null,null,null,null,null,null,null,"X"]
[null,null,null,null,null,null,null,"X"]
[null,null,null,null,null,null,null,"X"]
[null,null,null,null,null,null,null,"X"]
[null,null,null,null,null,null,null,"X"]
[null,null,null,null,null,null,null,"X"]
[null,null,null,null,null,null,null,"X"]
[null,null,null,null,null,null,null,"X"]
[null,null,null,null,null,null,null,"X"]
[null,null,null,null,null,null,null,"X"]
[null,null,null,null,null,null,null,"X"]
[null,null,null,null,null,null,null,"X"]
[null,null,null,null,null,null,null,"X"]
[null,null,null,null,null,null,null,"X"]
[null,null,null,null,null,null,null,"X"]
[null,null,null,null,null,null,null,"X"]
[null,null,null,null,null,null,null,"X"]
[null,null,null,null,null,null,null,"X"]
[null,null,null,null,null,null,null,"X"]
[null,null,null,null,null,null,null,"X"]
[null,null,null,null,null,null,null,"X"]
[null,null,null,null,null,null,null,"X"]
[null,null,null,null,null,null,null,"X"]
[null,null,null,null,null,null,null,"X"]
[null,null,null,null,null,null,null,"X"]
[null,null,null,null,null,null,null,"X"]
[null,null,null,null,null,null,null,"X"]
[null,null,null,null,null,null,null,"X"]
[null,null,null,null,null,null,null,"X"]
[null,null,null,null,null,null,null,"X"]
[null,null,null,null,null,null,null,"X"]
[null,null,null,null,null,null,null,"X"]
[null,null,null,null,null,null,null,"X"]
[null,null,null,null,null,null,null,"X"]
[null,null,null,null,null,null,null,"X"]
[null,null,null,null,null,null,null,"X"]
[null,null,null,null,null,null,null,"X"]
[null,null,null,null,null,null,null,"X"]
[null,null,null,null,null,null,null,"X"]
[null,null,null,null,null,null,null,"X"]
[null,null,null,null,null,null,null,"X"]
[null,null,null,null,null,null,null,"X"]
[null,null,null,null,null,null,null,"X"]
[null,null,null,null,null,null,null,"X"]
[null,null,null,null,null,null,null,"X"]
[null,null,null,null,null,null,null,"X"]
[null,null,null,null,null,null,null,"X"]
[null,null,null,null,null,null,null,"X"]
[null,null,null,null,null,null,null,"X"]
[null,null,null,null,null,null,null,"X"]
[null,null,null,null,null,null,null,"X"]
[null,null,null,null,null,null,null,{"$f":"_xlfn.CONCAT(D4035,\"X\",G4035)","v":"X"}]
[null,null,null,null,null,null,null,"X"]
[null,null,null,null,null,null,null,"X"]
[null,null,null,null,null,null,null,"X"]
[null,null,null,null,null,null,null,"X"]
[null,null,null,null,null,null,null,"X"]
[null,null,null,null,null,null,null,"X"]
[null,null,null,null,null,null,null,"X"]
[null,null,null,null,null,null,null,"X"]
[null,null,null,null,null,null,null,"X"]
[null,null,null,null,null,null,null,"X"]
[null,null,null,null,null,null,null,"X"]
[null,null,null,null,null,null,null,"X"]
[null,null,null,null,null,null,null,"X"]
[null,null,null,null,null,null,null,"X"]
[null,null,null,null,null,null,null,"X"]
[null,null,null,null,null,null,null,"X"]
[null,null,null,null,null,null,null,"X"]
[null,null,null,null,null,null,null,"X"]
[null,null,null,null,null,null,null,"X"]
[null,null,null,null,null,null,null,"X"]
[null,null,null,null,null,null,null,"X"]
[null,null,null,null,null,null,null,"X"]
[null,null,null,null,null,null,null,"X"]
[null,null,null,null,null,null,null,"X"]
[null,null,null,null,null,null,null,"X"]
[null,null,null,null,null,null,null,"X"]
[null,null,null,null,null,null,null,"X"]
[null,null,null,null,null,null,null,"X"]
[null,null,null,null,null,null,null,"X"]
[null,null,null,null,null,null,null,"X"]
[null,null,null,null,null,null,null,"X"]
[null,null,null,null,null,null,null,"X"]
[null,null,null,null,null,null,null,"X"]
[null,null,null,null,null,null,null,"X"]
[null,null,null,null,null,null,null,"X"]
[null,null,null,null,null,null,null,"X"]
[null,null,null,null,null,null,null,"X"]
[null,null,null,null,null,null,null,"X"]
[null,null,null,null,null,null,null,"X"]
[null,null,null,null,null,null,null,"X"]
[null,null,null,null,null,null,null,"X"]
[null,null,null,null,null,null,null,"X"]
[null,null,null,null,null,null,null,"X"]
[null,null,null,null,null,null,null,"X"]
[null,null,null,null,null,null,null,"X"]
[null,null,null,null,null,null,null,"X"]
[null,null,null,null,null,null,null,"X"]
[null,null,null,null,null,null,null,"X"]
[null,null,null,null,null,null,null,"X"]
[null,null,null,null,null,null,null,"X"]
[null,null,null,null,null,null,null,"X"]
[null,null,null,null,null,null,null,"X"]
[null,null,null,null,null,null,null,"X"]
[null,null,null,null,null,null,null,"X"]
[null,null,null,null,null,null,null,"X"]
[null,null,null,null,null,null,null,"X"]
[null,null,null,null,null,null,null,"X"]
[null,null,null,null,null,null,null,"X"]
[null,null,null,null,null,null,null,"X"]
[null,null,null,null,null,null,null,"X"]
[null,null,null,null,null,null,null,"X"]
[null,null,null,null,null,null,null,"X"]
[null,null,null,null,null,null,null,"X"]
[null,null,null,null,null,null,null,{"$f":"_xlfn.CONCAT(D4099,\"X\",G4099)","v":"X"}]
[null,null,null,null,null,null,null,"X"]
[null,null,null,null,null,null,null,"X"]
[null,null,null,null,null,null,null,"X"]
[null,null,null,null,null,null,null,"X"]
[null,null,null,null,null,null,null,"X"]
[null,null,null,null,null,null,null,"X"]
[null,null,null,null,null,null,null,"X"]
[null,null,null,null,null,null,null,"X"]
[null,null,null,null,null,null,null,"X"]
[null,null,null,null,null,null,null,"X"]
[null,null,null,null,null,null,null,"X"]
[null,null,null,null,null,null,null,"X"]
[null,null,null,null,null,null,null,"X"]
[null,null,null,null,null,null,null,"X"]
[null,null,null,null,null,null,null,"X"]
[null,null,null,null,null,null,null,"X"]
[null,null,null,null,null,null,null,"X"]
[null,null,null,null,null,null,null,"X"]
[null,null,null,null,null,null,null,"X"]
[null,null,null,null,null,null,null,"X"]
[null,null,null,null,null,null,null,"X"]
[null,null,null,null,null,null,null,"X"]
[null,null,null,null,null,null,null,"X"]
[null,null,null,null,null,null,null,"X"]
[null,null,null,null,null,null,null,"X"]
[null,null,null,null,null,null,null,"X"]
[null,null,null,null,null,null,null,"X"]
[null,null,null,null,null,null,null,"X"]
[null,null,null,null,null,null,null,"X"]
[null,null,null,null,null,null,null,"X"]
[null,null,null,null,null,null,null,"X"]
[null,null,null,null,null,null,null,"X"]
[null,null,null,null,null,null,null,"X"]
[null,null,null,null,null,null,null,"X"]
[null,null,null,null,null,null,null,"X"]
[null,null,null,null,null,null,null,"X"]
[null,null,null,null,null,null,null,"X"]
[null,null,null,null,null,null,null,"X"]
[null,null,null,null,null,null,null,"X"]
[null,null,null,null,null,null,null,"X"]
[null,null,null,null,null,null,null,"X"]
[null,null,null,null,null,null,null,"X"]
[null,null,null,null,null,null,null,"X"]
[null,null,null,null,null,null,null,"X"]
[null,null,null,null,null,null,null,"X"]
[null,null,null,null,null,null,null,"X"]
[null,null,null,null,null,null,null,"X"]
[null,null,null,null,null,null,null,"X"]
[null,null,null,null,null,null,null,"X"]
[null,null,null,null,null,null,null,"X"]
[null,null,null,null,null,null,null,"X"]
[null,null,null,null,null,null,null,"X"]
[null,null,null,null,null,null,null,"X"]
[null,null,null,null,null,null,null,"X"]
[null,null,null,null,null,null,null,"X"]
[null,null,null,null,null,null,null,"X"]
[null,null,null,null,null,null,null,"X"]
[null,null,null,null,null,null,null,"X"]
[null,null,null,null,null,null,null,"X"]
[null,null,null,null,null,null,null,"X"]
[null,null,null,null,null,null,null,"X"]
[null,null,null,null,null,null,null,"X"]
[null,null,null,null,null,null,null,"X"]
[null,null,null,null,null,null,null,{"$f":"_xlfn.CONCAT(D4163,\"X\",G4163)","v":"X"}]
[null,null,null,null,null,null,null,"X"]
[null,null,null,null,null,null,null,"X"]
[null,null,null,null,null,null,null,"X"]
[null,null,null,null,null,null,null,"X"]
[null,null,null,null,null,null,null,"X"]
[null,null,null,null,null,null,null,"X"]
[null,null,null,null,null,null,null,"X"]
[null,null,null,null,null,null,null,"X"]
[null,null,null,null,null,null,null,"X"]
[null,null,null,null,null,null,null,"X"]
[null,null,null,null,null,null,null,"X"]
[null,null,null,null,null,null,null,"X"]
[null,null,null,null,null,null,null,"X"]
[null,null,null,null,null,null,null,"X"]
[null,null,null,null,null,null,null,"X"]
[null,null,null,null,null,null,null,"X"]
[null,null,null,null,null,null,null,"X"]
[null,null,null,null,null,null,null,"X"]
[null,null,null,null,null,null,null,"X"]
[null,null,null,null,null,null,null,"X"]
[null,null,null,null,null,null,null,"X"]
[null,null,null,null,null,null,null,"X"]
[null,null,null,null,null,null,null,"X"]
[null,null,null,null,null,null,null,"X"]
[null,null,null,null,null,null,null,"X"]
[null,null,null,null,null,null,null,"X"]
[null,null,null,null,null,null,null,"X"]
[null,null,null,null,null,null,null,"X"]
[null,null,null,null,null,null,null,"X"]
[null,null,null,null,null,null,null,"X"]
[null,null,null,null,null,null,null,"X"]
[null,null,null,null,null,null,null,"X"]
[null,null,null,null,null,null,null,"X"]
[null,null,null,null,null,null,null,"X"]
[null,null,null,null,null,null,null,"X"]
[null,null,null,null,null,null,null,"X"]
[null,null,null,null,null,null,null,"X"]
[null,null,null,null,null,null,null,"X"]
[null,null,null,null,null,null,null,"X"]
[null,null,null,null,null,null,null,"X"]
[null,null,null,null,null,null,null,"X"]
[null,null,null,null,null,null,null,"X"]
[null,null,null,null,null,null,null,"X"]
[null,null,null,null,null,null,null,"X"]
[null,null,null,null,null,null,null,"X"]
[null,null,null,null,null,null,null,"X"]
[null,null,null,null,null,null,null,"X"]
[null,null,null,null,null,null,null,"X"]
[null,null,null,null,null,null,null,"X"]
[null,null,null,null,null,null,null,"X"]
[null,null,null,null,null,null,null,"X"]
[null,null,null,null,null,null,null,"X"]
[null,null,null,null,null,null,null,"X"]
[null,null,null,null,null,null,null,"X"]
[null,null,null,null,null,null,null,"X"]
[null,null,null,null,null,null,null,"X"]
[null,null,null,null,null,null,null,"X"]
[null,null,null,null,null,null,null,"X"]
[null,null,null,null,null,null,null,"X"]
[null,null,null,null,null,null,null,"X"]
[null,null,null,null,null,null,null,"X"]
[null,null,null,null,null,null,null,"X"]
[null,null,null,null,null,null,null,"X"]
[null,null,null,null,null,null,null,{"$f":"_xlfn.CONCAT(D4227,\"X\",G4227)","v":"X"}]
[null,null,null,null,null,null,null,"X"]
[null,null,null,null,null,null,null,"X"]
[null,null,null,null,null,null,null,"X"]
[null,null,null,null,null,null,null,"X"]
[null,null,null,null,null,null,null,"X"]
[null,null,null,null,null,null,null,"X"]
[null,null,null,null,null,null,null,"X"]
[null,null,null,null,null,null,null,"X"]
[null,null,null,null,null,null,null,"X"]
[null,null,null,null,null,null,null,"X"]
[null,null,null,null,null,null,null,"X"]
[null,null,null,null,null,null,null,"X"]
[null,null,null,null,null,null,null,"X"]
[null,null,null,null,null,null,null,"X"]
[null,null,null,null,null,null,null,"X"]
[null,null,null,null,null,null,null,"X"]
[null,null,null,null,null,null,null,"X"]
[null,null,null,null,null,null,null,"X"]
[null,null,null,null,null,null,null,"X"]
[null,null,null,null,null,null,null,"X"]
[null,null,null,null,null,null,null,"X"]
[null,null,null,null,null,null,null,"X"]
[null,null,null,null,null,null,null,"X"]
[null,null,null,null,null,null,null,"X"]
[null,null,null,null,null,null,null,"X"]
[null,null,null,null,null,null,null,"X"]
[null,null,null,null,null,null,null,"X"]
[null,null,null,null,null,null,null,"X"]
[null,null,null,null,null,null,null,"X"]
[null,null,null,null,null,null,null,"X"]
[null,null,null,null,null,null,null,"X"]
[null,null,null,null,null,null,null,"X"]
[null,null,null,null,null,null,null,"X"]
[null,null,null,null,null,null,null,"X"]
[null,null,null,null,null,null,null,"X"]
[null,null,null,null,null,null,null,"X"]
[null,null,null,null,null,null,null,"X"]
[null,null,null,null,null,null,null,"X"]
[null,null,null,null,null,null,null,"X"]
[null,null,null,null,null,null,null,"X"]
[null,null,null,null,null,null,null,"X"]
[null,null,null,null,null,null,null,"X"]
[null,null,null,null,null,null,null,"X"]
[null,null,null,null,null,null,null,"X"]
[null,null,null,null,null,null,null,"X"]
[null,null,null,null,null,null,null,"X"]
[null,null,null,null,null,null,null,"X"]
[null,null,null,null,null,null,null,"X"]
[null,null,null,null,null,null,null,"X"]
[null,null,null,null,null,null,null,"X"]
[null,null,null,null,null,null,null,"X"]
[null,null,null,null,null,null,null,"X"]
[null,null,null,null,null,null,null,"X"]
[null,null,null,null,null,null,null,"X"]
[null,null,null,null,null,null,null,"X"]
[null,null,null,null,null,null,null,"X"]
[null,null,null,null,null,null,null,"X"]
[null,null,null,null,null,null,null,"X"]
[null,null,null,null,null,null,null,"X"]
[null,null,null,null,null,null,null,"X"]
[null,null,null,null,null,null,null,"X"]
[null,null,null,null,null,null,null,"X"]
[null,null,null,null,null,null,null,"X"]
[null,null,null,null,null,null,null,{"$f":"_xlfn.CONCAT(D4291,\"X\",G4291)","v":"X"}]
[null,null,null,null,null,null,null,"X"]
[null,null,null,null,null,null,null,"X"]
[null,null,null,null,null,null,null,"X"]
[null,null,null,null,null,null,null,"X"]
[null,null,null,null,null,null,null,"X"]
[null,null,null,null,null,null,null,"X"]
[null,null,null,null,null,null,null,"X"]
[null,null,null,null,null,null,null,"X"]
[null,null,null,null,null,null,null,"X"]
[null,null,null,null,null,null,null,"X"]
[null,null,null,null,null,null,null,"X"]
[null,null,null,null,null,null,null,"X"]
[null,null,null,null,null,null,null,"X"]
[null,null,null,null,null,null,null,"X"]
[null,null,null,null,null,null,null,"X"]
[null,null,null,null,null,null,null,"X"]
[null,null,null,null,null,null,null,"X"]
[null,null,null,null,null,null,null,"X"]
[null,null,null,null,null,null,null,"X"]
[null,null,null,null,null,null,null,"X"]
[null,null,null,null,null,null,null,"X"]
[null,null,null,null,null,null,null,"X"]
[null,null,null,null,null,null,null,"X"]
[null,null,null,null,null,null,null,"X"]
[null,null,null,null,null,null,null,"X"]
[null,null,null,null,null,null,null,"X"]
[null,null,null,null,null,null,null,"X"]
[null,null,null,null,null,null,null,"X"]
[null,null,null,null,null,null,null,"X"]
[null,null,null,null,null,null,null,"X"]
[null,null,null,null,null,null,null,"X"]
[null,null,null,null,null,null,null,"X"]
[null,null,null,null,null,null,null,"X"]
[null,null,null,null,null,null,null,"X"]
[null,null,null,null,null,null,null,"X"]
[null,null,null,null,null,null,null,"X"]
[null,null,null,null,null,null,null,"X"]
[null,null,null,null,null,null,null,"X"]
[null,null,null,null,null,null,null,"X"]
[null,null,null,null,null,null,null,"X"]
[null,null,null,null,null,null,null,"X"]
[null,null,null,null,null,null,null,"X"]
[null,null,null,null,null,null,null,"X"]
[null,null,null,null,null,null,null,"X"]
[null,null,null,null,null,null,null,"X"]
[null,null,null,null,null,null,null,"X"]
[null,null,null,null,null,null,null,"X"]
[null,null,null,null,null,null,null,"X"]
[null,null,null,null,null,null,null,"X"]
[null,null,null,null,null,null,null,"X"]
[null,null,null,null,null,null,null,"X"]
[null,null,null,null,null,null,null,"X"]
[null,null,null,null,null,null,null,"X"]
[null,null,null,null,null,null,null,"X"]
[null,null,null,null,null,null,null,"X"]
[null,null,null,null,null,null,null,"X"]
[null,null,null,null,null,null,null,"X"]
[null,null,null,null,null,null,null,"X"]
[null,null,null,null,null,null,null,"X"]
[null,null,null,null,null,null,null,"X"]
[null,null,null,null,null,null,null,"X"]
[null,null,null,null,null,null,null,"X"]
[null,null,null,null,null,null,null,"X"]
[null,null,null,null,null,null,null,{"$f":"_xlfn.CONCAT(D4355,\"X\",G4355)","v":"X"}]
[null,null,null,null,null,null,null,"X"]
[null,null,null,null,null,null,null,"X"]
[null,null,null,null,null,null,null,"X"]
[null,null,null,null,null,null,null,"X"]
[null,null,null,null,null,null,null,"X"]
[null,null,null,null,null,null,null,"X"]
[null,null,null,null,null,null,null,"X"]
[null,null,null,null,null,null,null,"X"]
[null,null,null,null,null,null,null,"X"]
[null,null,null,null,null,null,null,"X"]
[null,null,null,null,null,null,null,"X"]
[null,null,null,null,null,null,null,"X"]
[null,null,null,null,null,null,null,"X"]
[null,null,null,null,null,null,null,"X"]
[null,null,null,null,null,null,null,"X"]
[null,null,null,null,null,null,null,"X"]
[null,null,null,null,null,null,null,"X"]
[null,null,null,null,null,null,null,"X"]
[null,null,null,null,null,null,null,"X"]
[null,null,null,null,null,null,null,"X"]
[null,null,null,null,null,null,null,"X"]
[null,null,null,null,null,null,null,"X"]
[null,null,null,null,null,null,null,"X"]
[null,null,null,null,null,null,null,"X"]
[null,null,null,null,null,null,null,"X"]
[null,null,null,null,null,null,null,"X"]
[null,null,null,null,null,null,null,"X"]
[null,null,null,null,null,null,null,"X"]
[null,null,null,null,null,null,null,"X"]
[null,null,null,null,null,null,null,"X"]
[null,null,null,null,null,null,null,"X"]
[null,null,null,null,null,null,null,"X"]
[null,null,null,null,null,null,null,"X"]
[null,null,null,null,null,null,null,"X"]
[null,null,null,null,null,null,null,"X"]
[null,null,null,null,null,null,null,"X"]
[null,null,null,null,null,null,null,"X"]
[null,null,null,null,null,null,null,"X"]
[null,null,null,null,null,null,null,"X"]
[null,null,null,null,null,null,null,"X"]
[null,null,null,null,null,null,null,"X"]
[null,null,null,null,null,null,null,"X"]
[null,null,null,null,null,null,null,"X"]
[null,null,null,null,null,null,null,"X"]
[null,null,null,null,null,null,null,"X"]
[null,null,null,null,null,null,null,"X"]
[null,null,null,null,null,null,null,"X"]
[null,null,null,null,null,null,null,"X"]
[null,null,null,null,null,null,null,"X"]
[null,null,null,null,null,null,null,"X"]
[null,null,null,null,null,null,null,"X"]
[null,null,null,null,null,null,null,"X"]
[null,null,null,null,null,null,null,"X"]
[null,null,null,null,null,null,null,"X"]
[null,null,null,null,null,null,null,"X"]
[null,null,null,null,null,null,null,"X"]
[null,null,null,null,null,null,null,"X"]
[null,null,null,null,null,null,null,"X"]
[null,null,null,null,null,null,null,"X"]
[null,null,null,null,null,null,null,"X"]
[null,null,null,null,null,null,null,"X"]
[null,null,null,null,null,null,null,"X"]
[null,null,null,null,null,null,null,"X"]
[null,null,null,null,null,null,null,{"$f":"_xlfn.CONCAT(D4419,\"X\",G4419)","v":"X"}]
[null,null,null,null,null,null,null,"X"]
[null,null,null,null,null,null,null,"X"]
[null,null,null,null,null,null,null,"X"]
[null,null,null,null,null,null,null,"X"]
[null,null,null,null,null,null,null,"X"]
[null,null,null,null,null,null,null,"X"]
[null,null,null,null,null,null,null,"X"]
[null,null,null,null,null,null,null,"X"]
[null,null,null,null,null,null,null,"X"]
[null,null,null,null,null,null,null,"X"]
[null,null,null,null,null,null,null,"X"]
[null,null,null,null,null,null,null,"X"]
[null,null,null,null,null,null,null,"X"]
[null,null,null,null,null,null,null,"X"]
[null,null,null,null,null,null,null,"X"]
[null,null,null,null,null,null,null,"X"]
[null,null,null,null,null,null,null,"X"]
[null,null,null,null,null,null,null,"X"]
[null,null,null,null,null,null,null,"X"]
[null,null,null,null,null,null,null,"X"]
[null,null,null,null,null,null,null,"X"]
[null,null,null,null,null,null,null,"X"]
[null,null,null,null,null,null,null,"X"]
[null,null,null,null,null,null,null,"X"]
[null,null,null,null,null,null,null,"X"]
[null,null,null,null,null,null,null,"X"]
[null,null,null,null,null,null,null,"X"]
[null,null,null,null,null,null,null,"X"]
[null,null,null,null,null,null,null,"X"]
[null,null,null,null,null,null,null,"X"]
[null,null,null,null,null,null,null,"X"]
[null,null,null,null,null,null,null,"X"]
[null,null,null,null,null,null,null,"X"]
[null,null,null,null,null,null,null,"X"]
[null,null,null,null,null,null,null,"X"]
[null,null,null,null,null,null,null,"X"]
[null,null,null,null,null,null,null,"X"]
[null,null,null,null,null,null,null,"X"]
[null,null,null,null,null,null,null,"X"]
[null,null,null,null,null,null,null,"X"]
[null,null,null,null,null,null,null,"X"]
[null,null,null,null,null,null,null,"X"]
[null,null,null,null,null,null,null,"X"]
[null,null,null,null,null,null,null,"X"]
[null,null,null,null,null,null,null,"X"]
[null,null,null,null,null,null,null,"X"]
[null,null,null,null,null,null,null,"X"]
[null,null,null,null,null,null,null,"X"]
[null,null,null,null,null,null,null,"X"]
[null,null,null,null,null,null,null,"X"]
[null,null,null,null,null,null,null,"X"]
[null,null,null,null,null,null,null,"X"]
[null,null,null,null,null,null,null,"X"]
[null,null,null,null,null,null,null,"X"]
[null,null,null,null,null,null,null,"X"]
[null,null,null,null,null,null,null,"X"]
[null,null,null,null,null,null,null,"X"]
[null,null,null,null,null,null,null,"X"]
[null,null,null,null,null,null,null,"X"]
[null,null,null,null,null,null,null,"X"]
[null,null,null,null,null,null,null,"X"]
[null,null,null,null,null,null,null,"X"]
[null,null,null,null,null,null,null,"X"]
[null,null,null,null,null,null,null,{"$f":"_xlfn.CONCAT(D4483,\"X\",G4483)","v":"X"}]
[null,null,null,null,null,null,null,"X"]
[null,null,null,null,null,null,null,"X"]
[null,null,null,null,null,null,null,"X"]
[null,null,null,null,null,null,null,"X"]
[null,null,null,null,null,null,null,"X"]
[null,null,null,null,null,null,null,"X"]
[null,null,null,null,null,null,null,"X"]
[null,null,null,null,null,null,null,"X"]
[null,null,null,null,null,null,null,"X"]
[null,null,null,null,null,null,null,"X"]
[null,null,null,null,null,null,null,"X"]
[null,null,null,null,null,null,null,"X"]
[null,null,null,null,null,null,null,"X"]
[null,null,null,null,null,null,null,"X"]
[null,null,null,null,null,null,null,"X"]
[null,null,null,null,null,null,null,"X"]
[null,null,null,null,null,null,null,"X"]
[null,null,null,null,null,null,null,"X"]
[null,null,null,null,null,null,null,"X"]
[null,null,null,null,null,null,null,"X"]
[null,null,null,null,null,null,null,"X"]
[null,null,null,null,null,null,null,"X"]
[null,null,null,null,null,null,null,"X"]
[null,null,null,null,null,null,null,"X"]
[null,null,null,null,null,null,null,"X"]
[null,null,null,null,null,null,null,"X"]
[null,null,null,null,null,null,null,"X"]
[null,null,null,null,null,null,null,"X"]
[null,null,null,null,null,null,null,"X"]
[null,null,null,null,null,null,null,"X"]
[null,null,null,null,null,null,null,"X"]
[null,null,null,null,null,null,null,"X"]
[null,null,null,null,null,null,null,"X"]
[null,null,null,null,null,null,null,"X"]
[null,null,null,null,null,null,null,"X"]
[null,null,null,null,null,null,null,"X"]
[null,null,null,null,null,null,null,"X"]
[null,null,null,null,null,null,null,"X"]
[null,null,null,null,null,null,null,"X"]
[null,null,null,null,null,null,null,"X"]
[null,null,null,null,null,null,null,"X"]
[null,null,null,null,null,null,null,"X"]
[null,null,null,null,null,null,null,"X"]
[null,null,null,null,null,null,null,"X"]
[null,null,null,null,null,null,null,"X"]
[null,null,null,null,null,null,null,"X"]
[null,null,null,null,null,null,null,"X"]
[null,null,null,null,null,null,null,"X"]
[null,null,null,null,null,null,null,"X"]
[null,null,null,null,null,null,null,"X"]
[null,null,null,null,null,null,null,"X"]
[null,null,null,null,null,null,null,"X"]
[null,null,null,null,null,null,null,"X"]
[null,null,null,null,null,null,null,"X"]
[null,null,null,null,null,null,null,"X"]
[null,null,null,null,null,null,null,"X"]
[null,null,null,null,null,null,null,"X"]
[null,null,null,null,null,null,null,"X"]
[null,null,null,null,null,null,null,"X"]
[null,null,null,null,null,null,null,"X"]
[null,null,null,null,null,null,null,"X"]
[null,null,null,null,null,null,null,"X"]
[null,null,null,null,null,null,null,"X"]
[null,null,null,null,null,null,null,{"$f":"_xlfn.CONCAT(D4547,\"X\",G4547)","v":"X"}]
[null,null,null,null,null,null,null,"X"]
[null,null,null,null,null,null,null,"X"]
[null,null,null,null,null,null,null,"X"]
[null,null,null,null,null,null,null,"X"]
[null,null,null,null,null,null,null,"X"]
[null,null,null,null,null,null,null,"X"]
[null,null,null,null,null,null,null,"X"]
[null,null,null,null,null,null,null,"X"]
[null,null,null,null,null,null,null,"X"]
[null,null,null,null,null,null,null,"X"]
[null,null,null,null,null,null,null,"X"]
[null,null,null,null,null,null,null,"X"]
[null,null,null,null,null,null,null,"X"]
[null,null,null,null,null,null,null,"X"]
[null,null,null,null,null,null,null,"X"]
[null,null,null,null,null,null,null,"X"]
[null,null,null,null,null,null,null,"X"]
[null,null,null,null,null,null,null,"X"]
[null,null,null,null,null,null,null,"X"]
[null,null,null,null,null,null,null,"X"]
[null,null,null,null,null,null,null,"X"]
[null,null,null,null,null,null,null,"X"]
[null,null,null,null,null,null,null,"X"]
[null,null,null,null,null,null,null,"X"]
[null,null,null,null,null,null,null,"X"]
[null,null,null,null,null,null,null,"X"]
[null,null,null,null,null,null,null,"X"]
[null,null,null,null,null,null,null,"X"]
[null,null,null,null,null,null,null,"X"]
[null,null,null,null,null,null,null,"X"]
[null,null,null,null,null,null,null,"X"]
[null,null,null,null,null,null,null,"X"]
[null,null,null,null,null,null,null,"X"]
[null,null,null,null,null,null,null,"X"]
[null,null,null,null,null,null,null,"X"]
[null,null,null,null,null,null,null,"X"]
[null,null,null,null,null,null,null,"X"]
[null,null,null,null,null,null,null,"X"]
[null,null,null,null,null,null,null,"X"]
[null,null,null,null,null,null,null,"X"]
[null,null,null,null,null,null,null,"X"]
[null,null,null,null,null,null,null,"X"]
[null,null,null,null,null,null,null,"X"]
[null,null,null,null,null,null,null,"X"]
[null,null,null,null,null,null,null,"X"]
[null,null,null,null,null,null,null,"X"]
[null,null,null,null,null,null,null,"X"]
[null,null,null,null,null,null,null,"X"]
[null,null,null,null,null,null,null,"X"]
[null,null,null,null,null,null,null,"X"]
[null,null,null,null,null,null,null,"X"]
[null,null,null,null,null,null,null,"X"]
[null,null,null,null,null,null,null,"X"]
[null,null,null,null,null,null,null,"X"]
[null,null,null,null,null,null,null,"X"]
[null,null,null,null,null,null,null,"X"]
[null,null,null,null,null,null,null,"X"]
[null,null,null,null,null,null,null,"X"]
[null,null,null,null,null,null,null,"X"]
[null,null,null,null,null,null,null,"X"]
[null,null,null,null,null,null,null,"X"]
[null,null,null,null,null,null,null,"X"]
[null,null,null,null,null,null,null,"X"]
[null,null,null,null,null,null,null,{"$f":"_xlfn.CONCAT(D4611,\"X\",G4611)","v":"X"}]
[null,null,null,null,null,null,null,"X"]
[null,null,null,null,null,null,null,"X"]
[null,null,null,null,null,null,null,"X"]
[null,null,null,null,null,null,null,"X"]
[null,null,null,null,null,null,null,"X"]
[null,null,null,null,null,null,null,"X"]
[null,null,null,null,null,null,null,"X"]
[null,null,null,null,null,null,null,"X"]
[null,null,null,null,null,null,null,"X"]
[null,null,null,null,null,null,null,"X"]
[null,null,null,null,null,null,null,"X"]
[null,null,null,null,null,null,null,"X"]
[null,null,null,null,null,null,null,"X"]
[null,null,null,null,null,null,null,"X"]
[null,null,null,null,null,null,null,"X"]
[null,null,null,null,null,null,null,"X"]
[null,null,null,null,null,null,null,"X"]
[null,null,null,null,null,null,null,"X"]
[null,null,null,null,null,null,null,"X"]
[null,null,null,null,null,null,null,"X"]
[null,null,null,null,null,null,null,"X"]
[null,null,null,null,null,null,null,"X"]
[null,null,null,null,null,null,null,"X"]
[null,null,null,null,null,null,null,"X"]
[null,null,null,null,null,null,null,"X"]
[null,null,null,null,null,null,null,"X"]
[null,null,null,null,null,null,null,"X"]
[null,null,null,null,null,null,null,"X"]
[null,null,null,null,null,null,null,"X"]
[null,null,null,null,null,null,null,"X"]
[null,null,null,null,null,null,null,"X"]
[null,null,null,null,null,null,null,"X"]
[null,null,null,null,null,null,null,"X"]
[null,null,null,null,null,null,null,"X"]
[null,null,null,null,null,null,null,"X"]
[null,null,null,null,null,null,null,"X"]
[null,null,null,null,null,null,null,"X"]
[null,null,null,null,null,null,null,"X"]
[null,null,null,null,null,null,null,"X"]
[null,null,null,null,null,null,null,"X"]
[null,null,null,null,null,null,null,"X"]
[null,null,null,null,null,null,null,"X"]
[null,null,null,null,null,null,null,"X"]
[null,null,null,null,null,null,null,"X"]
[null,null,null,null,null,null,null,"X"]
[null,null,null,null,null,null,null,"X"]
[null,null,null,null,null,null,null,"X"]
[null,null,null,null,null,null,null,"X"]
[null,null,null,null,null,null,null,"X"]
[null,null,null,null,null,null,null,"X"]
[null,null,null,null,null,null,null,"X"]
[null,null,null,null,null,null,null,"X"]
[null,null,null,null,null,null,null,"X"]
[null,null,null,null,null,null,null,"X"]
[null,null,null,null,null,null,null,"X"]
[null,null,null,null,null,null,null,"X"]
[null,null,null,null,null,null,null,"X"]
[null,null,null,null,null,null,null,"X"]
[null,null,null,null,null,null,null,"X"]
[null,null,null,null,null,null,null,"X"]
[null,null,null,null,null,null,null,"X"]
[null,null,null,null,null,null,null,"X"]
[null,null,null,null,null,null,null,"X"]
[null,null,null,null,null,null,null,{"$f":"_xlfn.CONCAT(D4675,\"X\",G4675)","v":"X"}]
[null,null,null,null,null,null,null,"X"]
[null,null,null,null,null,null,null,"X"]
[null,null,null,null,null,null,null,"X"]
[null,null,null,null,null,null,null,"X"]
[null,null,null,null,null,null,null,"X"]
[null,null,null,null,null,null,null,"X"]
[null,null,null,null,null,null,null,"X"]
[null,null,null,null,null,null,null,"X"]
[null,null,null,null,null,null,null,"X"]
[null,null,null,null,null,null,null,"X"]
[null,null,null,null,null,null,null,"X"]
[null,null,null,null,null,null,null,"X"]
[null,null,null,null,null,null,null,"X"]
[null,null,null,null,null,null,null,"X"]
[null,null,null,null,null,null,null,"X"]
[null,null,null,null,null,null,null,"X"]
[null,null,null,null,null,null,null,"X"]
[null,null,null,null,null,null,null,"X"]
[null,null,null,null,null,null,null,"X"]
[null,null,null,null,null,null,null,"X"]
[null,null,null,null,null,null,null,"X"]
[null,null,null,null,null,null,null,"X"]
[null,null,null,null,null,null,null,"X"]
[null,null,null,null,null,null,null,"X"]
[null,null,null,null,null,null,null,"X"]
[null,null,null,null,null,null,null,"X"]
[null,null,null,null,null,null,null,"X"]
[null,null,null,null,null,null,null,"X"]
[null,null,null,null,null,null,null,"X"]
[null,null,null,null,null,null,null,"X"]
[null,null,null,null,null,null,null,"X"]
[null,null,null,null,null,null,null,"X"]
[null,null,null,null,null,null,null,"X"]
[null,null,null,null,null,null,null,"X"]
[null,null,null,null,null,null,null,"X"]
[null,null,null,null,null,null,null,"X"]
[null,null,null,null,null,null,null,"X"]
[null,null,null,null,null,null,null,"X"]
[null,null,null,null,null,null,null,"X"]
[null,null,null,null,null,null,null,"X"]
[null,null,null,null,null,null,null,"X"]
[null,null,null,null,null,null,null,"X"]
[null,null,null,null,null,null,null,"X"]
[null,null,null,null,null,null,null,"X"]
[null,null,null,null,null,null,null,"X"]
[null,null,null,null,null,null,null,"X"]
[null,null,null,null,null,null,null,"X"]
[null,null,null,null,null,null,null,"X"]
[null,null,null,null,null,null,null,"X"]
[null,null,null,null,null,null,null,"X"]
[null,null,null,null,null,null,null,"X"]
[null,null,null,null,null,null,null,"X"]
[null,null,null,null,null,null,null,"X"]
[null,null,null,null,null,null,null,"X"]
[null,null,null,null,null,null,null,"X"]
[null,null,null,null,null,null,null,"X"]
[null,null,null,null,null,null,null,"X"]
[null,null,null,null,null,null,null,"X"]
[null,null,null,null,null,null,null,"X"]
[null,null,null,null,null,null,null,"X"]
[null,null,null,null,null,null,null,"X"]
[null,null,null,null,null,null,null,"X"]
[null,null,null,null,null,null,null,"X"]
[null,null,null,null,null,null,null,{"$f":"_xlfn.CONCAT(D4739,\"X\",G4739)","v":"X"}]
[null,null,null,null,null,null,null,"X"]
[null,null,null,null,null,null,null,"X"]
[null,null,null,null,null,null,null,"X"]
[null,null,null,null,null,null,null,"X"]
[null,null,null,null,null,null,null,"X"]
[null,null,null,null,null,null,null,"X"]
[null,null,null,null,null,null,null,"X"]
[null,null,null,null,null,null,null,"X"]
[null,null,null,null,null,null,null,"X"]
[null,null,null,null,null,null,null,"X"]
[null,null,null,null,null,null,null,"X"]
[null,null,null,null,null,null,null,"X"]
[null,null,null,null,null,null,null,"X"]
[null,null,null,null,null,null,null,"X"]
[null,null,null,null,null,null,null,"X"]
[null,null,null,null,null,null,null,"X"]
[null,null,null,null,null,null,null,"X"]
[null,null,null,null,null,null,null,"X"]
[null,null,null,null,null,null,null,"X"]
[null,null,null,null,null,null,null,"X"]
[null,null,null,null,null,null,null,"X"]
[null,null,null,null,null,null,null,"X"]
[null,null,null,null,null,null,null,"X"]
[null,null,null,null,null,null,null,"X"]
[null,null,null,null,null,null,null,"X"]
[null,null,null,null,null,null,null,"X"]
[null,null,null,null,null,null,null,"X"]
[null,null,null,null,null,null,null,"X"]
[null,null,null,null,null,null,null,"X"]
[null,null,null,null,null,null,null,"X"]
[null,null,null,null,null,null,null,"X"]
[null,null,null,null,null,null,null,"X"]
[null,null,null,null,null,null,null,"X"]
[null,null,null,null,null,null,null,"X"]
[null,null,null,null,null,null,null,"X"]
[null,null,null,null,null,null,null,"X"]
[null,null,null,null,null,null,null,"X"]
[null,null,null,null,null,null,null,"X"]
[null,null,null,null,null,null,null,"X"]
[null,null,null,null,null,null,null,"X"]
[null,null,null,null,null,null,null,"X"]
[null,null,null,null,null,null,null,"X"]
[null,null,null,null,null,null,null,"X"]
[null,null,null,null,null,null,null,"X"]
[null,null,null,null,null,null,null,"X"]
[null,null,null,null,null,null,null,"X"]
[null,null,null,null,null,null,null,"X"]
[null,null,null,null,null,null,null,"X"]
[null,null,null,null,null,null,null,"X"]
[null,null,null,null,null,null,null,"X"]
[null,null,null,null,null,null,null,"X"]
[null,null,null,null,null,null,null,"X"]
[null,null,null,null,null,null,null,"X"]
[null,null,null,null,null,null,null,"X"]
[null,null,null,null,null,null,null,"X"]
[null,null,null,null,null,null,null,"X"]
[null,null,null,null,null,null,null,"X"]
[null,null,null,null,null,null,null,"X"]
[null,null,null,null,null,null,null,"X"]
[null,null,null,null,null,null,null,"X"]
[null,null,null,null,null,null,null,"X"]
[null,null,null,null,null,null,null,"X"]
[null,null,null,null,null,null,null,"X"]
[null,null,null,null,null,null,null,{"$f":"_xlfn.CONCAT(D4803,\"X\",G4803)","v":"X"}]
[null,null,null,null,null,null,null,"X"]
[null,null,null,null,null,null,null,"X"]
[null,null,null,null,null,null,null,"X"]
[null,null,null,null,null,null,null,"X"]
[null,null,null,null,null,null,null,"X"]
[null,null,null,null,null,null,null,"X"]
[null,null,null,null,null,null,null,"X"]
[null,null,null,null,null,null,null,"X"]
[null,null,null,null,null,null,null,"X"]
[null,null,null,null,null,null,null,"X"]
[null,null,null,null,null,null,null,"X"]
[null,null,null,null,null,null,null,"X"]
[null,null,null,null,null,null,null,"X"]
[null,null,null,null,null,null,null,"X"]
[null,null,null,null,null,null,null,"X"]
[null,null,null,null,null,null,null,"X"]
[null,null,null,null,null,null,null,"X"]
[null,null,null,null,null,null,null,"X"]
[null,null,null,null,null,null,null,"X"]
[null,null,null,null,null,null,null,"X"]
[null,null,null,null,null,null,null,"X"]
[null,null,null,null,null,null,null,"X"]
[null,null,null,null,null,null,null,"X"]
[null,null,null,null,null,null,null,"X"]
[null,null,null,null,null,null,null,"X"]
[null,null,null,null,null,null,null,"X"]
[null,null,null,null,null,null,null,"X"]
[null,null,null,null,null,null,null,"X"]
[null,null,null,null,null,null,null,"X"]
[null,null,null,null,null,null,null,"X"]
[null,null,null,null,null,null,null,"X"]
[null,null,null,null,null,null,null,"X"]
[null,null,null,null,null,null,null,"X"]
[null,null,null,null,null,null,null,"X"]
[null,null,null,null,null,null,null,"X"]
[null,null,null,null,null,null,null,"X"]
[null,null,null,null,null,null,null,"X"]
[null,null,null,null,null,null,null,"X"]
[null,null,null,null,null,null,null,"X"]
[null,null,null,null,null,null,null,"X"]
[null,null,null,null,null,null,null,"X"]
[null,null,null,null,null,null,null,"X"]
[null,null,null,null,null,null,null,"X"]
[null,null,null,null,null,null,null,"X"]
[null,null,null,null,null,null,null,"X"]
[null,null,null,null,null,null,null,"X"]
[null,null,null,null,null,null,null,"X"]
[null,null,null,null,null,null,null,"X"]
[null,null,null,null,null,null,null,"X"]
[null,null,null,null,null,null,null,"X"]
[null,null,null,null,null,null,null,"X"]
[null,null,null,null,null,null,null,"X"]
[null,null,null,null,null,null,null,"X"]
[null,null,null,null,null,null,null,"X"]
[null,null,null,null,null,null,null,"X"]
[null,null,null,null,null,null,null,"X"]
[null,null,null,null,null,null,null,"X"]
[null,null,null,null,null,null,null,"X"]
[null,null,null,null,null,null,null,"X"]
[null,null,null,null,null,null,null,"X"]
[null,null,null,null,null,null,null,"X"]
[null,null,null,null,null,null,null,"X"]
[null,null,null,null,null,null,null,"X"]
[null,null,null,null,null,null,null,{"$f":"_xlfn.CONCAT(D4867,\"X\",G4867)","v":"X"}]
[null,null,null,null,null,null,null,"X"]
[null,null,null,null,null,null,null,"X"]
[null,null,null,null,null,null,null,"X"]
[null,null,null,null,null,null,null,"X"]
[null,null,null,null,null,null,null,"X"]
[null,null,null,null,null,null,null,"X"]
[null,null,null,null,null,null,null,"X"]
[null,null,null,null,null,null,null,"X"]
[null,null,null,null,null,null,null,"X"]
[null,null,null,null,null,null,null,"X"]
[null,null,null,null,null,null,null,"X"]
[null,null,null,null,null,null,null,"X"]
[null,null,null,null,null,null,null,"X"]
[null,null,null,null,null,null,null,"X"]
[null,null,null,null,null,null,null,"X"]
[null,null,null,null,null,null,null,"X"]
[null,null,null,null,null,null,null,"X"]
[null,null,null,null,null,null,null,"X"]
[null,null,null,null,null,null,null,"X"]
[null,null,null,null,null,null,null,"X"]
[null,null,null,null,null,null,null,"X"]
[null,null,null,null,null,null,null,"X"]
[null,null,null,null,null,null,null,"X"]
[null,null,null,null,null,null,null,"X"]
[null,null,null,null,null,null,null,"X"]
[null,null,null,null,null,null,null,"X"]
[null,null,null,null,null,null,null,"X"]
[null,null,null,null,null,null,null,"X"]
[null,null,null,null,null,null,null,"X"]
[null,null,null,null,null,null,null,"X"]
[null,null,null,null,null,null,null,"X"]
[null,null,null,null,null,null,null,"X"]
[null,null,null,null,null,null,null,"X"]
[null,null,null,null,null,null,null,"X"]
[null,null,null,null,null,null,null,"X"]
[null,null,null,null,null,null,null,"X"]
[null,null,null,null,null,null,null,"X"]
[null,null,null,null,null,null,null,"X"]
[null,null,null,null,null,null,null,"X"]
[null,null,null,null,null,null,null,"X"]
[null,null,null,null,null,null,null,"X"]
[null,null,null,null,null,null,null,"X"]
[null,null,null,null,null,null,null,"X"]
[null,null,null,null,null,null,null,"X"]
[null,null,null,null,null,null,null,"X"]
[null,null,null,null,null,null,null,"X"]
[null,null,null,null,null,null,null,"X"]
[null,null,null,null,null,null,null,"X"]
[null,null,null,null,null,null,null,"X"]
[null,null,null,null,null,null,null,"X"]
[null,null,null,null,null,null,null,"X"]
[null,null,null,null,null,null,null,"X"]
[null,null,null,null,null,null,null,"X"]
[null,null,null,null,null,null,null,"X"]
[null,null,null,null,null,null,null,"X"]
[null,null,null,null,null,null,null,"X"]
[null,null,null,null,null,null,null,"X"]
[null,null,null,null,null,null,null,"X"]
[null,null,null,null,null,null,null,"X"]
[null,null,null,null,null,null,null,"X"]
[null,null,null,null,null,null,null,"X"]
[null,null,null,null,null,null,null,"X"]
[null,null,null,null,null,null,null,"X"]
[null,null,null,null,null,null,null,{"$f":"_xlfn.CONCAT(D4931,\"X\",G4931)","v":"X"}]
[null,null,null,null,null,null,null,"X"]
[null,null,null,null,null,null,null,"X"]
[null,null,null,null,null,null,null,"X"]
[null,null,null,null,null,null,null,"X"]
[null,null,null,null,null,null,null,"X"]
[null,null,null,null,null,null,null,"X"]
[null,null,null,null,null,null,null,"X"]
[null,null,null,null,null,null,null,"X"]
[null,null,null,null,null,null,null,"X"]
[null,null,null,null,null,null,null,"X"]
[null,null,null,null,null,null,null,"X"]
[null,null,null,null,null,null,null,"X"]
[null,null,null,null,null,null,null,"X"]
[null,null,null,null,null,null,null,"X"]
[null,null,null,null,null,null,null,"X"]
[null,null,null,null,null,null,null,"X"]
[null,null,null,null,null,null,null,"X"]
[null,null,null,null,null,null,null,"X"]
[null,null,null,null,null,null,null,"X"]
[null,null,null,null,null,null,null,"X"]
[null,null,null,null,null,null,null,"X"]
[null,null,null,null,null,null,null,"X"]
[null,null,null,null,null,null,null,"X"]
[null,null,null,null,null,null,null,"X"]
[null,null,null,null,null,null,null,"X"]
[null,null,null,null,null,null,null,"X"]
[null,null,null,null,null,null,null,"X"]
[null,null,null,null,null,null,null,"X"]
[null,null,null,null,null,null,null,"X"]
[null,null,null,null,null,null,null,"X"]
[null,null,null,null,null,null,null,"X"]
[null,null,null,null,null,null,null,"X"]
[null,null,null,null,null,null,null,"X"]
[null,null,null,null,null,null,null,"X"]
[null,null,null,null,null,null,null,"X"]
[null,null,null,null,null,null,null,"X"]
[null,null,null,null,null,null,null,"X"]
[null,null,null,null,null,null,null,"X"]
[null,null,null,null,null,null,null,"X"]
[null,null,null,null,null,null,null,"X"]
[null,null,null,null,null,null,null,"X"]
[null,null,null,null,null,null,null,"X"]
[null,null,null,null,null,null,null,"X"]
[null,null,null,null,null,null,null,"X"]
[null,null,null,null,null,null,null,"X"]
[null,null,null,null,null,null,null,"X"]
[null,null,null,null,null,null,null,"X"]
[null,null,null,null,null,null,null,"X"]
[null,null,null,null,null,null,null,"X"]
[null,null,null,null,null,null,null,"X"]
[null,null,null,null,null,null,null,"X"]
[null,null,null,null,null,null,null,"X"]
[null,null,null,null,null,null,null,"X"]
[null,null,null,null,null,null,null,"X"]
[null,null,null,null,null,null,null,"X"]
[null,null,null,null,null,null,null,"X"]
[null,null,null,null,null,null,null,"X"]
[null,null,null,null,null,null,null,"X"]
[null,null,null,null,null,null,null,"X"]
[null,null,null,null,null,null,null,"X"]
[null,null,null,null,null,null,null,"X"]
[null,null,null,null,null,null,null,"X"]
[null,null,null,null,null,null,null,"X"]
[null,null,null,null,null,null,null,{"$f":"_xlfn.CONCAT(D4995,\"X\",G4995)","v":"X"}]
[null,null,null,null,null,null,null,"X"]
[null,null,null,null,null,null,null,"X"]
[null,null,null,null,null,null,null,"X"]
[null,null,null,null,null,null,null,"X"]
[null,null,null,null,null,null,null,"X"]
[null,null,null,null,null,null,null,"X"]
[null,null,null,null,null,null,null,"X"]
[null,null,null,null,null,null,null,"X"]
[null,null,null,null,null,null,null,"X"]
[null,null,null,null,null,null,null,"X"]
[null,null,null,null,null,null,null,"X"]
[null,null,null,null,null,null,null,"X"]
[null,null,null,null,null,null,null,"X"]
[null,null,null,null,null,null,null,"X"]
[null,null,null,null,null,null,null,"X"]
[null,null,null,null,null,null,null,"X"]
[null,null,null,null,null,null,null,"X"]
[null,null,null,null,null,null,null,"X"]
[null,null,null,null,null,null,null,"X"]
[null,null,null,null,null,null,null,"X"]
[null,null,null,null,null,null,null,"X"]
[null,null,null,null,null,null,null,"X"]
[null,null,null,null,null,null,null,"X"]
[null,null,null,null,null,null,null,"X"]
[null,null,null,null,null,null,null,"X"]
[null,null,null,null,null,null,null,"X"]
[null,null,null,null,null,null,null,"X"]
[null,null,null,null,null,null,null,"X"]
[null,null,null,null,null,null,null,"X"]
[null,null,null,null,null,null,null,"X"]
[null,null,null,null,null,null,null,"X"]
[null,null,null,null,null,null,null,"X"]
[null,null,null,null,null,null,null,"X"]
[null,null,null,null,null,null,null,"X"]
[null,null,null,null,null,null,null,"X"]
[null,null,null,null,null,null,null,"X"]
[null,null,null,null,null,null,null,"X"]
[null,null,null,null,null,null,null,"X"]
[null,null,null,null,null,null,null,"X"]
[null,null,null,null,null,null,null,"X"]
[null,null,null,null,null,null,null,"X"]
[null,null,null,null,null,null,null,"X"]
[null,null,null,null,null,null,null,"X"]
[null,null,null,null,null,null,null,"X"]
[null,null,null,null,null,null,null,"X"]
[null,null,null,null,null,null,null,"X"]
[null,null,null,null,null,null,null,"X"]
[null,null,null,null,null,null,null,"X"]
[null,null,null,null,null,null,null,"X"]
[null,null,null,null,null,null,null,"X"]
[null,null,null,null,null,null,null,"X"]
[null,null,null,null,null,null,null,"X"]
[null,null,null,null,null,null,null,"X"]
[null,null,null,null,null,null,null,"X"]
[null,null,null,null,null,null,null,"X"]
[null,null,null,null,null,null,null,"X"]
[null,null,null,null,null,null,null,"X"]
[null,null,null,null,null,null,null,"X"]
[null,null,null,null,null,null,null,"X"]
[null,null,null,null,null,null,null,"X"]
[null,null,null,null,null,null,null,"X"]
[null,null,null,null,null,null,null,"X"]
[null,null,null,null,null,null,null,"X"]
[null,null,null,null,null,null,null,{"$f":"_xlfn.CONCAT(D5059,\"X\",G5059)","v":"X"}]
[null,null,null,null,null,null,null,"X"]
[null,null,null,null,null,null,null,"X"]
[null,null,null,null,null,null,null,"X"]
[null,null,null,null,null,null,null,"X"]
[null,null,null,null,null,null,null,"X"]
[null,null,null,null,null,null,null,"X"]
[null,null,null,null,null,null,null,"X"]
[null,null,null,null,null,null,null,"X"]
[null,null,null,null,null,null,null,"X"]
[null,null,null,null,null,null,null,"X"]
[null,null,null,null,null,null,null,"X"]
[null,null,null,null,null,null,null,"X"]
[null,null,null,null,null,null,null,"X"]
[null,null,null,null,null,null,null,"X"]
[null,null,null,null,null,null,null,"X"]
[null,null,null,null,null,null,null,"X"]
[null,null,null,null,null,null,null,"X"]
[null,null,null,null,null,null,null,"X"]
[null,null,null,null,null,null,null,"X"]
[null,null,null,null,null,null,null,"X"]
[null,null,null,null,null,null,null,"X"]
[null,null,null,null,null,null,null,"X"]
[null,null,null,null,null,null,null,"X"]
[null,null,null,null,null,null,null,"X"]
[null,null,null,null,null,null,null,"X"]
[null,null,null,null,null,null,null,"X"]
[null,null,null,null,null,null,null,"X"]
[null,null,null,null,null,null,null,"X"]
[null,null,null,null,null,null,null,"X"]
[null,null,null,null,null,null,null,"X"]
[null,null,null,null,null,null,null,"X"]
[null,null,null,null,null,null,null,"X"]
[null,null,null,null,null,null,null,"X"]
[null,null,null,null,null,null,null,"X"]
[null,null,null,null,null,null,null,"X"]
[null,null,null,null,null,null,null,"X"]
[null,null,null,null,null,null,null,"X"]
[null,null,null,null,null,null,null,"X"]
[null,null,null,null,null,null,null,"X"]
[null,null,null,null,null,null,null,"X"]
[null,null,null,null,null,null,null,"X"]
[null,null,null,null,null,null,null,"X"]
[null,null,null,null,null,null,null,"X"]
[null,null,null,null,null,null,null,"X"]
[null,null,null,null,null,null,null,"X"]
[null,null,null,null,null,null,null,"X"]
[null,null,null,null,null,null,null,"X"]
[null,null,null,null,null,null,null,"X"]
[null,null,null,null,null,null,null,"X"]
[null,null,null,null,null,null,null,"X"]
[null,null,null,null,null,null,null,"X"]
[null,null,null,null,null,null,null,"X"]
[null,null,null,null,null,null,null,"X"]
[null,null,null,null,null,null,null,"X"]
[null,null,null,null,null,null,null,"X"]
[null,null,null,null,null,null,null,"X"]
[null,null,null,null,null,null,null,"X"]
[null,null,null,null,null,null,null,"X"]
[null,null,null,null,null,null,null,"X"]
[null,null,null,null,null,null,null,"X"]
[null,null,null,null,null,null,null,"X"]
[null,null,null,null,null,null,null,"X"]
[null,null,null,null,null,null,null,"X"]
[null,null,null,null,null,null,null,{"$f":"_xlfn.CONCAT(D5123,\"X\",G5123)","v":"X"}]
[null,null,null,null,null,null,null,"X"]
[null,null,null,null,null,null,null,"X"]
[null,null,null,null,null,null,null,"X"]
[null,null,null,null,null,null,null,"X"]
[null,null,null,null,null,null,null,"X"]
[null,null,null,null,null,null,null,"X"]
[null,null,null,null,null,null,null,"X"]
[null,null,null,null,null,null,null,"X"]
[null,null,null,null,null,null,null,"X"]
[null,null,null,null,null,null,null,"X"]
[null,null,null,null,null,null,null,"X"]
[null,null,null,null,null,null,null,"X"]
[null,null,null,null,null,null,null,"X"]
[null,null,null,null,null,null,null,"X"]
[null,null,null,null,null,null,null,"X"]
[null,null,null,null,null,null,null,"X"]
[null,null,null,null,null,null,null,"X"]
[null,null,null,null,null,null,null,"X"]
[null,null,null,null,null,null,null,"X"]
[null,null,null,null,null,null,null,"X"]
[null,null,null,null,null,null,null,"X"]
[null,null,null,null,null,null,null,"X"]
[null,null,null,null,null,null,null,"X"]
[null,null,null,null,null,null,null,"X"]
[null,null,null,null,null,null,null,"X"]
[null,null,null,null,null,null,null,"X"]
[null,null,null,null,null,null,null,"X"]
[null,null,null,null,null,null,null,"X"]
[null,null,null,null,null,null,null,"X"]
[null,null,null,null,null,null,null,"X"]
[null,null,null,null,null,null,null,"X"]
[null,null,null,null,null,null,null,"X"]
[null,null,null,null,null,null,null,"X"]
[null,null,null,null,null,null,null,"X"]
[null,null,null,null,null,null,null,"X"]
[null,null,null,null,null,null,null,"X"]
[null,null,null,null,null,null,null,"X"]
[null,null,null,null,null,null,null,"X"]
[null,null,null,null,null,null,null,"X"]
[null,null,null,null,null,null,null,"X"]
[null,null,null,null,null,null,null,"X"]
[null,null,null,null,null,null,null,"X"]
[null,null,null,null,null,null,null,"X"]
[null,null,null,null,null,null,null,"X"]
[null,null,null,null,null,null,null,"X"]
[null,null,null,null,null,null,null,"X"]
[null,null,null,null,null,null,null,"X"]
[null,null,null,null,null,null,null,"X"]
[null,null,null,null,null,null,null,"X"]
[null,null,null,null,null,null,null,"X"]
[null,null,null,null,null,null,null,"X"]
[null,null,null,null,null,null,null,"X"]
[null,null,null,null,null,null,null,"X"]
[null,null,null,null,null,null,null,"X"]
[null,null,null,null,null,null,null,"X"]
[null,null,null,null,null,null,null,"X"]
[null,null,null,null,null,null,null,"X"]
[null,null,null,null,null,null,null,"X"]
[null,null,null,null,null,null,null,"X"]
[null,null,null,null,null,null,null,"X"]
[null,null,null,null,null,null,null,"X"]
[null,null,null,null,null,null,null,"X"]
[null,null,null,null,null,null,null,"X"]
[null,null,null,null,null,null,null,{"$f":"_xlfn.CONCAT(D5187,\"X\",G5187)","v":"X"}]
[null,null,null,null,null,null,null,"X"]
[null,null,null,null,null,null,null,"X"]
[null,null,null,null,null,null,null,"X"]
[null,null,null,null,null,null,null,"X"]
[null,null,null,null,null,null,null,"X"]
[null,null,null,null,null,null,null,"X"]
[null,null,null,null,null,null,null,"X"]
[null,null,null,null,null,null,null,"X"]
[null,null,null,null,null,null,null,"X"]
[null,null,null,null,null,null,null,"X"]
[null,null,null,null,null,null,null,"X"]
[null,null,null,null,null,null,null,"X"]
[null,null,null,null,null,null,null,"X"]
[null,null,null,null,null,null,null,"X"]
[null,null,null,null,null,null,null,"X"]
[null,null,null,null,null,null,null,"X"]
[null,null,null,null,null,null,null,"X"]
[null,null,null,null,null,null,null,"X"]
[null,null,null,null,null,null,null,"X"]
[null,null,null,null,null,null,null,"X"]
[null,null,null,null,null,null,null,"X"]
[null,null,null,null,null,null,null,"X"]
[null,null,null,null,null,null,null,"X"]
[null,null,null,null,null,null,null,"X"]
[null,null,null,null,null,null,null,"X"]
[null,null,null,null,null,null,null,"X"]
[null,null,null,null,null,null,null,"X"]
[null,null,null,null,null,null,null,"X"]
[null,null,null,null,null,null,null,"X"]
[null,null,null,null,null,null,null,"X"]
[null,null,null,null,null,null,null,"X"]
[null,null,null,null,null,null,null,"X"]
[null,null,null,null,null,null,null,"X"]
[null,null,null,null,null,null,null,"X"]
[null,null,null,null,null,null,null,"X"]
[null,null,null,null,null,null,null,"X"]
[null,null,null,null,null,null,null,"X"]
[null,null,null,null,null,null,null,"X"]
[null,null,null,null,null,null,null,"X"]
[null,null,null,null,null,null,null,"X"]
[null,null,null,null,null,null,null,"X"]
[null,null,null,null,null,null,null,"X"]
[null,null,null,null,null,null,null,"X"]
[null,null,null,null,null,null,null,"X"]
[null,null,null,null,null,null,null,"X"]
[null,null,null,null,null,null,null,"X"]
[null,null,null,null,null,null,null,"X"]
[null,null,null,null,null,null,null,"X"]
[null,null,null,null,null,null,null,"X"]
[null,null,null,null,null,null,null,"X"]
[null,null,null,null,null,null,null,"X"]
[null,null,null,null,null,null,null,"X"]
[null,null,null,null,null,null,null,"X"]
[null,null,null,null,null,null,null,"X"]
[null,null,null,null,null,null,null,"X"]
[null,null,null,null,null,null,null,"X"]
[null,null,null,null,null,null,null,"X"]
[null,null,null,null,null,null,null,"X"]
[null,null,null,null,null,null,null,"X"]
[null,null,null,null,null,null,null,"X"]
[null,null,null,null,null,null,null,"X"]
[null,null,null,null,null,null,null,"X"]
[null,null,null,null,null,null,null,"X"]
[null,null,null,null,null,null,null,{"$f":"_xlfn.CONCAT(D5251,\"X\",G5251)","v":"X"}]
[null,null,null,null,null,null,null,"X"]
[null,null,null,null,null,null,null,"X"]
[null,null,null,null,null,null,null,"X"]
[null,null,null,null,null,null,null,"X"]
[null,null,null,null,null,null,null,"X"]
[null,null,null,null,null,null,null,"X"]
[null,null,null,null,null,null,null,"X"]
[null,null,null,null,null,null,null,"X"]
[null,null,null,null,null,null,null,"X"]
[null,null,null,null,null,null,null,"X"]
[null,null,null,null,null,null,null,"X"]
[null,null,null,null,null,null,null,"X"]
[null,null,null,null,null,null,null,"X"]
[null,null,null,null,null,null,null,"X"]
[null,null,null,null,null,null,null,"X"]
[null,null,null,null,null,null,null,"X"]
[null,null,null,null,null,null,null,"X"]
[null,null,null,null,null,null,null,"X"]
[null,null,null,null,null,null,null,"X"]
[null,null,null,null,null,null,null,"X"]
[null,null,null,null,null,null,null,"X"]
[null,null,null,null,null,null,null,"X"]
[null,null,null,null,null,null,null,"X"]
[null,null,null,null,null,null,null,"X"]
[null,null,null,null,null,null,null,"X"]
[null,null,null,null,null,null,null,"X"]
[null,null,null,null,null,null,null,"X"]
[null,null,null,null,null,null,null,"X"]
[null,null,null,null,null,null,null,"X"]
[null,null,null,null,null,null,null,"X"]
[null,null,null,null,null,null,null,"X"]
[null,null,null,null,null,null,null,"X"]
[null,null,null,null,null,null,null,"X"]
[null,null,null,null,null,null,null,"X"]
[null,null,null,null,null,null,null,"X"]
[null,null,null,null,null,null,null,"X"]
[null,null,null,null,null,null,null,"X"]
[null,null,null,null,null,null,null,"X"]
[null,null,null,null,null,null,null,"X"]
[null,null,null,null,null,null,null,"X"]
[null,null,null,null,null,null,null,"X"]
[null,null,null,null,null,null,null,"X"]
[null,null,null,null,null,null,null,"X"]
[null,null,null,null,null,null,null,"X"]
[null,null,null,null,null,null,null,"X"]
[null,null,null,null,null,null,null,"X"]
[null,null,null,null,null,null,null,"X"]
[null,null,null,null,null,null,null,"X"]
[null,null,null,null,null,null,null,"X"]
[null,null,null,null,null,null,null,"X"]
[null,null,null,null,null,null,null,"X"]
[null,null,null,null,null,null,null,"X"]
[null,null,null,null,null,null,null,"X"]
[null,null,null,null,null,null,null,"X"]
[null,null,null,null,null,null,null,"X"]
[null,null,null,null,null,null,null,"X"]
[null,null,null,null,null,null,null,"X"]
[null,null,null,null,null,null,null,"X"]
[null,null,null,null,null,null,null,"X"]
[null,null,null,null,null,null,null,"X"]
[null,null,null,null,null,null,null,"X"]
[null,null,null,null,null,null,null,"X"]
[null,null,null,null,null,null,null,"X"]
[null,null,null,null,null,null,null,{"$f":"_xlfn.CONCAT(D5315,\"X\",G5315)","v":"X"}]
[null,null,null,null,null,null,null,"X"]
[null,null,null,null,null,null,null,"X"]
[null,null,null,null,null,null,null,"X"]
[null,null,null,null,null,null,null,"X"]
[null,null,null,null,null,null,null,"X"]
[null,null,null,null,null,null,null,"X"]
[null,null,null,null,null,null,null,"X"]
[null,null,null,null,null,null,null,"X"]
[null,null,null,null,null,null,null,"X"]
[null,null,null,null,null,null,null,"X"]
[null,null,null,null,null,null,null,"X"]
[null,null,null,null,null,null,null,"X"]
[null,null,null,null,null,null,null,"X"]
[null,null,null,null,null,null,null,"X"]
[null,null,null,null,null,null,null,"X"]
[null,null,null,null,null,null,null,"X"]
[null,null,null,null,null,null,null,"X"]
[null,null,null,null,null,null,null,"X"]
[null,null,null,null,null,null,null,"X"]
[null,null,null,null,null,null,null,"X"]
[null,null,null,null,null,null,null,"X"]
[null,null,null,null,null,null,null,"X"]
[null,null,null,null,null,null,null,"X"]
[null,null,null,null,null,null,null,"X"]
[null,null,null,null,null,null,null,"X"]
[null,null,null,null,null,null,null,"X"]
[null,null,null,null,null,null,null,"X"]
[null,null,null,null,null,null,null,"X"]
[null,null,null,null,null,null,null,"X"]
[null,null,null,null,null,null,null,"X"]
[null,null,null,null,null,null,null,"X"]
[null,null,null,null,null,null,null,"X"]
[null,null,null,null,null,null,null,"X"]
[null,null,null,null,null,null,null,"X"]
[null,null,null,null,null,null,null,"X"]
[null,null,null,null,null,null,null,"X"]
[null,null,null,null,null,null,null,"X"]
[null,null,null,null,null,null,null,"X"]
[null,null,null,null,null,null,null,"X"]
[null,null,null,null,null,null,null,"X"]
[null,null,null,null,null,null,null,"X"]
[null,null,null,null,null,null,null,"X"]
[null,null,null,null,null,null,null,"X"]
[null,null,null,null,null,null,null,"X"]
[null,null,null,null,null,null,null,"X"]
[null,null,null,null,null,null,null,"X"]
[null,null,null,null,null,null,null,"X"]
[null,null,null,null,null,null,null,"X"]
[null,null,null,null,null,null,null,"X"]
[null,null,null,null,null,null,null,"X"]
[null,null,null,null,null,null,null,"X"]
[null,null,null,null,null,null,null,"X"]
[null,null,null,null,null,null,null,"X"]
[null,null,null,null,null,null,null,"X"]
[null,null,null,null,null,null,null,"X"]
[null,null,null,null,null,null,null,"X"]
[null,null,null,null,null,null,null,"X"]
[null,null,null,null,null,null,null,"X"]
[null,null,null,null,null,null,null,"X"]
[null,null,null,null,null,null,null,"X"]
[null,null,null,null,null,null,null,"X"]
[null,null,null,null,null,null,null,"X"]
[null,null,null,null,null,null,null,"X"]
[null,null,null,null,null,null,null,{"$f":"_xlfn.CONCAT(D5379,\"X\",G5379)","v":"X"}]
[null,null,null,null,null,null,null,"X"]
[null,null,null,null,null,null,null,"X"]
[null,null,null,null,null,null,null,"X"]
[null,null,null,null,null,null,null,"X"]
[null,null,null,null,null,null,null,"X"]
[null,null,null,null,null,null,null,"X"]
[null,null,null,null,null,null,null,"X"]
[null,null,null,null,null,null,null,"X"]
[null,null,null,null,null,null,null,"X"]
[null,null,null,null,null,null,null,"X"]
[null,null,null,null,null,null,null,"X"]
[null,null,null,null,null,null,null,"X"]
[null,null,null,null,null,null,null,"X"]
[null,null,null,null,null,null,null,"X"]
[null,null,null,null,null,null,null,"X"]
[null,null,null,null,null,null,null,"X"]
[null,null,null,null,null,null,null,"X"]
[null,null,null,null,null,null,null,"X"]
[null,null,null,null,null,null,null,"X"]
[null,null,null,null,null,null,null,"X"]
[null,null,null,null,null,null,null,"X"]
[null,null,null,null,null,null,null,"X"]
[null,null,null,null,null,null,null,"X"]
[null,null,null,null,null,null,null,"X"]
[null,null,null,null,null,null,null,"X"]
[null,null,null,null,null,null,null,"X"]
[null,null,null,null,null,null,null,"X"]
[null,null,null,null,null,null,null,"X"]
[null,null,null,null,null,null,null,"X"]
[null,null,null,null,null,null,null,"X"]
[null,null,null,null,null,null,null,"X"]
[null,null,null,null,null,null,null,"X"]
[null,null,null,null,null,null,null,"X"]
[null,null,null,null,null,null,null,"X"]
[null,null,null,null,null,null,null,"X"]
[null,null,null,null,null,null,null,"X"]
[null,null,null,null,null,null,null,"X"]
[null,null,null,null,null,null,null,"X"]
[null,null,null,null,null,null,null,"X"]
[null,null,null,null,null,null,null,"X"]
[null,null,null,null,null,null,null,"X"]
[null,null,null,null,null,null,null,"X"]
[null,null,null,null,null,null,null,"X"]
[null,null,null,null,null,null,null,"X"]
[null,null,null,null,null,null,null,"X"]
[null,null,null,null,null,null,null,"X"]
[null,null,null,null,null,null,null,"X"]
[null,null,null,null,null,null,null,"X"]
[null,null,null,null,null,null,null,"X"]
[null,null,null,null,null,null,null,"X"]
[null,null,null,null,null,null,null,"X"]
[null,null,null,null,null,null,null,"X"]
[null,null,null,null,null,null,null,"X"]
[null,null,null,null,null,null,null,"X"]
[null,null,null,null,null,null,null,"X"]
[null,null,null,null,null,null,null,"X"]
[null,null,null,null,null,null,null,"X"]
[null,null,null,null,null,null,null,"X"]
[null,null,null,null,null,null,null,"X"]
[null,null,null,null,null,null,null,"X"]
[null,null,null,null,null,null,null,"X"]
[null,null,null,null,null,null,null,"X"]
[null,null,null,null,null,null,null,"X"]
[null,null,null,null,null,null,null,{"$f":"_xlfn.CONCAT(D5443,\"X\",G5443)","v":"X"}]
[null,null,null,null,null,null,null,"X"]
[null,null,null,null,null,null,null,"X"]
[null,null,null,null,null,null,null,"X"]
[null,null,null,null,null,null,null,"X"]
[null,null,null,null,null,null,null,"X"]
[null,null,null,null,null,null,null,"X"]
[null,null,null,null,null,null,null,"X"]
[null,null,null,null,null,null,null,"X"]
[null,null,null,null,null,null,null,"X"]
[null,null,null,null,null,null,null,"X"]
[null,null,null,null,null,null,null,"X"]
[null,null,null,null,null,null,null,"X"]
[null,null,null,null,null,null,null,"X"]
[null,null,null,null,null,null,null,"X"]
[null,null,null,null,null,null,null,"X"]
[null,null,null,null,null,null,null,"X"]
[null,null,null,null,null,null,null,"X"]
[null,null,null,null,null,null,null,"X"]
[null,null,null,null,null,null,null,"X"]
[null,null,null,null,null,null,null,"X"]
[null,null,null,null,null,null,null,"X"]
[null,null,null,null,null,null,null,"X"]
[null,null,null,null,null,null,null,"X"]
[null,null,null,null,null,null,null,"X"]
[null,null,null,null,null,null,null,"X"]
[null,null,null,null,null,null,null,"X"]
[null,null,null,null,null,null,null,"X"]
[null,null,null,null,null,null,null,"X"]
[null,null,null,null,null,null,null,"X"]
[null,null,null,null,null,null,null,"X"]
[null,null,null,null,null,null,null,"X"]
[null,null,null,null,null,null,null,"X"]
[null,null,null,null,null,null,null,"X"]
[null,null,null,null,null,null,null,"X"]
[null,null,null,null,null,null,null,"X"]
[null,null,null,null,null,null,null,"X"]
[null,null,null,null,null,null,null,"X"]
[null,null,null,null,null,null,null,"X"]
[null,null,null,null,null,null,null,"X"]
[null,null,null,null,null,null,null,"X"]
[null,null,null,null,null,null,null,"X"]
[null,null,null,null,null,null,null,"X"]
[null,null,null,null,null,null,null,"X"]
[null,null,null,null,null,null,null,"X"]
[null,null,null,null,null,null,null,"X"]
[null,null,null,null,null,null,null,"X"]
[null,null,null,null,null,null,null,"X"]
[null,null,null,null,null,null,null,"X"]
[null,null,null,null,null,null,null,"X"]
[null,null,null,null,null,null,null,"X"]
[null,null,null,null,null,null,null,"X"]
[null,null,null,null,null,null,null,"X"]
[null,null,null,null,null,null,null,"X"]
[null,null,null,null,null,null,null,"X"]
[null,null,null,null,null,null,null,"X"]
[null,null,null,null,null,null,null,"X"]
[null,null,null,null,null,null,null,"X"]
[null,null,null,null,null,null,null,"X"]
[null,null,null,null,null,null,null,"X"]
[null,null,null,null,null,null,null,"X"]
[null,null,null,null,null,null,null,"X"]
[null,null,null,null,null,null,null,"X"]
[null,null,null,null,null,null,null,"X"]
[null,null,null,null,null,null,null,{"$f":"_xlfn.CONCAT(D5507,\"X\",G5507)","v":"X"}]
[null,null,null,null,null,null,null,"X"]
[null,null,null,null,null,null,null,"X"]
[null,null,null,null,null,null,null,"X"]
[null,null,null,null,null,null,null,"X"]
[null,null,null,null,null,null,null,"X"]
[null,null,null,null,null,null,null,"X"]
[null,null,null,null,null,null,null,"X"]
[null,null,null,null,null,null,null,"X"]
[null,null,null,null,null,null,null,"X"]
[null,null,null,null,null,null,null,"X"]
[null,null,null,null,null,null,null,"X"]
[null,null,null,null,null,null,null,"X"]
[null,null,null,null,null,null,null,"X"]
[null,null,null,null,null,null,null,"X"]
[null,null,null,null,null,null,null,"X"]
[null,null,null,null,null,null,null,"X"]
[null,null,null,null,null,null,null,"X"]
[null,null,null,null,null,null,null,"X"]
[null,null,null,null,null,null,null,"X"]
[null,null,null,null,null,null,null,"X"]
[null,null,null,null,null,null,null,"X"]
[null,null,null,null,null,null,null,"X"]
[null,null,null,null,null,null,null,"X"]
[null,null,null,null,null,null,null,"X"]
[null,null,null,null,null,null,null,"X"]
[null,null,null,null,null,null,null,"X"]
[null,null,null,null,null,null,null,"X"]
[null,null,null,null,null,null,null,"X"]
[null,null,null,null,null,null,null,"X"]
[null,null,null,null,null,null,null,"X"]
[null,null,null,null,null,null,null,"X"]
[null,null,null,null,null,null,null,"X"]
[null,null,null,null,null,null,null,"X"]
[null,null,null,null,null,null,null,"X"]
[null,null,null,null,null,null,null,"X"]
[null,null,null,null,null,null,null,"X"]
[null,null,null,null,null,null,null,"X"]
[null,null,null,null,null,null,null,"X"]
[null,null,null,null,null,null,null,"X"]
[null,null,null,null,null,null,null,"X"]
[null,null,null,null,null,null,null,"X"]
[null,null,null,null,null,null,null,"X"]
[null,null,null,null,null,null,null,"X"]
[null,null,null,null,null,null,null,"X"]
[null,null,null,null,null,null,null,"X"]
[null,null,null,null,null,null,null,"X"]
[null,null,null,null,null,null,null,"X"]
[null,null,null,null,null,null,null,"X"]
[null,null,null,null,null,null,null,"X"]
[null,null,null,null,null,null,null,"X"]
[null,null,null,null,null,null,null,"X"]
[null,null,null,null,null,null,null,"X"]
[null,null,null,null,null,null,null,"X"]
[null,null,null,null,null,null,null,"X"]
[null,null,null,null,null,null,null,"X"]
[null,null,null,null,null,null,null,"X"]
[null,null,null,null,null,null,null,"X"]
[null,null,null,null,null,null,null,"X"]
[null,null,null,null,null,null,null,"X"]
[null,null,null,null,null,null,null,"X"]
[null,null,null,null,null,null,null,"X"]
[null,null,null,null,null,null,null,"X"]
[null,null,null,null,null,null,null,"X"]
[null,null,null,null,null,null,null,{"$f":"_xlfn.CONCAT(D5571,\"X\",G5571)","v":"X"}]
[null,null,null,null,null,null,null,"X"]
[null,null,null,null,null,null,null,"X"]
[null,null,null,null,null,null,null,"X"]
[null,null,null,null,null,null,null,"X"]
[null,null,null,null,null,null,null,"X"]
[null,null,null,null,null,null,null,"X"]
[null,null,null,null,null,null,null,"X"]
[null,null,null,null,null,null,null,"X"]
[null,null,null,null,null,null,null,"X"]
[null,null,null,null,null,null,null,"X"]
[null,null,null,null,null,null,null,"X"]
[null,null,null,null,null,null,null,"X"]
[null,null,null,null,null,null,null,"X"]
[null,null,null,null,null,null,null,"X"]
[null,null,null,null,null,null,null,"X"]
[null,null,null,null,null,null,null,"X"]
[null,null,null,null,null,null,null,"X"]
[null,null,null,null,null,null,null,"X"]
[null,null,null,null,null,null,null,"X"]
[null,null,null,null,null,null,null,"X"]
[null,null,null,null,null,null,null,"X"]
[null,null,null,null,null,null,null,"X"]
[null,null,null,null,null,null,null,"X"]
[null,null,null,null,null,null,null,"X"]
[null,null,null,null,null,null,null,"X"]
[null,null,null,null,null,null,null,"X"]
[null,null,null,null,null,null,null,"X"]
[null,null,null,null,null,null,null,"X"]
[null,null,null,null,null,null,null,"X"]
[null,null,null,null,null,null,null,"X"]
[null,null,null,null,null,null,null,"X"]
[null,null,null,null,null,null,null,"X"]
[null,null,null,null,null,null,null,"X"]
[null,null,null,null,null,null,null,"X"]
[null,null,null,null,null,null,null,"X"]
[null,null,null,null,null,null,null,"X"]
[null,null,null,null,null,null,null,"X"]
[null,null,null,null,null,null,null,"X"]
[null,null,null,null,null,null,null,"X"]
[null,null,null,null,null,null,null,"X"]
[null,null,null,null,null,null,null,"X"]
[null,null,null,null,null,null,null,"X"]
[null,null,null,null,null,null,null,"X"]
[null,null,null,null,null,null,null,"X"]
[null,null,null,null,null,null,null,"X"]
[null,null,null,null,null,null,null,"X"]
[null,null,null,null,null,null,null,"X"]
[null,null,null,null,null,null,null,"X"]
[null,null,null,null,null,null,null,"X"]
[null,null,null,null,null,null,null,"X"]
[null,null,null,null,null,null,null,"X"]
[null,null,null,null,null,null,null,"X"]
[null,null,null,null,null,null,null,"X"]
[null,null,null,null,null,null,null,"X"]
[null,null,null,null,null,null,null,"X"]
[null,null,null,null,null,null,null,"X"]
[null,null,null,null,null,null,null,"X"]
[null,null,null,null,null,null,null,"X"]
[null,null,null,null,null,null,null,"X"]
[null,null,null,null,null,null,null,"X"]
[null,null,null,null,null,null,null,"X"]
[null,null,null,null,null,null,null,"X"]
[null,null,null,null,null,null,null,"X"]
[null,null,null,null,null,null,null,{"$f":"_xlfn.CONCAT(D5635,\"X\",G5635)","v":"X"}]
[null,null,null,null,null,null,null,"X"]
[null,null,null,null,null,null,null,"X"]
[null,null,null,null,null,null,null,"X"]
[null,null,null,null,null,null,null,"X"]
[null,null,null,null,null,null,null,"X"]
[null,null,null,null,null,null,null,"X"]
[null,null,null,null,null,null,null,"X"]
[null,null,null,null,null,null,null,"X"]
[null,null,null,null,null,null,null,"X"]
[null,null,null,null,null,null,null,"X"]
[null,null,null,null,null,null,null,"X"]
[null,null,null,null,null,null,null,"X"]
[null,null,null,null,null,null,null,"X"]
[null,null,null,null,null,null,null,"X"]
[null,null,null,null,null,null,null,"X"]
[null,null,null,null,null,null,null,"X"]
[null,null,null,null,null,null,null,"X"]
[null,null,null,null,null,null,null,"X"]
[null,null,null,null,null,null,null,"X"]
[null,null,null,null,null,null,null,"X"]
[null,null,null,null,null,null,null,"X"]
[null,null,null,null,null,null,null,"X"]
[null,null,null,null,null,null,null,"X"]
[null,null,null,null,null,null,null,"X"]
[null,null,null,null,null,null,null,"X"]
[null,null,null,null,null,null,null,"X"]
[null,null,null,null,null,null,null,"X"]
[null,null,null,null,null,null,null,"X"]
[null,null,null,null,null,null,null,"X"]
[null,null,null,null,null,null,null,"X"]
[null,null,null,null,null,null,null,"X"]
[null,null,null,null,null,null,null,"X"]
[null,null,null,null,null,null,null,"X"]
[null,null,null,null,null,null,null,"X"]
[null,null,null,null,null,null,null,"X"]
[null,null,null,null,null,null,null,"X"]
[null,null,null,null,null,null,null,"X"]
[null,null,null,null,null,null,null,"X"]
[null,null,null,null,null,null,null,"X"]
[null,null,null,null,null,null,null,"X"]
[null,null,null,null,null,null,null,"X"]
[null,null,null,null,null,null,null,"X"]
[null,null,null,null,null,null,null,"X"]
[null,null,null,null,null,null,null,"X"]
[null,null,null,null,null,null,null,"X"]
[null,null,null,null,null,null,null,"X"]
[null,null,null,null,null,null,null,"X"]
[null,null,null,null,null,null,null,"X"]
[null,null,null,null,null,null,null,"X"]
[null,null,null,null,null,null,null,"X"]
[null,null,null,null,null,null,null,"X"]
[null,null,null,null,null,null,null,"X"]
[null,null,null,null,null,null,null,"X"]
[null,null,null,null,null,null,null,"X"]
[null,null,null,null,null,null,null,"X"]
[null,null,null,null,null,null,null,"X"]
[null,null,null,null,null,null,null,"X"]
[null,null,null,null,null,null,null,"X"]
[null,null,null,null,null,null,null,"X"]
[null,null,null,null,null,null,null,"X"]
[null,null,null,null,null,null,null,"X"]
[null,null,null,null,null,null,null,"X"]
[null,null,null,null,null,null,null,"X"]
[null,null,null,null,null,null,null,{"$f":"_xlfn.CONCAT(D5699,\"X\",G5699)","v":"X"}]
[null,null,null,null,null,null,null,"X"]
[null,null,null,null,null,null,null,"X"]
[null,null,null,null,null,null,null,"X"]
[null,null,null,null,null,null,null,"X"]
[null,null,null,null,null,null,null,"X"]
[null,null,null,null,null,null,null,"X"]
[null,null,null,null,null,null,null,"X"]
[null,null,null,null,null,null,null,"X"]
[null,null,null,null,null,null,null,"X"]
[null,null,null,null,null,null,null,"X"]
[null,null,null,null,null,null,null,"X"]
[null,null,null,null,null,null,null,"X"]
[null,null,null,null,null,null,null,"X"]
[null,null,null,null,null,null,null,"X"]
[null,null,null,null,null,null,null,"X"]
[null,null,null,null,null,null,null,"X"]
[null,null,null,null,null,null,null,"X"]
[null,null,null,null,null,null,null,"X"]
[null,null,null,null,null,null,null,"X"]
[null,null,null,null,null,null,null,"X"]
[null,null,null,null,null,null,null,"X"]
[null,null,null,null,null,null,null,"X"]
[null,null,null,null,null,null,null,"X"]
[null,null,null,null,null,null,null,"X"]
[null,null,null,null,null,null,null,"X"]
[null,null,null,null,null,null,null,"X"]
[null,null,null,null,null,null,null,"X"]
[null,null,null,null,null,null,null,"X"]
[null,null,null,null,null,null,null,"X"]
[null,null,null,null,null,null,null,"X"]
[null,null,null,null,null,null,null,"X"]
[null,null,null,null,null,null,null,"X"]
[null,null,null,null,null,null,null,"X"]
[null,null,null,null,null,null,null,"X"]
[null,null,null,null,null,null,null,"X"]
[null,null,null,null,null,null,null,"X"]
[null,null,null,null,null,null,null,"X"]
[null,null,null,null,null,null,null,"X"]
[null,null,null,null,null,null,null,"X"]
[null,null,null,null,null,null,null,"X"]
[null,null,null,null,null,null,null,"X"]
[null,null,null,null,null,null,null,"X"]
[null,null,null,null,null,null,null,"X"]
[null,null,null,null,null,null,null,"X"]
[null,null,null,null,null,null,null,"X"]
[null,null,null,null,null,null,null,"X"]
[null,null,null,null,null,null,null,"X"]
[null,null,null,null,null,null,null,"X"]
[null,null,null,null,null,null,null,"X"]
[null,null,null,null,null,null,null,"X"]
[null,null,null,null,null,null,null,"X"]
[null,null,null,null,null,null,null,"X"]
[null,null,null,null,null,null,null,"X"]
[null,null,null,null,null,null,null,"X"]
[null,null,null,null,null,null,null,"X"]
[null,null,null,null,null,null,null,"X"]
[null,null,null,null,null,null,null,"X"]
[null,null,null,null,null,null,null,"X"]
[null,null,null,null,null,null,null,"X"]
[null,null,null,null,null,null,null,"X"]
[null,null,null,null,null,null,null,"X"]
[null,null,null,null,null,null,null,"X"]
[null,null,null,null,null,null,null,"X"]
[null,null,null,null,null,null,null,{"$f":"_xlfn.CONCAT(D5763,\"X\",G5763)","v":"X"}]
[null,null,null,null,null,null,null,"X"]
[null,null,null,null,null,null,null,"X"]
[null,null,null,null,null,null,null,"X"]
[null,null,null,null,null,null,null,"X"]
[null,null,null,null,null,null,null,"X"]
[null,null,null,null,null,null,null,"X"]
[null,null,null,null,null,null,null,"X"]
[null,null,null,null,null,null,null,"X"]
[null,null,null,null,null,null,null,"X"]
[null,null,null,null,null,null,null,"X"]
[null,null,null,null,null,null,null,"X"]
[null,null,null,null,null,null,null,"X"]
[null,null,null,null,null,null,null,"X"]
[null,null,null,null,null,null,null,"X"]
[null,null,null,null,null,null,null,"X"]
[null,null,null,null,null,null,null,"X"]
[null,null,null,null,null,null,null,"X"]
[null,null,null,null,null,null,null,"X"]
[null,null,null,null,null,null,null,"X"]
[null,null,null,null,null,null,null,"X"]
[null,null,null,null,null,null,null,"X"]
[null,null,null,null,null,null,null,"X"]
[null,null,null,null,null,null,null,"X"]
[null,null,null,null,null,null,null,"X"]
[null,null,null,null,null,null,null,"X"]
[null,null,null,null,null,null,null,"X"]
[null,null,null,null,null,null,null,"X"]
[null,null,null,null,null,null,null,"X"]
[null,null,null,null,null,null,null,"X"]
[null,null,null,null,null,null,null,"X"]
[null,null,null,null,null,null,null,"X"]
[null,null,null,null,null,null,null,"X"]
[null,null,null,null,null,null,null,"X"]
[null,null,null,null,null,null,null,"X"]
[null,null,null,null,null,null,null,"X"]
[null,null,null,null,null,null,null,"X"]
[null,null,null,null,null,null,null,"X"]
[null,null,null,null,null,null,null,"X"]
[null,null,null,null,null,null,null,"X"]
[null,null,null,null,null,null,null,"X"]
[null,null,null,null,null,null,null,"X"]
[null,null,null,null,null,null,null,"X"]
[null,null,null,null,null,null,null,"X"]
[null,null,null,null,null,null,null,"X"]
[null,null,null,null,null,null,null,"X"]
[null,null,null,null,null,null,null,"X"]
[null,null,null,null,null,null,null,"X"]
[null,null,null,null,null,null,null,"X"]
[null,null,null,null,null,null,null,"X"]
[null,null,null,null,null,null,null,"X"]
[null,null,null,null,null,null,null,"X"]
[null,null,null,null,null,null,null,"X"]
[null,null,null,null,null,null,null,"X"]
[null,null,null,null,null,null,null,"X"]
[null,null,null,null,null,null,null,"X"]
[null,null,null,null,null,null,null,"X"]
[null,null,null,null,null,null,null,"X"]
[null,null,null,null,null,null,null,"X"]
[null,null,null,null,null,null,null,"X"]
[null,null,null,null,null,null,null,"X"]
[null,null,null,null,null,null,null,"X"]
[null,null,null,null,null,null,null,"X"]
[null,null,null,null,null,null,null,"X"]
[null,null,null,null,null,null,null,{"$f":"_xlfn.CONCAT(D5827,\"X\",G5827)","v":"X"}]
[null,null,null,null,null,null,null,"X"]
[null,null,null,null,null,null,null,"X"]
[null,null,null,null,null,null,null,"X"]
[null,null,null,null,null,null,null,"X"]
[null,null,null,null,null,null,null,"X"]
[null,null,null,null,null,null,null,"X"]
[null,null,null,null,null,null,null,"X"]
[null,null,null,null,null,null,null,"X"]
[null,null,null,null,null,null,null,"X"]
[null,null,null,null,null,null,null,"X"]
[null,null,null,null,null,null,null,"X"]
[null,null,null,null,null,null,null,"X"]
[null,null,null,null,null,null,null,"X"]
[null,null,null,null,null,null,null,"X"]
[null,null,null,null,null,null,null,"X"]
[null,null,null,null,null,null,null,"X"]
[null,null,null,null,null,null,null,"X"]
[null,null,null,null,null,null,null,"X"]
[null,null,null,null,null,null,null,"X"]
[null,null,null,null,null,null,null,"X"]
[null,null,null,null,null,null,null,"X"]
[null,null,null,null,null,null,null,"X"]
[null,null,null,null,null,null,null,"X"]
[null,null,null,null,null,null,null,"X"]
[null,null,null,null,null,null,null,"X"]
[null,null,null,null,null,null,null,"X"]
[null,null,null,null,null,null,null,"X"]
[null,null,null,null,null,null,null,"X"]
[null,null,null,null,null,null,null,"X"]
[null,null,null,null,null,null,null,"X"]
[null,null,null,null,null,null,null,"X"]
[null,null,null,null,null,null,null,"X"]
[null,null,null,null,null,null,null,"X"]
[null,null,null,null,null,null,null,"X"]
[null,null,null,null,null,null,null,"X"]
[null,null,null,null,null,null,null,"X"]
[null,null,null,null,null,null,null,"X"]
[null,null,null,null,null,null,null,"X"]
[null,null,null,null,null,null,null,"X"]
[null,null,null,null,null,null,null,"X"]
[null,null,null,null,null,null,null,"X"]
[null,null,null,null,null,null,null,"X"]
[null,null,null,null,null,null,null,"X"]
[null,null,null,null,null,null,null,"X"]
[null,null,null,null,null,null,null,"X"]
[null,null,null,null,null,null,null,"X"]
[null,null,null,null,null,null,null,"X"]
[null,null,null,null,null,null,null,"X"]
[null,null,null,null,null,null,null,"X"]
[null,null,null,null,null,null,null,"X"]
[null,null,null,null,null,null,null,"X"]
[null,null,null,null,null,null,null,"X"]
[null,null,null,null,null,null,null,"X"]
[null,null,null,null,null,null,null,"X"]
[null,null,null,null,null,null,null,"X"]
[null,null,null,null,null,null,null,"X"]
[null,null,null,null,null,null,null,"X"]
[null,null,null,null,null,null,null,"X"]
[null,null,null,null,null,null,null,"X"]
[null,null,null,null,null,null,null,"X"]
[null,null,null,null,null,null,null,"X"]
[null,null,null,null,null,null,null,"X"]
[null,null,null,null,null,null,null,"X"]
[null,null,null,null,null,null,null,{"$f":"_xlfn.CONCAT(D5891,\"X\",G5891)","v":"X"}]
[null,null,null,null,null,null,null,"X"]
[null,null,null,null,null,null,null,"X"]
[null,null,null,null,null,null,null,"X"]
[null,null,null,null,null,null,null,"X"]
[null,null,null,null,null,null,null,"X"]
[null,null,null,null,null,null,null,"X"]
[null,null,null,null,null,null,null,"X"]
[null,null,null,null,null,null,null,"X"]
[null,null,null,null,null,null,null,"X"]
[null,null,null,null,null,null,null,"X"]
[null,null,null,null,null,null,null,"X"]
[null,null,null,null,null,null,null,"X"]
[null,null,null,null,null,null,null,"X"]
[null,null,null,null,null,null,null,"X"]
[null,null,null,null,null,null,null,"X"]
[null,null,null,null,null,null,null,"X"]
[null,null,null,null,null,null,null,"X"]
[null,null,null,null,null,null,null,"X"]
[null,null,null,null,null,null,null,"X"]
[null,null,null,null,null,null,null,"X"]
[null,null,null,null,null,null,null,"X"]
[null,null,null,null,null,null,null,"X"]
[null,null,null,null,null,null,null,"X"]
[null,null,null,null,null,null,null,"X"]
[null,null,null,null,null,null,null,"X"]
[null,null,null,null,null,null,null,"X"]
[null,null,null,null,null,null,null,"X"]
[null,null,null,null,null,null,null,"X"]
[null,null,null,null,null,null,null,"X"]
[null,null,null,null,null,null,null,"X"]
[null,null,null,null,null,null,null,"X"]
[null,null,null,null,null,null,null,"X"]
[null,null,null,null,null,null,null,"X"]
[null,null,null,null,null,null,null,"X"]
[null,null,null,null,null,null,null,"X"]
[null,null,null,null,null,null,null,"X"]
[null,null,null,null,null,null,null,"X"]
[null,null,null,null,null,null,null,"X"]
[null,null,null,null,null,null,null,"X"]
[null,null,null,null,null,null,null,"X"]
[null,null,null,null,null,null,null,"X"]
[null,null,null,null,null,null,null,"X"]
[null,null,null,null,null,null,null,"X"]
[null,null,null,null,null,null,null,"X"]
[null,null,null,null,null,null,null,"X"]
[null,null,null,null,null,null,null,"X"]
[null,null,null,null,null,null,null,"X"]
[null,null,null,null,null,null,null,"X"]
[null,null,null,null,null,null,null,"X"]
[null,null,null,null,null,null,null,"X"]
[null,null,null,null,null,null,null,"X"]
[null,null,null,null,null,null,null,"X"]
[null,null,null,null,null,null,null,"X"]
[null,null,null,null,null,null,null,"X"]
[null,null,null,null,null,null,null,"X"]
[null,null,null,null,null,null,null,"X"]
[null,null,null,null,null,null,null,"X"]
[null,null,null,null,null,null,null,"X"]
[null,null,null,null,null,null,null,"X"]
[null,null,null,null,null,null,null,"X"]
[null,null,null,null,null,null,null,"X"]
[null,null,null,null,null,null,null,"X"]
[null,null,null,null,null,null,null,"X"]
[null,null,null,null,null,null,null,{"$f":"_xlfn.CONCAT(D5955,\"X\",G5955)","v":"X"}]
[null,null,null,null,null,null,null,"X"]
[null,null,null,null,null,null,null,"X"]
[null,null,null,null,null,null,null,"X"]
[null,null,null,null,null,null,null,"X"]
[null,null,null,null,null,null,null,"X"]
[null,null,null,null,null,null,null,"X"]
[null,null,null,null,null,null,null,"X"]
[null,null,null,null,null,null,null,"X"]
[null,null,null,null,null,null,null,"X"]
[null,null,null,null,null,null,null,"X"]
[null,null,null,null,null,null,null,"X"]
[null,null,null,null,null,null,null,"X"]
[null,null,null,null,null,null,null,"X"]
[null,null,null,null,null,null,null,"X"]
[null,null,null,null,null,null,null,"X"]
[null,null,null,null,null,null,null,"X"]
[null,null,null,null,null,null,null,"X"]
[null,null,null,null,null,null,null,"X"]
[null,null,null,null,null,null,null,"X"]
[null,null,null,null,null,null,null,"X"]
[null,null,null,null,null,null,null,"X"]
[null,null,null,null,null,null,null,"X"]
[null,null,null,null,null,null,null,"X"]
[null,null,null,null,null,null,null,"X"]
[null,null,null,null,null,null,null,"X"]
[null,null,null,null,null,null,null,"X"]
[null,null,null,null,null,null,null,"X"]
[null,null,null,null,null,null,null,"X"]
[null,null,null,null,null,null,null,"X"]
[null,null,null,null,null,null,null,"X"]
[null,null,null,null,null,null,null,"X"]
[null,null,null,null,null,null,null,"X"]
[null,null,null,null,null,null,null,"X"]
[null,null,null,null,null,null,null,"X"]
[null,null,null,null,null,null,null,"X"]
[null,null,null,null,null,null,null,"X"]
[null,null,null,null,null,null,null,"X"]
[null,null,null,null,null,null,null,"X"]
[null,null,null,null,null,null,null,"X"]
[null,null,null,null,null,null,null,"X"]
[null,null,null,null,null,null,null,"X"]
[null,null,null,null,null,null,null,"X"]
[null,null,null,null,null,null,null,"X"]
[null,null,null,null,null,null,null,"X"]
[null,null,null,null,null,null,null,"X"]
[null,null,null,null,null,null,null,"X"]
[null,null,null,null,null,null,null,"X"]
[null,null,null,null,null,null,null,"X"]
[null,null,null,null,null,null,null,"X"]
[null,null,null,null,null,null,null,"X"]
[null,null,null,null,null,null,null,"X"]
[null,null,null,null,null,null,null,"X"]
[null,null,null,null,null,null,null,"X"]
[null,null,null,null,null,null,null,"X"]
[null,null,null,null,null,null,null,"X"]
[null,null,null,null,null,null,null,"X"]
[null,null,null,null,null,null,null,"X"]
[null,null,null,null,null,null,null,"X"]
[null,null,null,null,null,null,null,"X"]
[null,null,null,null,null,null,null,"X"]
[null,null,null,null,null,null,null,"X"]
[null,null,null,null,null,null,null,"X"]
[null,null,null,null,null,null,null,"X"]
[null,null,null,null,null,null,null,{"$f":"_xlfn.CONCAT(D6019,\"X\",G6019)","v":"X"}]
[null,null,null,null,null,null,null,"X"]
[null,null,null,null,null,null,null,"X"]
[null,null,null,null,null,null,null,"X"]
[null,null,null,null,null,null,null,"X"]
[null,null,null,null,null,null,null,"X"]
[null,null,null,null,null,null,null,"X"]
[null,null,null,null,null,null,null,"X"]
[null,null,null,null,null,null,null,"X"]
[null,null,null,null,null,null,null,"X"]
[null,null,null,null,null,null,null,"X"]
[null,null,null,null,null,null,null,"X"]
[null,null,null,null,null,null,null,"X"]
[null,null,null,null,null,null,null,"X"]
[null,null,null,null,null,null,null,"X"]
[null,null,null,null,null,null,null,"X"]
[null,null,null,null,null,null,null,"X"]
[null,null,null,null,null,null,null,"X"]
[null,null,null,null,null,null,null,"X"]
[null,null,null,null,null,null,null,"X"]
[null,null,null,null,null,null,null,"X"]
[null,null,null,null,null,null,null,"X"]
[null,null,null,null,null,null,null,"X"]
[null,null,null,null,null,null,null,"X"]
[null,null,null,null,null,null,null,"X"]
[null,null,null,null,null,null,null,"X"]
[null,null,null,null,null,null,null,"X"]
[null,null,null,null,null,null,null,"X"]
[null,null,null,null,null,null,null,"X"]
[null,null,null,null,null,null,null,"X"]
[null,null,null,null,null,null,null,"X"]
[null,null,null,null,null,null,null,"X"]
[null,null,null,null,null,null,null,"X"]
[null,null,null,null,null,null,null,"X"]
[null,null,null,null,null,null,null,"X"]
[null,null,null,null,null,null,null,"X"]
[null,null,null,null,null,null,null,"X"]
[null,null,null,null,null,null,null,"X"]
[null,null,null,null,null,null,null,"X"]
[null,null,null,null,null,null,null,"X"]
[null,null,null,null,null,null,null,"X"]
[null,null,null,null,null,null,null,"X"]
[null,null,null,null,null,null,null,"X"]
[null,null,null,null,null,null,null,"X"]
[null,null,null,null,null,null,null,"X"]
[null,null,null,null,null,null,null,"X"]
[null,null,null,null,null,null,null,"X"]
[null,null,null,null,null,null,null,"X"]
[null,null,null,null,null,null,null,"X"]
[null,null,null,null,null,null,null,"X"]
[null,null,null,null,null,null,null,"X"]
[null,null,null,null,null,null,null,"X"]
[null,null,null,null,null,null,null,"X"]
[null,null,null,null,null,null,null,"X"]
[null,null,null,null,null,null,null,"X"]
[null,null,null,null,null,null,null,"X"]
[null,null,null,null,null,null,null,"X"]
[null,null,null,null,null,null,null,"X"]
[null,null,null,null,null,null,null,"X"]
[null,null,null,null,null,null,null,"X"]
[null,null,null,null,null,null,null,"X"]
[null,null,null,null,null,null,null,"X"]
[null,null,null,null,null,null,null,"X"]
[null,null,null,null,null,null,null,"X"]
[null,null,null,null,null,null,null,{"$f":"_xlfn.CONCAT(D6083,\"X\",G6083)","v":"X"}]
[null,null,null,null,null,null,null,"X"]
[null,null,null,null,null,null,null,"X"]
[null,null,null,null,null,null,null,"X"]
[null,null,null,null,null,null,null,"X"]
[null,null,null,null,null,null,null,"X"]
[null,null,null,null,null,null,null,"X"]
[null,null,null,null,null,null,null,"X"]
[null,null,null,null,null,null,null,"X"]
[null,null,null,null,null,null,null,"X"]
[null,null,null,null,null,null,null,"X"]
[null,null,null,null,null,null,null,"X"]
[null,null,null,null,null,null,null,"X"]
[null,null,null,null,null,null,null,"X"]
[null,null,null,null,null,null,null,"X"]
[null,null,null,null,null,null,null,"X"]
[null,null,null,null,null,null,null,"X"]
[null,null,null,null,null,null,null,"X"]
[null,null,null,null,null,null,null,"X"]
[null,null,null,null,null,null,null,"X"]
[null,null,null,null,null,null,null,"X"]
[null,null,null,null,null,null,null,"X"]
[null,null,null,null,null,null,null,"X"]
[null,null,null,null,null,null,null,"X"]
[null,null,null,null,null,null,null,"X"]
[null,null,null,null,null,null,null,"X"]
[null,null,null,null,null,null,null,"X"]
[null,null,null,null,null,null,null,"X"]
[null,null,null,null,null,null,null,"X"]
[null,null,null,null,null,null,null,"X"]
[null,null,null,null,null,null,null,"X"]
[null,null,null,null,null,null,null,"X"]
[null,null,null,null,null,null,null,"X"]
[null,null,null,null,null,null,null,"X"]
[null,null,null,null,null,null,null,"X"]
[null,null,null,null,null,null,null,"X"]
[null,null,null,null,null,null,null,"X"]
[null,null,null,null,null,null,null,"X"]
[null,null,null,null,null,null,null,"X"]
[null,null,null,null,null,null,null,"X"]
[null,null,null,null,null,null,null,"X"]
[null,null,null,null,null,null,null,"X"]
[null,null,null,null,null,null,null,"X"]
[null,null,null,null,null,null,null,"X"]
[null,null,null,null,null,null,null,"X"]
[null,null,null,null,null,null,null,"X"]
[null,null,null,null,null,null,null,"X"]
[null,null,null,null,null,null,null,"X"]
[null,null,null,null,null,null,null,"X"]
[null,null,null,null,null,null,null,"X"]
[null,null,null,null,null,null,null,"X"]
[null,null,null,null,null,null,null,"X"]
[null,null,null,null,null,null,null,"X"]
[null,null,null,null,null,null,null,"X"]
[null,null,null,null,null,null,null,"X"]
[null,null,null,null,null,null,null,"X"]
[null,null,null,null,null,null,null,"X"]
[null,null,null,null,null,null,null,"X"]
[null,null,null,null,null,null,null,"X"]
[null,null,null,null,null,null,null,"X"]
[null,null,null,null,null,null,null,"X"]
[null,null,null,null,null,null,null,"X"]
[null,null,null,null,null,null,null,"X"]
[null,null,null,null,null,null,null,"X"]
[null,null,null,null,null,null,null,{"$f":"_xlfn.CONCAT(D6147,\"X\",G6147)","v":"X"}]
[null,null,null,null,null,null,null,"X"]
[null,null,null,null,null,null,null,"X"]
[null,null,null,null,null,null,null,"X"]
[null,null,null,null,null,null,null,"X"]
[null,null,null,null,null,null,null,"X"]
[null,null,null,null,null,null,null,"X"]
[null,null,null,null,null,null,null,"X"]
[null,null,null,null,null,null,null,"X"]
[null,null,null,null,null,null,null,"X"]
[null,null,null,null,null,null,null,"X"]
[null,null,null,null,null,null,null,"X"]
[null,null,null,null,null,null,null,"X"]
[null,null,null,null,null,null,null,"X"]
[null,null,null,null,null,null,null,"X"]
[null,null,null,null,null,null,null,"X"]
[null,null,null,null,null,null,null,"X"]
[null,null,null,null,null,null,null,"X"]
[null,null,null,null,null,null,null,"X"]
[null,null,null,null,null,null,null,"X"]
[null,null,null,null,null,null,null,"X"]
[null,null,null,null,null,null,null,"X"]
[null,null,null,null,null,null,null,"X"]
[null,null,null,null,null,null,null,"X"]
[null,null,null,null,null,null,null,"X"]
[null,null,null,null,null,null,null,"X"]
[null,null,null,null,null,null,null,"X"]
[null,null,null,null,null,null,null,"X"]
[null,null,null,null,null,null,null,"X"]
[null,null,null,null,null,null,null,"X"]
[null,null,null,null,null,null,null,"X"]
[null,null,null,null,null,null,null,"X"]
[null,null,null,null,null,null,null,"X"]
[null,null,null,null,null,null,null,"X"]
[null,null,null,null,null,null,null,"X"]
[null,null,null,null,null,null,null,"X"]
[null,null,null,null,null,null,null,"X"]
[null,null,null,null,null,null,null,"X"]
[null,null,null,null,null,null,null,"X"]
[null,null,null,null,null,null,null,"X"]
[null,null,null,null,null,null,null,"X"]
[null,null,null,null,null,null,null,"X"]
[null,null,null,null,null,null,null,"X"]
[null,null,null,null,null,null,null,"X"]
[null,null,null,null,null,null,null,"X"]
[null,null,null,null,null,null,null,"X"]
[null,null,null,null,null,null,null,"X"]
[null,null,null,null,null,null,null,"X"]
[null,null,null,null,null,null,null,"X"]
[null,null,null,null,null,null,null,"X"]
[null,null,null,null,null,null,null,"X"]
[null,null,null,null,null,null,null,"X"]
[null,null,null,null,null,null,null,"X"]
[null,null,null,null,null,null,null,"X"]
[null,null,null,null,null,null,null,"X"]
[null,null,null,null,null,null,null,"X"]
[null,null,null,null,null,null,null,"X"]
[null,null,null,null,null,null,null,"X"]
[null,null,null,null,null,null,null,"X"]
[null,null,null,null,null,null,null,"X"]
[null,null,null,null,null,null,null,"X"]
[null,null,null,null,null,null,null,"X"]
[null,null,null,null,null,null,null,"X"]
[null,null,null,null,null,null,null,"X"]
[null,null,null,null,null,null,null,{"$f":"_xlfn.CONCAT(D6211,\"X\",G6211)","v":"X"}]
[null,null,null,null,null,null,null,"X"]
[null,null,null,null,null,null,null,"X"]
[null,null,null,null,null,null,null,"X"]
[null,null,null,null,null,null,null,"X"]
[null,null,null,null,null,null,null,"X"]
[null,null,null,null,null,null,null,"X"]
[null,null,null,null,null,null,null,"X"]
[null,null,null,null,null,null,null,"X"]
[null,null,null,null,null,null,null,"X"]
[null,null,null,null,null,null,null,"X"]
[null,null,null,null,null,null,null,"X"]
[null,null,null,null,null,null,null,"X"]
[null,null,null,null,null,null,null,"X"]
[null,null,null,null,null,null,null,"X"]
[null,null,null,null,null,null,null,"X"]
[null,null,null,null,null,null,null,"X"]
[null,null,null,null,null,null,null,"X"]
[null,null,null,null,null,null,null,"X"]
[null,null,null,null,null,null,null,"X"]
[null,null,null,null,null,null,null,"X"]
[null,null,null,null,null,null,null,"X"]
[null,null,null,null,null,null,null,"X"]
[null,null,null,null,null,null,null,"X"]
[null,null,null,null,null,null,null,"X"]
[null,null,null,null,null,null,null,"X"]
[null,null,null,null,null,null,null,"X"]
[null,null,null,null,null,null,null,"X"]
[null,null,null,null,null,null,null,"X"]
[null,null,null,null,null,null,null,"X"]
[null,null,null,null,null,null,null,"X"]
[null,null,null,null,null,null,null,"X"]
[null,null,null,null,null,null,null,"X"]
[null,null,null,null,null,null,null,"X"]
[null,null,null,null,null,null,null,"X"]
[null,null,null,null,null,null,null,"X"]
[null,null,null,null,null,null,null,"X"]
[null,null,null,null,null,null,null,"X"]
[null,null,null,null,null,null,null,"X"]
[null,null,null,null,null,null,null,"X"]
[null,null,null,null,null,null,null,"X"]
[null,null,null,null,null,null,null,"X"]
[null,null,null,null,null,null,null,"X"]
[null,null,null,null,null,null,null,"X"]
[null,null,null,null,null,null,null,"X"]
[null,null,null,null,null,null,null,"X"]
[null,null,null,null,null,null,null,"X"]
[null,null,null,null,null,null,null,"X"]
[null,null,null,null,null,null,null,"X"]
[null,null,null,null,null,null,null,"X"]
[null,null,null,null,null,null,null,"X"]
[null,null,null,null,null,null,null,"X"]
[null,null,null,null,null,null,null,"X"]
[null,null,null,null,null,null,null,"X"]
[null,null,null,null,null,null,null,"X"]
[null,null,null,null,null,null,null,"X"]
[null,null,null,null,null,null,null,"X"]
[null,null,null,null,null,null,null,"X"]
[null,null,null,null,null,null,null,"X"]
[null,null,null,null,null,null,null,"X"]
[null,null,null,null,null,null,null,"X"]
[null,null,null,null,null,null,null,"X"]
[null,null,null,null,null,null,null,"X"]
[null,null,null,null,null,null,null,"X"]
[null,null,null,null,null,null,null,{"$f":"_xlfn.CONCAT(D6275,\"X\",G6275)","v":"X"}]
[null,null,null,null,null,null,null,"X"]
[null,null,null,null,null,null,null,"X"]
[null,null,null,null,null,null,null,"X"]
[null,null,null,null,null,null,null,"X"]
[null,null,null,null,null,null,null,"X"]
[null,null,null,null,null,null,null,"X"]
[null,null,null,null,null,null,null,"X"]
[null,null,null,null,null,null,null,"X"]
[null,null,null,null,null,null,null,"X"]
[null,null,null,null,null,null,null,"X"]
[null,null,null,null,null,null,null,"X"]
[null,null,null,null,null,null,null,"X"]
[null,null,null,null,null,null,null,"X"]
[null,null,null,null,null,null,null,"X"]
[null,null,null,null,null,null,null,"X"]
[null,null,null,null,null,null,null,"X"]
[null,null,null,null,null,null,null,"X"]
[null,null,null,null,null,null,null,"X"]
[null,null,null,null,null,null,null,"X"]
[null,null,null,null,null,null,null,"X"]
[null,null,null,null,null,null,null,"X"]
[null,null,null,null,null,null,null,"X"]
[null,null,null,null,null,null,null,"X"]
[null,null,null,null,null,null,null,"X"]
[null,null,null,null,null,null,null,"X"]
[null,null,null,null,null,null,null,"X"]
[null,null,null,null,null,null,null,"X"]
[null,null,null,null,null,null,null,"X"]
[null,null,null,null,null,null,null,"X"]
[null,null,null,null,null,null,null,"X"]
[null,null,null,null,null,null,null,"X"]
[null,null,null,null,null,null,null,"X"]
[null,null,null,null,null,null,null,"X"]
[null,null,null,null,null,null,null,"X"]
[null,null,null,null,null,null,null,"X"]
[null,null,null,null,null,null,null,"X"]
[null,null,null,null,null,null,null,"X"]
[null,null,null,null,null,null,null,"X"]
[null,null,null,null,null,null,null,"X"]
[null,null,null,null,null,null,null,"X"]
[null,null,null,null,null,null,null,"X"]
[null,null,null,null,null,null,null,"X"]
[null,null,null,null,null,null,null,"X"]
[null,null,null,null,null,null,null,"X"]
[null,null,null,null,null,null,null,"X"]
[null,null,null,null,null,null,null,"X"]
[null,null,null,null,null,null,null,"X"]
[null,null,null,null,null,null,null,"X"]
[null,null,null,null,null,null,null,"X"]
[null,null,null,null,null,null,null,"X"]
[null,null,null,null,null,null,null,"X"]
[null,null,null,null,null,null,null,"X"]
[null,null,null,null,null,null,null,"X"]
[null,null,null,null,null,null,null,"X"]
[null,null,null,null,null,null,null,"X"]
[null,null,null,null,null,null,null,"X"]
[null,null,null,null,null,null,null,"X"]
[null,null,null,null,null,null,null,"X"]
[null,null,null,null,null,null,null,"X"]
[null,null,null,null,null,null,null,"X"]
[null,null,null,null,null,null,null,"X"]
[null,null,null,null,null,null,null,"X"]
[null,null,null,null,null,null,null,"X"]
[null,null,null,null,null,null,null,{"$f":"_xlfn.CONCAT(D6339,\"X\",G6339)","v":"X"}]
[null,null,null,null,null,null,null,"X"]
[null,null,null,null,null,null,null,"X"]
[null,null,null,null,null,null,null,"X"]
[null,null,null,null,null,null,null,"X"]
[null,null,null,null,null,null,null,"X"]
[null,null,null,null,null,null,null,"X"]
[null,null,null,null,null,null,null,"X"]
[null,null,null,null,null,null,null,"X"]
[null,null,null,null,null,null,null,"X"]
[null,null,null,null,null,null,null,"X"]
[null,null,null,null,null,null,null,"X"]
[null,null,null,null,null,null,null,"X"]
[null,null,null,null,null,null,null,"X"]
[null,null,null,null,null,null,null,"X"]
[null,null,null,null,null,null,null,"X"]
[null,null,null,null,null,null,null,"X"]
[null,null,null,null,null,null,null,"X"]
[null,null,null,null,null,null,null,"X"]
[null,null,null,null,null,null,null,"X"]
[null,null,null,null,null,null,null,"X"]
[null,null,null,null,null,null,null,"X"]
[null,null,null,null,null,null,null,"X"]
[null,null,null,null,null,null,null,"X"]
[null,null,null,null,null,null,null,"X"]
[null,null,null,null,null,null,null,"X"]
[null,null,null,null,null,null,null,"X"]
[null,null,null,null,null,null,null,"X"]
[null,null,null,null,null,null,null,"X"]
[null,null,null,null,null,null,null,"X"]
[null,null,null,null,null,null,null,"X"]
[null,null,null,null,null,null,null,"X"]
[null,null,null,null,null,null,null,"X"]
[null,null,null,null,null,null,null,"X"]
[null,null,null,null,null,null,null,"X"]
[null,null,null,null,null,null,null,"X"]
[null,null,null,null,null,null,null,"X"]
[null,null,null,null,null,null,null,"X"]
[null,null,null,null,null,null,null,"X"]
[null,null,null,null,null,null,null,"X"]
[null,null,null,null,null,null,null,"X"]
[null,null,null,null,null,null,null,"X"]
[null,null,null,null,null,null,null,"X"]
[null,null,null,null,null,null,null,"X"]
[null,null,null,null,null,null,null,"X"]
[null,null,null,null,null,null,null,"X"]
[null,null,null,null,null,null,null,"X"]
[null,null,null,null,null,null,null,"X"]
[null,null,null,null,null,null,null,"X"]
[null,null,null,null,null,null,null,"X"]
[null,null,null,null,null,null,null,"X"]
[null,null,null,null,null,null,null,"X"]
[null,null,null,null,null,null,null,"X"]
[null,null,null,null,null,null,null,"X"]
[null,null,null,null,null,null,null,"X"]
[null,null,null,null,null,null,null,"X"]
[null,null,null,null,null,null,null,"X"]
[null,null,null,null,null,null,null,"X"]
[null,null,null,null,null,null,null,"X"]
[null,null,null,null,null,null,null,"X"]
[null,null,null,null,null,null,null,"X"]
[null,null,null,null,null,null,null,"X"]
[null,null,null,null,null,null,null,"X"]
[null,null,null,null,null,null,null,"X"]
[null,null,null,null,null,null,null,{"$f":"_xlfn.CONCAT(D6403,\"X\",G6403)","v":"X"}]
[null,null,null,null,null,null,null,"X"]
[null,null,null,null,null,null,null,"X"]
[null,null,null,null,null,null,null,"X"]
[null,null,null,null,null,null,null,"X"]
[null,null,null,null,null,null,null,"X"]
[null,null,null,null,null,null,null,"X"]
[null,null,null,null,null,null,null,"X"]
[null,null,null,null,null,null,null,"X"]
[null,null,null,null,null,null,null,"X"]
[null,null,null,null,null,null,null,"X"]
[null,null,null,null,null,null,null,"X"]
[null,null,null,null,null,null,null,"X"]
[null,null,null,null,null,null,null,"X"]
[null,null,null,null,null,null,null,"X"]
[null,null,null,null,null,null,null,"X"]
[null,null,null,null,null,null,null,"X"]
[null,null,null,null,null,null,null,"X"]
[null,null,null,null,null,null,null,"X"]
[null,null,null,null,null,null,null,"X"]
[null,null,null,null,null,null,null,"X"]
[null,null,null,null,null,null,null,"X"]
[null,null,null,null,null,null,null,"X"]
[null,null,null,null,null,null,null,"X"]
[null,null,null,null,null,null,null,"X"]
[null,null,null,null,null,null,null,"X"]
[null,null,null,null,null,null,null,"X"]
[null,null,null,null,null,null,null,"X"]
[null,null,null,null,null,null,null,"X"]
[null,null,null,null,null,null,null,"X"]
[null,null,null,null,null,null,null,"X"]
[null,null,null,null,null,null,null,"X"]
[null,null,null,null,null,null,null,"X"]
[null,null,null,null,null,null,null,"X"]
[null,null,null,null,null,null,null,"X"]
[null,null,null,null,null,null,null,"X"]
[null,null,null,null,null,null,null,"X"]
[null,null,null,null,null,null,null,"X"]
[null,null,null,null,null,null,null,"X"]
[null,null,null,null,null,null,null,"X"]
[null,null,null,null,null,null,null,"X"]
[null,null,null,null,null,null,null,"X"]
[null,null,null,null,null,null,null,"X"]
[null,null,null,null,null,null,null,"X"]
[null,null,null,null,null,null,null,"X"]
[null,null,null,null,null,null,null,"X"]
[null,null,null,null,null,null,null,"X"]
[null,null,null,null,null,null,null,"X"]
[null,null,null,null,null,null,null,"X"]
[null,null,null,null,null,null,null,"X"]
[null,null,null,null,null,null,null,"X"]
[null,null,null,null,null,null,null,"X"]
[null,null,null,null,null,null,null,"X"]
[null,null,null,null,null,null,null,"X"]
[null,null,null,null,null,null,null,"X"]
[null,null,null,null,null,null,null,"X"]
[null,null,null,null,null,null,null,"X"]
[null,null,null,null,null,null,null,"X"]
[null,null,null,null,null,null,null,"X"]
[null,null,null,null,null,null,null,"X"]
[null,null,null,null,null,null,null,"X"]
[null,null,null,null,null,null,null,"X"]
[null,null,null,null,null,null,null,"X"]
[null,null,null,null,null,null,null,"X"]
[null,null,null,null,null,null,null,{"$f":"_xlfn.CONCAT(D6467,\"X\",G6467)","v":"X"}]
[null,null,null,null,null,null,null,"X"]
[null,null,null,null,null,null,null,"X"]
[null,null,null,null,null,null,null,"X"]
[null,null,null,null,null,null,null,"X"]
[null,null,null,null,null,null,null,"X"]
[null,null,null,null,null,null,null,"X"]
[null,null,null,null,null,null,null,"X"]
[null,null,null,null,null,null,null,"X"]
[null,null,null,null,null,null,null,"X"]
[null,null,null,null,null,null,null,"X"]
[null,null,null,null,null,null,null,"X"]
[null,null,null,null,null,null,null,"X"]
[null,null,null,null,null,null,null,"X"]
[null,null,null,null,null,null,null,"X"]
[null,null,null,null,null,null,null,"X"]
[null,null,null,null,null,null,null,"X"]
[null,null,null,null,null,null,null,"X"]
[null,null,null,null,null,null,null,"X"]
[null,null,null,null,null,null,null,"X"]
[null,null,null,null,null,null,null,"X"]
[null,null,null,null,null,null,null,"X"]
[null,null,null,null,null,null,null,"X"]
[null,null,null,null,null,null,null,"X"]
[null,null,null,null,null,null,null,"X"]
[null,null,null,null,null,null,null,"X"]
[null,null,null,null,null,null,null,"X"]
[null,null,null,null,null,null,null,"X"]
[null,null,null,null,null,null,null,"X"]
[null,null,null,null,null,null,null,"X"]
[null,null,null,null,null,null,null,"X"]
[null,null,null,null,null,null,null,"X"]
[null,null,null,null,null,null,null,"X"]
[null,null,null,null,null,null,null,"X"]
[null,null,null,null,null,null,null,"X"]
[null,null,null,null,null,null,null,"X"]
[null,null,null,null,null,null,null,"X"]
[null,null,null,null,null,null,null,"X"]
[null,null,null,null,null,null,null,"X"]
[null,null,null,null,null,null,null,"X"]
[null,null,null,null,null,null,null,"X"]
[null,null,null,null,null,null,null,"X"]
[null,null,null,null,null,null,null,"X"]
[null,null,null,null,null,null,null,"X"]
[null,null,null,null,null,null,null,"X"]
[null,null,null,null,null,null,null,"X"]
[null,null,null,null,null,null,null,"X"]
[null,null,null,null,null,null,null,"X"]
[null,null,null,null,null,null,null,"X"]
[null,null,null,null,null,null,null,"X"]
[null,null,null,null,null,null,null,"X"]
[null,null,null,null,null,null,null,"X"]
[null,null,null,null,null,null,null,"X"]
[null,null,null,null,null,null,null,"X"]
[null,null,null,null,null,null,null,"X"]
[null,null,null,null,null,null,null,"X"]
[null,null,null,null,null,null,null,"X"]
[null,null,null,null,null,null,null,"X"]
[null,null,null,null,null,null,null,"X"]
[null,null,null,null,null,null,null,"X"]
[null,null,null,null,null,null,null,"X"]
[null,null,null,null,null,null,null,"X"]
[null,null,null,null,null,null,null,"X"]
[null,null,null,null,null,null,null,"X"]
[null,null,null,null,null,null,null,{"$f":"_xlfn.CONCAT(D6531,\"X\",G6531)","v":"X"}]
[null,null,null,null,null,null,null,"X"]
[null,null,null,null,null,null,null,"X"]
[null,null,null,null,null,null,null,"X"]
[null,null,null,null,null,null,null,"X"]
[null,null,null,null,null,null,null,"X"]
[null,null,null,null,null,null,null,"X"]
[null,null,null,null,null,null,null,"X"]
[null,null,null,null,null,null,null,"X"]
[null,null,null,null,null,null,null,"X"]
[null,null,null,null,null,null,null,"X"]
[null,null,null,null,null,null,null,"X"]
[null,null,null,null,null,null,null,"X"]
[null,null,null,null,null,null,null,"X"]
[null,null,null,null,null,null,null,"X"]
[null,null,null,null,null,null,null,"X"]
[null,null,null,null,null,null,null,"X"]
[null,null,null,null,null,null,null,"X"]
[null,null,null,null,null,null,null,"X"]
[null,null,null,null,null,null,null,"X"]
[null,null,null,null,null,null,null,"X"]
[null,null,null,null,null,null,null,"X"]
[null,null,null,null,null,null,null,"X"]
[null,null,null,null,null,null,null,"X"]
[null,null,null,null,null,null,null,"X"]
[null,null,null,null,null,null,null,"X"]
[null,null,null,null,null,null,null,"X"]
[null,null,null,null,null,null,null,"X"]
[null,null,null,null,null,null,null,"X"]
[null,null,null,null,null,null,null,"X"]
[null,null,null,null,null,null,null,"X"]
[null,null,null,null,null,null,null,"X"]
[null,null,null,null,null,null,null,"X"]
[null,null,null,null,null,null,null,"X"]
[null,null,null,null,null,null,null,"X"]
[null,null,null,null,null,null,null,"X"]
[null,null,null,null,null,null,null,"X"]
[null,null,null,null,null,null,null,"X"]
[null,null,null,null,null,null,null,"X"]
[null,null,null,null,null,null,null,"X"]
[null,null,null,null,null,null,null,"X"]
[null,null,null,null,null,null,null,"X"]
[null,null,null,null,null,null,null,"X"]
[null,null,null,null,null,null,null,"X"]
[null,null,null,null,null,null,null,"X"]
[null,null,null,null,null,null,null,"X"]
[null,null,null,null,null,null,null,"X"]
[null,null,null,null,null,null,null,"X"]
[null,null,null,null,null,null,null,"X"]
[null,null,null,null,null,null,null,"X"]
[null,null,null,null,null,null,null,"X"]
[null,null,null,null,null,null,null,"X"]
[null,null,null,null,null,null,null,"X"]
[null,null,null,null,null,null,null,"X"]
[null,null,null,null,null,null,null,"X"]
[null,null,null,null,null,null,null,"X"]
[null,null,null,null,null,null,null,"X"]
[null,null,null,null,null,null,null,"X"]
[null,null,null,null,null,null,null,"X"]
[null,null,null,null,null,null,null,"X"]
[null,null,null,null,null,null,null,"X"]
[null,null,null,null,null,null,null,"X"]
[null,null,null,null,null,null,null,"X"]
[null,null,null,null,null,null,null,"X"]
[null,null,null,null,null,null,null,{"$f":"_xlfn.CONCAT(D6595,\"X\",G6595)","v":"X"}]
[null,null,null,null,null,null,null,"X"]
[null,null,null,null,null,null,null,"X"]
[null,null,null,null,null,null,null,"X"]
[null,null,null,null,null,null,null,"X"]
[null,null,null,null,null,null,null,"X"]
[null,null,null,null,null,null,null,"X"]
[null,null,null,null,null,null,null,"X"]
[null,null,null,null,null,null,null,"X"]
[null,null,null,null,null,null,null,"X"]
[null,null,null,null,null,null,null,"X"]
[null,null,null,null,null,null,null,"X"]
[null,null,null,null,null,null,null,"X"]
[null,null,null,null,null,null,null,"X"]
[null,null,null,null,null,null,null,"X"]
[null,null,null,null,null,null,null,"X"]
[null,null,null,null,null,null,null,"X"]
[null,null,null,null,null,null,null,"X"]
[null,null,null,null,null,null,null,"X"]
[null,null,null,null,null,null,null,"X"]
[null,null,null,null,null,null,null,"X"]
[null,null,null,null,null,null,null,"X"]
[null,null,null,null,null,null,null,"X"]
[null,null,null,null,null,null,null,"X"]
[null,null,null,null,null,null,null,"X"]
[null,null,null,null,null,null,null,"X"]
[null,null,null,null,null,null,null,"X"]
[null,null,null,null,null,null,null,"X"]
[null,null,null,null,null,null,null,"X"]
[null,null,null,null,null,null,null,"X"]
[null,null,null,null,null,null,null,"X"]
[null,null,null,null,null,null,null,"X"]
[null,null,null,null,null,null,null,"X"]
[null,null,null,null,null,null,null,"X"]
[null,null,null,null,null,null,null,"X"]
[null,null,null,null,null,null,null,"X"]
[null,null,null,null,null,null,null,"X"]
[null,null,null,null,null,null,null,"X"]
[null,null,null,null,null,null,null,"X"]
[null,null,null,null,null,null,null,"X"]
[null,null,null,null,null,null,null,"X"]
[null,null,null,null,null,null,null,"X"]
[null,null,null,null,null,null,null,"X"]
[null,null,null,null,null,null,null,"X"]
[null,null,null,null,null,null,null,"X"]
[null,null,null,null,null,null,null,"X"]
[null,null,null,null,null,null,null,"X"]
[null,null,null,null,null,null,null,"X"]
[null,null,null,null,null,null,null,"X"]
[null,null,null,null,null,null,null,"X"]
[null,null,null,null,null,null,null,"X"]
[null,null,null,null,null,null,null,"X"]
[null,null,null,null,null,null,null,"X"]
[null,null,null,null,null,null,null,"X"]
[null,null,null,null,null,null,null,"X"]
[null,null,null,null,null,null,null,"X"]
[null,null,null,null,null,null,null,"X"]
[null,null,null,null,null,null,null,"X"]
[null,null,null,null,null,null,null,"X"]
[null,null,null,null,null,null,null,"X"]
[null,null,null,null,null,null,null,"X"]
[null,null,null,null,null,null,null,"X"]
[null,null,null,null,null,null,null,"X"]
[null,null,null,null,null,null,null,"X"]
[null,null,null,null,null,null,null,{"$f":"_xlfn.CONCAT(D6659,\"X\",G6659)","v":"X"}]
[null,null,null,null,null,null,null,"X"]
[null,null,null,null,null,null,null,"X"]
[null,null,null,null,null,null,null,"X"]
[null,null,null,null,null,null,null,"X"]
[null,null,null,null,null,null,null,"X"]
[null,null,null,null,null,null,null,"X"]
[null,null,null,null,null,null,null,"X"]
[null,null,null,null,null,null,null,"X"]
[null,null,null,null,null,null,null,"X"]
[null,null,null,null,null,null,null,"X"]
[null,null,null,null,null,null,null,"X"]
[null,null,null,null,null,null,null,"X"]
[null,null,null,null,null,null,null,"X"]
[null,null,null,null,null,null,null,"X"]
[null,null,null,null,null,null,null,"X"]
[null,null,null,null,null,null,null,"X"]
[null,null,null,null,null,null,null,"X"]
[null,null,null,null,null,null,null,"X"]
[null,null,null,null,null,null,null,"X"]
[null,null,null,null,null,null,null,"X"]
[null,null,null,null,null,null,null,"X"]
[null,null,null,null,null,null,null,"X"]
[null,null,null,null,null,null,null,"X"]
[null,null,null,null,null,null,null,"X"]
[null,null,null,null,null,null,null,"X"]
[null,null,null,null,null,null,null,"X"]
[null,null,null,null,null,null,null,"X"]
[null,null,null,null,null,null,null,"X"]
[null,null,null,null,null,null,null,"X"]
[null,null,null,null,null,null,null,"X"]
[null,null,null,null,null,null,null,"X"]
[null,null,null,null,null,null,null,"X"]
[null,null,null,null,null,null,null,"X"]
[null,null,null,null,null,null,null,"X"]
[null,null,null,null,null,null,null,"X"]
[null,null,null,null,null,null,null,"X"]
[null,null,null,null,null,null,null,"X"]
[null,null,null,null,null,null,null,"X"]
[null,null,null,null,null,null,null,"X"]
[null,null,null,null,null,null,null,"X"]
[null,null,null,null,null,null,null,"X"]
[null,null,null,null,null,null,null,"X"]
[null,null,null,null,null,null,null,"X"]
[null,null,null,null,null,null,null,"X"]
[null,null,null,null,null,null,null,"X"]
[null,null,null,null,null,null,null,"X"]
[null,null,null,null,null,null,null,"X"]
[null,null,null,null,null,null,null,"X"]
[null,null,null,null,null,null,null,"X"]
[null,null,null,null,null,null,null,"X"]
[null,null,null,null,null,null,null,"X"]
[null,null,null,null,null,null,null,"X"]
[null,null,null,null,null,null,null,"X"]
[null,null,null,null,null,null,null,"X"]
[null,null,null,null,null,null,null,"X"]
[null,null,null,null,null,null,null,"X"]
[null,null,null,null,null,null,null,"X"]
[null,null,null,null,null,null,null,"X"]
[null,null,null,null,null,null,null,"X"]
[null,null,null,null,null,null,null,"X"]
[null,null,null,null,null,null,null,"X"]
[null,null,null,null,null,null,null,"X"]
[null,null,null,null,null,null,null,"X"]
[null,null,null,null,null,null,null,{"$f":"_xlfn.CONCAT(D6723,\"X\",G6723)","v":"X"}]
[null,null,null,null,null,null,null,"X"]
[null,null,null,null,null,null,null,"X"]
[null,null,null,null,null,null,null,"X"]
[null,null,null,null,null,null,null,"X"]
[null,null,null,null,null,null,null,"X"]
[null,null,null,null,null,null,null,"X"]
[null,null,null,null,null,null,null,"X"]
[null,null,null,null,null,null,null,"X"]
[null,null,null,null,null,null,null,"X"]
[null,null,null,null,null,null,null,"X"]
[null,null,null,null,null,null,null,"X"]
[null,null,null,null,null,null,null,"X"]
[null,null,null,null,null,null,null,"X"]
[null,null,null,null,null,null,null,"X"]
[null,null,null,null,null,null,null,"X"]
[null,null,null,null,null,null,null,"X"]
[null,null,null,null,null,null,null,"X"]
[null,null,null,null,null,null,null,"X"]
[null,null,null,null,null,null,null,"X"]
[null,null,null,null,null,null,null,"X"]
[null,null,null,null,null,null,null,"X"]
[null,null,null,null,null,null,null,"X"]
[null,null,null,null,null,null,null,"X"]
[null,null,null,null,null,null,null,"X"]
[null,null,null,null,null,null,null,"X"]
[null,null,null,null,null,null,null,"X"]
[null,null,null,null,null,null,null,"X"]
[null,null,null,null,null,null,null,"X"]
[null,null,null,null,null,null,null,"X"]
[null,null,null,null,null,null,null,"X"]
[null,null,null,null,null,null,null,"X"]
[null,null,null,null,null,null,null,"X"]
[null,null,null,null,null,null,null,"X"]
[null,null,null,null,null,null,null,"X"]
[null,null,null,null,null,null,null,"X"]
[null,null,null,null,null,null,null,"X"]
[null,null,null,null,null,null,null,"X"]
[null,null,null,null,null,null,null,"X"]
[null,null,null,null,null,null,null,"X"]
[null,null,null,null,null,null,null,"X"]
[null,null,null,null,null,null,null,"X"]
[null,null,null,null,null,null,null,"X"]
[null,null,null,null,null,null,null,"X"]
[null,null,null,null,null,null,null,"X"]
[null,null,null,null,null,null,null,"X"]
[null,null,null,null,null,null,null,"X"]
[null,null,null,null,null,null,null,"X"]
[null,null,null,null,null,null,null,"X"]
[null,null,null,null,null,null,null,"X"]
[null,null,null,null,null,null,null,"X"]
[null,null,null,null,null,null,null,"X"]
[null,null,null,null,null,null,null,"X"]
[null,null,null,null,null,null,null,"X"]
[null,null,null,null,null,null,null,"X"]
[null,null,null,null,null,null,null,"X"]
[null,null,null,null,null,null,null,"X"]
[null,null,null,null,null,null,null,"X"]
[null,null,null,null,null,null,null,"X"]
[null,null,null,null,null,null,null,"X"]
[null,null,null,null,null,null,null,"X"]
[null,null,null,null,null,null,null,"X"]
[null,null,null,null,null,null,null,"X"]
[null,null,null,null,null,null,null,"X"]
[null,null,null,null,null,null,null,{"$f":"_xlfn.CONCAT(D6787,\"X\",G6787)","v":"X"}]
[null,null,null,null,null,null,null,"X"]
[null,null,null,null,null,null,null,"X"]
[null,null,null,null,null,null,null,"X"]
[null,null,null,null,null,null,null,"X"]
[null,null,null,null,null,null,null,"X"]
[null,null,null,null,null,null,null,"X"]
[null,null,null,null,null,null,null,"X"]
[null,null,null,null,null,null,null,"X"]
[null,null,null,null,null,null,null,"X"]
[null,null,null,null,null,null,null,"X"]
[null,null,null,null,null,null,null,"X"]
[null,null,null,null,null,null,null,"X"]
[null,null,null,null,null,null,null,"X"]
[null,null,null,null,null,null,null,"X"]
[null,null,null,null,null,null,null,"X"]
[null,null,null,null,null,null,null,"X"]
[null,null,null,null,null,null,null,"X"]
[null,null,null,null,null,null,null,"X"]
[null,null,null,null,null,null,null,"X"]
[null,null,null,null,null,null,null,"X"]
[null,null,null,null,null,null,null,"X"]
[null,null,null,null,null,null,null,"X"]
[null,null,null,null,null,null,null,"X"]
[null,null,null,null,null,null,null,"X"]
[null,null,null,null,null,null,null,"X"]
[null,null,null,null,null,null,null,"X"]
[null,null,null,null,null,null,null,"X"]
[null,null,null,null,null,null,null,"X"]
[null,null,null,null,null,null,null,"X"]
[null,null,null,null,null,null,null,"X"]
[null,null,null,null,null,null,null,"X"]
[null,null,null,null,null,null,null,"X"]
[null,null,null,null,null,null,null,"X"]
[null,null,null,null,null,null,null,"X"]
[null,null,null,null,null,null,null,"X"]
[null,null,null,null,null,null,null,"X"]
[null,null,null,null,null,null,null,"X"]
[null,null,null,null,null,null,null,"X"]
[null,null,null,null,null,null,null,"X"]
[null,null,null,null,null,null,null,"X"]
[null,null,null,null,null,null,null,"X"]
[null,null,null,null,null,null,null,"X"]
[null,null,null,null,null,null,null,"X"]
[null,null,null,null,null,null,null,"X"]
[null,null,null,null,null,null,null,"X"]
[null,null,null,null,null,null,null,"X"]
[null,null,null,null,null,null,null,"X"]
[null,null,null,null,null,null,null,"X"]
[null,null,null,null,null,null,null,"X"]
[null,null,null,null,null,null,null,"X"]
[null,null,null,null,null,null,null,"X"]
[null,null,null,null,null,null,null,"X"]
[null,null,null,null,null,null,null,"X"]
[null,null,null,null,null,null,null,"X"]
[null,null,null,null,null,null,null,"X"]
[null,null,null,null,null,null,null,"X"]
[null,null,null,null,null,null,null,"X"]
[null,null,null,null,null,null,null,"X"]
[null,null,null,null,null,null,null,"X"]
[null,null,null,null,null,null,null,"X"]
[null,null,null,null,null,null,null,"X"]
[null,null,null,null,null,null,null,"X"]
[null,null,null,null,null,null,null,"X"]
[null,null,null,null,null,null,null,{"$f":"_xlfn.CONCAT(D6851,\"X\",G6851)","v":"X"}]
[null,null,null,null,null,null,null,"X"]
[null,null,null,null,null,null,null,"X"]
[null,null,null,null,null,null,null,"X"]
[null,null,null,null,null,null,null,"X"]
[null,null,null,null,null,null,null,"X"]
[null,null,null,null,null,null,null,"X"]
[null,null,null,null,null,null,null,"X"]
[null,null,null,null,null,null,null,"X"]
[null,null,null,null,null,null,null,"X"]
[null,null,null,null,null,null,null,"X"]
[null,null,null,null,null,null,null,"X"]
[null,null,null,null,null,null,null,"X"]
[null,null,null,null,null,null,null,"X"]
[null,null,null,null,null,null,null,"X"]
[null,null,null,null,null,null,null,"X"]
[null,null,null,null,null,null,null,"X"]
[null,null,null,null,null,null,null,"X"]
[null,null,null,null,null,null,null,"X"]
[null,null,null,null,null,null,null,"X"]
[null,null,null,null,null,null,null,"X"]
[null,null,null,null,null,null,null,"X"]
[null,null,null,null,null,null,null,"X"]
[null,null,null,null,null,null,null,"X"]
[null,null,null,null,null,null,null,"X"]
[null,null,null,null,null,null,null,"X"]
[null,null,null,null,null,null,null,"X"]
[null,null,null,null,null,null,null,"X"]
[null,null,null,null,null,null,null,"X"]
[null,null,null,null,null,null,null,"X"]
[null,null,null,null,null,null,null,"X"]
[null,null,null,null,null,null,null,"X"]
[null,null,null,null,null,null,null,"X"]
[null,null,null,null,null,null,null,"X"]
[null,null,null,null,null,null,null,"X"]
[null,null,null,null,null,null,null,"X"]
[null,null,null,null,null,null,null,"X"]
[null,null,null,null,null,null,null,"X"]
[null,null,null,null,null,null,null,"X"]
[null,null,null,null,null,null,null,"X"]
[null,null,null,null,null,null,null,"X"]
[null,null,null,null,null,null,null,"X"]
[null,null,null,null,null,null,null,"X"]
[null,null,null,null,null,null,null,"X"]
[null,null,null,null,null,null,null,"X"]
[null,null,null,null,null,null,null,"X"]
[null,null,null,null,null,null,null,"X"]
[null,null,null,null,null,null,null,"X"]
[null,null,null,null,null,null,null,"X"]
[null,null,null,null,null,null,null,"X"]
[null,null,null,null,null,null,null,"X"]
[null,null,null,null,null,null,null,"X"]
[null,null,null,null,null,null,null,"X"]
[null,null,null,null,null,null,null,"X"]
[null,null,null,null,null,null,null,"X"]
[null,null,null,null,null,null,null,"X"]
[null,null,null,null,null,null,null,"X"]
[null,null,null,null,null,null,null,"X"]
[null,null,null,null,null,null,null,"X"]
[null,null,null,null,null,null,null,"X"]
[null,null,null,null,null,null,null,"X"]
[null,null,null,null,null,null,null,"X"]
[null,null,null,null,null,null,null,"X"]
[null,null,null,null,null,null,null,"X"]
[null,null,null,null,null,null,null,{"$f":"_xlfn.CONCAT(D6915,\"X\",G6915)","v":"X"}]
[null,null,null,null,null,null,null,"X"]
[null,null,null,null,null,null,null,"X"]
[null,null,null,null,null,null,null,"X"]
[null,null,null,null,null,null,null,"X"]
[null,null,null,null,null,null,null,"X"]
[null,null,null,null,null,null,null,"X"]
[null,null,null,null,null,null,null,"X"]
[null,null,null,null,null,null,null,"X"]
[null,null,null,null,null,null,null,"X"]
[null,null,null,null,null,null,null,"X"]
[null,null,null,null,null,null,null,"X"]
[null,null,null,null,null,null,null,"X"]
[null,null,null,null,null,null,null,"X"]
[null,null,null,null,null,null,null,"X"]
[null,null,null,null,null,null,null,"X"]
[null,null,null,null,null,null,null,"X"]
[null,null,null,null,null,null,null,"X"]
[null,null,null,null,null,null,null,"X"]
[null,null,null,null,null,null,null,"X"]
[null,null,null,null,null,null,null,"X"]
[null,null,null,null,null,null,null,"X"]
[null,null,null,null,null,null,null,"X"]
[null,null,null,null,null,null,null,"X"]
[null,null,null,null,null,null,null,"X"]
[null,null,null,null,null,null,null,"X"]
[null,null,null,null,null,null,null,"X"]
[null,null,null,null,null,null,null,"X"]
[null,null,null,null,null,null,null,"X"]
[null,null,null,null,null,null,null,"X"]
[null,null,null,null,null,null,null,"X"]
[null,null,null,null,null,null,null,"X"]
[null,null,null,null,null,null,null,"X"]
[null,null,null,null,null,null,null,"X"]
[null,null,null,null,null,null,null,"X"]
[null,null,null,null,null,null,null,"X"]
[null,null,null,null,null,null,null,"X"]
[null,null,null,null,null,null,null,"X"]
[null,null,null,null,null,null,null,"X"]
[null,null,null,null,null,null,null,"X"]
[null,null,null,null,null,null,null,"X"]
[null,null,null,null,null,null,null,"X"]
[null,null,null,null,null,null,null,"X"]
[null,null,null,null,null,null,null,"X"]
[null,null,null,null,null,null,null,"X"]
[null,null,null,null,null,null,null,"X"]
[null,null,null,null,null,null,null,"X"]
[null,null,null,null,null,null,null,"X"]
[null,null,null,null,null,null,null,"X"]
[null,null,null,null,null,null,null,"X"]
[null,null,null,null,null,null,null,"X"]
[null,null,null,null,null,null,null,"X"]
[null,null,null,null,null,null,null,"X"]
[null,null,null,null,null,null,null,"X"]
[null,null,null,null,null,null,null,"X"]
[null,null,null,null,null,null,null,"X"]
[null,null,null,null,null,null,null,"X"]
[null,null,null,null,null,null,null,"X"]
[null,null,null,null,null,null,null,"X"]
[null,null,null,null,null,null,null,"X"]
[null,null,null,null,null,null,null,"X"]
[null,null,null,null,null,null,null,"X"]
[null,null,null,null,null,null,null,"X"]
[null,null,null,null,null,null,null,"X"]
[null,null,null,null,null,null,null,{"$f":"_xlfn.CONCAT(D6979,\"X\",G6979)","v":"X"}]
[null,null,null,null,null,null,null,"X"]
[null,null,null,null,null,null,null,"X"]
[null,null,null,null,null,null,null,"X"]
[null,null,null,null,null,null,null,"X"]
[null,null,null,null,null,null,null,"X"]
[null,null,null,null,null,null,null,"X"]
[null,null,null,null,null,null,null,"X"]
[null,null,null,null,null,null,null,"X"]
[null,null,null,null,null,null,null,"X"]
[null,null,null,null,null,null,null,"X"]
[null,null,null,null,null,null,null,"X"]
[null,null,null,null,null,null,null,"X"]
[null,null,null,null,null,null,null,"X"]
[null,null,null,null,null,null,null,"X"]
[null,null,null,null,null,null,null,"X"]
[null,null,null,null,null,null,null,"X"]
[null,null,null,null,null,null,null,"X"]
[null,null,null,null,null,null,null,"X"]
[null,null,null,null,null,null,null,"X"]
[null,null,null,null,null,null,null,"X"]
[null,null,null,null,null,null,null,"X"]
[null,null,null,null,null,null,null,"X"]
[null,null,null,null,null,null,null,"X"]
[null,null,null,null,null,null,null,"X"]
[null,null,null,null,null,null,null,"X"]
[null,null,null,null,null,null,null,"X"]
[null,null,null,null,null,null,null,"X"]
[null,null,null,null,null,null,null,"X"]
[null,null,null,null,null,null,null,"X"]
[null,null,null,null,null,null,null,"X"]
[null,null,null,null,null,null,null,"X"]
[null,null,null,null,null,null,null,"X"]
[null,null,null,null,null,null,null,"X"]
[null,null,null,null,null,null,null,"X"]
[null,null,null,null,null,null,null,"X"]
[null,null,null,null,null,null,null,"X"]
[null,null,null,null,null,null,null,"X"]
[null,null,null,null,null,null,null,"X"]
[null,null,null,null,null,null,null,"X"]
[null,null,null,null,null,null,null,"X"]
[null,null,null,null,null,null,null,"X"]
[null,null,null,null,null,null,null,"X"]
[null,null,null,null,null,null,null,"X"]
[null,null,null,null,null,null,null,"X"]
[null,null,null,null,null,null,null,"X"]
[null,null,null,null,null,null,null,"X"]
[null,null,null,null,null,null,null,"X"]
[null,null,null,null,null,null,null,"X"]
[null,null,null,null,null,null,null,"X"]
[null,null,null,null,null,null,null,"X"]
[null,null,null,null,null,null,null,"X"]
[null,null,null,null,null,null,null,"X"]
[null,null,null,null,null,null,null,"X"]
[null,null,null,null,null,null,null,"X"]
[null,null,null,null,null,null,null,"X"]
[null,null,null,null,null,null,null,"X"]
[null,null,null,null,null,null,null,"X"]
[null,null,null,null,null,null,null,"X"]
[null,null,null,null,null,null,null,"X"]
[null,null,null,null,null,null,null,"X"]
[null,null,null,null,null,null,null,"X"]
[null,null,null,null,null,null,null,"X"]
[null,null,null,null,null,null,null,"X"]
[null,null,null,null,null,null,null,{"$f":"_xlfn.CONCAT(D7043,\"X\",G7043)","v":"X"}]
[null,null,null,null,null,null,null,"X"]
[null,null,null,null,null,null,null,"X"]
[null,null,null,null,null,null,null,"X"]
[null,null,null,null,null,null,null,"X"]
[null,null,null,null,null,null,null,"X"]
[null,null,null,null,null,null,null,"X"]
[null,null,null,null,null,null,null,"X"]
[null,null,null,null,null,null,null,"X"]
[null,null,null,null,null,null,null,"X"]
[null,null,null,null,null,null,null,"X"]
[null,null,null,null,null,null,null,"X"]
[null,null,null,null,null,null,null,"X"]
[null,null,null,null,null,null,null,"X"]
[null,null,null,null,null,null,null,"X"]
[null,null,null,null,null,null,null,"X"]
[null,null,null,null,null,null,null,"X"]
[null,null,null,null,null,null,null,"X"]
[null,null,null,null,null,null,null,"X"]
[null,null,null,null,null,null,null,"X"]
[null,null,null,null,null,null,null,"X"]
[null,null,null,null,null,null,null,"X"]
[null,null,null,null,null,null,null,"X"]
[null,null,null,null,null,null,null,"X"]
[null,null,null,null,null,null,null,"X"]
[null,null,null,null,null,null,null,"X"]
[null,null,null,null,null,null,null,"X"]
[null,null,null,null,null,null,null,"X"]
[null,null,null,null,null,null,null,"X"]
[null,null,null,null,null,null,null,"X"]
[null,null,null,null,null,null,null,"X"]
[null,null,null,null,null,null,null,"X"]
[null,null,null,null,null,null,null,"X"]
[null,null,null,null,null,null,null,"X"]
[null,null,null,null,null,null,null,"X"]
[null,null,null,null,null,null,null,"X"]
[null,null,null,null,null,null,null,"X"]
[null,null,null,null,null,null,null,"X"]
[null,null,null,null,null,null,null,"X"]
[null,null,null,null,null,null,null,"X"]
[null,null,null,null,null,null,null,"X"]
[null,null,null,null,null,null,null,"X"]
[null,null,null,null,null,null,null,"X"]
[null,null,null,null,null,null,null,"X"]
[null,null,null,null,null,null,null,"X"]
[null,null,null,null,null,null,null,"X"]
[null,null,null,null,null,null,null,"X"]
[null,null,null,null,null,null,null,"X"]
[null,null,null,null,null,null,null,"X"]
[null,null,null,null,null,null,null,"X"]
[null,null,null,null,null,null,null,"X"]
[null,null,null,null,null,null,null,"X"]
[null,null,null,null,null,null,null,"X"]
[null,null,null,null,null,null,null,"X"]
[null,null,null,null,null,null,null,"X"]
[null,null,null,null,null,null,null,"X"]
[null,null,null,null,null,null,null,"X"]
[null,null,null,null,null,null,null,"X"]
[null,null,null,null,null,null,null,"X"]
[null,null,null,null,null,null,null,"X"]
[null,null,null,null,null,null,null,"X"]
[null,null,null,null,null,null,null,"X"]
[null,null,null,null,null,null,null,"X"]
[null,null,null,null,null,null,null,"X"]
[null,null,null,null,null,null,null,{"$f":"_xlfn.CONCAT(D7107,\"X\",G7107)","v":"X"}]
[null,null,null,null,null,null,null,"X"]
[null,null,null,null,null,null,null,"X"]
[null,null,null,null,null,null,null,"X"]
[null,null,null,null,null,null,null,"X"]
[null,null,null,null,null,null,null,"X"]
[null,null,null,null,null,null,null,"X"]
[null,null,null,null,null,null,null,"X"]
[null,null,null,null,null,null,null,"X"]
[null,null,null,null,null,null,null,"X"]
[null,null,null,null,null,null,null,"X"]
[null,null,null,null,null,null,null,"X"]
[null,null,null,null,null,null,null,"X"]
[null,null,null,null,null,null,null,"X"]
[null,null,null,null,null,null,null,"X"]
[null,null,null,null,null,null,null,"X"]
[null,null,null,null,null,null,null,"X"]
[null,null,null,null,null,null,null,"X"]
[null,null,null,null,null,null,null,"X"]
[null,null,null,null,null,null,null,"X"]
[null,null,null,null,null,null,null,"X"]
[null,null,null,null,null,null,null,"X"]
[null,null,null,null,null,null,null,"X"]
[null,null,null,null,null,null,null,"X"]
[null,null,null,null,null,null,null,"X"]
[null,null,null,null,null,null,null,"X"]
[null,null,null,null,null,null,null,"X"]
[null,null,null,null,null,null,null,"X"]
[null,null,null,null,null,null,null,"X"]
[null,null,null,null,null,null,null,"X"]
[null,null,null,null,null,null,null,"X"]
[null,null,null,null,null,null,null,"X"]
[null,null,null,null,null,null,null,"X"]
[null,null,null,null,null,null,null,"X"]
[null,null,null,null,null,null,null,"X"]
[null,null,null,null,null,null,null,"X"]
[null,null,null,null,null,null,null,"X"]
[null,null,null,null,null,null,null,"X"]
[null,null,null,null,null,null,null,"X"]
[null,null,null,null,null,null,null,"X"]
[null,null,null,null,null,null,null,"X"]
[null,null,null,null,null,null,null,"X"]
[null,null,null,null,null,null,null,"X"]
[null,null,null,null,null,null,null,"X"]
[null,null,null,null,null,null,null,"X"]
[null,null,null,null,null,null,null,"X"]
[null,null,null,null,null,null,null,"X"]
[null,null,null,null,null,null,null,"X"]
[null,null,null,null,null,null,null,"X"]
[null,null,null,null,null,null,null,"X"]
[null,null,null,null,null,null,null,"X"]
[null,null,null,null,null,null,null,"X"]
[null,null,null,null,null,null,null,"X"]
[null,null,null,null,null,null,null,"X"]
[null,null,null,null,null,null,null,"X"]
[null,null,null,null,null,null,null,"X"]
[null,null,null,null,null,null,null,"X"]
[null,null,null,null,null,null,null,"X"]
[null,null,null,null,null,null,null,"X"]
[null,null,null,null,null,null,null,"X"]
[null,null,null,null,null,null,null,"X"]
[null,null,null,null,null,null,null,"X"]
[null,null,null,null,null,null,null,"X"]
[null,null,null,null,null,null,null,"X"]
[null,null,null,null,null,null,null,{"$f":"_xlfn.CONCAT(D7171,\"X\",G7171)","v":"X"}]
[null,null,null,null,null,null,null,"X"]
[null,null,null,null,null,null,null,"X"]
[null,null,null,null,null,null,null,"X"]
[null,null,null,null,null,null,null,"X"]
[null,null,null,null,null,null,null,"X"]
[null,null,null,null,null,null,null,"X"]
[null,null,null,null,null,null,null,"X"]
[null,null,null,null,null,null,null,"X"]
[null,null,null,null,null,null,null,"X"]
[null,null,null,null,null,null,null,"X"]
[null,null,null,null,null,null,null,"X"]
[null,null,null,null,null,null,null,"X"]
[null,null,null,null,null,null,null,"X"]
[null,null,null,null,null,null,null,"X"]
[null,null,null,null,null,null,null,"X"]
[null,null,null,null,null,null,null,"X"]
[null,null,null,null,null,null,null,"X"]
[null,null,null,null,null,null,null,"X"]
[null,null,null,null,null,null,null,"X"]
[null,null,null,null,null,null,null,"X"]
[null,null,null,null,null,null,null,"X"]
[null,null,null,null,null,null,null,"X"]
[null,null,null,null,null,null,null,"X"]
[null,null,null,null,null,null,null,"X"]
[null,null,null,null,null,null,null,"X"]
[null,null,null,null,null,null,null,"X"]
[null,null,null,null,null,null,null,"X"]
[null,null,null,null,null,null,null,"X"]
[null,null,null,null,null,null,null,"X"]
[null,null,null,null,null,null,null,"X"]
[null,null,null,null,null,null,null,"X"]
[null,null,null,null,null,null,null,"X"]
[null,null,null,null,null,null,null,"X"]
[null,null,null,null,null,null,null,"X"]
[null,null,null,null,null,null,null,"X"]
[null,null,null,null,null,null,null,"X"]
[null,null,null,null,null,null,null,"X"]
[null,null,null,null,null,null,null,"X"]
[null,null,null,null,null,null,null,"X"]
[null,null,null,null,null,null,null,"X"]
[null,null,null,null,null,null,null,"X"]
[null,null,null,null,null,null,null,"X"]
[null,null,null,null,null,null,null,"X"]
[null,null,null,null,null,null,null,"X"]
[null,null,null,null,null,null,null,"X"]
[null,null,null,null,null,null,null,"X"]
[null,null,null,null,null,null,null,"X"]
[null,null,null,null,null,null,null,"X"]
[null,null,null,null,null,null,null,"X"]
[null,null,null,null,null,null,null,"X"]
[null,null,null,null,null,null,null,"X"]
[null,null,null,null,null,null,null,"X"]
[null,null,null,null,null,null,null,"X"]
[null,null,null,null,null,null,null,"X"]
[null,null,null,null,null,null,null,"X"]
[null,null,null,null,null,null,null,"X"]
[null,null,null,null,null,null,null,"X"]
[null,null,null,null,null,null,null,"X"]
[null,null,null,null,null,null,null,"X"]
[null,null,null,null,null,null,null,"X"]
[null,null,null,null,null,null,null,"X"]
[null,null,null,null,null,null,null,"X"]
[null,null,null,null,null,null,null,"X"]
[null,null,null,null,null,null,null,{"$f":"_xlfn.CONCAT(D7235,\"X\",G7235)","v":"X"}]
[null,null,null,null,null,null,null,"X"]
[null,null,null,null,null,null,null,"X"]
[null,null,null,null,null,null,null,"X"]
[null,null,null,null,null,null,null,"X"]
[null,null,null,null,null,null,null,"X"]
[null,null,null,null,null,null,null,"X"]
[null,null,null,null,null,null,null,"X"]
[null,null,null,null,null,null,null,"X"]
[null,null,null,null,null,null,null,"X"]
[null,null,null,null,null,null,null,"X"]
[null,null,null,null,null,null,null,"X"]
[null,null,null,null,null,null,null,"X"]
[null,null,null,null,null,null,null,"X"]
[null,null,null,null,null,null,null,"X"]
[null,null,null,null,null,null,null,"X"]
[null,null,null,null,null,null,null,"X"]
[null,null,null,null,null,null,null,"X"]
[null,null,null,null,null,null,null,"X"]
[null,null,null,null,null,null,null,"X"]
[null,null,null,null,null,null,null,"X"]
[null,null,null,null,null,null,null,"X"]
[null,null,null,null,null,null,null,"X"]
[null,null,null,null,null,null,null,"X"]
[null,null,null,null,null,null,null,"X"]
[null,null,null,null,null,null,null,"X"]
[null,null,null,null,null,null,null,"X"]
[null,null,null,null,null,null,null,"X"]
[null,null,null,null,null,null,null,"X"]
[null,null,null,null,null,null,null,"X"]
[null,null,null,null,null,null,null,"X"]
[null,null,null,null,null,null,null,"X"]
[null,null,null,null,null,null,null,"X"]
[null,null,null,null,null,null,null,"X"]
[null,null,null,null,null,null,null,"X"]
[null,null,null,null,null,null,null,"X"]
[null,null,null,null,null,null,null,"X"]
[null,null,null,null,null,null,null,"X"]
[null,null,null,null,null,null,null,"X"]
[null,null,null,null,null,null,null,"X"]
[null,null,null,null,null,null,null,"X"]
[null,null,null,null,null,null,null,"X"]
[null,null,null,null,null,null,null,"X"]
[null,null,null,null,null,null,null,"X"]
[null,null,null,null,null,null,null,"X"]
[null,null,null,null,null,null,null,"X"]
[null,null,null,null,null,null,null,"X"]
[null,null,null,null,null,null,null,"X"]
[null,null,null,null,null,null,null,"X"]
[null,null,null,null,null,null,null,"X"]
[null,null,null,null,null,null,null,"X"]
[null,null,null,null,null,null,null,"X"]
[null,null,null,null,null,null,null,"X"]
[null,null,null,null,null,null,null,"X"]
[null,null,null,null,null,null,null,"X"]
[null,null,null,null,null,null,null,"X"]
[null,null,null,null,null,null,null,"X"]
[null,null,null,null,null,null,null,"X"]
[null,null,null,null,null,null,null,"X"]
[null,null,null,null,null,null,null,"X"]
[null,null,null,null,null,null,null,"X"]
[null,null,null,null,null,null,null,"X"]
[null,null,null,null,null,null,null,"X"]
[null,null,null,null,null,null,null,"X"]
[null,null,null,null,null,null,null,{"$f":"_xlfn.CONCAT(D7299,\"X\",G7299)","v":"X"}]
[null,null,null,null,null,null,null,"X"]
[null,null,null,null,null,null,null,"X"]
[null,null,null,null,null,null,null,"X"]
[null,null,null,null,null,null,null,"X"]
[null,null,null,null,null,null,null,"X"]
[null,null,null,null,null,null,null,"X"]
[null,null,null,null,null,null,null,"X"]
[null,null,null,null,null,null,null,"X"]
[null,null,null,null,null,null,null,"X"]
[null,null,null,null,null,null,null,"X"]
[null,null,null,null,null,null,null,"X"]
[null,null,null,null,null,null,null,"X"]
[null,null,null,null,null,null,null,"X"]
[null,null,null,null,null,null,null,"X"]
[null,null,null,null,null,null,null,"X"]
[null,null,null,null,null,null,null,"X"]
[null,null,null,null,null,null,null,"X"]
[null,null,null,null,null,null,null,"X"]
[null,null,null,null,null,null,null,"X"]
[null,null,null,null,null,null,null,"X"]
[null,null,null,null,null,null,null,"X"]
[null,null,null,null,null,null,null,"X"]
[null,null,null,null,null,null,null,"X"]
[null,null,null,null,null,null,null,"X"]
[null,null,null,null,null,null,null,"X"]
[null,null,null,null,null,null,null,"X"]
[null,null,null,null,null,null,null,"X"]
[null,null,null,null,null,null,null,"X"]
[null,null,null,null,null,null,null,"X"]
[null,null,null,null,null,null,null,"X"]
[null,null,null,null,null,null,null,"X"]
[null,null,null,null,null,null,null,"X"]
[null,null,null,null,null,null,null,"X"]
[null,null,null,null,null,null,null,"X"]
[null,null,null,null,null,null,null,"X"]
[null,null,null,null,null,null,null,"X"]
[null,null,null,null,null,null,null,"X"]
[null,null,null,null,null,null,null,"X"]
[null,null,null,null,null,null,null,"X"]
[null,null,null,null,null,null,null,"X"]
[null,null,null,null,null,null,null,"X"]
[null,null,null,null,null,null,null,"X"]
[null,null,null,null,null,null,null,"X"]
[null,null,null,null,null,null,null,"X"]
[null,null,null,null,null,null,null,"X"]
[null,null,null,null,null,null,null,"X"]
[null,null,null,null,null,null,null,"X"]
[null,null,null,null,null,null,null,"X"]
[null,null,null,null,null,null,null,"X"]
[null,null,null,null,null,null,null,"X"]
[null,null,null,null,null,null,null,"X"]
[null,null,null,null,null,null,null,"X"]
[null,null,null,null,null,null,null,"X"]
[null,null,null,null,null,null,null,"X"]
[null,null,null,null,null,null,null,"X"]
[null,null,null,null,null,null,null,"X"]
[null,null,null,null,null,null,null,"X"]
[null,null,null,null,null,null,null,"X"]
[null,null,null,null,null,null,null,"X"]
[null,null,null,null,null,null,null,"X"]
[null,null,null,null,null,null,null,"X"]
[null,null,null,null,null,null,null,"X"]
[null,null,null,null,null,null,null,"X"]
[null,null,null,null,null,null,null,{"$f":"_xlfn.CONCAT(D7363,\"X\",G7363)","v":"X"}]
[null,null,null,null,null,null,null,"X"]
[null,null,null,null,null,null,null,"X"]
[null,null,null,null,null,null,null,"X"]
[null,null,null,null,null,null,null,"X"]
[null,null,null,null,null,null,null,"X"]
[null,null,null,null,null,null,null,"X"]
[null,null,null,null,null,null,null,"X"]
[null,null,null,null,null,null,null,"X"]
[null,null,null,null,null,null,null,"X"]
[null,null,null,null,null,null,null,"X"]
[null,null,null,null,null,null,null,"X"]
[null,null,null,null,null,null,null,"X"]
[null,null,null,null,null,null,null,"X"]
[null,null,null,null,null,null,null,"X"]
[null,null,null,null,null,null,null,"X"]
[null,null,null,null,null,null,null,"X"]
[null,null,null,null,null,null,null,"X"]
[null,null,null,null,null,null,null,"X"]
[null,null,null,null,null,null,null,"X"]
[null,null,null,null,null,null,null,"X"]
[null,null,null,null,null,null,null,"X"]
[null,null,null,null,null,null,null,"X"]
[null,null,null,null,null,null,null,"X"]
[null,null,null,null,null,null,null,"X"]
[null,null,null,null,null,null,null,"X"]
[null,null,null,null,null,null,null,"X"]
[null,null,null,null,null,null,null,"X"]
[null,null,null,null,null,null,null,"X"]
[null,null,null,null,null,null,null,"X"]
[null,null,null,null,null,null,null,"X"]
[null,null,null,null,null,null,null,"X"]
[null,null,null,null,null,null,null,"X"]
[null,null,null,null,null,null,null,"X"]
[null,null,null,null,null,null,null,"X"]
[null,null,null,null,null,null,null,"X"]
[null,null,null,null,null,null,null,"X"]
[null,null,null,null,null,null,null,"X"]
[null,null,null,null,null,null,null,"X"]
[null,null,null,null,null,null,null,"X"]
[null,null,null,null,null,null,null,"X"]
[null,null,null,null,null,null,null,"X"]
[null,null,null,null,null,null,null,"X"]
[null,null,null,null,null,null,null,"X"]
[null,null,null,null,null,null,null,"X"]
[null,null,null,null,null,null,null,"X"]
[null,null,null,null,null,null,null,"X"]
[null,null,null,null,null,null,null,"X"]
[null,null,null,null,null,null,null,"X"]
[null,null,null,null,null,null,null,"X"]
[null,null,null,null,null,null,null,"X"]
[null,null,null,null,null,null,null,"X"]
[null,null,null,null,null,null,null,"X"]
[null,null,null,null,null,null,null,"X"]
[null,null,null,null,null,null,null,"X"]
[null,null,null,null,null,null,null,"X"]
[null,null,null,null,null,null,null,"X"]
[null,null,null,null,null,null,null,"X"]
[null,null,null,null,null,null,null,"X"]
[null,null,null,null,null,null,null,"X"]
[null,null,null,null,null,null,null,"X"]
[null,null,null,null,null,null,null,"X"]
[null,null,null,null,null,null,null,"X"]
[null,null,null,null,null,null,null,"X"]
[null,null,null,null,null,null,null,{"$f":"_xlfn.CONCAT(D7427,\"X\",G7427)","v":"X"}]
[null,null,null,null,null,null,null,"X"]
[null,null,null,null,null,null,null,"X"]
[null,null,null,null,null,null,null,"X"]
[null,null,null,null,null,null,null,"X"]
[null,null,null,null,null,null,null,"X"]
[null,null,null,null,null,null,null,"X"]
[null,null,null,null,null,null,null,"X"]
[null,null,null,null,null,null,null,"X"]
[null,null,null,null,null,null,null,"X"]
[null,null,null,null,null,null,null,"X"]
[null,null,null,null,null,null,null,"X"]
[null,null,null,null,null,null,null,"X"]
[null,null,null,null,null,null,null,"X"]
[null,null,null,null,null,null,null,"X"]
[null,null,null,null,null,null,null,"X"]
[null,null,null,null,null,null,null,"X"]
[null,null,null,null,null,null,null,"X"]
[null,null,null,null,null,null,null,"X"]
[null,null,null,null,null,null,null,"X"]
[null,null,null,null,null,null,null,"X"]
[null,null,null,null,null,null,null,"X"]
[null,null,null,null,null,null,null,"X"]
[null,null,null,null,null,null,null,"X"]
[null,null,null,null,null,null,null,"X"]
[null,null,null,null,null,null,null,"X"]
[null,null,null,null,null,null,null,"X"]
[null,null,null,null,null,null,null,"X"]
[null,null,null,null,null,null,null,"X"]
[null,null,null,null,null,null,null,"X"]
[null,null,null,null,null,null,null,"X"]
[null,null,null,null,null,null,null,"X"]
[null,null,null,null,null,null,null,"X"]
[null,null,null,null,null,null,null,"X"]
[null,null,null,null,null,null,null,"X"]
[null,null,null,null,null,null,null,"X"]
[null,null,null,null,null,null,null,"X"]
[null,null,null,null,null,null,null,"X"]
[null,null,null,null,null,null,null,"X"]
[null,null,null,null,null,null,null,"X"]
[null,null,null,null,null,null,null,"X"]
[null,null,null,null,null,null,null,"X"]
[null,null,null,null,null,null,null,"X"]
[null,null,null,null,null,null,null,"X"]
[null,null,null,null,null,null,null,"X"]
[null,null,null,null,null,null,null,"X"]
[null,null,null,null,null,null,null,"X"]
[null,null,null,null,null,null,null,"X"]
[null,null,null,null,null,null,null,"X"]
[null,null,null,null,null,null,null,"X"]
[null,null,null,null,null,null,null,"X"]
[null,null,null,null,null,null,null,"X"]
[null,null,null,null,null,null,null,"X"]
[null,null,null,null,null,null,null,"X"]
[null,null,null,null,null,null,null,"X"]
[null,null,null,null,null,null,null,"X"]
[null,null,null,null,null,null,null,"X"]
[null,null,null,null,null,null,null,"X"]
[null,null,null,null,null,null,null,"X"]
[null,null,null,null,null,null,null,"X"]
[null,null,null,null,null,null,null,"X"]
[null,null,null,null,null,null,null,"X"]
[null,null,null,null,null,null,null,"X"]
[null,null,null,null,null,null,null,"X"]
[null,null,null,null,null,null,null,{"$f":"_xlfn.CONCAT(D7491,\"X\",G7491)","v":"X"}]
[null,null,null,null,null,null,null,"X"]
[null,null,null,null,null,null,null,"X"]
[null,null,null,null,null,null,null,"X"]
[null,null,null,null,null,null,null,"X"]
[null,null,null,null,null,null,null,"X"]
[null,null,null,null,null,null,null,"X"]
[null,null,null,null,null,null,null,"X"]
[null,null,null,null,null,null,null,"X"]
[null,null,null,null,null,null,null,"X"]
[null,null,null,null,null,null,null,"X"]
[null,null,null,null,null,null,null,"X"]
[null,null,null,null,null,null,null,"X"]
[null,null,null,null,null,null,null,"X"]
[null,null,null,null,null,null,null,"X"]
[null,null,null,null,null,null,null,"X"]
[null,null,null,null,null,null,null,"X"]
[null,null,null,null,null,null,null,"X"]
[null,null,null,null,null,null,null,"X"]
[null,null,null,null,null,null,null,"X"]
[null,null,null,null,null,null,null,"X"]
[null,null,null,null,null,null,null,"X"]
[null,null,null,null,null,null,null,"X"]
[null,null,null,null,null,null,null,"X"]
[null,null,null,null,null,null,null,"X"]
[null,null,null,null,null,null,null,"X"]
[null,null,null,null,null,null,null,"X"]
[null,null,null,null,null,null,null,"X"]
[null,null,null,null,null,null,null,"X"]
[null,null,null,null,null,null,null,"X"]
[null,null,null,null,null,null,null,"X"]
[null,null,null,null,null,null,null,"X"]
[null,null,null,null,null,null,null,"X"]
[null,null,null,null,null,null,null,"X"]
[null,null,null,null,null,null,null,"X"]
[null,null,null,null,null,null,null,"X"]
[null,null,null,null,null,null,null,"X"]
[null,null,null,null,null,null,null,"X"]
[null,null,null,null,null,null,null,"X"]
[null,null,null,null,null,null,null,"X"]
[null,null,null,null,null,null,null,"X"]
[null,null,null,null,null,null,null,"X"]
[null,null,null,null,null,null,null,"X"]
[null,null,null,null,null,null,null,"X"]
[null,null,null,null,null,null,null,"X"]
[null,null,null,null,null,null,null,"X"]
[null,null,null,null,null,null,null,"X"]
[null,null,null,null,null,null,null,"X"]
[null,null,null,null,null,null,null,"X"]
[null,null,null,null,null,null,null,"X"]
[null,null,null,null,null,null,null,"X"]
[null,null,null,null,null,null,null,"X"]
[null,null,null,null,null,null,null,"X"]
[null,null,null,null,null,null,null,"X"]
[null,null,null,null,null,null,null,"X"]
[null,null,null,null,null,null,null,"X"]
[null,null,null,null,null,null,null,"X"]
[null,null,null,null,null,null,null,"X"]
[null,null,null,null,null,null,null,"X"]
[null,null,null,null,null,null,null,"X"]
[null,null,null,null,null,null,null,"X"]
[null,null,null,null,null,null,null,"X"]
[null,null,null,null,null,null,null,"X"]
[null,null,null,null,null,null,null,"X"]
[null,null,null,null,null,null,null,{"$f":"_xlfn.CONCAT(D7555,\"X\",G7555)","v":"X"}]
[null,null,null,null,null,null,null,"X"]
[null,null,null,null,null,null,null,"X"]
[null,null,null,null,null,null,null,"X"]
[null,null,null,null,null,null,null,"X"]
[null,null,null,null,null,null,null,"X"]
[null,null,null,null,null,null,null,"X"]
[null,null,null,null,null,null,null,"X"]
[null,null,null,null,null,null,null,"X"]
[null,null,null,null,null,null,null,"X"]
[null,null,null,null,null,null,null,"X"]
[null,null,null,null,null,null,null,"X"]
[null,null,null,null,null,null,null,"X"]
[null,null,null,null,null,null,null,"X"]
[null,null,null,null,null,null,null,"X"]
[null,null,null,null,null,null,null,"X"]
[null,null,null,null,null,null,null,"X"]
[null,null,null,null,null,null,null,"X"]
[null,null,null,null,null,null,null,"X"]
[null,null,null,null,null,null,null,"X"]
[null,null,null,null,null,null,null,"X"]
[null,null,null,null,null,null,null,"X"]
[null,null,null,null,null,null,null,"X"]
[null,null,null,null,null,null,null,"X"]
[null,null,null,null,null,null,null,"X"]
[null,null,null,null,null,null,null,"X"]
[null,null,null,null,null,null,null,"X"]
[null,null,null,null,null,null,null,"X"]
[null,null,null,null,null,null,null,"X"]
[null,null,null,null,null,null,null,"X"]
[null,null,null,null,null,null,null,"X"]
[null,null,null,null,null,null,null,"X"]
[null,null,null,null,null,null,null,"X"]
[null,null,null,null,null,null,null,"X"]
[null,null,null,null,null,null,null,"X"]
[null,null,null,null,null,null,null,"X"]
[null,null,null,null,null,null,null,"X"]
[null,null,null,null,null,null,null,"X"]
[null,null,null,null,null,null,null,"X"]
[null,null,null,null,null,null,null,"X"]
[null,null,null,null,null,null,null,"X"]
[null,null,null,null,null,null,null,"X"]
[null,null,null,null,null,null,null,"X"]
[null,null,null,null,null,null,null,"X"]
[null,null,null,null,null,null,null,"X"]
[null,null,null,null,null,null,null,"X"]
[null,null,null,null,null,null,null,"X"]
[null,null,null,null,null,null,null,"X"]
[null,null,null,null,null,null,null,"X"]
[null,null,null,null,null,null,null,"X"]
[null,null,null,null,null,null,null,"X"]
[null,null,null,null,null,null,null,"X"]
[null,null,null,null,null,null,null,"X"]
[null,null,null,null,null,null,null,"X"]
[null,null,null,null,null,null,null,"X"]
[null,null,null,null,null,null,null,"X"]
[null,null,null,null,null,null,null,"X"]
[null,null,null,null,null,null,null,"X"]
[null,null,null,null,null,null,null,"X"]
[null,null,null,null,null,null,null,"X"]
[null,null,null,null,null,null,null,"X"]
[null,null,null,null,null,null,null,"X"]
[null,null,null,null,null,null,null,"X"]
[null,null,null,null,null,null,null,"X"]
[null,null,null,null,null,null,null,{"$f":"_xlfn.CONCAT(D7619,\"X\",G7619)","v":"X"}]
[null,null,null,null,null,null,null,"X"]
[null,null,null,null,null,null,null,"X"]
[null,null,null,null,null,null,null,"X"]
[null,null,null,null,null,null,null,"X"]
[null,null,null,null,null,null,null,"X"]
[null,null,null,null,null,null,null,"X"]
[null,null,null,null,null,null,null,"X"]
[null,null,null,null,null,null,null,"X"]
[null,null,null,null,null,null,null,"X"]
[null,null,null,null,null,null,null,"X"]
[null,null,null,null,null,null,null,"X"]
[null,null,null,null,null,null,null,"X"]
[null,null,null,null,null,null,null,"X"]
[null,null,null,null,null,null,null,"X"]
[null,null,null,null,null,null,null,"X"]
[null,null,null,null,null,null,null,"X"]
[null,null,null,null,null,null,null,"X"]
[null,null,null,null,null,null,null,"X"]
[null,null,null,null,null,null,null,"X"]
[null,null,null,null,null,null,null,"X"]
[null,null,null,null,null,null,null,"X"]
[null,null,null,null,null,null,null,"X"]
[null,null,null,null,null,null,null,"X"]
[null,null,null,null,null,null,null,"X"]
[null,null,null,null,null,null,null,"X"]
[null,null,null,null,null,null,null,"X"]
[null,null,null,null,null,null,null,"X"]
[null,null,null,null,null,null,null,"X"]
[null,null,null,null,null,null,null,"X"]
[null,null,null,null,null,null,null,"X"]
[null,null,null,null,null,null,null,"X"]
[null,null,null,null,null,null,null,"X"]
[null,null,null,null,null,null,null,"X"]
[null,null,null,null,null,null,null,"X"]
[null,null,null,null,null,null,null,"X"]
[null,null,null,null,null,null,null,"X"]
[null,null,null,null,null,null,null,"X"]
[null,null,null,null,null,null,null,"X"]
[null,null,null,null,null,null,null,"X"]
[null,null,null,null,null,null,null,"X"]
[null,null,null,null,null,null,null,"X"]
[null,null,null,null,null,null,null,"X"]
[null,null,null,null,null,null,null,"X"]
[null,null,null,null,null,null,null,"X"]
[null,null,null,null,null,null,null,"X"]
[null,null,null,null,null,null,null,"X"]
[null,null,null,null,null,null,null,"X"]
[null,null,null,null,null,null,null,"X"]
[null,null,null,null,null,null,null,"X"]
[null,null,null,null,null,null,null,"X"]
[null,null,null,null,null,null,null,"X"]
[null,null,null,null,null,null,null,"X"]
[null,null,null,null,null,null,null,"X"]
[null,null,null,null,null,null,null,"X"]
[null,null,null,null,null,null,null,"X"]
[null,null,null,null,null,null,null,"X"]
[null,null,null,null,null,null,null,"X"]
[null,null,null,null,null,null,null,"X"]
[null,null,null,null,null,null,null,"X"]
[null,null,null,null,null,null,null,"X"]
[null,null,null,null,null,null,null,"X"]
[null,null,null,null,null,null,null,"X"]
[null,null,null,null,null,null,null,"X"]
[null,null,null,null,null,null,null,{"$f":"_xlfn.CONCAT(D7683,\"X\",G7683)","v":"X"}]
[null,null,null,null,null,null,null,"X"]
[null,null,null,null,null,null,null,"X"]
[null,null,null,null,null,null,null,"X"]
[null,null,null,null,null,null,null,"X"]
[null,null,null,null,null,null,null,"X"]
[null,null,null,null,null,null,null,"X"]
[null,null,null,null,null,null,null,"X"]
[null,null,null,null,null,null,null,"X"]
[null,null,null,null,null,null,null,"X"]
[null,null,null,null,null,null,null,"X"]
[null,null,null,null,null,null,null,"X"]
[null,null,null,null,null,null,null,"X"]
[null,null,null,null,null,null,null,"X"]
[null,null,null,null,null,null,null,"X"]
[null,null,null,null,null,null,null,"X"]
[null,null,null,null,null,null,null,"X"]
[null,null,null,null,null,null,null,"X"]
[null,null,null,null,null,null,null,"X"]
[null,null,null,null,null,null,null,"X"]
[null,null,null,null,null,null,null,"X"]
[null,null,null,null,null,null,null,"X"]
[null,null,null,null,null,null,null,"X"]
[null,null,null,null,null,null,null,"X"]
[null,null,null,null,null,null,null,"X"]
[null,null,null,null,null,null,null,"X"]
[null,null,null,null,null,null,null,"X"]
[null,null,null,null,null,null,null,"X"]
[null,null,null,null,null,null,null,"X"]
[null,null,null,null,null,null,null,"X"]
[null,null,null,null,null,null,null,"X"]
[null,null,null,null,null,null,null,"X"]
[null,null,null,null,null,null,null,"X"]
[null,null,null,null,null,null,null,"X"]
[null,null,null,null,null,null,null,"X"]
[null,null,null,null,null,null,null,"X"]
[null,null,null,null,null,null,null,"X"]
[null,null,null,null,null,null,null,"X"]
[null,null,null,null,null,null,null,"X"]
[null,null,null,null,null,null,null,"X"]
[null,null,null,null,null,null,null,"X"]
[null,null,null,null,null,null,null,"X"]
[null,null,null,null,null,null,null,"X"]
[null,null,null,null,null,null,null,"X"]
[null,null,null,null,null,null,null,"X"]
[null,null,null,null,null,null,null,"X"]
[null,null,null,null,null,null,null,"X"]
[null,null,null,null,null,null,null,"X"]
[null,null,null,null,null,null,null,"X"]
[null,null,null,null,null,null,null,"X"]
[null,null,null,null,null,null,null,"X"]
[null,null,null,null,null,null,null,"X"]
[null,null,null,null,null,null,null,"X"]
[null,null,null,null,null,null,null,"X"]
[null,null,null,null,null,null,null,"X"]
[null,null,null,null,null,null,null,"X"]
[null,null,null,null,null,null,null,"X"]
[null,null,null,null,null,null,null,"X"]
[null,null,null,null,null,null,null,"X"]
[null,null,null,null,null,null,null,"X"]
[null,null,null,null,null,null,null,"X"]
[null,null,null,null,null,null,null,"X"]
[null,null,null,null,null,null,null,"X"]
[null,null,null,null,null,null,null,"X"]
[null,null,null,null,null,null,null,{"$f":"_xlfn.CONCAT(D7747,\"X\",G7747)","v":"X"}]
[null,null,null,null,null,null,null,"X"]
[null,null,null,null,null,null,null,"X"]
[null,null,null,null,null,null,null,"X"]
[null,null,null,null,null,null,null,"X"]
[null,null,null,null,null,null,null,"X"]
[null,null,null,null,null,null,null,"X"]
[null,null,null,null,null,null,null,"X"]
[null,null,null,null,null,null,null,"X"]
[null,null,null,null,null,null,null,"X"]
[null,null,null,null,null,null,null,"X"]
[null,null,null,null,null,null,null,"X"]
[null,null,null,null,null,null,null,"X"]
[null,null,null,null,null,null,null,"X"]
[null,null,null,null,null,null,null,"X"]
[null,null,null,null,null,null,null,"X"]
[null,null,null,null,null,null,null,"X"]
[null,null,null,null,null,null,null,"X"]
[null,null,null,null,null,null,null,"X"]
[null,null,null,null,null,null,null,"X"]
[null,null,null,null,null,null,null,"X"]
[null,null,null,null,null,null,null,"X"]
[null,null,null,null,null,null,null,"X"]
[null,null,null,null,null,null,null,"X"]
[null,null,null,null,null,null,null,"X"]
[null,null,null,null,null,null,null,"X"]
[null,null,null,null,null,null,null,"X"]
[null,null,null,null,null,null,null,"X"]
[null,null,null,null,null,null,null,"X"]
[null,null,null,null,null,null,null,"X"]
[null,null,null,null,null,null,null,"X"]
[null,null,null,null,null,null,null,"X"]
[null,null,null,null,null,null,null,"X"]
[null,null,null,null,null,null,null,"X"]
[null,null,null,null,null,null,null,"X"]
[null,null,null,null,null,null,null,"X"]
[null,null,null,null,null,null,null,"X"]
[null,null,null,null,null,null,null,"X"]
[null,null,null,null,null,null,null,"X"]
[null,null,null,null,null,null,null,"X"]
[null,null,null,null,null,null,null,"X"]
[null,null,null,null,null,null,null,"X"]
[null,null,null,null,null,null,null,"X"]
[null,null,null,null,null,null,null,"X"]
[null,null,null,null,null,null,null,"X"]
[null,null,null,null,null,null,null,"X"]
[null,null,null,null,null,null,null,"X"]
[null,null,null,null,null,null,null,"X"]
[null,null,null,null,null,null,null,"X"]
[null,null,null,null,null,null,null,"X"]
[null,null,null,null,null,null,null,"X"]
[null,null,null,null,null,null,null,"X"]
[null,null,null,null,null,null,null,"X"]
[null,null,null,null,null,null,null,"X"]
[null,null,null,null,null,null,null,"X"]
[null,null,null,null,null,null,null,"X"]
[null,null,null,null,null,null,null,"X"]
[null,null,null,null,null,null,null,"X"]
[null,null,null,null,null,null,null,"X"]
[null,null,null,null,null,null,null,"X"]
[null,null,null,null,null,null,null,"X"]
[null,null,null,null,null,null,null,"X"]
[null,null,null,null,null,null,null,"X"]
[null,null,null,null,null,null,null,"X"]
[null,null,null,null,null,null,null,{"$f":"_xlfn.CONCAT(D7811,\"X\",G7811)","v":"X"}]
[null,null,null,null,null,null,null,"X"]
[null,null,null,null,null,null,null,"X"]
[null,null,null,null,null,null,null,"X"]
[null,null,null,null,null,null,null,"X"]
[null,null,null,null,null,null,null,"X"]
[null,null,null,null,null,null,null,"X"]
[null,null,null,null,null,null,null,"X"]
[null,null,null,null,null,null,null,"X"]
[null,null,null,null,null,null,null,"X"]
[null,null,null,null,null,null,null,"X"]
[null,null,null,null,null,null,null,"X"]
[null,null,null,null,null,null,null,"X"]
[null,null,null,null,null,null,null,"X"]
[null,null,null,null,null,null,null,"X"]
[null,null,null,null,null,null,null,"X"]
[null,null,null,null,null,null,null,"X"]
[null,null,null,null,null,null,null,"X"]
[null,null,null,null,null,null,null,"X"]
[null,null,null,null,null,null,null,"X"]
[null,null,null,null,null,null,null,"X"]
[null,null,null,null,null,null,null,"X"]
[null,null,null,null,null,null,null,"X"]
[null,null,null,null,null,null,null,"X"]
[null,null,null,null,null,null,null,"X"]
[null,null,null,null,null,null,null,"X"]
[null,null,null,null,null,null,null,"X"]
[null,null,null,null,null,null,null,"X"]
[null,null,null,null,null,null,null,"X"]
[null,null,null,null,null,null,null,"X"]
[null,null,null,null,null,null,null,"X"]
[null,null,null,null,null,null,null,"X"]
[null,null,null,null,null,null,null,"X"]
[null,null,null,null,null,null,null,"X"]
[null,null,null,null,null,null,null,"X"]
[null,null,null,null,null,null,null,"X"]
[null,null,null,null,null,null,null,"X"]
[null,null,null,null,null,null,null,"X"]
[null,null,null,null,null,null,null,"X"]
[null,null,null,null,null,null,null,"X"]
[null,null,null,null,null,null,null,"X"]
[null,null,null,null,null,null,null,"X"]
[null,null,null,null,null,null,null,"X"]
[null,null,null,null,null,null,null,"X"]
[null,null,null,null,null,null,null,"X"]
[null,null,null,null,null,null,null,"X"]
[null,null,null,null,null,null,null,"X"]
[null,null,null,null,null,null,null,"X"]
[null,null,null,null,null,null,null,"X"]
[null,null,null,null,null,null,null,"X"]
[null,null,null,null,null,null,null,"X"]
[null,null,null,null,null,null,null,"X"]
[null,null,null,null,null,null,null,"X"]
[null,null,null,null,null,null,null,"X"]
[null,null,null,null,null,null,null,"X"]
[null,null,null,null,null,null,null,"X"]
[null,null,null,null,null,null,null,"X"]
[null,null,null,null,null,null,null,"X"]
[null,null,null,null,null,null,null,"X"]
[null,null,null,null,null,null,null,"X"]
[null,null,null,null,null,null,null,"X"]
[null,null,null,null,null,null,null,"X"]
[null,null,null,null,null,null,null,"X"]
[null,null,null,null,null,null,null,"X"]
[null,null,null,null,null,null,null,{"$f":"_xlfn.CONCAT(D7875,\"X\",G7875)","v":"X"}]
[null,null,null,null,null,null,null,"X"]
[null,null,null,null,null,null,null,"X"]
[null,null,null,null,null,null,null,"X"]
[null,null,null,null,null,null,null,"X"]
[null,null,null,null,null,null,null,"X"]
[null,null,null,null,null,null,null,"X"]
[null,null,null,null,null,null,null,"X"]
[null,null,null,null,null,null,null,"X"]
[null,null,null,null,null,null,null,"X"]
[null,null,null,null,null,null,null,"X"]
[null,null,null,null,null,null,null,"X"]
[null,null,null,null,null,null,null,"X"]
[null,null,null,null,null,null,null,"X"]
[null,null,null,null,null,null,null,"X"]
[null,null,null,null,null,null,null,"X"]
[null,null,null,null,null,null,null,"X"]
[null,null,null,null,null,null,null,"X"]
[null,null,null,null,null,null,null,"X"]
[null,null,null,null,null,null,null,"X"]
[null,null,null,null,null,null,null,"X"]
[null,null,null,null,null,null,null,"X"]
[null,null,null,null,null,null,null,"X"]
[null,null,null,null,null,null,null,"X"]
[null,null,null,null,null,null,null,"X"]
[null,null,null,null,null,null,null,"X"]
[null,null,null,null,null,null,null,"X"]
[null,null,null,null,null,null,null,"X"]
[null,null,null,null,null,null,null,"X"]
[null,null,null,null,null,null,null,"X"]
[null,null,null,null,null,null,null,"X"]
[null,null,null,null,null,null,null,"X"]
[null,null,null,null,null,null,null,"X"]
[null,null,null,null,null,null,null,"X"]
[null,null,null,null,null,null,null,"X"]
[null,null,null,null,null,null,null,"X"]
[null,null,null,null,null,null,null,"X"]
[null,null,null,null,null,null,null,"X"]
[null,null,null,null,null,null,null,"X"]
[null,null,null,null,null,null,null,"X"]
[null,null,null,null,null,null,null,"X"]
[null,null,null,null,null,null,null,"X"]
[null,null,null,null,null,null,null,"X"]
[null,null,null,null,null,null,null,"X"]
[null,null,null,null,null,null,null,"X"]
[null,null,null,null,null,null,null,"X"]
[null,null,null,null,null,null,null,"X"]
[null,null,null,null,null,null,null,"X"]
[null,null,null,null,null,null,null,"X"]
[null,null,null,null,null,null,null,"X"]
[null,null,null,null,null,null,null,"X"]
[null,null,null,null,null,null,null,"X"]
[null,null,null,null,null,null,null,"X"]
[null,null,null,null,null,null,null,"X"]
[null,null,null,null,null,null,null,"X"]
[null,null,null,null,null,null,null,"X"]
[null,null,null,null,null,null,null,"X"]
[null,null,null,null,null,null,null,"X"]
[null,null,null,null,null,null,null,"X"]
[null,null,null,null,null,null,null,"X"]
[null,null,null,null,null,null,null,"X"]
[null,null,null,null,null,null,null,"X"]
[null,null,null,null,null,null,null,"X"]
[null,null,null,null,null,null,null,"X"]
[null,null,null,null,null,null,null,{"$f":"_xlfn.CONCAT(D7939,\"X\",G7939)","v":"X"}]
[null,null,null,null,null,null,null,"X"]
[null,null,null,null,null,null,null,"X"]
[null,null,null,null,null,null,null,"X"]
[null,null,null,null,null,null,null,"X"]
[null,null,null,null,null,null,null,"X"]
[null,null,null,null,null,null,null,"X"]
[null,null,null,null,null,null,null,"X"]
[null,null,null,null,null,null,null,"X"]
[null,null,null,null,null,null,null,"X"]
[null,null,null,null,null,null,null,"X"]
[null,null,null,null,null,null,null,"X"]
[null,null,null,null,null,null,null,"X"]
[null,null,null,null,null,null,null,"X"]
[null,null,null,null,null,null,null,"X"]
[null,null,null,null,null,null,null,"X"]
[null,null,null,null,null,null,null,"X"]
[null,null,null,null,null,null,null,"X"]
[null,null,null,null,null,null,null,"X"]
[null,null,null,null,null,null,null,"X"]
[null,null,null,null,null,null,null,"X"]
[null,null,null,null,null,null,null,"X"]
[null,null,null,null,null,null,null,"X"]
[null,null,null,null,null,null,null,"X"]
[null,null,null,null,null,null,null,"X"]
[null,null,null,null,null,null,null,"X"]
[null,null,null,null,null,null,null,"X"]
[null,null,null,null,null,null,null,"X"]
[null,null,null,null,null,null,null,"X"]
[null,null,null,null,null,null,null,"X"]
[null,null,null,null,null,null,null,"X"]
[null,null,null,null,null,null,null,"X"]
[null,null,null,null,null,null,null,"X"]
[null,null,null,null,null,null,null,"X"]
[null,null,null,null,null,null,null,"X"]
[null,null,null,null,null,null,null,"X"]
[null,null,null,null,null,null,null,"X"]
[null,null,null,null,null,null,null,"X"]
[null,null,null,null,null,null,null,"X"]
[null,null,null,null,null,null,null,"X"]
[null,null,null,null,null,null,null,"X"]
[null,null,null,null,null,null,null,"X"]
[null,null,null,null,null,null,null,"X"]
[null,null,null,null,null,null,null,"X"]
[null,null,null,null,null,null,null,"X"]
[null,null,null,null,null,null,null,"X"]
[null,null,null,null,null,null,null,"X"]
[null,null,null,null,null,null,null,"X"]
[null,null,null,null,null,null,null,"X"]
[null,null,null,null,null,null,null,"X"]
[null,null,null,null,null,null,null,"X"]
[null,null,null,null,null,null,null,"X"]
[null,null,null,null,null,null,null,"X"]
[null,null,null,null,null,null,null,"X"]
[null,null,null,null,null,null,null,"X"]
[null,null,null,null,null,null,null,"X"]
[null,null,null,null,null,null,null,"X"]
[null,null,null,null,null,null,null,"X"]
[null,null,null,null,null,null,null,"X"]
[null,null,null,null,null,null,null,"X"]
[null,null,null,null,null,null,null,"X"]
[null,null,null,null,null,null,null,"X"]
[null,null,null,null,null,null,null,"X"]
[null,null,null,null,null,null,null,"X"]
[null,null,null,null,null,null,null,{"$f":"_xlfn.CONCAT(D8003,\"X\",G8003)","v":"X"}]
[null,null,null,null,null,null,null,"X"]
[null,null,null,null,null,null,null,"X"]
[null,null,null,null,null,null,null,"X"]
[null,null,null,null,null,null,null,"X"]
[null,null,null,null,null,null,null,"X"]
[null,null,null,null,null,null,null,"X"]
[null,null,null,null,null,null,null,"X"]
[null,null,null,null,null,null,null,"X"]
[null,null,null,null,null,null,null,"X"]
[null,null,null,null,null,null,null,"X"]
[null,null,null,null,null,null,null,"X"]
[null,null,null,null,null,null,null,"X"]
[null,null,null,null,null,null,null,"X"]
[null,null,null,null,null,null,null,"X"]
[null,null,null,null,null,null,null,"X"]
[null,null,null,null,null,null,null,"X"]
[null,null,null,null,null,null,null,"X"]
[null,null,null,null,null,null,null,"X"]
[null,null,null,null,null,null,null,"X"]
[null,null,null,null,null,null,null,"X"]
[null,null,null,null,null,null,null,"X"]
[null,null,null,null,null,null,null,"X"]
[null,null,null,null,null,null,null,"X"]
[null,null,null,null,null,null,null,"X"]
[null,null,null,null,null,null,null,"X"]
[null,null,null,null,null,null,null,"X"]
[null,null,null,null,null,null,null,"X"]
[null,null,null,null,null,null,null,"X"]
[null,null,null,null,null,null,null,"X"]
[null,null,null,null,null,null,null,"X"]
[null,null,null,null,null,null,null,"X"]
[null,null,null,null,null,null,null,"X"]
[null,null,null,null,null,null,null,"X"]
[null,null,null,null,null,null,null,"X"]
[null,null,null,null,null,null,null,"X"]
[null,null,null,null,null,null,null,"X"]
[null,null,null,null,null,null,null,"X"]
[null,null,null,null,null,null,null,"X"]
[null,null,null,null,null,null,null,"X"]
[null,null,null,null,null,null,null,"X"]
[null,null,null,null,null,null,null,"X"]
[null,null,null,null,null,null,null,"X"]
[null,null,null,null,null,null,null,"X"]
[null,null,null,null,null,null,null,"X"]
[null,null,null,null,null,null,null,"X"]
[null,null,null,null,null,null,null,"X"]
[null,null,null,null,null,null,null,"X"]
[null,null,null,null,null,null,null,"X"]
[null,null,null,null,null,null,null,"X"]
[null,null,null,null,null,null,null,"X"]
[null,null,null,null,null,null,null,"X"]
[null,null,null,null,null,null,null,"X"]
[null,null,null,null,null,null,null,"X"]
[null,null,null,null,null,null,null,"X"]
[null,null,null,null,null,null,null,"X"]
[null,null,null,null,null,null,null,"X"]
[null,null,null,null,null,null,null,"X"]
[null,null,null,null,null,null,null,"X"]
[null,null,null,null,null,null,null,"X"]
[null,null,null,null,null,null,null,"X"]
[null,null,null,null,null,null,null,"X"]
[null,null,null,null,null,null,null,"X"]
[null,null,null,null,null,null,null,"X"]
[null,null,null,null,null,null,null,{"$f":"_xlfn.CONCAT(D8067,\"X\",G8067)","v":"X"}]
[null,null,null,null,null,null,null,"X"]
[null,null,null,null,null,null,null,"X"]
[null,null,null,null,null,null,null,"X"]
[null,null,null,null,null,null,null,"X"]
[null,null,null,null,null,null,null,"X"]
[null,null,null,null,null,null,null,"X"]
[null,null,null,null,null,null,null,"X"]
[null,null,null,null,null,null,null,"X"]
[null,null,null,null,null,null,null,"X"]
[null,null,null,null,null,null,null,"X"]
[null,null,null,null,null,null,null,"X"]
[null,null,null,null,null,null,null,"X"]
[null,null,null,null,null,null,null,"X"]
[null,null,null,null,null,null,null,"X"]
[null,null,null,null,null,null,null,"X"]
[null,null,null,null,null,null,null,"X"]
[null,null,null,null,null,null,null,"X"]
[null,null,null,null,null,null,null,"X"]
[null,null,null,null,null,null,null,"X"]
[null,null,null,null,null,null,null,"X"]
[null,null,null,null,null,null,null,"X"]
[null,null,null,null,null,null,null,"X"]
[null,null,null,null,null,null,null,"X"]
[null,null,null,null,null,null,null,"X"]
[null,null,null,null,null,null,null,"X"]
[null,null,null,null,null,null,null,"X"]
[null,null,null,null,null,null,null,"X"]
[null,null,null,null,null,null,null,"X"]
[null,null,null,null,null,null,null,"X"]
[null,null,null,null,null,null,null,"X"]
[null,null,null,null,null,null,null,"X"]
[null,null,null,null,null,null,null,"X"]
[null,null,null,null,null,null,null,"X"]
[null,null,null,null,null,null,null,"X"]
[null,null,null,null,null,null,null,"X"]
[null,null,null,null,null,null,null,"X"]
[null,null,null,null,null,null,null,"X"]
[null,null,null,null,null,null,null,"X"]
[null,null,null,null,null,null,null,"X"]
[null,null,null,null,null,null,null,"X"]
[null,null,null,null,null,null,null,"X"]
[null,null,null,null,null,null,null,"X"]
[null,null,null,null,null,null,null,"X"]
[null,null,null,null,null,null,null,"X"]
[null,null,null,null,null,null,null,"X"]
[null,null,null,null,null,null,null,"X"]
[null,null,null,null,null,null,null,"X"]
[null,null,null,null,null,null,null,"X"]
[null,null,null,null,null,null,null,"X"]
[null,null,null,null,null,null,null,"X"]
[null,null,null,null,null,null,null,"X"]
[null,null,null,null,null,null,null,"X"]
[null,null,null,null,null,null,null,"X"]
[null,null,null,null,null,null,null,"X"]
[null,null,null,null,null,null,null,"X"]
[null,null,null,null,null,null,null,"X"]
[null,null,null,null,null,null,null,"X"]
[null,null,null,null,null,null,null,"X"]
[null,null,null,null,null,null,null,"X"]
[null,null,null,null,null,null,null,"X"]
[null,null,null,null,null,null,null,"X"]
[null,null,null,null,null,null,null,"X"]
[null,null,null,null,null,null,null,"X"]
[null,null,null,null,null,null,null,{"$f":"_xlfn.CONCAT(D8131,\"X\",G8131)","v":"X"}]
[null,null,null,null,null,null,null,"X"]
[null,null,null,null,null,null,null,"X"]
[null,null,null,null,null,null,null,"X"]
[null,null,null,null,null,null,null,"X"]
[null,null,null,null,null,null,null,"X"]
[null,null,null,null,null,null,null,"X"]
[null,null,null,null,null,null,null,"X"]
[null,null,null,null,null,null,null,"X"]
[null,null,null,null,null,null,null,"X"]
[null,null,null,null,null,null,null,"X"]
[null,null,null,null,null,null,null,"X"]
[null,null,null,null,null,null,null,"X"]
[null,null,null,null,null,null,null,"X"]
[null,null,null,null,null,null,null,"X"]
[null,null,null,null,null,null,null,"X"]
[null,null,null,null,null,null,null,"X"]
[null,null,null,null,null,null,null,"X"]
[null,null,null,null,null,null,null,"X"]
[null,null,null,null,null,null,null,"X"]
[null,null,null,null,null,null,null,"X"]
[null,null,null,null,null,null,null,"X"]
[null,null,null,null,null,null,null,"X"]
[null,null,null,null,null,null,null,"X"]
[null,null,null,null,null,null,null,"X"]
[null,null,null,null,null,null,null,"X"]
[null,null,null,null,null,null,null,"X"]
[null,null,null,null,null,null,null,"X"]
[null,null,null,null,null,null,null,"X"]
[null,null,null,null,null,null,null,"X"]
[null,null,null,null,null,null,null,"X"]
[null,null,null,null,null,null,null,"X"]
[null,null,null,null,null,null,null,"X"]
[null,null,null,null,null,null,null,"X"]
[null,null,null,null,null,null,null,"X"]
[null,null,null,null,null,null,null,"X"]
[null,null,null,null,null,null,null,"X"]
[null,null,null,null,null,null,null,"X"]
[null,null,null,null,null,null,null,"X"]
[null,null,null,null,null,null,null,"X"]
[null,null,null,null,null,null,null,"X"]
[null,null,null,null,null,null,null,"X"]
[null,null,null,null,null,null,null,"X"]
[null,null,null,null,null,null,null,"X"]
[null,null,null,null,null,null,null,"X"]
[null,null,null,null,null,null,null,"X"]
[null,null,null,null,null,null,null,"X"]
[null,null,null,null,null,null,null,"X"]
[null,null,null,null,null,null,null,"X"]
[null,null,null,null,null,null,null,"X"]
[null,null,null,null,null,null,null,"X"]
[null,null,null,null,null,null,null,"X"]
[null,null,null,null,null,null,null,"X"]
[null,null,null,null,null,null,null,"X"]
[null,null,null,null,null,null,null,"X"]
[null,null,null,null,null,null,null,"X"]
[null,null,null,null,null,null,null,"X"]
[null,null,null,null,null,null,null,"X"]
[null,null,null,null,null,null,null,"X"]
[null,null,null,null,null,null,null,"X"]
[null,null,null,null,null,null,null,"X"]
[null,null,null,null,null,null,null,"X"]
[null,null,null,null,null,null,null,"X"]
[null,null,null,null,null,null,null,"X"]
[null,null,null,null,null,null,null,{"$f":"_xlfn.CONCAT(D8195,\"X\",G8195)","v":"X"}]
[null,null,null,null,null,null,null,"X"]
[null,null,null,null,null,null,null,"X"]
[null,null,null,null,null,null,null,"X"]
[null,null,null,null,null,null,null,"X"]
[null,null,null,null,null,null,null,"X"]
[null,null,null,null,null,null,null,"X"]
[null,null,null,null,null,null,null,"X"]
[null,null,null,null,null,null,null,"X"]
[null,null,null,null,null,null,null,"X"]
[null,null,null,null,null,null,null,"X"]
[null,null,null,null,null,null,null,"X"]
[null,null,null,null,null,null,null,"X"]
[null,null,null,null,null,null,null,"X"]
[null,null,null,null,null,null,null,"X"]
[null,null,null,null,null,null,null,"X"]
[null,null,null,null,null,null,null,"X"]
[null,null,null,null,null,null,null,"X"]
[null,null,null,null,null,null,null,"X"]
[null,null,null,null,null,null,null,"X"]
[null,null,null,null,null,null,null,"X"]
[null,null,null,null,null,null,null,"X"]
[null,null,null,null,null,null,null,"X"]
[null,null,null,null,null,null,null,"X"]
[null,null,null,null,null,null,null,"X"]
[null,null,null,null,null,null,null,"X"]
[null,null,null,null,null,null,null,"X"]
[null,null,null,null,null,null,null,"X"]
[null,null,null,null,null,null,null,"X"]
[null,null,null,null,null,null,null,"X"]
[null,null,null,null,null,null,null,"X"]
[null,null,null,null,null,null,null,"X"]
[null,null,null,null,null,null,null,"X"]
[null,null,null,null,null,null,null,"X"]
[null,null,null,null,null,null,null,"X"]
[null,null,null,null,null,null,null,"X"]
[null,null,null,null,null,null,null,"X"]
[null,null,null,null,null,null,null,"X"]
[null,null,null,null,null,null,null,"X"]
[null,null,null,null,null,null,null,"X"]
[null,null,null,null,null,null,null,"X"]
[null,null,null,null,null,null,null,"X"]
[null,null,null,null,null,null,null,"X"]
[null,null,null,null,null,null,null,"X"]
[null,null,null,null,null,null,null,"X"]
[null,null,null,null,null,null,null,"X"]
[null,null,null,null,null,null,null,"X"]
[null,null,null,null,null,null,null,"X"]
[null,null,null,null,null,null,null,"X"]
[null,null,null,null,null,null,null,"X"]
[null,null,null,null,null,null,null,"X"]
[null,null,null,null,null,null,null,"X"]
[null,null,null,null,null,null,null,"X"]
[null,null,null,null,null,null,null,"X"]
[null,null,null,null,null,null,null,"X"]
[null,null,null,null,null,null,null,"X"]
[null,null,null,null,null,null,null,"X"]
[null,null,null,null,null,null,null,"X"]
[null,null,null,null,null,null,null,"X"]
[null,null,null,null,null,null,null,"X"]
[null,null,null,null,null,null,null,"X"]
[null,null,null,null,null,null,null,"X"]
[null,null,null,null,null,null,null,"X"]
[null,null,null,null,null,null,null,"X"]
[null,null,null,null,null,null,null,{"$f":"_xlfn.CONCAT(D8259,\"X\",G8259)","v":"X"}]
[null,null,null,null,null,null,null,"X"]
[null,null,null,null,null,null,null,"X"]
[null,null,null,null,null,null,null,"X"]
[null,null,null,null,null,null,null,"X"]
[null,null,null,null,null,null,null,"X"]
[null,null,null,null,null,null,null,"X"]
[null,null,null,null,null,null,null,"X"]
[null,null,null,null,null,null,null,"X"]
[null,null,null,null,null,null,null,"X"]
[null,null,null,null,null,null,null,"X"]
[null,null,null,null,null,null,null,"X"]
[null,null,null,null,null,null,null,"X"]
[null,null,null,null,null,null,null,"X"]
[null,null,null,null,null,null,null,"X"]
[null,null,null,null,null,null,null,"X"]
[null,null,null,null,null,null,null,"X"]
[null,null,null,null,null,null,null,"X"]
[null,null,null,null,null,null,null,"X"]
[null,null,null,null,null,null,null,"X"]
[null,null,null,null,null,null,null,"X"]
[null,null,null,null,null,null,null,"X"]
[null,null,null,null,null,null,null,"X"]
[null,null,null,null,null,null,null,"X"]
[null,null,null,null,null,null,null,"X"]
[null,null,null,null,null,null,null,"X"]
[null,null,null,null,null,null,null,"X"]
[null,null,null,null,null,null,null,"X"]
[null,null,null,null,null,null,null,"X"]
[null,null,null,null,null,null,null,"X"]
[null,null,null,null,null,null,null,"X"]
[null,null,null,null,null,null,null,"X"]
[null,null,null,null,null,null,null,"X"]
[null,null,null,null,null,null,null,"X"]
[null,null,null,null,null,null,null,"X"]
[null,null,null,null,null,null,null,"X"]
[null,null,null,null,null,null,null,"X"]
[null,null,null,null,null,null,null,"X"]
[null,null,null,null,null,null,null,"X"]
[null,null,null,null,null,null,null,"X"]
[null,null,null,null,null,null,null,"X"]
[null,null,null,null,null,null,null,"X"]
[null,null,null,null,null,null,null,"X"]
[null,null,null,null,null,null,null,"X"]
[null,null,null,null,null,null,null,"X"]
[null,null,null,null,null,null,null,"X"]
[null,null,null,null,null,null,null,"X"]
[null,null,null,null,null,null,null,"X"]
[null,null,null,null,null,null,null,"X"]
[null,null,null,null,null,null,null,"X"]
[null,null,null,null,null,null,null,"X"]
[null,null,null,null,null,null,null,"X"]
[null,null,null,null,null,null,null,"X"]
[null,null,null,null,null,null,null,"X"]
[null,null,null,null,null,null,null,"X"]
[null,null,null,null,null,null,null,"X"]
[null,null,null,null,null,null,null,"X"]
[null,null,null,null,null,null,null,"X"]
[null,null,null,null,null,null,null,"X"]
[null,null,null,null,null,null,null,"X"]
[null,null,null,null,null,null,null,"X"]
[null,null,null,null,null,null,null,"X"]
[null,null,null,null,null,null,null,"X"]
[null,null,null,null,null,null,null,"X"]
[null,null,null,null,null,null,null,{"$f":"_xlfn.CONCAT(D8323,\"X\",G8323)","v":"X"}]
[null,null,null,null,null,null,null,"X"]
[null,null,null,null,null,null,null,"X"]
[null,null,null,null,null,null,null,"X"]
[null,null,null,null,null,null,null,"X"]
[null,null,null,null,null,null,null,"X"]
[null,null,null,null,null,null,null,"X"]
[null,null,null,null,null,null,null,"X"]
[null,null,null,null,null,null,null,"X"]
[null,null,null,null,null,null,null,"X"]
[null,null,null,null,null,null,null,"X"]
[null,null,null,null,null,null,null,"X"]
[null,null,null,null,null,null,null,"X"]
[null,null,null,null,null,null,null,"X"]
[null,null,null,null,null,null,null,"X"]
[null,null,null,null,null,null,null,"X"]
[null,null,null,null,null,null,null,"X"]
[null,null,null,null,null,null,null,"X"]
[null,null,null,null,null,null,null,"X"]
[null,null,null,null,null,null,null,"X"]
[null,null,null,null,null,null,null,"X"]
[null,null,null,null,null,null,null,"X"]
[null,null,null,null,null,null,null,"X"]
[null,null,null,null,null,null,null,"X"]
[null,null,null,null,null,null,null,"X"]
[null,null,null,null,null,null,null,"X"]
[null,null,null,null,null,null,null,"X"]
[null,null,null,null,null,null,null,"X"]
[null,null,null,null,null,null,null,"X"]
[null,null,null,null,null,null,null,"X"]
[null,null,null,null,null,null,null,"X"]
[null,null,null,null,null,null,null,"X"]
[null,null,null,null,null,null,null,"X"]
[null,null,null,null,null,null,null,"X"]
[null,null,null,null,null,null,null,"X"]
[null,null,null,null,null,null,null,"X"]
[null,null,null,null,null,null,null,"X"]
[null,null,null,null,null,null,null,"X"]
[null,null,null,null,null,null,null,"X"]
[null,null,null,null,null,null,null,"X"]
[null,null,null,null,null,null,null,"X"]
[null,null,null,null,null,null,null,"X"]
[null,null,null,null,null,null,null,"X"]
[null,null,null,null,null,null,null,"X"]
[null,null,null,null,null,null,null,"X"]
[null,null,null,null,null,null,null,"X"]
[null,null,null,null,null,null,null,"X"]
[null,null,null,null,null,null,null,"X"]
[null,null,null,null,null,null,null,"X"]
[null,null,null,null,null,null,null,"X"]
[null,null,null,null,null,null,null,"X"]
[null,null,null,null,null,null,null,"X"]
[null,null,null,null,null,null,null,"X"]
[null,null,null,null,null,null,null,"X"]
[null,null,null,null,null,null,null,"X"]
[null,null,null,null,null,null,null,"X"]
[null,null,null,null,null,null,null,"X"]
[null,null,null,null,null,null,null,"X"]
[null,null,null,null,null,null,null,"X"]
[null,null,null,null,null,null,null,"X"]
[null,null,null,null,null,null,null,"X"]
[null,null,null,null,null,null,null,"X"]
[null,null,null,null,null,null,null,"X"]
[null,null,null,null,null,null,null,"X"]
[null,null,null,null,null,null,null,{"$f":"_xlfn.CONCAT(D8387,\"X\",G8387)","v":"X"}]
[null,null,null,null,null,null,null,"X"]
[null,null,null,null,null,null,null,"X"]
[null,null,null,null,null,null,null,"X"]
[null,null,null,null,null,null,null,"X"]
[null,null,null,null,null,null,null,"X"]
[null,null,null,null,null,null,null,"X"]
[null,null,null,null,null,null,null,"X"]
[null,null,null,null,null,null,null,"X"]
[null,null,null,null,null,null,null,"X"]
[null,null,null,null,null,null,null,"X"]
[null,null,null,null,null,null,null,"X"]
[null,null,null,null,null,null,null,"X"]
[null,null,null,null,null,null,null,"X"]
[null,null,null,null,null,null,null,"X"]
[null,null,null,null,null,null,null,"X"]
[null,null,null,null,null,null,null,"X"]
[null,null,null,null,null,null,null,"X"]
[null,null,null,null,null,null,null,"X"]
[null,null,null,null,null,null,null,"X"]
[null,null,null,null,null,null,null,"X"]
[null,null,null,null,null,null,null,"X"]
[null,null,null,null,null,null,null,"X"]
[null,null,null,null,null,null,null,"X"]
[null,null,null,null,null,null,null,"X"]
[null,null,null,null,null,null,null,"X"]
[null,null,null,null,null,null,null,"X"]
[null,null,null,null,null,null,null,"X"]
[null,null,null,null,null,null,null,"X"]
[null,null,null,null,null,null,null,"X"]
[null,null,null,null,null,null,null,"X"]
[null,null,null,null,null,null,null,"X"]
[null,null,null,null,null,null,null,"X"]
[null,null,null,null,null,null,null,"X"]
[null,null,null,null,null,null,null,"X"]
[null,null,null,null,null,null,null,"X"]
[null,null,null,null,null,null,null,"X"]
[null,null,null,null,null,null,null,"X"]
[null,null,null,null,null,null,null,"X"]
[null,null,null,null,null,null,null,"X"]
[null,null,null,null,null,null,null,"X"]
[null,null,null,null,null,null,null,"X"]
[null,null,null,null,null,null,null,"X"]
[null,null,null,null,null,null,null,"X"]
[null,null,null,null,null,null,null,"X"]
[null,null,null,null,null,null,null,"X"]
[null,null,null,null,null,null,null,"X"]
[null,null,null,null,null,null,null,"X"]
[null,null,null,null,null,null,null,"X"]
[null,null,null,null,null,null,null,"X"]
[null,null,null,null,null,null,null,"X"]
[null,null,null,null,null,null,null,"X"]
[null,null,null,null,null,null,null,"X"]
[null,null,null,null,null,null,null,"X"]
[null,null,null,null,null,null,null,"X"]
[null,null,null,null,null,null,null,"X"]
[null,null,null,null,null,null,null,"X"]
[null,null,null,null,null,null,null,"X"]
[null,null,null,null,null,null,null,"X"]
[null,null,null,null,null,null,null,"X"]
[null,null,null,null,null,null,null,"X"]
[null,null,null,null,null,null,null,"X"]
[null,null,null,null,null,null,null,"X"]
[null,null,null,null,null,null,null,"X"]
[null,null,null,null,null,null,null,{"$f":"_xlfn.CONCAT(D8451,\"X\",G8451)","v":"X"}]
[null,null,null,null,null,null,null,"X"]
[null,null,null,null,null,null,null,"X"]
[null,null,null,null,null,null,null,"X"]
[null,null,null,null,null,null,null,"X"]
[null,null,null,null,null,null,null,"X"]
[null,null,null,null,null,null,null,"X"]
[null,null,null,null,null,null,null,"X"]
[null,null,null,null,null,null,null,"X"]
[null,null,null,null,null,null,null,"X"]
[null,null,null,null,null,null,null,"X"]
[null,null,null,null,null,null,null,"X"]
[null,null,null,null,null,null,null,"X"]
[null,null,null,null,null,null,null,"X"]
[null,null,null,null,null,null,null,"X"]
[null,null,null,null,null,null,null,"X"]
[null,null,null,null,null,null,null,"X"]
[null,null,null,null,null,null,null,"X"]
[null,null,null,null,null,null,null,"X"]
[null,null,null,null,null,null,null,"X"]
[null,null,null,null,null,null,null,"X"]
[null,null,null,null,null,null,null,"X"]
[null,null,null,null,null,null,null,"X"]
[null,null,null,null,null,null,null,"X"]
[null,null,null,null,null,null,null,"X"]
[null,null,null,null,null,null,null,"X"]
[null,null,null,null,null,null,null,"X"]
[null,null,null,null,null,null,null,"X"]
[null,null,null,null,null,null,null,"X"]
[null,null,null,null,null,null,null,"X"]
[null,null,null,null,null,null,null,"X"]
[null,null,null,null,null,null,null,"X"]
[null,null,null,null,null,null,null,"X"]
[null,null,null,null,null,null,null,"X"]
[null,null,null,null,null,null,null,"X"]
[null,null,null,null,null,null,null,"X"]
[null,null,null,null,null,null,null,"X"]
[null,null,null,null,null,null,null,"X"]
[null,null,null,null,null,null,null,"X"]
[null,null,null,null,null,null,null,"X"]
[null,null,null,null,null,null,null,"X"]
[null,null,null,null,null,null,null,"X"]
[null,null,null,null,null,null,null,"X"]
[null,null,null,null,null,null,null,"X"]
[null,null,null,null,null,null,null,"X"]
[null,null,null,null,null,null,null,"X"]
[null,null,null,null,null,null,null,"X"]
[null,null,null,null,null,null,null,"X"]
[null,null,null,null,null,null,null,"X"]
[null,null,null,null,null,null,null,"X"]
[null,null,null,null,null,null,null,"X"]
[null,null,null,null,null,null,null,"X"]
[null,null,null,null,null,null,null,"X"]
[null,null,null,null,null,null,null,"X"]
[null,null,null,null,null,null,null,"X"]
[null,null,null,null,null,null,null,"X"]
[null,null,null,null,null,null,null,"X"]
[null,null,null,null,null,null,null,"X"]
[null,null,null,null,null,null,null,"X"]
[null,null,null,null,null,null,null,"X"]
[null,null,null,null,null,null,null,"X"]
[null,null,null,null,null,null,null,"X"]
[null,null,null,null,null,null,null,"X"]
[null,null,null,null,null,null,null,"X"]
[null,null,null,null,null,null,null,{"$f":"_xlfn.CONCAT(D8515,\"X\",G8515)","v":"X"}]
[null,null,null,null,null,null,null,"X"]
[null,null,null,null,null,null,null,"X"]
[null,null,null,null,null,null,null,"X"]
[null,null,null,null,null,null,null,"X"]
[null,null,null,null,null,null,null,"X"]
[null,null,null,null,null,null,null,"X"]
[null,null,null,null,null,null,null,"X"]
[null,null,null,null,null,null,null,"X"]
[null,null,null,null,null,null,null,"X"]
[null,null,null,null,null,null,null,"X"]
[null,null,null,null,null,null,null,"X"]
[null,null,null,null,null,null,null,"X"]
[null,null,null,null,null,null,null,"X"]
[null,null,null,null,null,null,null,"X"]
[null,null,null,null,null,null,null,"X"]
[null,null,null,null,null,null,null,"X"]
[null,null,null,null,null,null,null,"X"]
[null,null,null,null,null,null,null,"X"]
[null,null,null,null,null,null,null,"X"]
[null,null,null,null,null,null,null,"X"]
[null,null,null,null,null,null,null,"X"]
[null,null,null,null,null,null,null,"X"]
[null,null,null,null,null,null,null,"X"]
[null,null,null,null,null,null,null,"X"]
[null,null,null,null,null,null,null,"X"]
[null,null,null,null,null,null,null,"X"]
[null,null,null,null,null,null,null,"X"]
[null,null,null,null,null,null,null,"X"]
[null,null,null,null,null,null,null,"X"]
[null,null,null,null,null,null,null,"X"]
[null,null,null,null,null,null,null,"X"]
[null,null,null,null,null,null,null,"X"]
[null,null,null,null,null,null,null,"X"]
[null,null,null,null,null,null,null,"X"]
[null,null,null,null,null,null,null,"X"]
[null,null,null,null,null,null,null,"X"]
[null,null,null,null,null,null,null,"X"]
[null,null,null,null,null,null,null,"X"]
[null,null,null,null,null,null,null,"X"]
[null,null,null,null,null,null,null,"X"]
[null,null,null,null,null,null,null,"X"]
[null,null,null,null,null,null,null,"X"]
[null,null,null,null,null,null,null,"X"]
[null,null,null,null,null,null,null,"X"]
[null,null,null,null,null,null,null,"X"]
[null,null,null,null,null,null,null,"X"]
[null,null,null,null,null,null,null,"X"]
[null,null,null,null,null,null,null,"X"]
[null,null,null,null,null,null,null,"X"]
[null,null,null,null,null,null,null,"X"]
[null,null,null,null,null,null,null,"X"]
[null,null,null,null,null,null,null,"X"]
[null,null,null,null,null,null,null,"X"]
[null,null,null,null,null,null,null,"X"]
[null,null,null,null,null,null,null,"X"]
[null,null,null,null,null,null,null,"X"]
[null,null,null,null,null,null,null,"X"]
[null,null,null,null,null,null,null,"X"]
[null,null,null,null,null,null,null,"X"]
[null,null,null,null,null,null,null,"X"]
[null,null,null,null,null,null,null,"X"]
[null,null,null,null,null,null,null,"X"]
[null,null,null,null,null,null,null,"X"]
[null,null,null,null,null,null,null,{"$f":"_xlfn.CONCAT(D8579,\"X\",G8579)","v":"X"}]
[null,null,null,null,null,null,null,"X"]
[null,null,null,null,null,null,null,"X"]
[null,null,null,null,null,null,null,"X"]
[null,null,null,null,null,null,null,"X"]
[null,null,null,null,null,null,null,"X"]
[null,null,null,null,null,null,null,"X"]
[null,null,null,null,null,null,null,"X"]
[null,null,null,null,null,null,null,"X"]
[null,null,null,null,null,null,null,"X"]
[null,null,null,null,null,null,null,"X"]
[null,null,null,null,null,null,null,"X"]
[null,null,null,null,null,null,null,"X"]
[null,null,null,null,null,null,null,"X"]
[null,null,null,null,null,null,null,"X"]
[null,null,null,null,null,null,null,"X"]
[null,null,null,null,null,null,null,"X"]
[null,null,null,null,null,null,null,"X"]
[null,null,null,null,null,null,null,"X"]
[null,null,null,null,null,null,null,"X"]
[null,null,null,null,null,null,null,"X"]
[null,null,null,null,null,null,null,"X"]
[null,null,null,null,null,null,null,"X"]
[null,null,null,null,null,null,null,"X"]
[null,null,null,null,null,null,null,"X"]
[null,null,null,null,null,null,null,"X"]
[null,null,null,null,null,null,null,"X"]
[null,null,null,null,null,null,null,"X"]
[null,null,null,null,null,null,null,"X"]
[null,null,null,null,null,null,null,"X"]
[null,null,null,null,null,null,null,"X"]
[null,null,null,null,null,null,null,"X"]
[null,null,null,null,null,null,null,"X"]
[null,null,null,null,null,null,null,"X"]
[null,null,null,null,null,null,null,"X"]
[null,null,null,null,null,null,null,"X"]
[null,null,null,null,null,null,null,"X"]
[null,null,null,null,null,null,null,"X"]
[null,null,null,null,null,null,null,"X"]
[null,null,null,null,null,null,null,"X"]
[null,null,null,null,null,null,null,"X"]
[null,null,null,null,null,null,null,"X"]
[null,null,null,null,null,null,null,"X"]
[null,null,null,null,null,null,null,"X"]
[null,null,null,null,null,null,null,"X"]
[null,null,null,null,null,null,null,"X"]
[null,null,null,null,null,null,null,"X"]
[null,null,null,null,null,null,null,"X"]
[null,null,null,null,null,null,null,"X"]
[null,null,null,null,null,null,null,"X"]
[null,null,null,null,null,null,null,"X"]
[null,null,null,null,null,null,null,"X"]
[null,null,null,null,null,null,null,"X"]
[null,null,null,null,null,null,null,"X"]
[null,null,null,null,null,null,null,"X"]
[null,null,null,null,null,null,null,"X"]
[null,null,null,null,null,null,null,"X"]
[null,null,null,null,null,null,null,"X"]
[null,null,null,null,null,null,null,"X"]
[null,null,null,null,null,null,null,"X"]
[null,null,null,null,null,null,null,"X"]
[null,null,null,null,null,null,null,"X"]
[null,null,null,null,null,null,null,"X"]
[null,null,null,null,null,null,null,"X"]
[null,null,null,null,null,null,null,{"$f":"_xlfn.CONCAT(D8643,\"X\",G8643)","v":"X"}]
[null,null,null,null,null,null,null,"X"]
[null,null,null,null,null,null,null,"X"]
[null,null,null,null,null,null,null,"X"]
[null,null,null,null,null,null,null,"X"]
[null,null,null,null,null,null,null,"X"]
[null,null,null,null,null,null,null,"X"]
[null,null,null,null,null,null,null,"X"]
[null,null,null,null,null,null,null,"X"]
[null,null,null,null,null,null,null,"X"]
[null,null,null,null,null,null,null,"X"]
[null,null,null,null,null,null,null,"X"]
[null,null,null,null,null,null,null,"X"]
[null,null,null,null,null,null,null,"X"]
[null,null,null,null,null,null,null,"X"]
[null,null,null,null,null,null,null,"X"]
[null,null,null,null,null,null,null,"X"]
[null,null,null,null,null,null,null,"X"]
[null,null,null,null,null,null,null,"X"]
[null,null,null,null,null,null,null,"X"]
[null,null,null,null,null,null,null,"X"]
[null,null,null,null,null,null,null,"X"]
[null,null,null,null,null,null,null,"X"]
[null,null,null,null,null,null,null,"X"]
[null,null,null,null,null,null,null,"X"]
[null,null,null,null,null,null,null,"X"]
[null,null,null,null,null,null,null,"X"]
[null,null,null,null,null,null,null,"X"]
[null,null,null,null,null,null,null,"X"]
[null,null,null,null,null,null,null,"X"]
[null,null,null,null,null,null,null,"X"]
[null,null,null,null,null,null,null,"X"]
[null,null,null,null,null,null,null,"X"]
[null,null,null,null,null,null,null,"X"]
[null,null,null,null,null,null,null,"X"]
[null,null,null,null,null,null,null,"X"]
[null,null,null,null,null,null,null,"X"]
[null,null,null,null,null,null,null,"X"]
[null,null,null,null,null,null,null,"X"]
[null,null,null,null,null,null,null,"X"]
[null,null,null,null,null,null,null,"X"]
[null,null,null,null,null,null,null,"X"]
[null,null,null,null,null,null,null,"X"]
[null,null,null,null,null,null,null,"X"]
[null,null,null,null,null,null,null,"X"]
[null,null,null,null,null,null,null,"X"]
[null,null,null,null,null,null,null,"X"]
[null,null,null,null,null,null,null,"X"]
[null,null,null,null,null,null,null,"X"]
[null,null,null,null,null,null,null,"X"]
[null,null,null,null,null,null,null,"X"]
[null,null,null,null,null,null,null,"X"]
[null,null,null,null,null,null,null,"X"]
[null,null,null,null,null,null,null,"X"]
[null,null,null,null,null,null,null,"X"]
[null,null,null,null,null,null,null,"X"]
[null,null,null,null,null,null,null,"X"]
[null,null,null,null,null,null,null,"X"]
[null,null,null,null,null,null,null,"X"]
[null,null,null,null,null,null,null,"X"]
[null,null,null,null,null,null,null,"X"]
[null,null,null,null,null,null,null,"X"]
[null,null,null,null,null,null,null,"X"]
[null,null,null,null,null,null,null,"X"]
[null,null,null,null,null,null,null,{"$f":"_xlfn.CONCAT(D8707,\"X\",G8707)","v":"X"}]
[null,null,null,null,null,null,null,"X"]
[null,null,null,null,null,null,null,"X"]
[null,null,null,null,null,null,null,"X"]
[null,null,null,null,null,null,null,"X"]
[null,null,null,null,null,null,null,"X"]
[null,null,null,null,null,null,null,"X"]
[null,null,null,null,null,null,null,"X"]
[null,null,null,null,null,null,null,"X"]
[null,null,null,null,null,null,null,"X"]
[null,null,null,null,null,null,null,"X"]
[null,null,null,null,null,null,null,"X"]
[null,null,null,null,null,null,null,"X"]
[null,null,null,null,null,null,null,"X"]
[null,null,null,null,null,null,null,"X"]
[null,null,null,null,null,null,null,"X"]
[null,null,null,null,null,null,null,"X"]
[null,null,null,null,null,null,null,"X"]
[null,null,null,null,null,null,null,"X"]
[null,null,null,null,null,null,null,"X"]
[null,null,null,null,null,null,null,"X"]
[null,null,null,null,null,null,null,"X"]
[null,null,null,null,null,null,null,"X"]
[null,null,null,null,null,null,null,"X"]
[null,null,null,null,null,null,null,"X"]
[null,null,null,null,null,null,null,"X"]
[null,null,null,null,null,null,null,"X"]
[null,null,null,null,null,null,null,"X"]
[null,null,null,null,null,null,null,"X"]
[null,null,null,null,null,null,null,"X"]
[null,null,null,null,null,null,null,"X"]
[null,null,null,null,null,null,null,"X"]
[null,null,null,null,null,null,null,"X"]
[null,null,null,null,null,null,null,"X"]
[null,null,null,null,null,null,null,"X"]
[null,null,null,null,null,null,null,"X"]
[null,null,null,null,null,null,null,"X"]
[null,null,null,null,null,null,null,"X"]
[null,null,null,null,null,null,null,"X"]
[null,null,null,null,null,null,null,"X"]
[null,null,null,null,null,null,null,"X"]
[null,null,null,null,null,null,null,"X"]
[null,null,null,null,null,null,null,"X"]
[null,null,null,null,null,null,null,"X"]
[null,null,null,null,null,null,null,"X"]
[null,null,null,null,null,null,null,"X"]
[null,null,null,null,null,null,null,"X"]
[null,null,null,null,null,null,null,"X"]
[null,null,null,null,null,null,null,"X"]
[null,null,null,null,null,null,null,"X"]
[null,null,null,null,null,null,null,"X"]
[null,null,null,null,null,null,null,"X"]
[null,null,null,null,null,null,null,"X"]
[null,null,null,null,null,null,null,"X"]
[null,null,null,null,null,null,null,"X"]
[null,null,null,null,null,null,null,"X"]
[null,null,null,null,null,null,null,"X"]
[null,null,null,null,null,null,null,"X"]
[null,null,null,null,null,null,null,"X"]
[null,null,null,null,null,null,null,"X"]
[null,null,null,null,null,null,null,"X"]
[null,null,null,null,null,null,null,"X"]
[null,null,null,null,null,null,null,"X"]
[null,null,null,null,null,null,null,"X"]
[null,null,null,null,null,null,null,{"$f":"_xlfn.CONCAT(D8771,\"X\",G8771)","v":"X"}]
[null,null,null,null,null,null,null,"X"]
[null,null,null,null,null,null,null,"X"]
[null,null,null,null,null,null,null,"X"]
[null,null,null,null,null,null,null,"X"]
[null,null,null,null,null,null,null,"X"]
[null,null,null,null,null,null,null,"X"]
[null,null,null,null,null,null,null,"X"]
[null,null,null,null,null,null,null,"X"]
[null,null,null,null,null,null,null,"X"]
[null,null,null,null,null,null,null,"X"]
[null,null,null,null,null,null,null,"X"]
[null,null,null,null,null,null,null,"X"]
[null,null,null,null,null,null,null,"X"]
[null,null,null,null,null,null,null,"X"]
[null,null,null,null,null,null,null,"X"]
[null,null,null,null,null,null,null,"X"]
[null,null,null,null,null,null,null,"X"]
[null,null,null,null,null,null,null,"X"]
[null,null,null,null,null,null,null,"X"]
[null,null,null,null,null,null,null,"X"]
[null,null,null,null,null,null,null,"X"]
[null,null,null,null,null,null,null,"X"]
[null,null,null,null,null,null,null,"X"]
[null,null,null,null,null,null,null,"X"]
[null,null,null,null,null,null,null,"X"]
[null,null,null,null,null,null,null,"X"]
[null,null,null,null,null,null,null,"X"]
[null,null,null,null,null,null,null,"X"]
[null,null,null,null,null,null,null,"X"]
[null,null,null,null,null,null,null,"X"]
[null,null,null,null,null,null,null,"X"]
[null,null,null,null,null,null,null,"X"]
[null,null,null,null,null,null,null,"X"]
[null,null,null,null,null,null,null,"X"]
[null,null,null,null,null,null,null,"X"]
[null,null,null,null,null,null,null,"X"]
[null,null,null,null,null,null,null,"X"]
[null,null,null,null,null,null,null,"X"]
[null,null,null,null,null,null,null,"X"]
[null,null,null,null,null,null,null,"X"]
[null,null,null,null,null,null,null,"X"]
[null,null,null,null,null,null,null,"X"]
[null,null,null,null,null,null,null,"X"]
[null,null,null,null,null,null,null,"X"]
[null,null,null,null,null,null,null,"X"]
[null,null,null,null,null,null,null,"X"]
[null,null,null,null,null,null,null,"X"]
[null,null,null,null,null,null,null,"X"]
[null,null,null,null,null,null,null,"X"]
[null,null,null,null,null,null,null,"X"]
[null,null,null,null,null,null,null,"X"]
[null,null,null,null,null,null,null,"X"]
[null,null,null,null,null,null,null,"X"]
[null,null,null,null,null,null,null,"X"]
[null,null,null,null,null,null,null,"X"]
[null,null,null,null,null,null,null,"X"]
[null,null,null,null,null,null,null,"X"]
[null,null,null,null,null,null,null,"X"]
[null,null,null,null,null,null,null,"X"]
[null,null,null,null,null,null,null,"X"]
[null,null,null,null,null,null,null,"X"]
[null,null,null,null,null,null,null,"X"]
[null,null,null,null,null,null,null,"X"]
[null,null,null,null,null,null,null,{"$f":"_xlfn.CONCAT(D8835,\"X\",G8835)","v":"X"}]
[null,null,null,null,null,null,null,"X"]
[null,null,null,null,null,null,null,"X"]
[null,null,null,null,null,null,null,"X"]
[null,null,null,null,null,null,null,"X"]
[null,null,null,null,null,null,null,"X"]
[null,null,null,null,null,null,null,"X"]
[null,null,null,null,null,null,null,"X"]
[null,null,null,null,null,null,null,"X"]
[null,null,null,null,null,null,null,"X"]
[null,null,null,null,null,null,null,"X"]
[null,null,null,null,null,null,null,"X"]
[null,null,null,null,null,null,null,"X"]
[null,null,null,null,null,null,null,"X"]
[null,null,null,null,null,null,null,"X"]
[null,null,null,null,null,null,null,"X"]
[null,null,null,null,null,null,null,"X"]
[null,null,null,null,null,null,null,"X"]
[null,null,null,null,null,null,null,"X"]
[null,null,null,null,null,null,null,"X"]
[null,null,null,null,null,null,null,"X"]
[null,null,null,null,null,null,null,"X"]
[null,null,null,null,null,null,null,"X"]
[null,null,null,null,null,null,null,"X"]
[null,null,null,null,null,null,null,"X"]
[null,null,null,null,null,null,null,"X"]
[null,null,null,null,null,null,null,"X"]
[null,null,null,null,null,null,null,"X"]
[null,null,null,null,null,null,null,"X"]
[null,null,null,null,null,null,null,"X"]
[null,null,null,null,null,null,null,"X"]
[null,null,null,null,null,null,null,"X"]
[null,null,null,null,null,null,null,"X"]
[null,null,null,null,null,null,null,"X"]
[null,null,null,null,null,null,null,"X"]
[null,null,null,null,null,null,null,"X"]
[null,null,null,null,null,null,null,"X"]
[null,null,null,null,null,null,null,"X"]
[null,null,null,null,null,null,null,"X"]
[null,null,null,null,null,null,null,"X"]
[null,null,null,null,null,null,null,"X"]
[null,null,null,null,null,null,null,"X"]
[null,null,null,null,null,null,null,"X"]
[null,null,null,null,null,null,null,"X"]
[null,null,null,null,null,null,null,"X"]
[null,null,null,null,null,null,null,"X"]
[null,null,null,null,null,null,null,"X"]
[null,null,null,null,null,null,null,"X"]
[null,null,null,null,null,null,null,"X"]
[null,null,null,null,null,null,null,"X"]
[null,null,null,null,null,null,null,"X"]
[null,null,null,null,null,null,null,"X"]
[null,null,null,null,null,null,null,"X"]
[null,null,null,null,null,null,null,"X"]
[null,null,null,null,null,null,null,"X"]
[null,null,null,null,null,null,null,"X"]
[null,null,null,null,null,null,null,"X"]
[null,null,null,null,null,null,null,"X"]
[null,null,null,null,null,null,null,"X"]
[null,null,null,null,null,null,null,"X"]
[null,null,null,null,null,null,null,"X"]
[null,null,null,null,null,null,null,"X"]
[null,null,null,null,null,null,null,"X"]
[null,null,null,null,null,null,null,"X"]
[null,null,null,null,null,null,null,{"$f":"_xlfn.CONCAT(D8899,\"X\",G8899)","v":"X"}]
[null,null,null,null,null,null,null,"X"]
[null,null,null,null,null,null,null,"X"]
[null,null,null,null,null,null,null,"X"]
[null,null,null,null,null,null,null,"X"]
[null,null,null,null,null,null,null,"X"]
[null,null,null,null,null,null,null,"X"]
[null,null,null,null,null,null,null,"X"]
[null,null,null,null,null,null,null,"X"]
[null,null,null,null,null,null,null,"X"]
[null,null,null,null,null,null,null,"X"]
[null,null,null,null,null,null,null,"X"]
[null,null,null,null,null,null,null,"X"]
[null,null,null,null,null,null,null,"X"]
[null,null,null,null,null,null,null,"X"]
[null,null,null,null,null,null,null,"X"]
[null,null,null,null,null,null,null,"X"]
[null,null,null,null,null,null,null,"X"]
[null,null,null,null,null,null,null,"X"]
[null,null,null,null,null,null,null,"X"]
[null,null,null,null,null,null,null,"X"]
[null,null,null,null,null,null,null,"X"]
[null,null,null,null,null,null,null,"X"]
[null,null,null,null,null,null,null,"X"]
[null,null,null,null,null,null,null,"X"]
[null,null,null,null,null,null,null,"X"]
[null,null,null,null,null,null,null,"X"]
[null,null,null,null,null,null,null,"X"]
[null,null,null,null,null,null,null,"X"]
[null,null,null,null,null,null,null,"X"]
[null,null,null,null,null,null,null,"X"]
[null,null,null,null,null,null,null,"X"]
[null,null,null,null,null,null,null,"X"]
[null,null,null,null,null,null,null,"X"]
[null,null,null,null,null,null,null,"X"]
[null,null,null,null,null,null,null,"X"]
[null,null,null,null,null,null,null,"X"]
[null,null,null,null,null,null,null,"X"]
[null,null,null,null,null,null,null,"X"]
[null,null,null,null,null,null,null,"X"]
[null,null,null,null,null,null,null,"X"]
[null,null,null,null,null,null,null,"X"]
[null,null,null,null,null,null,null,"X"]
[null,null,null,null,null,null,null,"X"]
[null,null,null,null,null,null,null,"X"]
[null,null,null,null,null,null,null,"X"]
[null,null,null,null,null,null,null,"X"]
[null,null,null,null,null,null,null,"X"]
[null,null,null,null,null,null,null,"X"]
[null,null,null,null,null,null,null,"X"]
[null,null,null,null,null,null,null,"X"]
[null,null,null,null,null,null,null,"X"]
[null,null,null,null,null,null,null,"X"]
[null,null,null,null,null,null,null,"X"]
[null,null,null,null,null,null,null,"X"]
[null,null,null,null,null,null,null,"X"]
[null,null,null,null,null,null,null,"X"]
[null,null,null,null,null,null,null,"X"]
[null,null,null,null,null,null,null,"X"]
[null,null,null,null,null,null,null,"X"]
[null,null,null,null,null,null,null,"X"]
[null,null,null,null,null,null,null,"X"]
[null,null,null,null,null,null,null,"X"]
[null,null,null,null,null,null,null,"X"]
[null,null,null,null,null,null,null,{"$f":"_xlfn.CONCAT(D8963,\"X\",G8963)","v":"X"}]
[null,null,null,null,null,null,null,"X"]
[null,null,null,null,null,null,null,"X"]
[null,null,null,null,null,null,null,"X"]
[null,null,null,null,null,null,null,"X"]
[null,null,null,null,null,null,null,"X"]
[null,null,null,null,null,null,null,"X"]
[null,null,null,null,null,null,null,"X"]
[null,null,null,null,null,null,null,"X"]
[null,null,null,null,null,null,null,"X"]
[null,null,null,null,null,null,null,"X"]
[null,null,null,null,null,null,null,"X"]
[null,null,null,null,null,null,null,"X"]
[null,null,null,null,null,null,null,"X"]
[null,null,null,null,null,null,null,"X"]
[null,null,null,null,null,null,null,"X"]
[null,null,null,null,null,null,null,"X"]
[null,null,null,null,null,null,null,"X"]
[null,null,null,null,null,null,null,"X"]
[null,null,null,null,null,null,null,"X"]
[null,null,null,null,null,null,null,"X"]
[null,null,null,null,null,null,null,"X"]
[null,null,null,null,null,null,null,"X"]
[null,null,null,null,null,null,null,"X"]
[null,null,null,null,null,null,null,"X"]
[null,null,null,null,null,null,null,"X"]
[null,null,null,null,null,null,null,"X"]
[null,null,null,null,null,null,null,"X"]
[null,null,null,null,null,null,null,"X"]
[null,null,null,null,null,null,null,"X"]
[null,null,null,null,null,null,null,"X"]
[null,null,null,null,null,null,null,"X"]
[null,null,null,null,null,null,null,"X"]
[null,null,null,null,null,null,null,"X"]
[null,null,null,null,null,null,null,"X"]
[null,null,null,null,null,null,null,"X"]
[null,null,null,null,null,null,null,"X"]
[null,null,null,null,null,null,null,"X"]
[null,null,null,null,null,null,null,"X"]
[null,null,null,null,null,null,null,"X"]
[null,null,null,null,null,null,null,"X"]
[null,null,null,null,null,null,null,"X"]
[null,null,null,null,null,null,null,"X"]
[null,null,null,null,null,null,null,"X"]
[null,null,null,null,null,null,null,"X"]
[null,null,null,null,null,null,null,"X"]
[null,null,null,null,null,null,null,"X"]
[null,null,null,null,null,null,null,"X"]
[null,null,null,null,null,null,null,"X"]
[null,null,null,null,null,null,null,"X"]
[null,null,null,null,null,null,null,"X"]
[null,null,null,null,null,null,null,"X"]
[null,null,null,null,null,null,null,"X"]
[null,null,null,null,null,null,null,"X"]
[null,null,null,null,null,null,null,"X"]
[null,null,null,null,null,null,null,"X"]
[null,null,null,null,null,null,null,"X"]
[null,null,null,null,null,null,null,"X"]
[null,null,null,null,null,null,null,"X"]
[null,null,null,null,null,null,null,"X"]
[null,null,null,null,null,null,null,"X"]
[null,null,null,null,null,null,null,"X"]
[null,null,null,null,null,null,null,"X"]
[null,null,null,null,null,null,null,"X"]
[null,null,null,null,null,null,null,{"$f":"_xlfn.CONCAT(D9027,\"X\",G9027)","v":"X"}]
[null,null,null,null,null,null,null,"X"]
[null,null,null,null,null,null,null,"X"]
[null,null,null,null,null,null,null,"X"]
[null,null,null,null,null,null,null,"X"]
[null,null,null,null,null,null,null,"X"]
[null,null,null,null,null,null,null,"X"]
[null,null,null,null,null,null,null,"X"]
[null,null,null,null,null,null,null,"X"]
[null,null,null,null,null,null,null,"X"]
[null,null,null,null,null,null,null,"X"]
[null,null,null,null,null,null,null,"X"]
[null,null,null,null,null,null,null,"X"]
[null,null,null,null,null,null,null,"X"]
[null,null,null,null,null,null,null,"X"]
[null,null,null,null,null,null,null,"X"]
[null,null,null,null,null,null,null,"X"]
[null,null,null,null,null,null,null,"X"]
[null,null,null,null,null,null,null,"X"]
[null,null,null,null,null,null,null,"X"]
[null,null,null,null,null,null,null,"X"]
[null,null,null,null,null,null,null,"X"]
[null,null,null,null,null,null,null,"X"]
[null,null,null,null,null,null,null,"X"]
[null,null,null,null,null,null,null,"X"]
[null,null,null,null,null,null,null,"X"]
[null,null,null,null,null,null,null,"X"]
[null,null,null,null,null,null,null,"X"]
[null,null,null,null,null,null,null,"X"]
[null,null,null,null,null,null,null,"X"]
[null,null,null,null,null,null,null,"X"]
[null,null,null,null,null,null,null,"X"]
[null,null,null,null,null,null,null,"X"]
[null,null,null,null,null,null,null,"X"]
[null,null,null,null,null,null,null,"X"]
[null,null,null,null,null,null,null,"X"]
[null,null,null,null,null,null,null,"X"]
[null,null,null,null,null,null,null,"X"]
[null,null,null,null,null,null,null,"X"]
[null,null,null,null,null,null,null,"X"]
[null,null,null,null,null,null,null,"X"]
[null,null,null,null,null,null,null,"X"]
[null,null,null,null,null,null,null,"X"]
[null,null,null,null,null,null,null,"X"]
[null,null,null,null,null,null,null,"X"]
[null,null,null,null,null,null,null,"X"]
[null,null,null,null,null,null,null,"X"]
[null,null,null,null,null,null,null,"X"]
[null,null,null,null,null,null,null,"X"]
[null,null,null,null,null,null,null,"X"]
[null,null,null,null,null,null,null,"X"]
[null,null,null,null,null,null,null,"X"]
[null,null,null,null,null,null,null,"X"]
[null,null,null,null,null,null,null,"X"]
[null,null,null,null,null,null,null,"X"]
[null,null,null,null,null,null,null,"X"]
[null,null,null,null,null,null,null,"X"]
[null,null,null,null,null,null,null,"X"]
[null,null,null,null,null,null,null,"X"]
[null,null,null,null,null,null,null,"X"]
[null,null,null,null,null,null,null,"X"]
[null,null,null,null,null,null,null,"X"]
[null,null,null,null,null,null,null,"X"]
[null,null,null,null,null,null,null,"X"]
[null,null,null,null,null,null,null,{"$f":"_xlfn.CONCAT(D9091,\"X\",G9091)","v":"X"}]
[null,null,null,null,null,null,null,"X"]
[null,null,null,null,null,null,null,"X"]
[null,null,null,null,null,null,null,"X"]
[null,null,null,null,null,null,null,"X"]
[null,null,null,null,null,null,null,"X"]
[null,null,null,null,null,null,null,"X"]
[null,null,null,null,null,null,null,"X"]
[null,null,null,null,null,null,null,"X"]
[null,null,null,null,null,null,null,"X"]
[null,null,null,null,null,null,null,"X"]
[null,null,null,null,null,null,null,"X"]
[null,null,null,null,null,null,null,"X"]
[null,null,null,null,null,null,null,"X"]
[null,null,null,null,null,null,null,"X"]
[null,null,null,null,null,null,null,"X"]
[null,null,null,null,null,null,null,"X"]
[null,null,null,null,null,null,null,"X"]
[null,null,null,null,null,null,null,"X"]
[null,null,null,null,null,null,null,"X"]
[null,null,null,null,null,null,null,"X"]
[null,null,null,null,null,null,null,"X"]
[null,null,null,null,null,null,null,"X"]
[null,null,null,null,null,null,null,"X"]
[null,null,null,null,null,null,null,"X"]
[null,null,null,null,null,null,null,"X"]
[null,null,null,null,null,null,null,"X"]
[null,null,null,null,null,null,null,"X"]
[null,null,null,null,null,null,null,"X"]
[null,null,null,null,null,null,null,"X"]
[null,null,null,null,null,null,null,"X"]
[null,null,null,null,null,null,null,"X"]
[null,null,null,null,null,null,null,"X"]
[null,null,null,null,null,null,null,"X"]
[null,null,null,null,null,null,null,"X"]
[null,null,null,null,null,null,null,"X"]
[null,null,null,null,null,null,null,"X"]
[null,null,null,null,null,null,null,"X"]
[null,null,null,null,null,null,null,"X"]
[null,null,null,null,null,null,null,"X"]
[null,null,null,null,null,null,null,"X"]
[null,null,null,null,null,null,null,"X"]
[null,null,null,null,null,null,null,"X"]
[null,null,null,null,null,null,null,"X"]
[null,null,null,null,null,null,null,"X"]
[null,null,null,null,null,null,null,"X"]
[null,null,null,null,null,null,null,"X"]
[null,null,null,null,null,null,null,"X"]
[null,null,null,null,null,null,null,"X"]
[null,null,null,null,null,null,null,"X"]
[null,null,null,null,null,null,null,"X"]
[null,null,null,null,null,null,null,"X"]
[null,null,null,null,null,null,null,"X"]
[null,null,null,null,null,null,null,"X"]
[null,null,null,null,null,null,null,"X"]
[null,null,null,null,null,null,null,"X"]
[null,null,null,null,null,null,null,"X"]
[null,null,null,null,null,null,null,"X"]
[null,null,null,null,null,null,null,"X"]
[null,null,null,null,null,null,null,"X"]
[null,null,null,null,null,null,null,"X"]
[null,null,null,null,null,null,null,"X"]
[null,null,null,null,null,null,null,"X"]
[null,null,null,null,null,null,null,"X"]
[null,null,null,null,null,null,null,{"$f":"_xlfn.CONCAT(D9155,\"X\",G9155)","v":"X"}]
[null,null,null,null,null,null,null,"X"]
[null,null,null,null,null,null,null,"X"]
[null,null,null,null,null,null,null,"X"]
[null,null,null,null,null,null,null,"X"]
[null,null,null,null,null,null,null,"X"]
[null,null,null,null,null,null,null,"X"]
[null,null,null,null,null,null,null,"X"]
[null,null,null,null,null,null,null,"X"]
[null,null,null,null,null,null,null,"X"]
[null,null,null,null,null,null,null,"X"]
[null,null,null,null,null,null,null,"X"]
[null,null,null,null,null,null,null,"X"]
[null,null,null,null,null,null,null,"X"]
[null,null,null,null,null,null,null,"X"]
[null,null,null,null,null,null,null,"X"]
[null,null,null,null,null,null,null,"X"]
[null,null,null,null,null,null,null,"X"]
[null,null,null,null,null,null,null,"X"]
[null,null,null,null,null,null,null,"X"]
[null,null,null,null,null,null,null,"X"]
[null,null,null,null,null,null,null,"X"]
[null,null,null,null,null,null,null,"X"]
[null,null,null,null,null,null,null,"X"]
[null,null,null,null,null,null,null,"X"]
[null,null,null,null,null,null,null,"X"]
[null,null,null,null,null,null,null,"X"]
[null,null,null,null,null,null,null,"X"]
[null,null,null,null,null,null,null,"X"]
[null,null,null,null,null,null,null,"X"]
[null,null,null,null,null,null,null,"X"]
[null,null,null,null,null,null,null,"X"]
[null,null,null,null,null,null,null,"X"]
[null,null,null,null,null,null,null,"X"]
[null,null,null,null,null,null,null,"X"]
[null,null,null,null,null,null,null,"X"]
[null,null,null,null,null,null,null,"X"]
[null,null,null,null,null,null,null,"X"]
[null,null,null,null,null,null,null,"X"]
[null,null,null,null,null,null,null,"X"]
[null,null,null,null,null,null,null,"X"]
[null,null,null,null,null,null,null,"X"]
[null,null,null,null,null,null,null,"X"]
[null,null,null,null,null,null,null,"X"]
[null,null,null,null,null,null,null,"X"]
[null,null,null,null,null,null,null,"X"]
[null,null,null,null,null,null,null,"X"]
[null,null,null,null,null,null,null,"X"]
[null,null,null,null,null,null,null,"X"]
[null,null,null,null,null,null,null,"X"]
[null,null,null,null,null,null,null,"X"]
[null,null,null,null,null,null,null,"X"]
[null,null,null,null,null,null,null,"X"]
[null,null,null,null,null,null,null,"X"]
[null,null,null,null,null,null,null,"X"]
[null,null,null,null,null,null,null,"X"]
[null,null,null,null,null,null,null,"X"]
[null,null,null,null,null,null,null,"X"]
[null,null,null,null,null,null,null,"X"]
[null,null,null,null,null,null,null,"X"]
[null,null,null,null,null,null,null,"X"]
[null,null,null,null,null,null,null,"X"]
[null,null,null,null,null,null,null,"X"]
[null,null,null,null,null,null,null,"X"]
[null,null,null,null,null,null,null,{"$f":"_xlfn.CONCAT(D9219,\"X\",G9219)","v":"X"}]
[null,null,null,null,null,null,null,"X"]
[null,null,null,null,null,null,null,"X"]
[null,null,null,null,null,null,null,"X"]
[null,null,null,null,null,null,null,"X"]
[null,null,null,null,null,null,null,"X"]
[null,null,null,null,null,null,null,"X"]
[null,null,null,null,null,null,null,"X"]
[null,null,null,null,null,null,null,"X"]
[null,null,null,null,null,null,null,"X"]
[null,null,null,null,null,null,null,"X"]
[null,null,null,null,null,null,null,"X"]
[null,null,null,null,null,null,null,"X"]
[null,null,null,null,null,null,null,"X"]
[null,null,null,null,null,null,null,"X"]
[null,null,null,null,null,null,null,"X"]
[null,null,null,null,null,null,null,"X"]
[null,null,null,null,null,null,null,"X"]
[null,null,null,null,null,null,null,"X"]
[null,null,null,null,null,null,null,"X"]
[null,null,null,null,null,null,null,"X"]
[null,null,null,null,null,null,null,"X"]
[null,null,null,null,null,null,null,"X"]
[null,null,null,null,null,null,null,"X"]
[null,null,null,null,null,null,null,"X"]
[null,null,null,null,null,null,null,"X"]
[null,null,null,null,null,null,null,"X"]
[null,null,null,null,null,null,null,"X"]
[null,null,null,null,null,null,null,"X"]
[null,null,null,null,null,null,null,"X"]
[null,null,null,null,null,null,null,"X"]
[null,null,null,null,null,null,null,"X"]
[null,null,null,null,null,null,null,"X"]
[null,null,null,null,null,null,null,"X"]
[null,null,null,null,null,null,null,"X"]
[null,null,null,null,null,null,null,"X"]
[null,null,null,null,null,null,null,"X"]
[null,null,null,null,null,null,null,"X"]
[null,null,null,null,null,null,null,"X"]
[null,null,null,null,null,null,null,"X"]
[null,null,null,null,null,null,null,"X"]
[null,null,null,null,null,null,null,"X"]
[null,null,null,null,null,null,null,"X"]
[null,null,null,null,null,null,null,"X"]
[null,null,null,null,null,null,null,"X"]
[null,null,null,null,null,null,null,"X"]
[null,null,null,null,null,null,null,"X"]
[null,null,null,null,null,null,null,"X"]
[null,null,null,null,null,null,null,"X"]
[null,null,null,null,null,null,null,"X"]
[null,null,null,null,null,null,null,"X"]
[null,null,null,null,null,null,null,"X"]
[null,null,null,null,null,null,null,"X"]
[null,null,null,null,null,null,null,"X"]
[null,null,null,null,null,null,null,"X"]
[null,null,null,null,null,null,null,"X"]
[null,null,null,null,null,null,null,"X"]
[null,null,null,null,null,null,null,"X"]
[null,null,null,null,null,null,null,"X"]
[null,null,null,null,null,null,null,"X"]
[null,null,null,null,null,null,null,"X"]
[null,null,null,null,null,null,null,"X"]
[null,null,null,null,null,null,null,"X"]
[null,null,null,null,null,null,null,"X"]
[null,null,null,null,null,null,null,{"$f":"_xlfn.CONCAT(D9283,\"X\",G9283)","v":"X"}]
[null,null,null,null,null,null,null,"X"]
[null,null,null,null,null,null,null,"X"]
[null,null,null,null,null,null,null,"X"]
[null,null,null,null,null,null,null,"X"]
[null,null,null,null,null,null,null,"X"]
[null,null,null,null,null,null,null,"X"]
[null,null,null,null,null,null,null,"X"]
[null,null,null,null,null,null,null,"X"]
[null,null,null,null,null,null,null,"X"]
[null,null,null,null,null,null,null,"X"]
[null,null,null,null,null,null,null,"X"]
[null,null,null,null,null,null,null,"X"]
[null,null,null,null,null,null,null,"X"]
[null,null,null,null,null,null,null,"X"]
[null,null,null,null,null,null,null,"X"]
[null,null,null,null,null,null,null,"X"]
[null,null,null,null,null,null,null,"X"]
[null,null,null,null,null,null,null,"X"]
[null,null,null,null,null,null,null,"X"]
[null,null,null,null,null,null,null,"X"]
[null,null,null,null,null,null,null,"X"]
[null,null,null,null,null,null,null,"X"]
[null,null,null,null,null,null,null,"X"]
[null,null,null,null,null,null,null,"X"]
[null,null,null,null,null,null,null,"X"]
[null,null,null,null,null,null,null,"X"]
[null,null,null,null,null,null,null,"X"]
[null,null,null,null,null,null,null,"X"]
[null,null,null,null,null,null,null,"X"]
[null,null,null,null,null,null,null,"X"]
[null,null,null,null,null,null,null,"X"]
[null,null,null,null,null,null,null,"X"]
[null,null,null,null,null,null,null,"X"]
[null,null,null,null,null,null,null,"X"]
[null,null,null,null,null,null,null,"X"]
[null,null,null,null,null,null,null,"X"]
[null,null,null,null,null,null,null,"X"]
[null,null,null,null,null,null,null,"X"]
[null,null,null,null,null,null,null,"X"]
[null,null,null,null,null,null,null,"X"]
[null,null,null,null,null,null,null,"X"]
[null,null,null,null,null,null,null,"X"]
[null,null,null,null,null,null,null,"X"]
[null,null,null,null,null,null,null,"X"]
[null,null,null,null,null,null,null,"X"]
[null,null,null,null,null,null,null,"X"]
[null,null,null,null,null,null,null,"X"]
[null,null,null,null,null,null,null,"X"]
[null,null,null,null,null,null,null,"X"]
[null,null,null,null,null,null,null,"X"]
[null,null,null,null,null,null,null,"X"]
[null,null,null,null,null,null,null,"X"]
[null,null,null,null,null,null,null,"X"]
[null,null,null,null,null,null,null,"X"]
[null,null,null,null,null,null,null,"X"]
[null,null,null,null,null,null,null,"X"]
[null,null,null,null,null,null,null,"X"]
[null,null,null,null,null,null,null,"X"]
[null,null,null,null,null,null,null,"X"]
[null,null,null,null,null,null,null,"X"]
[null,null,null,null,null,null,null,"X"]
[null,null,null,null,null,null,null,"X"]
[null,null,null,null,null,null,null,"X"]
[null,null,null,null,null,null,null,{"$f":"_xlfn.CONCAT(D9347,\"X\",G9347)","v":"X"}]
[null,null,null,null,null,null,null,"X"]
[null,null,null,null,null,null,null,"X"]
[null,null,null,null,null,null,null,"X"]
[null,null,null,null,null,null,null,"X"]
[null,null,null,null,null,null,null,"X"]
[null,null,null,null,null,null,null,"X"]
[null,null,null,null,null,null,null,"X"]
[null,null,null,null,null,null,null,"X"]
[null,null,null,null,null,null,null,"X"]
[null,null,null,null,null,null,null,"X"]
[null,null,null,null,null,null,null,"X"]
[null,null,null,null,null,null,null,"X"]
[null,null,null,null,null,null,null,"X"]
[null,null,null,null,null,null,null,"X"]
[null,null,null,null,null,null,null,"X"]
[null,null,null,null,null,null,null,"X"]
[null,null,null,null,null,null,null,"X"]
[null,null,null,null,null,null,null,"X"]
[null,null,null,null,null,null,null,"X"]
[null,null,null,null,null,null,null,"X"]
[null,null,null,null,null,null,null,"X"]
[null,null,null,null,null,null,null,"X"]
[null,null,null,null,null,null,null,"X"]
[null,null,null,null,null,null,null,"X"]
[null,null,null,null,null,null,null,"X"]
[null,null,null,null,null,null,null,"X"]
[null,null,null,null,null,null,null,"X"]
[null,null,null,null,null,null,null,"X"]
[null,null,null,null,null,null,null,"X"]
[null,null,null,null,null,null,null,"X"]
[null,null,null,null,null,null,null,"X"]
[null,null,null,null,null,null,null,"X"]
[null,null,null,null,null,null,null,"X"]
[null,null,null,null,null,null,null,"X"]
[null,null,null,null,null,null,null,"X"]
[null,null,null,null,null,null,null,"X"]
[null,null,null,null,null,null,null,"X"]
[null,null,null,null,null,null,null,"X"]
[null,null,null,null,null,null,null,"X"]
[null,null,null,null,null,null,null,"X"]
[null,null,null,null,null,null,null,"X"]
[null,null,null,null,null,null,null,"X"]
[null,null,null,null,null,null,null,"X"]
[null,null,null,null,null,null,null,"X"]
[null,null,null,null,null,null,null,"X"]
[null,null,null,null,null,null,null,"X"]
[null,null,null,null,null,null,null,"X"]
[null,null,null,null,null,null,null,"X"]
[null,null,null,null,null,null,null,"X"]
[null,null,null,null,null,null,null,"X"]
[null,null,null,null,null,null,null,"X"]
[null,null,null,null,null,null,null,"X"]
[null,null,null,null,null,null,null,"X"]
[null,null,null,null,null,null,null,"X"]
[null,null,null,null,null,null,null,"X"]
[null,null,null,null,null,null,null,"X"]
[null,null,null,null,null,null,null,"X"]
[null,null,null,null,null,null,null,"X"]
[null,null,null,null,null,null,null,"X"]
[null,null,null,null,null,null,null,"X"]
[null,null,null,null,null,null,null,"X"]
[null,null,null,null,null,null,null,"X"]
[null,null,null,null,null,null,null,"X"]
[null,null,null,null,null,null,null,{"$f":"_xlfn.CONCAT(D9411,\"X\",G9411)","v":"X"}]
[null,null,null,null,null,null,null,"X"]
[null,null,null,null,null,null,null,"X"]
[null,null,null,null,null,null,null,"X"]
[null,null,null,null,null,null,null,"X"]
[null,null,null,null,null,null,null,"X"]
[null,null,null,null,null,null,null,"X"]
[null,null,null,null,null,null,null,"X"]
[null,null,null,null,null,null,null,"X"]
[null,null,null,null,null,null,null,"X"]
[null,null,null,null,null,null,null,"X"]
[null,null,null,null,null,null,null,"X"]
[null,null,null,null,null,null,null,"X"]
[null,null,null,null,null,null,null,"X"]
[null,null,null,null,null,null,null,"X"]
[null,null,null,null,null,null,null,"X"]
[null,null,null,null,null,null,null,"X"]
[null,null,null,null,null,null,null,"X"]
[null,null,null,null,null,null,null,"X"]
[null,null,null,null,null,null,null,"X"]
[null,null,null,null,null,null,null,"X"]
[null,null,null,null,null,null,null,"X"]
[null,null,null,null,null,null,null,"X"]
[null,null,null,null,null,null,null,"X"]
[null,null,null,null,null,null,null,"X"]
[null,null,null,null,null,null,null,"X"]
[null,null,null,null,null,null,null,"X"]
[null,null,null,null,null,null,null,"X"]
[null,null,null,null,null,null,null,"X"]
[null,null,null,null,null,null,null,"X"]
[null,null,null,null,null,null,null,"X"]
[null,null,null,null,null,null,null,"X"]
[null,null,null,null,null,null,null,"X"]
[null,null,null,null,null,null,null,"X"]
[null,null,null,null,null,null,null,"X"]
[null,null,null,null,null,null,null,"X"]
[null,null,null,null,null,null,null,"X"]
[null,null,null,null,null,null,null,"X"]
[null,null,null,null,null,null,null,"X"]
[null,null,null,null,null,null,null,"X"]
[null,null,null,null,null,null,null,"X"]
[null,null,null,null,null,null,null,"X"]
[null,null,null,null,null,null,null,"X"]
[null,null,null,null,null,null,null,"X"]
[null,null,null,null,null,null,null,"X"]
[null,null,null,null,null,null,null,"X"]
[null,null,null,null,null,null,null,"X"]
[null,null,null,null,null,null,null,"X"]
[null,null,null,null,null,null,null,"X"]
[null,null,null,null,null,null,null,"X"]
[null,null,null,null,null,null,null,"X"]
[null,null,null,null,null,null,null,"X"]
[null,null,null,null,null,null,null,"X"]
[null,null,null,null,null,null,null,"X"]
[null,null,null,null,null,null,null,"X"]
[null,null,null,null,null,null,null,"X"]
[null,null,null,null,null,null,null,"X"]
[null,null,null,null,null,null,null,"X"]
[null,null,null,null,null,null,null,"X"]
[null,null,null,null,null,null,null,"X"]
[null,null,null,null,null,null,null,"X"]
[null,null,null,null,null,null,null,"X"]
[null,null,null,null,null,null,null,"X"]
[null,null,null,null,null,null,null,"X"]
[null,null,null,null,null,null,null,{"$f":"_xlfn.CONCAT(D9475,\"X\",G9475)","v":"X"}]
[null,null,null,null,null,null,null,"X"]
[null,null,null,null,null,null,null,"X"]
[null,null,null,null,null,null,null,"X"]
[null,null,null,null,null,null,null,"X"]
[null,null,null,null,null,null,null,"X"]
[null,null,null,null,null,null,null,"X"]
[null,null,null,null,null,null,null,"X"]
[null,null,null,null,null,null,null,"X"]
[null,null,null,null,null,null,null,"X"]
[null,null,null,null,null,null,null,"X"]
[null,null,null,null,null,null,null,"X"]
[null,null,null,null,null,null,null,"X"]
[null,null,null,null,null,null,null,"X"]
[null,null,null,null,null,null,null,"X"]
[null,null,null,null,null,null,null,"X"]
[null,null,null,null,null,null,null,"X"]
[null,null,null,null,null,null,null,"X"]
[null,null,null,null,null,null,null,"X"]
[null,null,null,null,null,null,null,"X"]
[null,null,null,null,null,null,null,"X"]
[null,null,null,null,null,null,null,"X"]
[null,null,null,null,null,null,null,"X"]
[null,null,null,null,null,null,null,"X"]
[null,null,null,null,null,null,null,"X"]
[null,null,null,null,null,null,null,"X"]
[null,null,null,null,null,null,null,"X"]
[null,null,null,null,null,null,null,"X"]
[null,null,null,null,null,null,null,"X"]
[null,null,null,null,null,null,null,"X"]
[null,null,null,null,null,null,null,"X"]
[null,null,null,null,null,null,null,"X"]
[null,null,null,null,null,null,null,"X"]
[null,null,null,null,null,null,null,"X"]
[null,null,null,null,null,null,null,"X"]
[null,null,null,null,null,null,null,"X"]
[null,null,null,null,null,null,null,"X"]
[null,null,null,null,null,null,null,"X"]
[null,null,null,null,null,null,null,"X"]
[null,null,null,null,null,null,null,"X"]
[null,null,null,null,null,null,null,"X"]
[null,null,null,null,null,null,null,"X"]
[null,null,null,null,null,null,null,"X"]
[null,null,null,null,null,null,null,"X"]
[null,null,null,null,null,null,null,"X"]
[null,null,null,null,null,null,null,"X"]
[null,null,null,null,null,null,null,"X"]
[null,null,null,null,null,null,null,"X"]
[null,null,null,null,null,null,null,"X"]
[null,null,null,null,null,null,null,"X"]
[null,null,null,null,null,null,null,"X"]
[null,null,null,null,null,null,null,"X"]
[null,null,null,null,null,null,null,"X"]
[null,null,null,null,null,null,null,"X"]
[null,null,null,null,null,null,null,"X"]
[null,null,null,null,null,null,null,"X"]
[null,null,null,null,null,null,null,"X"]
[null,null,null,null,null,null,null,"X"]
[null,null,null,null,null,null,null,"X"]
[null,null,null,null,null,null,null,"X"]
[null,null,null,null,null,null,null,"X"]
[null,null,null,null,null,null,null,"X"]
[null,null,null,null,null,null,null,"X"]
[null,null,null,null,null,null,null,"X"]
[null,null,null,null,null,null,null,{"$f":"_xlfn.CONCAT(D9539,\"X\",G9539)","v":"X"}]
[null,null,null,null,null,null,null,"X"]
[null,null,null,null,null,null,null,"X"]
[null,null,null,null,null,null,null,"X"]
[null,null,null,null,null,null,null,"X"]
[null,null,null,null,null,null,null,"X"]
[null,null,null,null,null,null,null,"X"]
[null,null,null,null,null,null,null,"X"]
[null,null,null,null,null,null,null,"X"]
[null,null,null,null,null,null,null,"X"]
[null,null,null,null,null,null,null,"X"]
[null,null,null,null,null,null,null,"X"]
[null,null,null,null,null,null,null,"X"]
[null,null,null,null,null,null,null,"X"]
[null,null,null,null,null,null,null,"X"]
[null,null,null,null,null,null,null,"X"]
[null,null,null,null,null,null,null,"X"]
[null,null,null,null,null,null,null,"X"]
[null,null,null,null,null,null,null,"X"]
[null,null,null,null,null,null,null,"X"]
[null,null,null,null,null,null,null,"X"]
[null,null,null,null,null,null,null,"X"]
[null,null,null,null,null,null,null,"X"]
[null,null,null,null,null,null,null,"X"]
[null,null,null,null,null,null,null,"X"]
[null,null,null,null,null,null,null,"X"]
[null,null,null,null,null,null,null,"X"]
[null,null,null,null,null,null,null,"X"]
[null,null,null,null,null,null,null,"X"]
[null,null,null,null,null,null,null,"X"]
[null,null,null,null,null,null,null,"X"]
[null,null,null,null,null,null,null,"X"]
[null,null,null,null,null,null,null,"X"]
[null,null,null,null,null,null,null,"X"]
[null,null,null,null,null,null,null,"X"]
[null,null,null,null,null,null,null,"X"]
[null,null,null,null,null,null,null,"X"]
[null,null,null,null,null,null,null,"X"]
[null,null,null,null,null,null,null,"X"]
[null,null,null,null,null,null,null,"X"]
[null,null,null,null,null,null,null,"X"]
[null,null,null,null,null,null,null,"X"]
[null,null,null,null,null,null,null,"X"]
[null,null,null,null,null,null,null,"X"]
[null,null,null,null,null,null,null,"X"]
[null,null,null,null,null,null,null,"X"]
[null,null,null,null,null,null,null,"X"]
[null,null,null,null,null,null,null,"X"]
[null,null,null,null,null,null,null,"X"]
[null,null,null,null,null,null,null,"X"]
[null,null,null,null,null,null,null,"X"]
[null,null,null,null,null,null,null,"X"]
[null,null,null,null,null,null,null,"X"]
[null,null,null,null,null,null,null,"X"]
[null,null,null,null,null,null,null,"X"]
[null,null,null,null,null,null,null,"X"]
[null,null,null,null,null,null,null,"X"]
[null,null,null,null,null,null,null,"X"]
[null,null,null,null,null,null,null,"X"]
[null,null,null,null,null,null,null,"X"]
[null,null,null,null,null,null,null,"X"]
[null,null,null,null,null,null,null,"X"]
[null,null,null,null,null,null,null,"X"]
[null,null,null,null,null,null,null,"X"]
[null,null,null,null,null,null,null,{"$f":"_xlfn.CONCAT(D9603,\"X\",G9603)","v":"X"}]
[null,null,null,null,null,null,null,"X"]
[null,null,null,null,null,null,null,"X"]
[null,null,null,null,null,null,null,"X"]
[null,null,null,null,null,null,null,"X"]
[null,null,null,null,null,null,null,"X"]
[null,null,null,null,null,null,null,"X"]
[null,null,null,null,null,null,null,"X"]
[null,null,null,null,null,null,null,"X"]
[null,null,null,null,null,null,null,"X"]
[null,null,null,null,null,null,null,"X"]
[null,null,null,null,null,null,null,"X"]
[null,null,null,null,null,null,null,"X"]
[null,null,null,null,null,null,null,"X"]
[null,null,null,null,null,null,null,"X"]
[null,null,null,null,null,null,null,"X"]
[null,null,null,null,null,null,null,"X"]
[null,null,null,null,null,null,null,"X"]
[null,null,null,null,null,null,null,"X"]
[null,null,null,null,null,null,null,"X"]
[null,null,null,null,null,null,null,"X"]
[null,null,null,null,null,null,null,"X"]
[null,null,null,null,null,null,null,"X"]
[null,null,null,null,null,null,null,"X"]
[null,null,null,null,null,null,null,"X"]
[null,null,null,null,null,null,null,"X"]
[null,null,null,null,null,null,null,"X"]
[null,null,null,null,null,null,null,"X"]
[null,null,null,null,null,null,null,"X"]
[null,null,null,null,null,null,null,"X"]
[null,null,null,null,null,null,null,"X"]
[null,null,null,null,null,null,null,"X"]
[null,null,null,null,null,null,null,"X"]
[null,null,null,null,null,null,null,"X"]
[null,null,null,null,null,null,null,"X"]
[null,null,null,null,null,null,null,"X"]
[null,null,null,null,null,null,null,"X"]
[null,null,null,null,null,null,null,"X"]
[null,null,null,null,null,null,null,"X"]
[null,null,null,null,null,null,null,"X"]
[null,null,null,null,null,null,null,"X"]
[null,null,null,null,null,null,null,"X"]
[null,null,null,null,null,null,null,"X"]
[null,null,null,null,null,null,null,"X"]
[null,null,null,null,null,null,null,"X"]
[null,null,null,null,null,null,null,"X"]
[null,null,null,null,null,null,null,"X"]
[null,null,null,null,null,null,null,"X"]
[null,null,null,null,null,null,null,"X"]
[null,null,null,null,null,null,null,"X"]
[null,null,null,null,null,null,null,"X"]
[null,null,null,null,null,null,null,"X"]
[null,null,null,null,null,null,null,"X"]
[null,null,null,null,null,null,null,"X"]
[null,null,null,null,null,null,null,"X"]
[null,null,null,null,null,null,null,"X"]
[null,null,null,null,null,null,null,"X"]
[null,null,null,null,null,null,null,"X"]
[null,null,null,null,null,null,null,"X"]
[null,null,null,null,null,null,null,"X"]
[null,null,null,null,null,null,null,"X"]
[null,null,null,null,null,null,null,"X"]
[null,null,null,null,null,null,null,"X"]
[null,null,null,null,null,null,null,"X"]
[null,null,null,null,null,null,null,{"$f":"_xlfn.CONCAT(D9667,\"X\",G9667)","v":"X"}]
[null,null,null,null,null,null,null,"X"]
[null,null,null,null,null,null,null,"X"]
[null,null,null,null,null,null,null,"X"]
[null,null,null,null,null,null,null,"X"]
[null,null,null,null,null,null,null,"X"]
[null,null,null,null,null,null,null,"X"]
[null,null,null,null,null,null,null,"X"]
[null,null,null,null,null,null,null,"X"]
[null,null,null,null,null,null,null,"X"]
[null,null,null,null,null,null,null,"X"]
[null,null,null,null,null,null,null,"X"]
[null,null,null,null,null,null,null,"X"]
[null,null,null,null,null,null,null,"X"]
[null,null,null,null,null,null,null,"X"]
[null,null,null,null,null,null,null,"X"]
[null,null,null,null,null,null,null,"X"]
[null,null,null,null,null,null,null,"X"]
[null,null,null,null,null,null,null,"X"]
[null,null,null,null,null,null,null,"X"]
[null,null,null,null,null,null,null,"X"]
[null,null,null,null,null,null,null,"X"]
[null,null,null,null,null,null,null,"X"]
[null,null,null,null,null,null,null,"X"]
[null,null,null,null,null,null,null,"X"]
[null,null,null,null,null,null,null,"X"]
[null,null,null,null,null,null,null,"X"]
[null,null,null,null,null,null,null,"X"]
[null,null,null,null,null,null,null,"X"]
[null,null,null,null,null,null,null,"X"]
[null,null,null,null,null,null,null,"X"]
[null,null,null,null,null,null,null,"X"]
[null,null,null,null,null,null,null,"X"]
[null,null,null,null,null,null,null,"X"]
[null,null,null,null,null,null,null,"X"]
[null,null,null,null,null,null,null,"X"]
[null,null,null,null,null,null,null,"X"]
[null,null,null,null,null,null,null,"X"]
[null,null,null,null,null,null,null,"X"]
[null,null,null,null,null,null,null,"X"]
[null,null,null,null,null,null,null,"X"]
[null,null,null,null,null,null,null,"X"]
[null,null,null,null,null,null,null,"X"]
[null,null,null,null,null,null,null,"X"]
[null,null,null,null,null,null,null,"X"]
[null,null,null,null,null,null,null,"X"]
[null,null,null,null,null,null,null,"X"]
[null,null,null,null,null,null,null,"X"]
[null,null,null,null,null,null,null,"X"]
[null,null,null,null,null,null,null,"X"]
[null,null,null,null,null,null,null,"X"]
[null,null,null,null,null,null,null,"X"]
[null,null,null,null,null,null,null,"X"]
[null,null,null,null,null,null,null,"X"]
[null,null,null,null,null,null,null,"X"]
[null,null,null,null,null,null,null,"X"]
[null,null,null,null,null,null,null,"X"]
[null,null,null,null,null,null,null,"X"]
[null,null,null,null,null,null,null,"X"]
[null,null,null,null,null,null,null,"X"]
[null,null,null,null,null,null,null,"X"]
[null,null,null,null,null,null,null,"X"]
[null,null,null,null,null,null,null,"X"]
[null,null,null,null,null,null,null,"X"]
[null,null,null,null,null,null,null,{"$f":"_xlfn.CONCAT(D9731,\"X\",G9731)","v":"X"}]
[null,null,null,null,null,null,null,"X"]
[null,null,null,null,null,null,null,"X"]
[null,null,null,null,null,null,null,"X"]
[null,null,null,null,null,null,null,"X"]
[null,null,null,null,null,null,null,"X"]
[null,null,null,null,null,null,null,"X"]
[null,null,null,null,null,null,null,"X"]
[null,null,null,null,null,null,null,"X"]
[null,null,null,null,null,null,null,"X"]
[null,null,null,null,null,null,null,"X"]
[null,null,null,null,null,null,null,"X"]
[null,null,null,null,null,null,null,"X"]
[null,null,null,null,null,null,null,"X"]
[null,null,null,null,null,null,null,"X"]
[null,null,null,null,null,null,null,"X"]
[null,null,null,null,null,null,null,"X"]
[null,null,null,null,null,null,null,"X"]
[null,null,null,null,null,null,null,"X"]
[null,null,null,null,null,null,null,"X"]
[null,null,null,null,null,null,null,"X"]
[null,null,null,null,null,null,null,"X"]
[null,null,null,null,null,null,null,"X"]
[null,null,null,null,null,null,null,"X"]
[null,null,null,null,null,null,null,"X"]
[null,null,null,null,null,null,null,"X"]
[null,null,null,null,null,null,null,"X"]
[null,null,null,null,null,null,null,"X"]
[null,null,null,null,null,null,null,"X"]
[null,null,null,null,null,null,null,"X"]
[null,null,null,null,null,null,null,"X"]
[null,null,null,null,null,null,null,"X"]
[null,null,null,null,null,null,null,"X"]
[null,null,null,null,null,null,null,"X"]
[null,null,null,null,null,null,null,"X"]
[null,null,null,null,null,null,null,"X"]
[null,null,null,null,null,null,null,"X"]
[null,null,null,null,null,null,null,"X"]
[null,null,null,null,null,null,null,"X"]
[null,null,null,null,null,null,null,"X"]
[null,null,null,null,null,null,null,"X"]
[null,null,null,null,null,null,null,"X"]
[null,null,null,null,null,null,null,"X"]
[null,null,null,null,null,null,null,"X"]
[null,null,null,null,null,null,null,"X"]
[null,null,null,null,null,null,null,"X"]
[null,null,null,null,null,null,null,"X"]
[null,null,null,null,null,null,null,"X"]
[null,null,null,null,null,null,null,"X"]
[null,null,null,null,null,null,null,"X"]
[null,null,null,null,null,null,null,"X"]
[null,null,null,null,null,null,null,"X"]
[null,null,null,null,null,null,null,"X"]
[null,null,null,null,null,null,null,"X"]
[null,null,null,null,null,null,null,"X"]
[null,null,null,null,null,null,null,"X"]
[null,null,null,null,null,null,null,"X"]
[null,null,null,null,null,null,null,"X"]
[null,null,null,null,null,null,null,"X"]
[null,null,null,null,null,null,null,"X"]
[null,null,null,null,null,null,null,"X"]
[null,null,null,null,null,null,null,"X"]
[null,null,null,null,null,null,null,"X"]
[null,null,null,null,null,null,null,"X"]
[null,null,null,null,null,null,null,{"$f":"_xlfn.CONCAT(D9795,\"X\",G9795)","v":"X"}]
[null,null,null,null,null,null,null,"X"]
[null,null,null,null,null,null,null,"X"]
[null,null,null,null,null,null,null,"X"]
[null,null,null,null,null,null,null,"X"]
[null,null,null,null,null,null,null,"X"]
[null,null,null,null,null,null,null,"X"]
[null,null,null,null,null,null,null,"X"]
[null,null,null,null,null,null,null,"X"]
[null,null,null,null,null,null,null,"X"]
[null,null,null,null,null,null,null,"X"]
[null,null,null,null,null,null,null,"X"]
[null,null,null,null,null,null,null,"X"]
[null,null,null,null,null,null,null,"X"]
[null,null,null,null,null,null,null,"X"]
[null,null,null,null,null,null,null,"X"]
[null,null,null,null,null,null,null,"X"]
[null,null,null,null,null,null,null,"X"]
[null,null,null,null,null,null,null,"X"]
[null,null,null,null,null,null,null,"X"]
[null,null,null,null,null,null,null,"X"]
[null,null,null,null,null,null,null,"X"]
[null,null,null,null,null,null,null,"X"]
[null,null,null,null,null,null,null,"X"]
[null,null,null,null,null,null,null,"X"]
[null,null,null,null,null,null,null,"X"]
[null,null,null,null,null,null,null,"X"]
[null,null,null,null,null,null,null,"X"]
[null,null,null,null,null,null,null,"X"]
[null,null,null,null,null,null,null,"X"]
[null,null,null,null,null,null,null,"X"]
[null,null,null,null,null,null,null,"X"]
[null,null,null,null,null,null,null,"X"]
[null,null,null,null,null,null,null,"X"]
[null,null,null,null,null,null,null,"X"]
[null,null,null,null,null,null,null,"X"]
[null,null,null,null,null,null,null,"X"]
[null,null,null,null,null,null,null,"X"]
[null,null,null,null,null,null,null,"X"]
[null,null,null,null,null,null,null,"X"]
[null,null,null,null,null,null,null,"X"]
[null,null,null,null,null,null,null,"X"]
[null,null,null,null,null,null,null,"X"]
[null,null,null,null,null,null,null,"X"]
[null,null,null,null,null,null,null,"X"]
[null,null,null,null,null,null,null,"X"]
[null,null,null,null,null,null,null,"X"]
[null,null,null,null,null,null,null,"X"]
[null,null,null,null,null,null,null,"X"]
[null,null,null,null,null,null,null,"X"]
[null,null,null,null,null,null,null,"X"]
[null,null,null,null,null,null,null,"X"]
[null,null,null,null,null,null,null,"X"]
[null,null,null,null,null,null,null,"X"]
[null,null,null,null,null,null,null,"X"]
[null,null,null,null,null,null,null,"X"]
[null,null,null,null,null,null,null,"X"]
[null,null,null,null,null,null,null,"X"]
[null,null,null,null,null,null,null,"X"]
[null,null,null,null,null,null,null,"X"]
[null,null,null,null,null,null,null,"X"]
[null,null,null,null,null,null,null,"X"]
[null,null,null,null,null,null,null,"X"]
[null,null,null,null,null,null,null,"X"]
[null,null,null,null,null,null,null,{"$f":"_xlfn.CONCAT(D9859,\"X\",G9859)","v":"X"}]
[null,null,null,null,null,null,null,"X"]
[null,null,null,null,null,null,null,"X"]
[null,null,null,null,null,null,null,"X"]
[null,null,null,null,null,null,null,"X"]
[null,null,null,null,null,null,null,"X"]
[null,null,null,null,null,null,null,"X"]
[null,null,null,null,null,null,null,"X"]
[null,null,null,null,null,null,null,"X"]
[null,null,null,null,null,null,null,"X"]
[null,null,null,null,null,null,null,"X"]
[null,null,null,null,null,null,null,"X"]
[null,null,null,null,null,null,null,"X"]
[null,null,null,null,null,null,null,"X"]
[null,null,null,null,null,null,null,"X"]
[null,null,null,null,null,null,null,"X"]
[null,null,null,null,null,null,null,"X"]
[null,null,null,null,null,null,null,"X"]
[null,null,null,null,null,null,null,"X"]
[null,null,null,null,null,null,null,"X"]
[null,null,null,null,null,null,null,"X"]
[null,null,null,null,null,null,null,"X"]
[null,null,null,null,null,null,null,"X"]
[null,null,null,null,null,null,null,"X"]
[null,null,null,null,null,null,null,"X"]
[null,null,null,null,null,null,null,"X"]
[null,null,null,null,null,null,null,"X"]
[null,null,null,null,null,null,null,"X"]
[null,null,null,null,null,null,null,"X"]
[null,null,null,null,null,null,null,"X"]
[null,null,null,null,null,null,null,"X"]
[null,null,null,null,null,null,null,"X"]
[null,null,null,null,null,null,null,"X"]
[null,null,null,null,null,null,null,"X"]
[null,null,null,null,null,null,null,"X"]
[null,null,null,null,null,null,null,"X"]
[null,null,null,null,null,null,null,"X"]
[null,null,null,null,null,null,null,"X"]
[null,null,null,null,null,null,null,"X"]
[null,null,null,null,null,null,null,"X"]
[null,null,null,null,null,null,null,"X"]
[null,null,null,null,null,null,null,"X"]
[null,null,null,null,null,null,null,"X"]
[null,null,null,null,null,null,null,"X"]
[null,null,null,null,null,null,null,"X"]
[null,null,null,null,null,null,null,"X"]
[null,null,null,null,null,null,null,"X"]
[null,null,null,null,null,null,null,"X"]
[null,null,null,null,null,null,null,"X"]
[null,null,null,null,null,null,null,"X"]
[null,null,null,null,null,null,null,"X"]
[null,null,null,null,null,null,null,"X"]
[null,null,null,null,null,null,null,"X"]
[null,null,null,null,null,null,null,"X"]
[null,null,null,null,null,null,null,"X"]
[null,null,null,null,null,null,null,"X"]
[null,null,null,null,null,null,null,"X"]
[null,null,null,null,null,null,null,"X"]
[null,null,null,null,null,null,null,"X"]
[null,null,null,null,null,null,null,"X"]
[null,null,null,null,null,null,null,"X"]
[null,null,null,null,null,null,null,"X"]
[null,null,null,null,null,null,null,"X"]
[null,null,null,null,null,null,null,"X"]
[null,null,null,null,null,null,null,{"$f":"_xlfn.CONCAT(D9923,\"X\",G9923)","v":"X"}]
[null,null,null,null,null,null,null,"X"]
[null,null,null,null,null,null,null,"X"]
[null,null,null,null,null,null,null,"X"]
[null,null,null,null,null,null,null,"X"]
[null,null,null,null,null,null,null,"X"]
[null,null,null,null,null,null,null,"X"]
[null,null,null,null,null,null,null,"X"]
[null,null,null,null,null,null,null,"X"]
[null,null,null,null,null,null,null,"X"]
[null,null,null,null,null,null,null,"X"]
[null,null,null,null,null,null,null,"X"]
[null,null,null,null,null,null,null,"X"]
[null,null,null,null,null,null,null,"X"]
[null,null,null,null,null,null,null,"X"]
[null,null,null,null,null,null,null,"X"]
[null,null,null,null,null,null,null,"X"]
[null,null,null,null,null,null,null,"X"]
[null,null,null,null,null,null,null,"X"]
[null,null,null,null,null,null,null,"X"]
[null,null,null,null,null,null,null,"X"]
[null,null,null,null,null,null,null,"X"]
[null,null,null,null,null,null,null,"X"]
[null,null,null,null,null,null,null,"X"]
[null,null,null,null,null,null,null,"X"]
[null,null,null,null,null,null,null,"X"]
[null,null,null,null,null,null,null,"X"]
[null,null,null,null,null,null,null,"X"]
[null,null,null,null,null,null,null,"X"]
[null,null,null,null,null,null,null,"X"]
[null,null,null,null,null,null,null,"X"]
[null,null,null,null,null,null,null,"X"]
[null,null,null,null,null,null,null,"X"]
[null,null,null,null,null,null,null,"X"]
[null,null,null,null,null,null,null,"X"]
[null,null,null,null,null,null,null,"X"]
[null,null,null,null,null,null,null,"X"]
[null,null,null,null,null,null,null,"X"]
[null,null,null,null,null,null,null,"X"]
[null,null,null,null,null,null,null,"X"]
[null,null,null,null,null,null,null,"X"]
[null,null,null,null,null,null,null,"X"]
[null,null,null,null,null,null,null,"X"]
[null,null,null,null,null,null,null,"X"]
[null,null,null,null,null,null,null,"X"]
[null,null,null,null,null,null,null,"X"]
[null,null,null,null,null,null,null,"X"]
[null,null,null,null,null,null,null,"X"]
[null,null,null,null,null,null,null,"X"]
[null,null,null,null,null,null,null,"X"]
[null,null,null,null,null,null,null,"X"]
[null,null,null,null,null,null,null,"X"]
[null,null,null,null,null,null,null,"X"]
[null,null,null,null,null,null,null,"X"]
[null,null,null,null,null,null,null,"X"]
[null,null,null,null,null,null,null,"X"]
[null,null,null,null,null,null,null,"X"]
[null,null,null,null,null,null,null,"X"]
[null,null,null,null,null,null,null,"X"]
[null,null,null,null,null,null,null,"X"]
[null,null,null,null,null,null,null,"X"]
[null,null,null,null,null,null,null,"X"]
[null,null,null,null,null,null,null,"X"]
[null,null,null,null,null,null,null,"X"]
[null,null,null,null,null,null,null,{"$f":"_xlfn.CONCAT(D9987,\"X\",G9987)","v":"X"}]
[null,null,null,null,null,null,null,"X"]
[null,null,null,null,null,null,null,"X"]
[null,null,null,null,null,null,null,"X"]
[null,null,null,null,null,null,null,"X"]
[null,null,null,null,null,null,null,"X"]
[null,null,null,null,null,null,null,"X"]
[null,null,null,null,null,null,null,"X"]
[null,null,null,null,null,null,null,"X"]
[null,null,null,null,null,null,null,"X"]
[null,null,null,null,null,null,null,"X"]
[null,null,null,null,null,null,null,"X"]
[null,null,null,null,null,null,null,"X"]
[null,null,null,null,null,null,null,"X"]
[null,null,null,null,null,null,null,"X"]
[null,null,null,null,null,null,null,"X"]
[null,null,null,null,null,null,null,"X"]
[null,null,null,null,null,null,null,"X"]
[null,null,null,null,null,null,null,"X"]
[null,null,null,null,null,null,null,"X"]
[null,null,null,null,null,null,null,"X"]
[null,null,null,null,null,null,null,"X"]
[null,null,null,null,null,null,null,"X"]
[null,null,null,null,null,null,null,"X"]
[null,null,null,null,null,null,null,"X"]
[null,null,null,null,null,null,null,"X"]
[null,null,null,null,null,null,null,"X"]
[null,null,null,null,null,null,null,"X"]
[null,null,null,null,null,null,null,"X"]
[null,null,null,null,null,null,null,"X"]
[null,null,null,null,null,null,null,"X"]
[null,null,null,null,null,null,null,"X"]
[null,null,null,null,null,null,null,"X"]
[null,null,null,null,null,null,null,"X"]
[null,null,null,null,null,null,null,"X"]
[null,null,null,null,null,null,null,"X"]
[null,null,null,null,null,null,null,"X"]
[null,null,null,null,null,null,null,"X"]
[null,null,null,null,null,null,null,"X"]
[null,null,null,null,null,null,null,"X"]
[null,null,null,null,null,null,null,"X"]
[null,null,null,null,null,null,null,"X"]
[null,null,null,null,null,null,null,"X"]
[null,null,null,null,null,null,null,"X"]
[null,null,null,null,null,null,null,"X"]
[null,null,null,null,null,null,null,"X"]
[null,null,null,null,null,null,null,"X"]
[null,null,null,null,null,null,null,"X"]
[null,null,null,null,null,null,null,"X"]
[null,null,null,null,null,null,null,"X"]
[null,null,null,null,null,null,null,"X"]
[null,null,null,null,null,null,null,"X"]
[null,null,null,null,null,null,null,"X"]
[null,null,null,null,null,null,null,"X"]
[null,null,null,null,null,null,null,"X"]
[null,null,null,null,null,null,null,"X"]
[null,null,null,null,null,null,null,"X"]
[null,null,null,null,null,null,null,"X"]
[null,null,null,null,null,null,null,"X"]
[null,null,null,null,null,null,null,"X"]
[null,null,null,null,null,null,null,"X"]
[null,null,null,null,null,null,null,"X"]
[null,null,null,null,null,null,null,"X"]
[null,null,null,null,null,null,null,"X"]
[null,null,null,null,null,null,null,{"$f":"_xlfn.CONCAT(D10051,\"X\",G10051)","v":"X"}]
[null,null,null,null,null,null,null,"X"]
[null,null,null,null,null,null,null,"X"]
[null,null,null,null,null,null,null,"X"]
[null,null,null,null,null,null,null,"X"]
[null,null,null,null,null,null,null,"X"]
[null,null,null,null,null,null,null,"X"]
[null,null,null,null,null,null,null,"X"]
[null,null,null,null,null,null,null,"X"]
[null,null,null,null,null,null,null,"X"]
[null,null,null,null,null,null,null,"X"]
[null,null,null,null,null,null,null,"X"]
[null,null,null,null,null,null,null,"X"]
[null,null,null,null,null,null,null,"X"]
[null,null,null,null,null,null,null,"X"]
[null,null,null,null,null,null,null,"X"]
[null,null,null,null,null,null,null,"X"]
[null,null,null,null,null,null,null,"X"]
[null,null,null,null,null,null,null,"X"]
[null,null,null,null,null,null,null,"X"]
[null,null,null,null,null,null,null,"X"]
[null,null,null,null,null,null,null,"X"]
[null,null,null,null,null,null,null,"X"]
[null,null,null,null,null,null,null,"X"]
[null,null,null,null,null,null,null,"X"]
[null,null,null,null,null,null,null,"X"]
[null,null,null,null,null,null,null,"X"]
[null,null,null,null,null,null,null,"X"]
[null,null,null,null,null,null,null,"X"]
[null,null,null,null,null,null,null,"X"]
[null,null,null,null,null,null,null,"X"]
[null,null,null,null,null,null,null,"X"]
[null,null,null,null,null,null,null,"X"]
[null,null,null,null,null,null,null,"X"]
[null,null,null,null,null,null,null,"X"]
[null,null,null,null,null,null,null,"X"]
[null,null,null,null,null,null,null,"X"]
[null,null,null,null,null,null,null,"X"]
[null,null,null,null,null,null,null,"X"]
[null,null,null,null,null,null,null,"X"]
[null,null,null,null,null,null,null,"X"]
[null,null,null,null,null,null,null,"X"]
[null,null,null,null,null,null,null,"X"]
[null,null,null,null,null,null,null,"X"]
[null,null,null,null,null,null,null,"X"]
[null,null,null,null,null,null,null,"X"]
[null,null,null,null,null,null,null,"X"]
[null,null,null,null,null,null,null,"X"]
[null,null,null,null,null,null,null,"X"]
[null,null,null,null,null,null,null,"X"]
[null,null,null,null,null,null,null,"X"]
[null,null,null,null,null,null,null,"X"]
[null,null,null,null,null,null,null,"X"]
[null,null,null,null,null,null,null,"X"]
[null,null,null,null,null,null,null,"X"]
[null,null,null,null,null,null,null,"X"]
[null,null,null,null,null,null,null,"X"]
[null,null,null,null,null,null,null,"X"]
[null,null,null,null,null,null,null,"X"]
[null,null,null,null,null,null,null,"X"]
[null,null,null,null,null,null,null,"X"]
[null,null,null,null,null,null,null,"X"]
[null,null,null,null,null,null,null,"X"]
[null,null,null,null,null,null,null,"X"]
[null,null,null,null,null,null,null,{"$f":"_xlfn.CONCAT(D10115,\"X\",G10115)","v":"X"}]
[null,null,null,null,null,null,null,"X"]
[null,null,null,null,null,null,null,"X"]
[null,null,null,null,null,null,null,"X"]
[null,null,null,null,null,null,null,"X"]
[null,null,null,null,null,null,null,"X"]
[null,null,null,null,null,null,null,"X"]
[null,null,null,null,null,null,null,"X"]
[null,null,null,null,null,null,null,"X"]
[null,null,null,null,null,null,null,"X"]
[null,null,null,null,null,null,null,"X"]
[null,null,null,null,null,null,null,"X"]
[null,null,null,null,null,null,null,"X"]
[null,null,null,null,null,null,null,"X"]
[null,null,null,null,null,null,null,"X"]
[null,null,null,null,null,null,null,"X"]
[null,null,null,null,null,null,null,"X"]
[null,null,null,null,null,null,null,"X"]
[null,null,null,null,null,null,null,"X"]
[null,null,null,null,null,null,null,"X"]
[null,null,null,null,null,null,null,"X"]
[null,null,null,null,null,null,null,"X"]
[null,null,null,null,null,null,null,"X"]
[null,null,null,null,null,null,null,"X"]
[null,null,null,null,null,null,null,"X"]
[null,null,null,null,null,null,null,"X"]
[null,null,null,null,null,null,null,"X"]
[null,null,null,null,null,null,null,"X"]
[null,null,null,null,null,null,null,"X"]
[null,null,null,null,null,null,null,"X"]
[null,null,null,null,null,null,null,"X"]
[null,null,null,null,null,null,null,"X"]
[null,null,null,null,null,null,null,"X"]
[null,null,null,null,null,null,null,"X"]
[null,null,null,null,null,null,null,"X"]
[null,null,null,null,null,null,null,"X"]
[null,null,null,null,null,null,null,"X"]
[null,null,null,null,null,null,null,"X"]
[null,null,null,null,null,null,null,"X"]
[null,null,null,null,null,null,null,"X"]
[null,null,null,null,null,null,null,"X"]
[null,null,null,null,null,null,null,"X"]
[null,null,null,null,null,null,null,"X"]
[null,null,null,null,null,null,null,"X"]
[null,null,null,null,null,null,null,"X"]
[null,null,null,null,null,null,null,"X"]
[null,null,null,null,null,null,null,"X"]
[null,null,null,null,null,null,null,"X"]
[null,null,null,null,null,null,null,"X"]
[null,null,null,null,null,null,null,"X"]
[null,null,null,null,null,null,null,"X"]
[null,null,null,null,null,null,null,"X"]
[null,null,null,null,null,null,null,"X"]
[null,null,null,null,null,null,null,"X"]
[null,null,null,null,null,null,null,"X"]
[null,null,null,null,null,null,null,"X"]
[null,null,null,null,null,null,null,"X"]
[null,null,null,null,null,null,null,"X"]
[null,null,null,null,null,null,null,"X"]
[null,null,null,null,null,null,null,"X"]
[null,null,null,null,null,null,null,"X"]
[null,null,null,null,null,null,null,"X"]
[null,null,null,null,null,null,null,"X"]
[null,null,null,null,null,null,null,"X"]
[null,null,null,null,null,null,null,{"$f":"_xlfn.CONCAT(D10179,\"X\",G10179)","v":"X"}]
[null,null,null,null,null,null,null,"X"]
[null,null,null,null,null,null,null,"X"]
[null,null,null,null,null,null,null,"X"]
[null,null,null,null,null,null,null,"X"]
[null,null,null,null,null,null,null,"X"]
[null,null,null,null,null,null,null,"X"]
[null,null,null,null,null,null,null,"X"]
[null,null,null,null,null,null,null,"X"]
[null,null,null,null,null,null,null,"X"]
[null,null,null,null,null,null,null,"X"]
[null,null,null,null,null,null,null,"X"]
[null,null,null,null,null,null,null,"X"]
[null,null,null,null,null,null,null,"X"]
[null,null,null,null,null,null,null,"X"]
[null,null,null,null,null,null,null,"X"]
[null,null,null,null,null,null,null,"X"]
[null,null,null,null,null,null,null,"X"]
[null,null,null,null,null,null,null,"X"]
[null,null,null,null,null,null,null,"X"]
[null,null,null,null,null,null,null,"X"]
[null,null,null,null,null,null,null,"X"]
[null,null,null,null,null,null,null,"X"]
[null,null,null,null,null,null,null,"X"]
[null,null,null,null,null,null,null,"X"]
[null,null,null,null,null,null,null,"X"]
[null,null,null,null,null,null,null,"X"]
[null,null,null,null,null,null,null,"X"]
[null,null,null,null,null,null,null,"X"]
[null,null,null,null,null,null,null,"X"]
[null,null,null,null,null,null,null,"X"]
[null,null,null,null,null,null,null,"X"]
[null,null,null,null,null,null,null,"X"]
[null,null,null,null,null,null,null,"X"]
[null,null,null,null,null,null,null,"X"]
[null,null,null,null,null,null,null,"X"]
[null,null,null,null,null,null,null,"X"]
[null,null,null,null,null,null,null,"X"]
[null,null,null,null,null,null,null,"X"]
[null,null,null,null,null,null,null,"X"]
[null,null,null,null,null,null,null,"X"]
[null,null,null,null,null,null,null,"X"]
[null,null,null,null,null,null,null,"X"]
[null,null,null,null,null,null,null,"X"]
[null,null,null,null,null,null,null,"X"]
[null,null,null,null,null,null,null,"X"]
[null,null,null,null,null,null,null,"X"]
[null,null,null,null,null,null,null,"X"]
[null,null,null,null,null,null,null,"X"]
[null,null,null,null,null,null,null,"X"]
[null,null,null,null,null,null,null,"X"]
[null,null,null,null,null,null,null,"X"]
[null,null,null,null,null,null,null,"X"]
[null,null,null,null,null,null,null,"X"]
[null,null,null,null,null,null,null,"X"]
[null,null,null,null,null,null,null,"X"]
[null,null,null,null,null,null,null,"X"]
[null,null,null,null,null,null,null,"X"]
[null,null,null,null,null,null,null,"X"]
[null,null,null,null,null,null,null,"X"]
[null,null,null,null,null,null,null,"X"]
[null,null,null,null,null,null,null,"X"]
[null,null,null,null,null,null,null,"X"]
[null,null,null,null,null,null,null,"X"]
[null,null,null,null,null,null,null,{"$f":"_xlfn.CONCAT(D10243,\"X\",G10243)","v":"X"}]
[null,null,null,null,null,null,null,"X"]
[null,null,null,null,null,null,null,"X"]
[null,null,null,null,null,null,null,"X"]
[null,null,null,null,null,null,null,"X"]
[null,null,null,null,null,null,null,"X"]
[null,null,null,null,null,null,null,"X"]
[null,null,null,null,null,null,null,"X"]
[null,null,null,null,null,null,null,"X"]
[null,null,null,null,null,null,null,"X"]
[null,null,null,null,null,null,null,"X"]
[null,null,null,null,null,null,null,"X"]
[null,null,null,null,null,null,null,"X"]
[null,null,null,null,null,null,null,"X"]
[null,null,null,null,null,null,null,"X"]
[null,null,null,null,null,null,null,"X"]
[null,null,null,null,null,null,null,"X"]
[null,null,null,null,null,null,null,"X"]
[null,null,null,null,null,null,null,"X"]
[null,null,null,null,null,null,null,"X"]
[null,null,null,null,null,null,null,"X"]
[null,null,null,null,null,null,null,"X"]
[null,null,null,null,null,null,null,"X"]
[null,null,null,null,null,null,null,"X"]
[null,null,null,null,null,null,null,"X"]
[null,null,null,null,null,null,null,"X"]
[null,null,null,null,null,null,null,"X"]
[null,null,null,null,null,null,null,"X"]
[null,null,null,null,null,null,null,"X"]
[null,null,null,null,null,null,null,"X"]
[null,null,null,null,null,null,null,"X"]
[null,null,null,null,null,null,null,"X"]
[null,null,null,null,null,null,null,"X"]
[null,null,null,null,null,null,null,"X"]
[null,null,null,null,null,null,null,"X"]
[null,null,null,null,null,null,null,"X"]
[null,null,null,null,null,null,null,"X"]
[null,null,null,null,null,null,null,"X"]
[null,null,null,null,null,null,null,"X"]
[null,null,null,null,null,null,null,"X"]
[null,null,null,null,null,null,null,"X"]
[null,null,null,null,null,null,null,"X"]
[null,null,null,null,null,null,null,"X"]
[null,null,null,null,null,null,null,"X"]
[null,null,null,null,null,null,null,"X"]
[null,null,null,null,null,null,null,"X"]
[null,null,null,null,null,null,null,"X"]
[null,null,null,null,null,null,null,"X"]
[null,null,null,null,null,null,null,"X"]
[null,null,null,null,null,null,null,"X"]
[null,null,null,null,null,null,null,"X"]
[null,null,null,null,null,null,null,"X"]
[null,null,null,null,null,null,null,"X"]
[null,null,null,null,null,null,null,"X"]
[null,null,null,null,null,null,null,"X"]
[null,null,null,null,null,null,null,"X"]
[null,null,null,null,null,null,null,"X"]
[null,null,null,null,null,null,null,"X"]
[null,null,null,null,null,null,null,"X"]
[null,null,null,null,null,null,null,"X"]
[null,null,null,null,null,null,null,"X"]
[null,null,null,null,null,null,null,"X"]
[null,null,null,null,null,null,null,"X"]
[null,null,null,null,null,null,null,"X"]
[null,null,null,null,null,null,null,{"$f":"_xlfn.CONCAT(D10307,\"X\",G10307)","v":"X"}]
[null,null,null,null,null,null,null,"X"]
[null,null,null,null,null,null,null,"X"]
[null,null,null,null,null,null,null,"X"]
[null,null,null,null,null,null,null,"X"]
[null,null,null,null,null,null,null,"X"]
[null,null,null,null,null,null,null,"X"]
[null,null,null,null,null,null,null,"X"]
[null,null,null,null,null,null,null,"X"]
[null,null,null,null,null,null,null,"X"]
[null,null,null,null,null,null,null,"X"]
[null,null,null,null,null,null,null,"X"]
[null,null,null,null,null,null,null,"X"]
[null,null,null,null,null,null,null,"X"]
[null,null,null,null,null,null,null,"X"]
[null,null,null,null,null,null,null,"X"]
[null,null,null,null,null,null,null,"X"]
[null,null,null,null,null,null,null,"X"]
[null,null,null,null,null,null,null,"X"]
[null,null,null,null,null,null,null,"X"]
[null,null,null,null,null,null,null,"X"]
[null,null,null,null,null,null,null,"X"]
[null,null,null,null,null,null,null,"X"]
[null,null,null,null,null,null,null,"X"]
[null,null,null,null,null,null,null,"X"]
[null,null,null,null,null,null,null,"X"]
[null,null,null,null,null,null,null,"X"]
[null,null,null,null,null,null,null,"X"]
[null,null,null,null,null,null,null,"X"]
[null,null,null,null,null,null,null,"X"]
[null,null,null,null,null,null,null,"X"]
[null,null,null,null,null,null,null,"X"]
[null,null,null,null,null,null,null,"X"]
[null,null,null,null,null,null,null,"X"]
[null,null,null,null,null,null,null,"X"]
[null,null,null,null,null,null,null,"X"]
[null,null,null,null,null,null,null,"X"]
[null,null,null,null,null,null,null,"X"]
[null,null,null,null,null,null,null,"X"]
[null,null,null,null,null,null,null,"X"]
[null,null,null,null,null,null,null,"X"]
[null,null,null,null,null,null,null,"X"]
[null,null,null,null,null,null,null,"X"]
[null,null,null,null,null,null,null,"X"]
[null,null,null,null,null,null,null,"X"]
[null,null,null,null,null,null,null,"X"]
[null,null,null,null,null,null,null,"X"]
[null,null,null,null,null,null,null,"X"]
[null,null,null,null,null,null,null,"X"]
[null,null,null,null,null,null,null,"X"]
[null,null,null,null,null,null,null,"X"]
[null,null,null,null,null,null,null,"X"]
[null,null,null,null,null,null,null,"X"]
[null,null,null,null,null,null,null,"X"]
[null,null,null,null,null,null,null,"X"]
[null,null,null,null,null,null,null,"X"]
[null,null,null,null,null,null,null,"X"]
[null,null,null,null,null,null,null,"X"]
[null,null,null,null,null,null,null,"X"]
[null,null,null,null,null,null,null,"X"]
[null,null,null,null,null,null,null,"X"]
[null,null,null,null,null,null,null,"X"]
[null,null,null,null,null,null,null,"X"]
[null,null,null,null,null,null,null,"X"]
[null,null,null,null,null,null,null,{"$f":"_xlfn.CONCAT(D10371,\"X\",G10371)","v":"X"}]
[null,null,null,null,null,null,null,"X"]
[null,null,null,null,null,null,null,"X"]
[null,null,null,null,null,null,null,"X"]
[null,null,null,null,null,null,null,"X"]
[null,null,null,null,null,null,null,"X"]
[null,null,null,null,null,null,null,"X"]
[null,null,null,null,null,null,null,"X"]
[null,null,null,null,null,null,null,"X"]
[null,null,null,null,null,null,null,"X"]
[null,null,null,null,null,null,null,"X"]
[null,null,null,null,null,null,null,"X"]
[null,null,null,null,null,null,null,"X"]
[null,null,null,null,null,null,null,"X"]
[null,null,null,null,null,null,null,"X"]
[null,null,null,null,null,null,null,"X"]
[null,null,null,null,null,null,null,"X"]
[null,null,null,null,null,null,null,"X"]
[null,null,null,null,null,null,null,"X"]
[null,null,null,null,null,null,null,"X"]
[null,null,null,null,null,null,null,"X"]
[null,null,null,null,null,null,null,"X"]
[null,null,null,null,null,null,null,"X"]
[null,null,null,null,null,null,null,"X"]
[null,null,null,null,null,null,null,"X"]
[null,null,null,null,null,null,null,"X"]
[null,null,null,null,null,null,null,"X"]
[null,null,null,null,null,null,null,"X"]
[null,null,null,null,null,null,null,"X"]
[null,null,null,null,null,null,null,"X"]
[null,null,null,null,null,null,null,"X"]
[null,null,null,null,null,null,null,"X"]
[null,null,null,null,null,null,null,"X"]
[null,null,null,null,null,null,null,"X"]
[null,null,null,null,null,null,null,"X"]
[null,null,null,null,null,null,null,"X"]
[null,null,null,null,null,null,null,"X"]
[null,null,null,null,null,null,null,"X"]
[null,null,null,null,null,null,null,"X"]
[null,null,null,null,null,null,null,"X"]
[null,null,null,null,null,null,null,"X"]
[null,null,null,null,null,null,null,"X"]
[null,null,null,null,null,null,null,"X"]
[null,null,null,null,null,null,null,"X"]
[null,null,null,null,null,null,null,"X"]
[null,null,null,null,null,null,null,"X"]
[null,null,null,null,null,null,null,"X"]
[null,null,null,null,null,null,null,"X"]
[null,null,null,null,null,null,null,"X"]
[null,null,null,null,null,null,null,"X"]
[null,null,null,null,null,null,null,"X"]
[null,null,null,null,null,null,null,"X"]
[null,null,null,null,null,null,null,"X"]
[null,null,null,null,null,null,null,"X"]
[null,null,null,null,null,null,null,"X"]
[null,null,null,null,null,null,null,"X"]
[null,null,null,null,null,null,null,"X"]
[null,null,null,null,null,null,null,"X"]
[null,null,null,null,null,null,null,"X"]
[null,null,null,null,null,null,null,"X"]
[null,null,null,null,null,null,null,"X"]
[null,null,null,null,null,null,null,"X"]
[null,null,null,null,null,null,null,"X"]
[null,null,null,null,null,null,null,"X"]
[null,null,null,null,null,null,null,{"$f":"_xlfn.CONCAT(D10435,\"X\",G10435)","v":"X"}]
[null,null,null,null,null,null,null,"X"]
[null,null,null,null,null,null,null,"X"]
[null,null,null,null,null,null,null,"X"]
[null,null,null,null,null,null,null,"X"]
[null,null,null,null,null,null,null,"X"]
[null,null,null,null,null,null,null,"X"]
[null,null,null,null,null,null,null,"X"]
[null,null,null,null,null,null,null,"X"]
[null,null,null,null,null,null,null,"X"]
[null,null,null,null,null,null,null,"X"]
[null,null,null,null,null,null,null,"X"]
[null,null,null,null,null,null,null,"X"]
[null,null,null,null,null,null,null,"X"]
[null,null,null,null,null,null,null,"X"]
[null,null,null,null,null,null,null,"X"]
[null,null,null,null,null,null,null,"X"]
[null,null,null,null,null,null,null,"X"]
[null,null,null,null,null,null,null,"X"]
[null,null,null,null,null,null,null,"X"]
[null,null,null,null,null,null,null,"X"]
[null,null,null,null,null,null,null,"X"]
[null,null,null,null,null,null,null,"X"]
[null,null,null,null,null,null,null,"X"]
[null,null,null,null,null,null,null,"X"]
[null,null,null,null,null,null,null,"X"]
[null,null,null,null,null,null,null,"X"]
[null,null,null,null,null,null,null,"X"]
[null,null,null,null,null,null,null,"X"]
[null,null,null,null,null,null,null,"X"]
[null,null,null,null,null,null,null,"X"]
[null,null,null,null,null,null,null,"X"]
[null,null,null,null,null,null,null,"X"]
[null,null,null,null,null,null,null,"X"]
[null,null,null,null,null,null,null,"X"]
[null,null,null,null,null,null,null,"X"]
[null,null,null,null,null,null,null,"X"]
[null,null,null,null,null,null,null,"X"]
[null,null,null,null,null,null,null,"X"]
[null,null,null,null,null,null,null,"X"]
[null,null,null,null,null,null,null,"X"]
[null,null,null,null,null,null,null,"X"]
[null,null,null,null,null,null,null,"X"]
[null,null,null,null,null,null,null,"X"]
[null,null,null,null,null,null,null,"X"]
[null,null,null,null,null,null,null,"X"]
[null,null,null,null,null,null,null,"X"]
[null,null,null,null,null,null,null,"X"]
[null,null,null,null,null,null,null,"X"]
[null,null,null,null,null,null,null,"X"]
[null,null,null,null,null,null,null,"X"]
[null,null,null,null,null,null,null,"X"]
[null,null,null,null,null,null,null,"X"]
[null,null,null,null,null,null,null,"X"]
[null,null,null,null,null,null,null,"X"]
[null,null,null,null,null,null,null,"X"]
[null,null,null,null,null,null,null,"X"]
[null,null,null,null,null,null,null,"X"]
[null,null,null,null,null,null,null,"X"]
[null,null,null,null,null,null,null,"X"]
[null,null,null,null,null,null,null,"X"]
[null,null,null,null,null,null,null,"X"]
[null,null,null,null,null,null,null,"X"]
[null,null,null,null,null,null,null,"X"]
[null,null,null,null,null,null,null,{"$f":"_xlfn.CONCAT(D10499,\"X\",G10499)","v":"X"}]
[null,null,null,null,null,null,null,"X"]
[null,null,null,null,null,null,null,"X"]
[null,null,null,null,null,null,null,"X"]
[null,null,null,null,null,null,null,"X"]
[null,null,null,null,null,null,null,"X"]
[null,null,null,null,null,null,null,"X"]
[null,null,null,null,null,null,null,"X"]
[null,null,null,null,null,null,null,"X"]
[null,null,null,null,null,null,null,"X"]
[null,null,null,null,null,null,null,"X"]
[null,null,null,null,null,null,null,"X"]
[null,null,null,null,null,null,null,"X"]
[null,null,null,null,null,null,null,"X"]
[null,null,null,null,null,null,null,"X"]
[null,null,null,null,null,null,null,"X"]

{"sheet":"Planilha2","index":1,"n_rows":735,"n_cols":1,"rows_kept":735,"cut":false,"hidden":false,"merged":[]}
[]
[]
["Rótulos de Linha"]
["ACXAC"]
["ACXAL"]
["ACXAM"]
["ACXAP"]
["ACXBA"]
["ACXCE"]
["ACXDF"]
["ACXES"]
["ACXGO"]
["ACXMA"]
["ACXMG"]
["ACXMS"]
["ACXMT"]
["ACXPA"]
["ACXPB"]
["ACXPE"]
["ACXPI"]
["ACXPR"]
["ACXRJ"]
["ACXRN"]
["ACXRO"]
["ACXRR"]
["ACXRS"]
["ACXSC"]
["ACXSE"]
["ACXSP"]
["ACXTO"]
["ALXAC"]
["ALXAL"]
["ALXAM"]
["ALXAP"]
["ALXBA"]
["ALXCE"]
["ALXDF"]
["ALXES"]
["ALXGO"]
["ALXMA"]
["ALXMG"]
["ALXMS"]
["ALXMT"]
["ALXPA"]
["ALXPB"]
["ALXPE"]
["ALXPI"]
["ALXPR"]
["ALXRJ"]
["ALXRN"]
["ALXRO"]
["ALXRR"]
["ALXRS"]
["ALXSC"]
["ALXSE"]
["ALXSP"]
["ALXTO"]
["AMXAC"]
["AMXAL"]
["AMXAM"]
["AMXAP"]
["AMXBA"]
["AMXCE"]
["AMXDF"]
["AMXES"]
["AMXGO"]
["AMXMA"]
["AMXMG"]
["AMXMS"]
["AMXMT"]
["AMXPA"]
["AMXPB"]
["AMXPE"]
["AMXPI"]
["AMXPR"]
["AMXRJ"]
["AMXRN"]
["AMXRO"]
["AMXRR"]
["AMXRS"]
["AMXSC"]
["AMXSE"]
["AMXSP"]
["AMXTO"]
["APXAC"]
["APXAL"]
["APXAM"]
["APXAP"]
["APXBA"]
["APXCE"]
["APXDF"]
["APXES"]
["APXGO"]
["APXMA"]
["APXMG"]
["APXMS"]
["APXMT"]
["APXPA"]
["APXPB"]
["APXPE"]
["APXPI"]
["APXPR"]
["APXRJ"]
["APXRN"]
["APXRO"]
["APXRR"]
["APXRS"]
["APXSC"]
["APXSE"]
["APXSP"]
["APXTO"]
["BAXAC"]
["BAXAL"]
["BAXAM"]
["BAXAP"]
["BAXBA"]
["BAXCE"]
["BAXDF"]
["BAXES"]
["BAXGO"]
["BAXMA"]
["BAXMG"]
["BAXMS"]
["BAXMT"]
["BAXPA"]
["BAXPB"]
["BAXPE"]
["BAXPI"]
["BAXPR"]
["BAXRJ"]
["BAXRN"]
["BAXRO"]
["BAXRR"]
["BAXRS"]
["BAXSC"]
["BAXSE"]
["BAXSP"]
["BAXTO"]
["CEXAC"]
["CEXAL"]
["CEXAM"]
["CEXAP"]
["CEXBA"]
["CEXCE"]
["CEXDF"]
["CEXES"]
["CEXGO"]
["CEXMA"]
["CEXMG"]
["CEXMS"]
["CEXMT"]
["CEXPA"]
["CEXPB"]
["CEXPE"]
["CEXPI"]
["CEXPR"]
["CEXRJ"]
["CEXRN"]
["CEXRO"]
["CEXRR"]
["CEXRS"]
["CEXSC"]
["CEXSE"]
["CEXSP"]
["CEXTO"]
["DFXAC"]
["DFXAL"]
["DFXAM"]
["DFXAP"]
["DFXBA"]
["DFXCE"]
["DFXDF"]
["DFXES"]
["DFXGO"]
["DFXMA"]
["DFXMG"]
["DFXMS"]
["DFXMT"]
["DFXPA"]
["DFXPB"]
["DFXPE"]
["DFXPI"]
["DFXPR"]
["DFXRJ"]
["DFXRN"]
["DFXRO"]
["DFXRR"]
["DFXRS"]
["DFXSC"]
["DFXSE"]
["DFXSP"]
["DFXTO"]
["ESXAC"]
["ESXAL"]
["ESXAM"]
["ESXAP"]
["ESXBA"]
["ESXCE"]
["ESXDF"]
["ESXES"]
["ESXGO"]
["ESXMA"]
["ESXMG"]
["ESXMS"]
["ESXMT"]
["ESXPA"]
["ESXPB"]
["ESXPE"]
["ESXPI"]
["ESXPR"]
["ESXRJ"]
["ESXRN"]
["ESXRO"]
["ESXRR"]
["ESXRS"]
["ESXSC"]
["ESXSE"]
["ESXSP"]
["ESXTO"]
["GOXAC"]
["GOXAL"]
["GOXAM"]
["GOXAP"]
["GOXBA"]
["GOXCE"]
["GOXDF"]
["GOXES"]
["GOXGO"]
["GOXMA"]
["GOXMG"]
["GOXMS"]
["GOXMT"]
["GOXPA"]
["GOXPB"]
["GOXPE"]
["GOXPI"]
["GOXPR"]
["GOXRJ"]
["GOXRN"]
["GOXRO"]
["GOXRR"]
["GOXRS"]
["GOXSC"]
["GOXSE"]
["GOXSP"]
["GOXTO"]
["MAXAC"]
["MAXAL"]
["MAXAM"]
["MAXAP"]
["MAXBA"]
["MAXCE"]
["MAXDF"]
["MAXES"]
["MAXGO"]
["MAXMA"]
["MAXMG"]
["MAXMS"]
["MAXMT"]
["MAXPA"]
["MAXPB"]
["MAXPE"]
["MAXPI"]
["MAXPR"]
["MAXRJ"]
["MAXRN"]
["MAXRO"]
["MAXRR"]
["MAXRS"]
["MAXSC"]
["MAXSE"]
["MAXSP"]
["MAXTO"]
["MGXAC"]
["MGXAL"]
["MGXAM"]
["MGXAP"]
["MGXBA"]
["MGXCE"]
["MGXDF"]
["MGXES"]
["MGXGO"]
["MGXMA"]
["MGXMG"]
["MGXMS"]
["MGXMT"]
["MGXPA"]
["MGXPB"]
["MGXPE"]
["MGXPI"]
["MGXPR"]
["MGXRJ"]
["MGXRN"]
["MGXRO"]
["MGXRR"]
["MGXRS"]
["MGXSC"]
["MGXSE"]
["MGXSP"]
["MGXTO"]
["MSXAC"]
["MSXAL"]
["MSXAM"]
["MSXAP"]
["MSXBA"]
["MSXCE"]
["MSXDF"]
["MSXES"]
["MSXGO"]
["MSXMA"]
["MSXMG"]
["MSXMS"]
["MSXMT"]
["MSXPA"]
["MSXPB"]
["MSXPE"]
["MSXPI"]
["MSXPR"]
["MSXRJ"]
["MSXRN"]
["MSXRO"]
["MSXRR"]
["MSXRS"]
["MSXSC"]
["MSXSE"]
["MSXSP"]
["MSXTO"]
["MTXAC"]
["MTXAL"]
["MTXAM"]
["MTXAP"]
["MTXBA"]
["MTXCE"]
["MTXDF"]
["MTXES"]
["MTXGO"]
["MTXMA"]
["MTXMG"]
["MTXMS"]
["MTXMT"]
["MTXPA"]
["MTXPB"]
["MTXPE"]
["MTXPI"]
["MTXPR"]
["MTXRJ"]
["MTXRN"]
["MTXRO"]
["MTXRR"]
["MTXRS"]
["MTXSC"]
["MTXSE"]
["MTXSP"]
["MTXTO"]
["PAXAC"]
["PAXAL"]
["PAXAM"]
["PAXAP"]
["PAXBA"]
["PAXCE"]
["PAXDF"]
["PAXES"]
["PAXGO"]
["PAXMA"]
["PAXMG"]
["PAXMS"]
["PAXMT"]
["PAXPA"]
["PAXPB"]
["PAXPE"]
["PAXPI"]
["PAXPR"]
["PAXRJ"]
["PAXRN"]
["PAXRO"]
["PAXRR"]
["PAXRS"]
["PAXSC"]
["PAXSE"]
["PAXSP"]
["PAXTO"]
["PBXAC"]
["PBXAL"]
["PBXAM"]
["PBXAP"]
["PBXBA"]
["PBXCE"]
["PBXDF"]
["PBXES"]
["PBXGO"]
["PBXMA"]
["PBXMG"]
["PBXMS"]
["PBXMT"]
["PBXPA"]
["PBXPB"]
["PBXPE"]
["PBXPI"]
["PBXPR"]
["PBXRJ"]
["PBXRN"]
["PBXRO"]
["PBXRR"]
["PBXRS"]
["PBXSC"]
["PBXSE"]
["PBXSP"]
["PBXTO"]
["PEXAC"]
["PEXAL"]
["PEXAM"]
["PEXAP"]
["PEXBA"]
["PEXCE"]
["PEXDF"]
["PEXES"]
["PEXGO"]
["PEXMA"]
["PEXMG"]
["PEXMS"]
["PEXMT"]
["PEXPA"]
["PEXPB"]
["PEXPE"]
["PEXPI"]
["PEXPR"]
["PEXRJ"]
["PEXRN"]
["PEXRO"]
["PEXRR"]
["PEXRS"]
["PEXSC"]
["PEXSE"]
["PEXSP"]
["PEXTO"]
["PIXAC"]
["PIXAL"]
["PIXAM"]
["PIXAP"]
["PIXBA"]
["PIXCE"]
["PIXDF"]
["PIXES"]
["PIXGO"]
["PIXMA"]
["PIXMG"]
["PIXMS"]
["PIXMT"]
["PIXPA"]
["PIXPB"]
["PIXPE"]
["PIXPI"]
["PIXPR"]
["PIXRJ"]
["PIXRN"]
["PIXRO"]
["PIXRR"]
["PIXRS"]
["PIXSC"]
["PIXSE"]
["PIXSP"]
["PIXTO"]
["PRXAC"]
["PRXAL"]
["PRXAM"]
["PRXAP"]
["PRXBA"]
["PRXCE"]
["PRXDF"]
["PRXES"]
["PRXGO"]
["PRXMA"]
["PRXMG"]
["PRXMS"]
["PRXMT"]
["PRXPA"]
["PRXPB"]
["PRXPE"]
["PRXPI"]
["PRXPR"]
["PRXRJ"]
["PRXRN"]
["PRXRO"]
["PRXRR"]
["PRXRS"]
["PRXSC"]
["PRXSE"]
["PRXSP"]
["PRXTO"]
["RJXAC"]
["RJXAL"]
["RJXAM"]
["RJXAP"]
["RJXBA"]
["RJXCE"]
["RJXDF"]
["RJXES"]
["RJXGO"]
["RJXMA"]
["RJXMG"]
["RJXMS"]
["RJXMT"]
["RJXPA"]
["RJXPB"]
["RJXPE"]
["RJXPI"]
["RJXPR"]
["RJXRJ"]
["RJXRN"]
["RJXRO"]
["RJXRR"]
["RJXRS"]
["RJXSC"]
["RJXSE"]
["RJXSP"]
["RJXTO"]
["RNXAC"]
["RNXAL"]
["RNXAM"]
["RNXAP"]
["RNXBA"]
["RNXCE"]
["RNXDF"]
["RNXES"]
["RNXGO"]
["RNXMA"]
["RNXMG"]
["RNXMS"]
["RNXMT"]
["RNXPA"]
["RNXPB"]
["RNXPE"]
["RNXPI"]
["RNXPR"]
["RNXRJ"]
["RNXRN"]
["RNXRO"]
["RNXRR"]
["RNXRS"]
["RNXSC"]
["RNXSE"]
["RNXSP"]
["RNXTO"]
["ROXAC"]
["ROXAL"]
["ROXAM"]
["ROXAP"]
["ROXBA"]
["ROXCE"]
["ROXDF"]
["ROXES"]
["ROXGO"]
["ROXMA"]
["ROXMG"]
["ROXMS"]
["ROXMT"]
["ROXPA"]
["ROXPB"]
["ROXPE"]
["ROXPI"]
["ROXPR"]
["ROXRJ"]
["ROXRN"]
["ROXRO"]
["ROXRR"]
["ROXRS"]
["ROXSC"]
["ROXSE"]
["ROXSP"]
["ROXTO"]
["RRXAC"]
["RRXAL"]
["RRXAM"]
["RRXAP"]
["RRXBA"]
["RRXCE"]
["RRXDF"]
["RRXES"]
["RRXGO"]
["RRXMA"]
["RRXMG"]
["RRXMS"]
["RRXMT"]
["RRXPA"]
["RRXPB"]
["RRXPE"]
["RRXPI"]
["RRXPR"]
["RRXRJ"]
["RRXRN"]
["RRXRO"]
["RRXRR"]
["RRXRS"]
["RRXSC"]
["RRXSE"]
["RRXSP"]
["RRXTO"]
["RSXAC"]
["RSXAL"]
["RSXAM"]
["RSXAP"]
["RSXBA"]
["RSXCE"]
["RSXDF"]
["RSXES"]
["RSXGO"]
["RSXMA"]
["RSXMG"]
["RSXMS"]
["RSXMT"]
["RSXPA"]
["RSXPB"]
["RSXPE"]
["RSXPI"]
["RSXPR"]
["RSXRJ"]
["RSXRN"]
["RSXRO"]
["RSXRR"]
["RSXRS"]
["RSXSC"]
["RSXSE"]
["RSXSP"]
["RSXTO"]
["SCXAC"]
["SCXAL"]
["SCXAM"]
["SCXAP"]
["SCXBA"]
["SCXCE"]
["SCXDF"]
["SCXES"]
["SCXGO"]
["SCXMA"]
["SCXMG"]
["SCXMS"]
["SCXMT"]
["SCXPA"]
["SCXPB"]
["SCXPE"]
["SCXPI"]
["SCXPR"]
["SCXRJ"]
["SCXRN"]
["SCXRO"]
["SCXRR"]
["SCXRS"]
["SCXSC"]
["SCXSE"]
["SCXSP"]
["SCXTO"]
["SEXAC"]
["SEXAL"]
["SEXAM"]
["SEXAP"]
["SEXBA"]
["SEXCE"]
["SEXDF"]
["SEXES"]
["SEXGO"]
["SEXMA"]
["SEXMG"]
["SEXMS"]
["SEXMT"]
["SEXPA"]
["SEXPB"]
["SEXPE"]
["SEXPI"]
["SEXPR"]
["SEXRJ"]
["SEXRN"]
["SEXRO"]
["SEXRR"]
["SEXRS"]
["SEXSC"]
["SEXSE"]
["SEXSP"]
["SEXTO"]
["SPXAC"]
["SPXAL"]
["SPXAM"]
["SPXAP"]
["SPXBA"]
["SPXCE"]
["SPXDF"]
["SPXES"]
["SPXGO"]
["SPXMA"]
["SPXMG"]
["SPXMS"]
["SPXMT"]
["SPXPA"]
["SPXPB"]
["SPXPE"]
["SPXPI"]
["SPXPR"]
["SPXRJ"]
["SPXRN"]
["SPXRO"]
["SPXRR"]
["SPXRS"]
["SPXSC"]
["SPXSE"]
["SPXSP"]
["SPXTO"]
["TOXAC"]
["TOXAL"]
["TOXAM"]
["TOXAP"]
["TOXBA"]
["TOXCE"]
["TOXDF"]
["TOXES"]
["TOXGO"]
["TOXMA"]
["TOXMG"]
["TOXMS"]
["TOXMT"]
["TOXPA"]
["TOXPB"]
["TOXPE"]
["TOXPI"]
["TOXPR"]
["TOXRJ"]
["TOXRN"]
["TOXRO"]
["TOXRR"]
["TOXRS"]
["TOXSC"]
["TOXSE"]
["TOXSP"]
["TOXTO"]
["X"]
["(vazio)"]
["Total Geral"]

{"sheet":"Planilha1","index":2,"n_rows":10514,"n_cols":1,"rows_kept":10514,"cut":false,"hidden":false,"merged":[]}
["TARIFAS"]
["DFXRO"]
["DFXAC"]
["DFXAM"]
["DFXRR"]
["DFXPA"]
["DFXAP"]
["DFXTO"]
["DFXMA"]
["DFXPI"]
["DFXCE"]
["DFXRN"]
["DFXPB"]
["DFXPE"]
["DFXAL"]
["DFXSE"]
["DFXBA"]
["DFXMG"]
["DFXES"]
["DFXRJ"]
["DFXSP"]
["DFXPR"]
["DFXSC"]
["DFXRS"]
["DFXMS"]
["DFXMT"]
["DFXGO"]
["DFXDF"]
["GOXRO"]
["GOXAC"]
["GOXAM"]
["GOXRR"]
["GOXPA"]
["GOXAP"]
["GOXTO"]
["GOXMA"]
["GOXPI"]
["GOXCE"]
["GOXRN"]
["GOXPB"]
["GOXPE"]
["GOXAL"]
["GOXSE"]
["GOXBA"]
["GOXMG"]
["GOXES"]
["GOXRJ"]
["GOXSP"]
["GOXPR"]
["GOXSC"]
["GOXRS"]
["GOXMS"]
["GOXMT"]
["GOXGO"]
["GOXDF"]
["MTXRO"]
["MTXAC"]
["MTXAM"]
["MTXRR"]
["MTXPA"]
["MTXAP"]
["MTXTO"]
["MTXMA"]
["MTXPI"]
["MTXCE"]
["MTXRN"]
["MTXPB"]
["MTXPE"]
["MTXAL"]
["MTXSE"]
["MTXBA"]
["MTXMG"]
["MTXES"]
["MTXRJ"]
["MTXSP"]
["MTXPR"]
["MTXSC"]
["MTXRS"]
["MTXMS"]
["MTXMT"]
["MTXGO"]
["MTXDF"]
["MSXRO"]
["MSXAC"]
["MSXAM"]
["MSXRR"]
["MSXPA"]
["MSXAP"]
["MSXTO"]
["MSXMA"]
["MSXPI"]
["MSXCE"]
["MSXRN"]
["MSXPB"]
["MSXPE"]
["MSXAL"]
["MSXSE"]
["MSXBA"]
["MSXMG"]
["MSXES"]
["MSXRJ"]
["MSXSP"]
["MSXPR"]
["MSXSC"]
["MSXRS"]
["MSXMS"]
["MSXMT"]
["MSXGO"]
["MSXDF"]
["RSXRO"]
["RSXAC"]
["RSXAM"]
["RSXRR"]
["RSXPA"]
["RSXAP"]
["RSXTO"]
["RSXMA"]
["RSXPI"]
["RSXCE"]
["RSXRN"]
["RSXPB"]
["RSXPE"]
["RSXAL"]
["RSXSE"]
["RSXBA"]
["RSXMG"]
["RSXES"]
["RSXRJ"]
["RSXSP"]
["RSXPR"]
["RSXSC"]
["RSXRS"]
["RSXMS"]
["RSXMT"]
["RSXGO"]
["RSXDF"]
["SCXRO"]
["SCXAC"]
["SCXAM"]
["SCXRR"]
["SCXPA"]
["SCXAP"]
["SCXTO"]
["SCXMA"]
["SCXPI"]
["SCXCE"]
["SCXRN"]
["SCXPB"]
["SCXPE"]
["SCXAL"]
["SCXSE"]
["SCXBA"]
["SCXMG"]
["SCXES"]
["SCXRJ"]
["SCXSP"]
["SCXPR"]
["SCXSC"]
["SCXRS"]
["SCXMS"]
["SCXMT"]
["SCXGO"]
["SCXDF"]
["PRXRO"]
["PRXAC"]
["PRXAM"]
["PRXRR"]
["PRXPA"]
["PRXAP"]
["PRXTO"]
["PRXMA"]
["PRXPI"]
["PRXCE"]
["PRXRN"]
["PRXPB"]
["PRXPE"]
["PRXAL"]
["PRXSE"]
["PRXBA"]
["PRXMG"]
["PRXES"]
["PRXRJ"]
["PRXSP"]
["PRXPR"]
["PRXSC"]
["PRXRS"]
["PRXMS"]
["PRXMT"]
["PRXGO"]
["PRXDF"]
["SPXRO"]
["SPXAC"]
["SPXAM"]
["SPXRR"]
["SPXPA"]
["SPXAP"]
["SPXTO"]
["SPXMA"]
["SPXPI"]
["SPXCE"]
["SPXRN"]
["SPXPB"]
["SPXPE"]
["SPXAL"]
["SPXSE"]
["SPXBA"]
["SPXMG"]
["SPXES"]
["SPXRJ"]
["SPXSP"]
["SPXPR"]
["SPXSC"]
["SPXRS"]
["SPXMS"]
["SPXMT"]
["SPXGO"]
["SPXDF"]
["RJXRO"]
["RJXAC"]
["RJXAM"]
["RJXRR"]
["RJXPA"]
["RJXAP"]
["RJXTO"]
["RJXMA"]
["RJXPI"]
["RJXCE"]
["RJXRN"]
["RJXPB"]
["RJXPE"]
["RJXAL"]
["RJXSE"]
["RJXBA"]
["RJXMG"]
["RJXES"]
["RJXRJ"]
["RJXSP"]
["RJXPR"]
["RJXSC"]
["RJXRS"]
["RJXMS"]
["RJXMT"]
["RJXGO"]
["RJXDF"]
["ESXRO"]
["ESXAC"]
["ESXAM"]
["ESXRR"]
["ESXPA"]
["ESXAP"]
["ESXTO"]
["ESXMA"]
["ESXPI"]
["ESXCE"]
["ESXRN"]
["ESXPB"]
["ESXPE"]
["ESXAL"]
["ESXSE"]
["ESXBA"]
["ESXMG"]
["ESXES"]
["ESXRJ"]
["ESXSP"]
["ESXPR"]
["ESXSC"]
["ESXRS"]
["ESXMS"]
["ESXMT"]
["ESXGO"]
["ESXDF"]
["ROXRO"]
["ROXAC"]
["ROXAM"]
["ROXRR"]
["ROXPA"]
["ROXAP"]
["ROXTO"]
["ROXMA"]
["ROXPI"]
["ROXCE"]
["ROXRN"]
["ROXPB"]
["ROXPE"]
["ROXAL"]
["ROXSE"]
["ROXBA"]
["ROXMG"]
["ROXES"]
["ROXRJ"]
["ROXSP"]
["ROXPR"]
["ROXSC"]
["ROXRS"]
["ROXMS"]
["ROXMT"]
["ROXGO"]
["ROXDF"]
["ACXRO"]
["ACXAC"]
["ACXAM"]
["ACXRR"]
["ACXPA"]
["ACXAP"]
["ACXTO"]
["ACXMA"]
["ACXPI"]
["ACXCE"]
["ACXRN"]
["ACXPB"]
["ACXPE"]
["ACXAL"]
["ACXSE"]
["ACXBA"]
["ACXMG"]
["ACXES"]
["ACXRJ"]
["ACXSP"]
["ACXPR"]
["ACXSC"]
["ACXRS"]
["ACXMS"]
["ACXMT"]
["ACXGO"]
["ACXDF"]
["AMXRO"]
["AMXAC"]
["AMXAM"]
["AMXRR"]
["AMXPA"]
["AMXAP"]
["AMXTO"]
["AMXMA"]
["AMXPI"]
["AMXCE"]
["AMXRN"]
["AMXPB"]
["AMXPE"]
["AMXAL"]
["AMXSE"]
["AMXBA"]
["AMXMG"]
["AMXES"]
["AMXRJ"]
["AMXSP"]
["AMXPR"]
["AMXSC"]
["AMXRS"]
["AMXMS"]
["AMXMT"]
["AMXGO"]
["AMXDF"]
["RRXRO"]
["RRXAC"]
["RRXAM"]
["RRXRR"]
["RRXPA"]
["RRXAP"]
["RRXTO"]
["RRXMA"]
["RRXPI"]
["RRXCE"]
["RRXRN"]
["RRXPB"]
["RRXPE"]
["RRXAL"]
["RRXSE"]
["RRXBA"]
["RRXMG"]
["RRXES"]
["RRXRJ"]
["RRXSP"]
["RRXPR"]
["RRXSC"]
["RRXRS"]
["RRXMS"]
["RRXMT"]
["RRXGO"]
["RRXDF"]
["PAXRO"]
["PAXAC"]
["PAXAM"]
["PAXRR"]
["PAXPA"]
["PAXAP"]
["PAXTO"]
["PAXMA"]
["PAXPI"]
["PAXCE"]
["PAXRN"]
["PAXPB"]
["PAXPE"]
["PAXAL"]
["PAXSE"]
["PAXBA"]
["PAXMG"]
["PAXES"]
["PAXRJ"]
["PAXSP"]
["PAXPR"]
["PAXSC"]
["PAXRS"]
["PAXMS"]
["PAXMT"]
["PAXGO"]
["PAXDF"]
["APXRO"]
["APXAC"]
["APXAM"]
["APXRR"]
["APXPA"]
["APXAP"]
["APXTO"]
["APXMA"]
["APXPI"]
["APXCE"]
["APXRN"]
["APXPB"]
["APXPE"]
["APXAL"]
["APXSE"]
["APXBA"]
["APXMG"]
["APXES"]
["APXRJ"]
["APXSP"]
["APXPR"]
["APXSC"]
["APXRS"]
["APXMS"]
["APXMT"]
["APXGO"]
["APXDF"]
["TOXRO"]
["TOXAC"]
["TOXAM"]
["TOXRR"]
["TOXPA"]
["TOXAP"]
["TOXTO"]
["TOXMA"]
["TOXPI"]
["TOXCE"]
["TOXRN"]
["TOXPB"]
["TOXPE"]
["TOXAL"]
["TOXSE"]
["TOXBA"]
["TOXMG"]
["TOXES"]
["TOXRJ"]
["TOXSP"]
["TOXPR"]
["TOXSC"]
["TOXRS"]
["TOXMS"]
["TOXMT"]
["TOXGO"]
["TOXDF"]
["MAXRO"]
["MAXAC"]
["MAXAM"]
["MAXRR"]
["MAXPA"]
["MAXAP"]
["MAXTO"]
["MAXMA"]
["MAXPI"]
["MAXCE"]
["MAXRN"]
["MAXPB"]
["MAXPE"]
["MAXAL"]
["MAXSE"]
["MAXBA"]
["MAXMG"]
["MAXES"]
["MAXRJ"]
["MAXSP"]
["MAXPR"]
["MAXSC"]
["MAXRS"]
["MAXMS"]
["MAXMT"]
["MAXGO"]
["MAXDF"]
["PIXRO"]
["PIXAC"]
["PIXAM"]
["PIXRR"]
["PIXPA"]
["PIXAP"]
["PIXTO"]
["PIXMA"]
["PIXPI"]
["PIXCE"]
["PIXRN"]
["PIXPB"]
["PIXPE"]
["PIXAL"]
["PIXSE"]
["PIXBA"]
["PIXMG"]
["PIXES"]
["PIXRJ"]
["PIXSP"]
["PIXPR"]
["PIXSC"]
["PIXRS"]
["PIXMS"]
["PIXMT"]
["PIXGO"]
["PIXDF"]
["CEXRO"]
["CEXAC"]
["CEXAM"]
["CEXRR"]
["CEXPA"]
["CEXAP"]
["CEXTO"]
["CEXMA"]
["CEXPI"]
["CEXCE"]
["CEXRN"]
["CEXPB"]
["CEXPE"]
["CEXAL"]
["CEXSE"]
["CEXBA"]
["CEXMG"]
["CEXES"]
["CEXRJ"]
["CEXSP"]
["CEXPR"]
["CEXSC"]
["CEXRS"]
["CEXMS"]
["CEXMT"]
["CEXGO"]
["CEXDF"]
["RNXRO"]
["RNXAC"]
["RNXAM"]
["RNXRR"]
["RNXPA"]
["RNXAP"]
["RNXTO"]
["RNXMA"]
["RNXPI"]
["RNXCE"]
["RNXRN"]
["RNXPB"]
["RNXPE"]
["RNXAL"]
["RNXSE"]
["RNXBA"]
["RNXMG"]
["RNXES"]
["RNXRJ"]
["RNXSP"]
["RNXPR"]
["RNXSC"]
["RNXRS"]
["RNXMS"]
["RNXMT"]
["RNXGO"]
["RNXDF"]
["PBXRO"]
["PBXAC"]
["PBXAM"]
["PBXRR"]
["PBXPA"]
["PBXAP"]
["PBXTO"]
["PBXMA"]
["PBXPI"]
["PBXCE"]
["PBXRN"]
["PBXPB"]
["PBXPE"]
["PBXAL"]
["PBXSE"]
["PBXBA"]
["PBXMG"]
["PBXES"]
["PBXRJ"]
["PBXSP"]
["PBXPR"]
["PBXSC"]
["PBXRS"]
["PBXMS"]
["PBXMT"]
["PBXGO"]
["PBXDF"]
["PEXRO"]
["PEXAC"]
["PEXAM"]
["PEXRR"]
["PEXPA"]
["PEXAP"]
["PEXTO"]
["PEXMA"]
["PEXPI"]
["PEXCE"]
["PEXRN"]
["PEXPB"]
["PEXPE"]
["PEXAL"]
["PEXSE"]
["PEXBA"]
["PEXMG"]
["PEXES"]
["PEXRJ"]
["PEXSP"]
["PEXPR"]
["PEXSC"]
["PEXRS"]
["PEXMS"]
["PEXMT"]
["PEXGO"]
["PEXDF"]
["ALXRO"]
["ALXAC"]
["ALXAM"]
["ALXRR"]
["ALXPA"]
["ALXAP"]
["ALXTO"]
["ALXMA"]
["ALXPI"]
["ALXCE"]
["ALXRN"]
["ALXPB"]
["ALXPE"]
["ALXAL"]
["ALXSE"]
["ALXBA"]
["ALXMG"]
["ALXES"]
["ALXRJ"]
["ALXSP"]
["ALXPR"]
["ALXSC"]
["ALXRS"]
["ALXMS"]
["ALXMT"]
["ALXGO"]
["ALXDF"]
["SEXRO"]
["SEXAC"]
["SEXAM"]
["SEXRR"]
["SEXPA"]
["SEXAP"]
["SEXTO"]
["SEXMA"]
["SEXPI"]
["SEXCE"]
["SEXRN"]
["SEXPB"]
["SEXPE"]
["SEXAL"]
["SEXSE"]
["SEXBA"]
["SEXMG"]
["SEXES"]
["SEXRJ"]
["SEXSP"]
["SEXPR"]
["SEXSC"]
["SEXRS"]
["SEXMS"]
["SEXMT"]
["SEXGO"]
["SEXDF"]
["BAXRO"]
["BAXAC"]
["BAXAM"]
["BAXRR"]
["BAXPA"]
["BAXAP"]
["BAXTO"]
["BAXMA"]
["BAXPI"]
["BAXCE"]
["BAXRN"]
["BAXPB"]
["BAXPE"]
["BAXAL"]
["BAXSE"]
["BAXBA"]
["BAXMG"]
["BAXES"]
["BAXRJ"]
["BAXSP"]
["BAXPR"]
["BAXSC"]
["BAXRS"]
["BAXMS"]
["BAXMT"]
["BAXGO"]
["BAXDF"]
["MGXRO"]
["MGXAC"]
["MGXAM"]
["MGXRR"]
["MGXPA"]
["MGXAP"]
["MGXTO"]
["MGXMA"]
["MGXPI"]
["MGXCE"]
["MGXRN"]
["MGXPB"]
["MGXPE"]
["MGXAL"]
["MGXSE"]
["MGXBA"]
["MGXMG"]
["MGXES"]
["MGXRJ"]
["MGXSP"]
["MGXPR"]
["MGXSC"]
["MGXRS"]
["MGXMS"]
["MGXMT"]
["MGXGO"]
["MGXDF"]
["X"]
["X"]
["X"]
["X"]
["X"]
["X"]
["X"]
["X"]
["X"]
["X"]
["X"]
["X"]
["X"]
["X"]
["X"]
["X"]
["X"]
["X"]
["X"]
["X"]
["X"]
["X"]
["X"]
["X"]
["X"]
["X"]
["X"]
["X"]
["X"]
["X"]
["X"]
["X"]
["X"]
["X"]
["X"]
["X"]
["X"]
["X"]
["X"]
["X"]
["X"]
["X"]
["X"]
["X"]
["X"]
["X"]
["X"]
["X"]
["X"]
["X"]
["X"]
["X"]
["X"]
["X"]
["X"]
["X"]
["X"]
["X"]
["X"]
["X"]
["X"]
["X"]
["X"]
["X"]
["X"]
["X"]
["X"]
["X"]
["X"]
["X"]
["X"]
["X"]
["X"]
["X"]
["X"]
["X"]
["X"]
["X"]
["X"]
["X"]
["X"]
["X"]
["X"]
["X"]
["X"]
["X"]
["X"]
["X"]
["X"]
["X"]
["X"]
["X"]
["X"]
["X"]
["X"]
["X"]
["X"]
["X"]
["X"]
["X"]
["X"]
["X"]
["X"]
["X"]
["X"]
["X"]
["X"]
["X"]
["X"]
["X"]
["X"]
["X"]
["X"]
["X"]
["X"]
["X"]
["X"]
["X"]
["X"]
["X"]
["X"]
["X"]
["X"]
["X"]
["X"]
["X"]
["X"]
["X"]
["X"]
["X"]
["X"]
["X"]
["X"]
["X"]
["X"]
["X"]
["X"]
["X"]
["X"]
["X"]
["X"]
["X"]
["X"]
["X"]
["X"]
["X"]
["X"]
["X"]
["X"]
["X"]
["X"]
["X"]
["X"]
["X"]
["X"]
["X"]
["X"]
["X"]
["X"]
["X"]
["X"]
["X"]
["X"]
["X"]
["X"]
["X"]
["X"]
["X"]
["X"]
["X"]
["X"]
["X"]
["X"]
["X"]
["X"]
["X"]
["X"]
["X"]
["X"]
["X"]
["X"]
["X"]
["X"]
["X"]
["X"]
["X"]
["X"]
["X"]
["X"]
["X"]
["X"]
["X"]
["X"]
["X"]
["X"]
["X"]
["X"]
["X"]
["X"]
["X"]
["X"]
["X"]
["X"]
["X"]
["X"]
["X"]
["X"]
["X"]
["X"]
["X"]
["X"]
["X"]
["X"]
["X"]
["X"]
["X"]
["X"]
["X"]
["X"]
["X"]
["X"]
["X"]
["X"]
["X"]
["X"]
["X"]
["X"]
["X"]
["X"]
["X"]
["X"]
["X"]
["X"]
["X"]
["X"]
["X"]
["X"]
["X"]
["X"]
["X"]
["X"]
["X"]
["X"]
["X"]
["X"]
["X"]
["X"]
["X"]
["X"]
["X"]
["X"]
["X"]
["X"]
["X"]
["X"]
["X"]
["X"]
["X"]
["X"]
["X"]
["X"]
["X"]
["X"]
["X"]
["X"]
["X"]
["X"]
["X"]
["X"]
["X"]
["X"]
["X"]
["X"]
["X"]
["X"]
["X"]
["X"]
["X"]
["X"]
["X"]
["X"]
["X"]
["X"]
["X"]
["X"]
["X"]
["X"]
["X"]
["X"]
["X"]
["X"]
["X"]
["X"]
["X"]
["X"]
["X"]
["X"]
["X"]
["X"]
["X"]
["X"]
["X"]
["X"]
["X"]
["X"]
["X"]
["X"]
["X"]
["X"]
["X"]
["X"]
["X"]
["X"]
["X"]
["X"]
["X"]
["X"]
["X"]
["X"]
["X"]
["X"]
["X"]
["X"]
["X"]
["X"]
["X"]
["X"]
["X"]
["X"]
["X"]
["X"]
["X"]
["X"]
["X"]
["X"]
["X"]
["X"]
["X"]
["X"]
["X"]
["X"]
["X"]
["X"]
["X"]
["X"]
["X"]
["X"]
["X"]
["X"]
["X"]
["X"]
["X"]
["X"]
["X"]
["X"]
["X"]
["X"]
["X"]
["X"]
["X"]
["X"]
["X"]
["X"]
["X"]
["X"]
["X"]
["X"]
["X"]
["X"]
["X"]
["X"]
["X"]
["X"]
["X"]
["X"]
["X"]
["X"]
["X"]
["X"]
["X"]
["X"]
["X"]
["X"]
["X"]
["X"]
["X"]
["X"]
["X"]
["X"]
["X"]
["X"]
["X"]
["X"]
["X"]
["X"]
["X"]
["X"]
["X"]
["X"]
["X"]
["X"]
["X"]
["X"]
["X"]
["X"]
["X"]
["X"]
["X"]
["X"]
["X"]
["X"]
["X"]
["X"]
["X"]
["X"]
["X"]
["X"]
["X"]
["X"]
["X"]
["X"]
["X"]
["X"]
["X"]
["X"]
["X"]
["X"]
["X"]
["X"]
["X"]
["X"]
["X"]
["X"]
["X"]
["X"]
["X"]
["X"]
["X"]
["X"]
["X"]
["X"]
["X"]
["X"]
["X"]
["X"]
["X"]
["X"]
["X"]
["X"]
["X"]
["X"]
["X"]
["X"]
["X"]
["X"]
["X"]
["X"]
["X"]
["X"]
["X"]
["X"]
["X"]
["X"]
["X"]
["X"]
["X"]
["X"]
["X"]
["X"]
["X"]
["X"]
["X"]
["X"]
["X"]
["X"]
["X"]
["X"]
["X"]
["X"]
["X"]
["X"]
["X"]
["X"]
["X"]
["X"]
["X"]
["X"]
["X"]
["X"]
["X"]
["X"]
["X"]
["X"]
["X"]
["X"]
["X"]
["X"]
["X"]
["X"]
["X"]
["X"]
["X"]
["X"]
["X"]
["X"]
["X"]
["X"]
["X"]
["X"]
["X"]
["X"]
["X"]
["X"]
["X"]
["X"]
["X"]
["X"]
["X"]
["X"]
["X"]
["X"]
["X"]
["X"]
["X"]
["X"]
["X"]
["X"]
["X"]
["X"]
["X"]
["X"]
["X"]
["X"]
["X"]
["X"]
["X"]
["X"]
["X"]
["X"]
["X"]
["X"]
["X"]
["X"]
["X"]
["X"]
["X"]
["X"]
["X"]
["X"]
["X"]
["X"]
["X"]
["X"]
["X"]
["X"]
["X"]
["X"]
["X"]
["X"]
["X"]
["X"]
["X"]
["X"]
["X"]
["X"]
["X"]
["X"]
["X"]
["X"]
["X"]
["X"]
["X"]
["X"]
["X"]
["X"]
["X"]
["X"]
["X"]
["X"]
["X"]
["X"]
["X"]
["X"]
["X"]
["X"]
["X"]
["X"]
["X"]
["X"]
["X"]
["X"]
["X"]
["X"]
["X"]
["X"]
["X"]
["X"]
["X"]
["X"]
["X"]
["X"]
["X"]
["X"]
["X"]
["X"]
["X"]
["X"]
["X"]
["X"]
["X"]
["X"]
["X"]
["X"]
["X"]
["X"]
["X"]
["X"]
["X"]
["X"]
["X"]
["X"]
["X"]
["X"]
["X"]
["X"]
["X"]
["X"]
["X"]
["X"]
["X"]
["X"]
["X"]
["X"]
["X"]
["X"]
["X"]
["X"]
["X"]
["X"]
["X"]
["X"]
["X"]
["X"]
["X"]
["X"]
["X"]
["X"]
["X"]
["X"]
["X"]
["X"]
["X"]
["X"]
["X"]
["X"]
["X"]
["X"]
["X"]
["X"]
["X"]
["X"]
["X"]
["X"]
["X"]
["X"]
["X"]
["X"]
["X"]
["X"]
["X"]
["X"]
["X"]
["X"]
["X"]
["X"]
["X"]
["X"]
["X"]
["X"]
["X"]
["X"]
["X"]
["X"]
["X"]
["X"]
["X"]
["X"]
["X"]
["X"]
["X"]
["X"]
["X"]
["X"]
["X"]
["X"]
["X"]
["X"]
["X"]
["X"]
["X"]
["X"]
["X"]
["X"]
["X"]
["X"]
["X"]
["X"]
["X"]
["X"]
["X"]
["X"]
["X"]
["X"]
["X"]
["X"]
["X"]
["X"]
["X"]
["X"]
["X"]
["X"]
["X"]
["X"]
["X"]
["X"]
["X"]
["X"]
["X"]
["X"]
["X"]
["X"]
["X"]
["X"]
["X"]
["X"]
["X"]
["X"]
["X"]
["X"]
["X"]
["X"]
["X"]
["X"]
["X"]
["X"]
["X"]
["X"]
["X"]
["X"]
["X"]
["X"]
["X"]
["X"]
["X"]
["X"]
["X"]
["X"]
["X"]
["X"]
["X"]
["X"]
["X"]
["X"]
["X"]
["X"]
["X"]
["X"]
["X"]
["X"]
["X"]
["X"]
["X"]
["X"]
["X"]
["X"]
["X"]
["X"]
["X"]
["X"]
["X"]
["X"]
["X"]
["X"]
["X"]
["X"]
["X"]
["X"]
["X"]
["X"]
["X"]
["X"]
["X"]
["X"]
["X"]
["X"]
["X"]
["X"]
["X"]
["X"]
["X"]
["X"]
["X"]
["X"]
["X"]
["X"]
["X"]
["X"]
["X"]
["X"]
["X"]
["X"]
["X"]
["X"]
["X"]
["X"]
["X"]
["X"]
["X"]
["X"]
["X"]
["X"]
["X"]
["X"]
["X"]
["X"]
["X"]
["X"]
["X"]
["X"]
["X"]
["X"]
["X"]
["X"]
["X"]
["X"]
["X"]
["X"]
["X"]
["X"]
["X"]
["X"]
["X"]
["X"]
["X"]
["X"]
["X"]
["X"]
["X"]
["X"]
["X"]
["X"]
["X"]
["X"]
["X"]
["X"]
["X"]
["X"]
["X"]
["X"]
["X"]
["X"]
["X"]
["X"]
["X"]
["X"]
["X"]
["X"]
["X"]
["X"]
["X"]
["X"]
["X"]
["X"]
["X"]
["X"]
["X"]
["X"]
["X"]
["X"]
["X"]
["X"]
["X"]
["X"]
["X"]
["X"]
["X"]
["X"]
["X"]
["X"]
["X"]
["X"]
["X"]
["X"]
["X"]
["X"]
["X"]
["X"]
["X"]
["X"]
["X"]
["X"]
["X"]
["X"]
["X"]
["X"]
["X"]
["X"]
["X"]
["X"]
["X"]
["X"]
["X"]
["X"]
["X"]
["X"]
["X"]
["X"]
["X"]
["X"]
["X"]
["X"]
["X"]
["X"]
["X"]
["X"]
["X"]
["X"]
["X"]
["X"]
["X"]
["X"]
["X"]
["X"]
["X"]
["X"]
["X"]
["X"]
["X"]
["X"]
["X"]
["X"]
["X"]
["X"]
["X"]
["X"]
["X"]
["X"]
["X"]
["X"]
["X"]
["X"]
["X"]
["X"]
["X"]
["X"]
["X"]
["X"]
["X"]
["X"]
["X"]
["X"]
["X"]
["X"]
["X"]
["X"]
["X"]
["X"]
["X"]
["X"]
["X"]
["X"]
["X"]
["X"]
["X"]
["X"]
["X"]
["X"]
["X"]
["X"]
["X"]
["X"]
["X"]
["X"]
["X"]
["X"]
["X"]
["X"]
["X"]
["X"]
["X"]
["X"]
["X"]
["X"]
["X"]
["X"]
["X"]
["X"]
["X"]
["X"]
["X"]
["X"]
["X"]
["X"]
["X"]
["X"]
["X"]
["X"]
["X"]
["X"]
["X"]
["X"]
["X"]
["X"]
["X"]
["X"]
["X"]
["X"]
["X"]
["X"]
["X"]
["X"]
["X"]
["X"]
["X"]
["X"]
["X"]
["X"]
["X"]
["X"]
["X"]
["X"]
["X"]
["X"]
["X"]
["X"]
["X"]
["X"]
["X"]
["X"]
["X"]
["X"]
["X"]
["X"]
["X"]
["X"]
["X"]
["X"]
["X"]
["X"]
["X"]
["X"]
["X"]
["X"]
["X"]
["X"]
["X"]
["X"]
["X"]
["X"]
["X"]
["X"]
["X"]
["X"]
["X"]
["X"]
["X"]
["X"]
["X"]
["X"]
["X"]
["X"]
["X"]
["X"]
["X"]
["X"]
["X"]
["X"]
["X"]
["X"]
["X"]
["X"]
["X"]
["X"]
["X"]
["X"]
["X"]
["X"]
["X"]
["X"]
["X"]
["X"]
["X"]
["X"]
["X"]
["X"]
["X"]
["X"]
["X"]
["X"]
["X"]
["X"]
["X"]
["X"]
["X"]
["X"]
["X"]
["X"]
["X"]
["X"]
["X"]
["X"]
["X"]
["X"]
["X"]
["X"]
["X"]
["X"]
["X"]
["X"]
["X"]
["X"]
["X"]
["X"]
["X"]
["X"]
["X"]
["X"]
["X"]
["X"]
["X"]
["X"]
["X"]
["X"]
["X"]
["X"]
["X"]
["X"]
["X"]
["X"]
["X"]
["X"]
["X"]
["X"]
["X"]
["X"]
["X"]
["X"]
["X"]
["X"]
["X"]
["X"]
["X"]
["X"]
["X"]
["X"]
["X"]
["X"]
["X"]
["X"]
["X"]
["X"]
["X"]
["X"]
["X"]
["X"]
["X"]
["X"]
["X"]
["X"]
["X"]
["X"]
["X"]
["X"]
["X"]
["X"]
["X"]
["X"]
["X"]
["X"]
["X"]
["X"]
["X"]
["X"]
["X"]
["X"]
["X"]
["X"]
["X"]
["X"]
["X"]
["X"]
["X"]
["X"]
["X"]
["X"]
["X"]
["X"]
["X"]
["X"]
["X"]
["X"]
["X"]
["X"]
["X"]
["X"]
["X"]
["X"]
["X"]
["X"]
["X"]
["X"]
["X"]
["X"]
["X"]
["X"]
["X"]
["X"]
["X"]
["X"]
["X"]
["X"]
["X"]
["X"]
["X"]
["X"]
["X"]
["X"]
["X"]
["X"]
["X"]
["X"]
["X"]
["X"]
["X"]
["X"]
["X"]
["X"]
["X"]
["X"]
["X"]
["X"]
["X"]
["X"]
["X"]
["X"]
["X"]
["X"]
["X"]
["X"]
["X"]
["X"]
["X"]
["X"]
["X"]
["X"]
["X"]
["X"]
["X"]
["X"]
["X"]
["X"]
["X"]
["X"]
["X"]
["X"]
["X"]
["X"]
["X"]
["X"]
["X"]
["X"]
["X"]
["X"]
["X"]
["X"]
["X"]
["X"]
["X"]
["X"]
["X"]
["X"]
["X"]
["X"]
["X"]
["X"]
["X"]
["X"]
["X"]
["X"]
["X"]
["X"]
["X"]
["X"]
["X"]
["X"]
["X"]
["X"]
["X"]
["X"]
["X"]
["X"]
["X"]
["X"]
["X"]
["X"]
["X"]
["X"]
["X"]
["X"]
["X"]
["X"]
["X"]
["X"]
["X"]
["X"]
["X"]
["X"]
["X"]
["X"]
["X"]
["X"]
["X"]
["X"]
["X"]
["X"]
["X"]
["X"]
["X"]
["X"]
["X"]
["X"]
["X"]
["X"]
["X"]
["X"]
["X"]
["X"]
["X"]
["X"]
["X"]
["X"]
["X"]
["X"]
["X"]
["X"]
["X"]
["X"]
["X"]
["X"]
["X"]
["X"]
["X"]
["X"]
["X"]
["X"]
["X"]
["X"]
["X"]
["X"]
["X"]
["X"]
["X"]
["X"]
["X"]
["X"]
["X"]
["X"]
["X"]
["X"]
["X"]
["X"]
["X"]
["X"]
["X"]
["X"]
["X"]
["X"]
["X"]
["X"]
["X"]
["X"]
["X"]
["X"]
["X"]
["X"]
["X"]
["X"]
["X"]
["X"]
["X"]
["X"]
["X"]
["X"]
["X"]
["X"]
["X"]
["X"]
["X"]
["X"]
["X"]
["X"]
["X"]
["X"]
["X"]
["X"]
["X"]
["X"]
["X"]
["X"]
["X"]
["X"]
["X"]
["X"]
["X"]
["X"]
["X"]
["X"]
["X"]
["X"]
["X"]
["X"]
["X"]
["X"]
["X"]
["X"]
["X"]
["X"]
["X"]
["X"]
["X"]
["X"]
["X"]
["X"]
["X"]
["X"]
["X"]
["X"]
["X"]
["X"]
["X"]
["X"]
["X"]
["X"]
["X"]
["X"]
["X"]
["X"]
["X"]
["X"]
["X"]
["X"]
["X"]
["X"]
["X"]
["X"]
["X"]
["X"]
["X"]
["X"]
["X"]
["X"]
["X"]
["X"]
["X"]
["X"]
["X"]
["X"]
["X"]
["X"]
["X"]
["X"]
["X"]
["X"]
["X"]
["X"]
["X"]
["X"]
["X"]
["X"]
["X"]
["X"]
["X"]
["X"]
["X"]
["X"]
["X"]
["X"]
["X"]
["X"]
["X"]
["X"]
["X"]
["X"]
["X"]
["X"]
["X"]
["X"]
["X"]
["X"]
["X"]
["X"]
["X"]
["X"]
["X"]
["X"]
["X"]
["X"]
["X"]
["X"]
["X"]
["X"]
["X"]
["X"]
["X"]
["X"]
["X"]
["X"]
["X"]
["X"]
["X"]
["X"]
["X"]
["X"]
["X"]
["X"]
["X"]
["X"]
["X"]
["X"]
["X"]
["X"]
["X"]
["X"]
["X"]
["X"]
["X"]
["X"]
["X"]
["X"]
["X"]
["X"]
["X"]
["X"]
["X"]
["X"]
["X"]
["X"]
["X"]
["X"]
["X"]
["X"]
["X"]
["X"]
["X"]
["X"]
["X"]
["X"]
["X"]
["X"]
["X"]
["X"]
["X"]
["X"]
["X"]
["X"]
["X"]
["X"]
["X"]
["X"]
["X"]
["X"]
["X"]
["X"]
["X"]
["X"]
["X"]
["X"]
["X"]
["X"]
["X"]
["X"]
["X"]
["X"]
["X"]
["X"]
["X"]
["X"]
["X"]
["X"]
["X"]
["X"]
["X"]
["X"]
["X"]
["X"]
["X"]
["X"]
["X"]
["X"]
["X"]
["X"]
["X"]
["X"]
["X"]
["X"]
["X"]
["X"]
["X"]
["X"]
["X"]
["X"]
["X"]
["X"]
["X"]
["X"]
["X"]
["X"]
["X"]
["X"]
["X"]
["X"]
["X"]
["X"]
["X"]
["X"]
["X"]
["X"]
["X"]
["X"]
["X"]
["X"]
["X"]
["X"]
["X"]
["X"]
["X"]
["X"]
["X"]
["X"]
["X"]
["X"]
["X"]
["X"]
["X"]
["X"]
["X"]
["X"]
["X"]
["X"]
["X"]
["X"]
["X"]
["X"]
["X"]
["X"]
["X"]
["X"]
["X"]
["X"]
["X"]
["X"]
["X"]
["X"]
["X"]
["X"]
["X"]
["X"]
["X"]
["X"]
["X"]
["X"]
["X"]
["X"]
["X"]
["X"]
["X"]
["X"]
["X"]
["X"]
["X"]
["X"]
["X"]
["X"]
["X"]
["X"]
["X"]
["X"]
["X"]
["X"]
["X"]
["X"]
["X"]
["X"]
["X"]
["X"]
["X"]
["X"]
["X"]
["X"]
["X"]
["X"]
["X"]
["X"]
["X"]
["X"]
["X"]
["X"]
["X"]
["X"]
["X"]
["X"]
["X"]
["X"]
["X"]
["X"]
["X"]
["X"]
["X"]
["X"]
["X"]
["X"]
["X"]
["X"]
["X"]
["X"]
["X"]
["X"]
["X"]
["X"]
["X"]
["X"]
["X"]
["X"]
["X"]
["X"]
["X"]
["X"]
["X"]
["X"]
["X"]
["X"]
["X"]
["X"]
["X"]
["X"]
["X"]
["X"]
["X"]
["X"]
["X"]
["X"]
["X"]
["X"]
["X"]
["X"]
["X"]
["X"]
["X"]
["X"]
["X"]
["X"]
["X"]
["X"]
["X"]
["X"]
["X"]
["X"]
["X"]
["X"]
["X"]
["X"]
["X"]
["X"]
["X"]
["X"]
["X"]
["X"]
["X"]
["X"]
["X"]
["X"]
["X"]
["X"]
["X"]
["X"]
["X"]
["X"]
["X"]
["X"]
["X"]
["X"]
["X"]
["X"]
["X"]
["X"]
["X"]
["X"]
["X"]
["X"]
["X"]
["X"]
["X"]
["X"]
["X"]
["X"]
["X"]
["X"]
["X"]
["X"]
["X"]
["X"]
["X"]
["X"]
["X"]
["X"]
["X"]
["X"]
["X"]
["X"]
["X"]
["X"]
["X"]
["X"]
["X"]
["X"]
["X"]
["X"]
["X"]
["X"]
["X"]
["X"]
["X"]
["X"]
["X"]
["X"]
["X"]
["X"]
["X"]
["X"]
["X"]
["X"]
["X"]
["X"]
["X"]
["X"]
["X"]
["X"]
["X"]
["X"]
["X"]
["X"]
["X"]
["X"]
["X"]
["X"]
["X"]
["X"]
["X"]
["X"]
["X"]
["X"]
["X"]
["X"]
["X"]
["X"]
["X"]
["X"]
["X"]
["X"]
["X"]
["X"]
["X"]
["X"]
["X"]
["X"]
["X"]
["X"]
["X"]
["X"]
["X"]
["X"]
["X"]
["X"]
["X"]
["X"]
["X"]
["X"]
["X"]
["X"]
["X"]
["X"]
["X"]
["X"]
["X"]
["X"]
["X"]
["X"]
["X"]
["X"]
["X"]
["X"]
["X"]
["X"]
["X"]
["X"]
["X"]
["X"]
["X"]
["X"]
["X"]
["X"]
["X"]
["X"]
["X"]
["X"]
["X"]
["X"]
["X"]
["X"]
["X"]
["X"]
["X"]
["X"]
["X"]
["X"]
["X"]
["X"]
["X"]
["X"]
["X"]
["X"]
["X"]
["X"]
["X"]
["X"]
["X"]
["X"]
["X"]
["X"]
["X"]
["X"]
["X"]
["X"]
["X"]
["X"]
["X"]
["X"]
["X"]
["X"]
["X"]
["X"]
["X"]
["X"]
["X"]
["X"]
["X"]
["X"]
["X"]
["X"]
["X"]
["X"]
["X"]
["X"]
["X"]
["X"]
["X"]
["X"]
["X"]
["X"]
["X"]
["X"]
["X"]
["X"]
["X"]
["X"]
["X"]
["X"]
["X"]
["X"]
["X"]
["X"]
["X"]
["X"]
["X"]
["X"]
["X"]
["X"]
["X"]
["X"]
["X"]
["X"]
["X"]
["X"]
["X"]
["X"]
["X"]
["X"]
["X"]
["X"]
["X"]
["X"]
["X"]
["X"]
["X"]
["X"]
["X"]
["X"]
["X"]
["X"]
["X"]
["X"]
["X"]
["X"]
["X"]
["X"]
["X"]
["X"]
["X"]
["X"]
["X"]
["X"]
["X"]
["X"]
["X"]
["X"]
["X"]
["X"]
["X"]
["X"]
["X"]
["X"]
["X"]
["X"]
["X"]
["X"]
["X"]
["X"]
["X"]
["X"]
["X"]
["X"]
["X"]
["X"]
["X"]
["X"]
["X"]
["X"]
["X"]
["X"]
["X"]
["X"]
["X"]
["X"]
["X"]
["X"]
["X"]
["X"]
["X"]
["X"]
["X"]
["X"]
["X"]
["X"]
["X"]
["X"]
["X"]
["X"]
["X"]
["X"]
["X"]
["X"]
["X"]
["X"]
["X"]
["X"]
["X"]
["X"]
["X"]
["X"]
["X"]
["X"]
["X"]
["X"]
["X"]
["X"]
["X"]
["X"]
["X"]
["X"]
["X"]
["X"]
["X"]
["X"]
["X"]
["X"]
["X"]
["X"]
["X"]
["X"]
["X"]
["X"]
["X"]
["X"]
["X"]
["X"]
["X"]
["X"]
["X"]
["X"]
["X"]
["X"]
["X"]
["X"]
["X"]
["X"]
["X"]
["X"]
["X"]
["X"]
["X"]
["X"]
["X"]
["X"]
["X"]
["X"]
["X"]
["X"]
["X"]
["X"]
["X"]
["X"]
["X"]
["X"]
["X"]
["X"]
["X"]
["X"]
["X"]
["X"]
["X"]
["X"]
["X"]
["X"]
["X"]
["X"]
["X"]
["X"]
["X"]
["X"]
["X"]
["X"]
["X"]
["X"]
["X"]
["X"]
["X"]
["X"]
["X"]
["X"]
["X"]
["X"]
["X"]
["X"]
["X"]
["X"]
["X"]
["X"]
["X"]
["X"]
["X"]
["X"]
["X"]
["X"]
["X"]
["X"]
["X"]
["X"]
["X"]
["X"]
["X"]
["X"]
["X"]
["X"]
["X"]
["X"]
["X"]
["X"]
["X"]
["X"]
["X"]
["X"]
["X"]
["X"]
["X"]
["X"]
["X"]
["X"]
["X"]
["X"]
["X"]
["X"]
["X"]
["X"]
["X"]
["X"]
["X"]
["X"]
["X"]
["X"]
["X"]
["X"]
["X"]
["X"]
["X"]
["X"]
["X"]
["X"]
["X"]
["X"]
["X"]
["X"]
["X"]
["X"]
["X"]
["X"]
["X"]
["X"]
["X"]
["X"]
["X"]
["X"]
["X"]
["X"]
["X"]
["X"]
["X"]
["X"]
["X"]
["X"]
["X"]
["X"]
["X"]
["X"]
["X"]
["X"]
["X"]
["X"]
["X"]
["X"]
["X"]
["X"]
["X"]
["X"]
["X"]
["X"]
["X"]
["X"]
["X"]
["X"]
["X"]
["X"]
["X"]
["X"]
["X"]
["X"]
["X"]
["X"]
["X"]
["X"]
["X"]
["X"]
["X"]
["X"]
["X"]
["X"]
["X"]
["X"]
["X"]
["X"]
["X"]
["X"]
["X"]
["X"]
["X"]
["X"]
["X"]
["X"]
["X"]
["X"]
["X"]
["X"]
["X"]
["X"]
["X"]
["X"]
["X"]
["X"]
["X"]
["X"]
["X"]
["X"]
["X"]
["X"]
["X"]
["X"]
["X"]
["X"]
["X"]
["X"]
["X"]
["X"]
["X"]
["X"]
["X"]
["X"]
["X"]
["X"]
["X"]
["X"]
["X"]
["X"]
["X"]
["X"]
["X"]
["X"]
["X"]
["X"]
["X"]
["X"]
["X"]
["X"]
["X"]
["X"]
["X"]
["X"]
["X"]
["X"]
["X"]
["X"]
["X"]
["X"]
["X"]
["X"]
["X"]
["X"]
["X"]
["X"]
["X"]
["X"]
["X"]
["X"]
["X"]
["X"]
["X"]
["X"]
["X"]
["X"]
["X"]
["X"]
["X"]
["X"]
["X"]
["X"]
["X"]
["X"]
["X"]
["X"]
["X"]
["X"]
["X"]
["X"]
["X"]
["X"]
["X"]
["X"]
["X"]
["X"]
["X"]
["X"]
["X"]
["X"]
["X"]
["X"]
["X"]
["X"]
["X"]
["X"]
["X"]
["X"]
["X"]
["X"]
["X"]
["X"]
["X"]
["X"]
["X"]
["X"]
["X"]
["X"]
["X"]
["X"]
["X"]
["X"]
["X"]
["X"]
["X"]
["X"]
["X"]
["X"]
["X"]
["X"]
["X"]
["X"]
["X"]
["X"]
["X"]
["X"]
["X"]
["X"]
["X"]
["X"]
["X"]
["X"]
["X"]
["X"]
["X"]
["X"]
["X"]
["X"]
["X"]
["X"]
["X"]
["X"]
["X"]
["X"]
["X"]
["X"]
["X"]
["X"]
["X"]
["X"]
["X"]
["X"]
["X"]
["X"]
["X"]
["X"]
["X"]
["X"]
["X"]
["X"]
["X"]
["X"]
["X"]
["X"]
["X"]
["X"]
["X"]
["X"]
["X"]
["X"]
["X"]
["X"]
["X"]
["X"]
["X"]
["X"]
["X"]
["X"]
["X"]
["X"]
["X"]
["X"]
["X"]
["X"]
["X"]
["X"]
["X"]
["X"]
["X"]
["X"]
["X"]
["X"]
["X"]
["X"]
["X"]
["X"]
["X"]
["X"]
["X"]
["X"]
["X"]
["X"]
["X"]
["X"]
["X"]
["X"]
["X"]
["X"]
["X"]
["X"]
["X"]
["X"]
["X"]
["X"]
["X"]
["X"]
["X"]
["X"]
["X"]
["X"]
["X"]
["X"]
["X"]
["X"]
["X"]
["X"]
["X"]
["X"]
["X"]
["X"]
["X"]
["X"]
["X"]
["X"]
["X"]
["X"]
["X"]
["X"]
["X"]
["X"]
["X"]
["X"]
["X"]
["X"]
["X"]
["X"]
["X"]
["X"]
["X"]
["X"]
["X"]
["X"]
["X"]
["X"]
["X"]
["X"]
["X"]
["X"]
["X"]
["X"]
["X"]
["X"]
["X"]
["X"]
["X"]
["X"]
["X"]
["X"]
["X"]
["X"]
["X"]
["X"]
["X"]
["X"]
["X"]
["X"]
["X"]
["X"]
["X"]
["X"]
["X"]
["X"]
["X"]
["X"]
["X"]
["X"]
["X"]
["X"]
["X"]
["X"]
["X"]
["X"]
["X"]
["X"]
["X"]
["X"]
["X"]
["X"]
["X"]
["X"]
["X"]
["X"]
["X"]
["X"]
["X"]
["X"]
["X"]
["X"]
["X"]
["X"]
["X"]
["X"]
["X"]
["X"]
["X"]
["X"]
["X"]
["X"]
["X"]
["X"]
["X"]
["X"]
["X"]
["X"]
["X"]
["X"]
["X"]
["X"]
["X"]
["X"]
["X"]
["X"]
["X"]
["X"]
["X"]
["X"]
["X"]
["X"]
["X"]
["X"]
["X"]
["X"]
["X"]
["X"]
["X"]
["X"]
["X"]
["X"]
["X"]
["X"]
["X"]
["X"]
["X"]
["X"]
["X"]
["X"]
["X"]
["X"]
["X"]
["X"]
["X"]
["X"]
["X"]
["X"]
["X"]
["X"]
["X"]
["X"]
["X"]
["X"]
["X"]
["X"]
["X"]
["X"]
["X"]
["X"]
["X"]
["X"]
["X"]
["X"]
["X"]
["X"]
["X"]
["X"]
["X"]
["X"]
["X"]
["X"]
["X"]
["X"]
["X"]
["X"]
["X"]
["X"]
["X"]
["X"]
["X"]
["X"]
["X"]
["X"]
["X"]
["X"]
["X"]
["X"]
["X"]
["X"]
["X"]
["X"]
["X"]
["X"]
["X"]
["X"]
["X"]
["X"]
["X"]
["X"]
["X"]
["X"]
["X"]
["X"]
["X"]
["X"]
["X"]
["X"]
["X"]
["X"]
["X"]
["X"]
["X"]
["X"]
["X"]
["X"]
["X"]
["X"]
["X"]
["X"]
["X"]
["X"]
["X"]
["X"]
["X"]
["X"]
["X"]
["X"]
["X"]
["X"]
["X"]
["X"]
["X"]
["X"]
["X"]
["X"]
["X"]
["X"]
["X"]
["X"]
["X"]
["X"]
["X"]
["X"]
["X"]
["X"]
["X"]
["X"]
["X"]
["X"]
["X"]
["X"]
["X"]
["X"]
["X"]
["X"]
["X"]
["X"]
["X"]
["X"]
["X"]
["X"]
["X"]
["X"]
["X"]
["X"]
["X"]
["X"]
["X"]
["X"]
["X"]
["X"]
["X"]
["X"]
["X"]
["X"]
["X"]
["X"]
["X"]
["X"]
["X"]
["X"]
["X"]
["X"]
["X"]
["X"]
["X"]
["X"]
["X"]
["X"]
["X"]
["X"]
["X"]
["X"]
["X"]
["X"]
["X"]
["X"]
["X"]
["X"]
["X"]
["X"]
["X"]
["X"]
["X"]
["X"]
["X"]
["X"]
["X"]
["X"]
["X"]
["X"]
["X"]
["X"]
["X"]
["X"]
["X"]
["X"]
["X"]
["X"]
["X"]
["X"]
["X"]
["X"]
["X"]
["X"]
["X"]
["X"]
["X"]
["X"]
["X"]
["X"]
["X"]
["X"]
["X"]
["X"]
["X"]
["X"]
["X"]
["X"]
["X"]
["X"]
["X"]
["X"]
["X"]
["X"]
["X"]
["X"]
["X"]
["X"]
["X"]
["X"]
["X"]
["X"]
["X"]
["X"]
["X"]
["X"]
["X"]
["X"]
["X"]
["X"]
["X"]
["X"]
["X"]
["X"]
["X"]
["X"]
["X"]
["X"]
["X"]
["X"]
["X"]
["X"]
["X"]
["X"]
["X"]
["X"]
["X"]
["X"]
["X"]
["X"]
["X"]
["X"]
["X"]
["X"]
["X"]
["X"]
["X"]
["X"]
["X"]
["X"]
["X"]
["X"]
["X"]
["X"]
["X"]
["X"]
["X"]
["X"]
["X"]
["X"]
["X"]
["X"]
["X"]
["X"]
["X"]
["X"]
["X"]
["X"]
["X"]
["X"]
["X"]
["X"]
["X"]
["X"]
["X"]
["X"]
["X"]
["X"]
["X"]
["X"]
["X"]
["X"]
["X"]
["X"]
["X"]
["X"]
["X"]
["X"]
["X"]
["X"]
["X"]
["X"]
["X"]
["X"]
["X"]
["X"]
["X"]
["X"]
["X"]
["X"]
["X"]
["X"]
["X"]
["X"]
["X"]
["X"]
["X"]
["X"]
["X"]
["X"]
["X"]
["X"]
["X"]
["X"]
["X"]
["X"]
["X"]
["X"]
["X"]
["X"]
["X"]
["X"]
["X"]
["X"]
["X"]
["X"]
["X"]
["X"]
["X"]
["X"]
["X"]
["X"]
["X"]
["X"]
["X"]
["X"]
["X"]
["X"]
["X"]
["X"]
["X"]
["X"]
["X"]
["X"]
["X"]
["X"]
["X"]
["X"]
["X"]
["X"]
["X"]
["X"]
["X"]
["X"]
["X"]
["X"]
["X"]
["X"]
["X"]
["X"]
["X"]
["X"]
["X"]
["X"]
["X"]
["X"]
["X"]
["X"]
["X"]
["X"]
["X"]
["X"]
["X"]
["X"]
["X"]
["X"]
["X"]
["X"]
["X"]
["X"]
["X"]
["X"]
["X"]
["X"]
["X"]
["X"]
["X"]
["X"]
["X"]
["X"]
["X"]
["X"]
["X"]
["X"]
["X"]
["X"]
["X"]
["X"]
["X"]
["X"]
["X"]
["X"]
["X"]
["X"]
["X"]
["X"]
["X"]
["X"]
["X"]
["X"]
["X"]
["X"]
["X"]
["X"]
["X"]
["X"]
["X"]
["X"]
["X"]
["X"]
["X"]
["X"]
["X"]
["X"]
["X"]
["X"]
["X"]
["X"]
["X"]
["X"]
["X"]
["X"]
["X"]
["X"]
["X"]
["X"]
["X"]
["X"]
["X"]
["X"]
["X"]
["X"]
["X"]
["X"]
["X"]
["X"]
["X"]
["X"]
["X"]
["X"]
["X"]
["X"]
["X"]
["X"]
["X"]
["X"]
["X"]
["X"]
["X"]
["X"]
["X"]
["X"]
["X"]
["X"]
["X"]
["X"]
["X"]
["X"]
["X"]
["X"]
["X"]
["X"]
["X"]
["X"]
["X"]
["X"]
["X"]
["X"]
["X"]
["X"]
["X"]
["X"]
["X"]
["X"]
["X"]
["X"]
["X"]
["X"]
["X"]
["X"]
["X"]
["X"]
["X"]
["X"]
["X"]
["X"]
["X"]
["X"]
["X"]
["X"]
["X"]
["X"]
["X"]
["X"]
["X"]
["X"]
["X"]
["X"]
["X"]
["X"]
["X"]
["X"]
["X"]
["X"]
["X"]
["X"]
["X"]
["X"]
["X"]
["X"]
["X"]
["X"]
["X"]
["X"]
["X"]
["X"]
["X"]
["X"]
["X"]
["X"]
["X"]
["X"]
["X"]
["X"]
["X"]
["X"]
["X"]
["X"]
["X"]
["X"]
["X"]
["X"]
["X"]
["X"]
["X"]
["X"]
["X"]
["X"]
["X"]
["X"]
["X"]
["X"]
["X"]
["X"]
["X"]
["X"]
["X"]
["X"]
["X"]
["X"]
["X"]
["X"]
["X"]
["X"]
["X"]
["X"]
["X"]
["X"]
["X"]
["X"]
["X"]
["X"]
["X"]
["X"]
["X"]
["X"]
["X"]
["X"]
["X"]
["X"]
["X"]
["X"]
["X"]
["X"]
["X"]
["X"]
["X"]
["X"]
["X"]
["X"]
["X"]
["X"]
["X"]
["X"]
["X"]
["X"]
["X"]
["X"]
["X"]
["X"]
["X"]
["X"]
["X"]
["X"]
["X"]
["X"]
["X"]
["X"]
["X"]
["X"]
["X"]
["X"]
["X"]
["X"]
["X"]
["X"]
["X"]
["X"]
["X"]
["X"]
["X"]
["X"]
["X"]
["X"]
["X"]
["X"]
["X"]
["X"]
["X"]
["X"]
["X"]
["X"]
["X"]
["X"]
["X"]
["X"]
["X"]
["X"]
["X"]
["X"]
["X"]
["X"]
["X"]
["X"]
["X"]
["X"]
["X"]
["X"]
["X"]
["X"]
["X"]
["X"]
["X"]
["X"]
["X"]
["X"]
["X"]
["X"]
["X"]
["X"]
["X"]
["X"]
["X"]
["X"]
["X"]
["X"]
["X"]
["X"]
["X"]
["X"]
["X"]
["X"]
["X"]
["X"]
["X"]
["X"]
["X"]
["X"]
["X"]
["X"]
["X"]
["X"]
["X"]
["X"]
["X"]
["X"]
["X"]
["X"]
["X"]
["X"]
["X"]
["X"]
["X"]
["X"]
["X"]
["X"]
["X"]
["X"]
["X"]
["X"]
["X"]
["X"]
["X"]
["X"]
["X"]
["X"]
["X"]
["X"]
["X"]
["X"]
["X"]
["X"]
["X"]
["X"]
["X"]
["X"]
["X"]
["X"]
["X"]
["X"]
["X"]
["X"]
["X"]
["X"]
["X"]
["X"]
["X"]
["X"]
["X"]
["X"]
["X"]
["X"]
["X"]
["X"]
["X"]
["X"]
["X"]
["X"]
["X"]
["X"]
["X"]
["X"]
["X"]
["X"]
["X"]
["X"]
["X"]
["X"]
["X"]
["X"]
["X"]
["X"]
["X"]
["X"]
["X"]
["X"]
["X"]
["X"]
["X"]
["X"]
["X"]
["X"]
["X"]
["X"]
["X"]
["X"]
["X"]
["X"]
["X"]
["X"]
["X"]
["X"]
["X"]
["X"]
["X"]
["X"]
["X"]
["X"]
["X"]
["X"]
["X"]
["X"]
["X"]
["X"]
["X"]
["X"]
["X"]
["X"]
["X"]
["X"]
["X"]
["X"]
["X"]
["X"]
["X"]
["X"]
["X"]
["X"]
["X"]
["X"]
["X"]
["X"]
["X"]
["X"]
["X"]
["X"]
["X"]
["X"]
["X"]
["X"]
["X"]
["X"]
["X"]
["X"]
["X"]
["X"]
["X"]
["X"]
["X"]
["X"]
["X"]
["X"]
["X"]
["X"]
["X"]
["X"]
["X"]
["X"]
["X"]
["X"]
["X"]
["X"]
["X"]
["X"]
["X"]
["X"]
["X"]
["X"]
["X"]
["X"]
["X"]
["X"]
["X"]
["X"]
["X"]
["X"]
["X"]
["X"]
["X"]
["X"]
["X"]
["X"]
["X"]
["X"]
["X"]
["X"]
["X"]
["X"]
["X"]
["X"]
["X"]
["X"]
["X"]
["X"]
["X"]
["X"]
["X"]
["X"]
["X"]
["X"]
["X"]
["X"]
["X"]
["X"]
["X"]
["X"]
["X"]
["X"]
["X"]
["X"]
["X"]
["X"]
["X"]
["X"]
["X"]
["X"]
["X"]
["X"]
["X"]
["X"]
["X"]
["X"]
["X"]
["X"]
["X"]
["X"]
["X"]
["X"]
["X"]
["X"]
["X"]
["X"]
["X"]
["X"]
["X"]
["X"]
["X"]
["X"]
["X"]
["X"]
["X"]
["X"]
["X"]
["X"]
["X"]
["X"]
["X"]
["X"]
["X"]
["X"]
["X"]
["X"]
["X"]
["X"]
["X"]
["X"]
["X"]
["X"]
["X"]
["X"]
["X"]
["X"]
["X"]
["X"]
["X"]
["X"]
["X"]
["X"]
["X"]
["X"]
["X"]
["X"]
["X"]
["X"]
["X"]
["X"]
["X"]
["X"]
["X"]
["X"]
["X"]
["X"]
["X"]
["X"]
["X"]
["X"]
["X"]
["X"]
["X"]
["X"]
["X"]
["X"]
["X"]
["X"]
["X"]
["X"]
["X"]
["X"]
["X"]
["X"]
["X"]
["X"]
["X"]
["X"]
["X"]
["X"]
["X"]
["X"]
["X"]
["X"]
["X"]
["X"]
["X"]
["X"]
["X"]
["X"]
["X"]
["X"]
["X"]
["X"]
["X"]
["X"]
["X"]
["X"]
["X"]
["X"]
["X"]
["X"]
["X"]
["X"]
["X"]
["X"]
["X"]
["X"]
["X"]
["X"]
["X"]
["X"]
["X"]
["X"]
["X"]
["X"]
["X"]
["X"]
["X"]
["X"]
["X"]
["X"]
["X"]
["X"]
["X"]
["X"]
["X"]
["X"]
["X"]
["X"]
["X"]
["X"]
["X"]
["X"]
["X"]
["X"]
["X"]
["X"]
["X"]
["X"]
["X"]
["X"]
["X"]
["X"]
["X"]
["X"]
["X"]
["X"]
["X"]
["X"]
["X"]
["X"]
["X"]
["X"]
["X"]
["X"]
["X"]
["X"]
["X"]
["X"]
["X"]
["X"]
["X"]
["X"]
["X"]
["X"]
["X"]
["X"]
["X"]
["X"]
["X"]
["X"]
["X"]
["X"]
["X"]
["X"]
["X"]
["X"]
["X"]
["X"]
["X"]
["X"]
["X"]
["X"]
["X"]
["X"]
["X"]
["X"]
["X"]
["X"]
["X"]
["X"]
["X"]
["X"]
["X"]
["X"]
["X"]
["X"]
["X"]
["X"]
["X"]
["X"]
["X"]
["X"]
["X"]
["X"]
["X"]
["X"]
["X"]
["X"]
["X"]
["X"]
["X"]
["X"]
["X"]
["X"]
["X"]
["X"]
["X"]
["X"]
["X"]
["X"]
["X"]
["X"]
["X"]
["X"]
["X"]
["X"]
["X"]
["X"]
["X"]
["X"]
["X"]
["X"]
["X"]
["X"]
["X"]
["X"]
["X"]
["X"]
["X"]
["X"]
["X"]
["X"]
["X"]
["X"]
["X"]
["X"]
["X"]
["X"]
["X"]
["X"]
["X"]
["X"]
["X"]
["X"]
["X"]
["X"]
["X"]
["X"]
["X"]
["X"]
["X"]
["X"]
["X"]
["X"]
["X"]
["X"]
["X"]
["X"]
["X"]
["X"]
["X"]
["X"]
["X"]
["X"]
["X"]
["X"]
["X"]
["X"]
["X"]
["X"]
["X"]
["X"]
["X"]
["X"]
["X"]
["X"]
["X"]
["X"]
["X"]
["X"]
["X"]
["X"]
["X"]
["X"]
["X"]
["X"]
["X"]
["X"]
["X"]
["X"]
["X"]
["X"]
["X"]
["X"]
["X"]
["X"]
["X"]
["X"]
["X"]
["X"]
["X"]
["X"]
["X"]
["X"]
["X"]
["X"]
["X"]
["X"]
["X"]
["X"]
["X"]
["X"]
["X"]
["X"]
["X"]
["X"]
["X"]
["X"]
["X"]
["X"]
["X"]
["X"]
["X"]
["X"]
["X"]
["X"]
["X"]
["X"]
["X"]
["X"]
["X"]
["X"]
["X"]
["X"]
["X"]
["X"]
["X"]
["X"]
["X"]
["X"]
["X"]
["X"]
["X"]
["X"]
["X"]
["X"]
["X"]
["X"]
["X"]
["X"]
["X"]
["X"]
["X"]
["X"]
["X"]
["X"]
["X"]
["X"]
["X"]
["X"]
["X"]
["X"]
["X"]
["X"]
["X"]
["X"]
["X"]
["X"]
["X"]
["X"]
["X"]
["X"]
["X"]
["X"]
["X"]
["X"]
["X"]
["X"]
["X"]
["X"]
["X"]
["X"]
["X"]
["X"]
["X"]
["X"]
["X"]
["X"]
["X"]
["X"]
["X"]
["X"]
["X"]
["X"]
["X"]
["X"]
["X"]
["X"]
["X"]
["X"]
["X"]
["X"]
["X"]
["X"]
["X"]
["X"]
["X"]
["X"]
["X"]
["X"]
["X"]
["X"]
["X"]
["X"]
["X"]
["X"]
["X"]
["X"]
["X"]
["X"]
["X"]
["X"]
["X"]
["X"]
["X"]
["X"]
["X"]
["X"]
["X"]
["X"]
["X"]
["X"]
["X"]
["X"]
["X"]
["X"]
["X"]
["X"]
["X"]
["X"]
["X"]
["X"]
["X"]
["X"]
["X"]
["X"]
["X"]
["X"]
["X"]
["X"]
["X"]
["X"]
["X"]
["X"]
["X"]
["X"]
["X"]
["X"]
["X"]
["X"]
["X"]
["X"]
["X"]
["X"]
["X"]
["X"]
["X"]
["X"]
["X"]
["X"]
["X"]
["X"]
["X"]
["X"]
["X"]
["X"]
["X"]
["X"]
["X"]
["X"]
["X"]
["X"]
["X"]
["X"]
["X"]
["X"]
["X"]
["X"]
["X"]
["X"]
["X"]
["X"]
["X"]
["X"]
["X"]
["X"]
["X"]
["X"]
["X"]
["X"]
["X"]
["X"]
["X"]
["X"]
["X"]
["X"]
["X"]
["X"]
["X"]
["X"]
["X"]
["X"]
["X"]
["X"]
["X"]
["X"]
["X"]
["X"]
["X"]
["X"]
["X"]
["X"]
["X"]
["X"]
["X"]
["X"]
["X"]
["X"]
["X"]
["X"]
["X"]
["X"]
["X"]
["X"]
["X"]
["X"]
["X"]
["X"]
["X"]
["X"]
["X"]
["X"]
["X"]
["X"]
["X"]
["X"]
["X"]
["X"]
["X"]
["X"]
["X"]
["X"]
["X"]
["X"]
["X"]
["X"]
["X"]
["X"]
["X"]
["X"]
["X"]
["X"]
["X"]
["X"]
["X"]
["X"]
["X"]
["X"]
["X"]
["X"]
["X"]
["X"]
["X"]
["X"]
["X"]
["X"]
["X"]
["X"]
["X"]
["X"]
["X"]
["X"]
["X"]
["X"]
["X"]
["X"]
["X"]
["X"]
["X"]
["X"]
["X"]
["X"]
["X"]
["X"]
["X"]
["X"]
["X"]
["X"]
["X"]
["X"]
["X"]
["X"]
["X"]
["X"]
["X"]
["X"]
["X"]
["X"]
["X"]
["X"]
["X"]
["X"]
["X"]
["X"]
["X"]
["X"]
["X"]
["X"]
["X"]
["X"]
["X"]
["X"]
["X"]
["X"]
["X"]
["X"]
["X"]
["X"]
["X"]
["X"]
["X"]
["X"]
["X"]
["X"]
["X"]
["X"]
["X"]
["X"]
["X"]
["X"]
["X"]
["X"]
["X"]
["X"]
["X"]
["X"]
["X"]
["X"]
["X"]
["X"]
["X"]
["X"]
["X"]
["X"]
["X"]
["X"]
["X"]
["X"]
["X"]
["X"]
["X"]
["X"]
["X"]
["X"]
["X"]
["X"]
["X"]
["X"]
["X"]
["X"]
["X"]
["X"]
["X"]
["X"]
["X"]
["X"]
["X"]
["X"]
["X"]
["X"]
["X"]
["X"]
["X"]
["X"]
["X"]
["X"]
["X"]
["X"]
["X"]
["X"]
["X"]
["X"]
["X"]
["X"]
["X"]
["X"]
["X"]
["X"]
["X"]
["X"]
["X"]
["X"]
["X"]
["X"]
["X"]
["X"]
["X"]
["X"]
["X"]
["X"]
["X"]
["X"]
["X"]
["X"]
["X"]
["X"]
["X"]
["X"]
["X"]
["X"]
["X"]
["X"]
["X"]
["X"]
["X"]
["X"]
["X"]
["X"]
["X"]
["X"]
["X"]
["X"]
["X"]
["X"]
["X"]
["X"]
["X"]
["X"]
["X"]
["X"]
["X"]
["X"]
["X"]
["X"]
["X"]
["X"]
["X"]
["X"]
["X"]
["X"]
["X"]
["X"]
["X"]
["X"]
["X"]
["X"]
["X"]
["X"]
["X"]
["X"]
["X"]
["X"]
["X"]
["X"]
["X"]
["X"]
["X"]
["X"]
["X"]
["X"]
["X"]
["X"]
["X"]
["X"]
["X"]
["X"]
["X"]
["X"]
["X"]
["X"]
["X"]
["X"]
["X"]
["X"]
["X"]
["X"]
["X"]
["X"]
["X"]
["X"]
["X"]
["X"]
["X"]
["X"]
["X"]
["X"]
["X"]
["X"]
["X"]
["X"]
["X"]
["X"]
["X"]
["X"]
["X"]
["X"]
["X"]
["X"]
["X"]
["X"]
["X"]
["X"]
["X"]
["X"]
["X"]
["X"]
["X"]
["X"]
["X"]
["X"]
["X"]
["X"]
["X"]
["X"]
["X"]
["X"]
["X"]
["X"]
["X"]
["X"]
["X"]
["X"]
["X"]
["X"]
["X"]
["X"]
["X"]
["X"]
["X"]
["X"]
["X"]
["X"]
["X"]
["X"]
["X"]
["X"]
["X"]
["X"]
["X"]
["X"]
["X"]
["X"]
["X"]
["X"]
["X"]
["X"]
["X"]
["X"]
["X"]
["X"]
["X"]
["X"]
["X"]
["X"]
["X"]
["X"]
["X"]
["X"]
["X"]
["X"]
["X"]
["X"]
["X"]
["X"]
["X"]
["X"]
["X"]
["X"]
["X"]
["X"]
["X"]
["X"]
["X"]
["X"]
["X"]
["X"]
["X"]
["X"]
["X"]
["X"]
["X"]
["X"]
["X"]
["X"]
["X"]
["X"]
["X"]
["X"]
["X"]
["X"]
["X"]
["X"]
["X"]
["X"]
["X"]
["X"]
["X"]
["X"]
["X"]
["X"]
["X"]
["X"]
["X"]
["X"]
["X"]
["X"]
["X"]
["X"]
["X"]
["X"]
["X"]
["X"]
["X"]
["X"]
["X"]
["X"]
["X"]
["X"]
["X"]
["X"]
["X"]
["X"]
["X"]
["X"]
["X"]
["X"]
["X"]
["X"]
["X"]
["X"]
["X"]
["X"]
["X"]
["X"]
["X"]
["X"]
["X"]
["X"]
["X"]
["X"]
["X"]
["X"]
["X"]
["X"]
["X"]
["X"]
["X"]
["X"]
["X"]
["X"]
["X"]
["X"]
["X"]
["X"]
["X"]
["X"]
["X"]
["X"]
["X"]
["X"]
["X"]
["X"]
["X"]
["X"]
["X"]
["X"]
["X"]
["X"]
["X"]
["X"]
["X"]
["X"]
["X"]
["X"]
["X"]
["X"]
["X"]
["X"]
["X"]
["X"]
["X"]
["X"]
["X"]
["X"]
["X"]
["X"]
["X"]
["X"]
["X"]
["X"]
["X"]
["X"]
["X"]
["X"]
["X"]
["X"]
["X"]
["X"]
["X"]
["X"]
["X"]
["X"]
["X"]
["X"]
["X"]
["X"]
["X"]
["X"]
["X"]
["X"]
["X"]
["X"]
["X"]
["X"]
["X"]
["X"]
["X"]
["X"]
["X"]
["X"]
["X"]
["X"]
["X"]
["X"]
["X"]
["X"]
["X"]
["X"]
["X"]
["X"]
["X"]
["X"]
["X"]
["X"]
["X"]
["X"]
["X"]
["X"]
["X"]
["X"]
["X"]
["X"]
["X"]
["X"]
["X"]
["X"]
["X"]
["X"]
["X"]
["X"]
["X"]
["X"]
["X"]
["X"]
["X"]
["X"]
["X"]
["X"]
["X"]
["X"]
["X"]
["X"]
["X"]
["X"]
["X"]
["X"]
["X"]
["X"]
["X"]
["X"]
["X"]
["X"]
["X"]
["X"]
["X"]
["X"]
["X"]
["X"]
["X"]
["X"]
["X"]
["X"]
["X"]
["X"]
["X"]
["X"]
["X"]
["X"]
["X"]
["X"]
["X"]
["X"]
["X"]
["X"]
["X"]
["X"]
["X"]
["X"]
["X"]
["X"]
["X"]
["X"]
["X"]
["X"]
["X"]
["X"]
["X"]
["X"]
["X"]
["X"]
["X"]
["X"]
["X"]
["X"]
["X"]
["X"]
["X"]
["X"]
["X"]
["X"]
["X"]
["X"]
["X"]
["X"]
["X"]
["X"]
["X"]
["X"]
["X"]
["X"]
["X"]
["X"]
["X"]
["X"]
["X"]
["X"]
["X"]
["X"]
["X"]
["X"]
["X"]
["X"]
["X"]
["X"]
["X"]
["X"]
["X"]
["X"]
["X"]
["X"]
["X"]
["X"]
["X"]
["X"]
["X"]
["X"]
["X"]
["X"]
["X"]
["X"]
["X"]
["X"]
["X"]
["X"]
["X"]
["X"]
["X"]
["X"]
["X"]
["X"]
["X"]
["X"]
["X"]
["X"]
["X"]
["X"]
["X"]
["X"]
["X"]
["X"]
["X"]
["X"]
["X"]
["X"]
["X"]
["X"]
["X"]
["X"]
["X"]
["X"]
["X"]
["X"]
["X"]
["X"]
["X"]
["X"]
["X"]
["X"]
["X"]
["X"]
["X"]
["X"]
["X"]
["X"]
["X"]
["X"]
["X"]
["X"]
["X"]
["X"]
["X"]
["X"]
["X"]
["X"]
["X"]
["X"]
["X"]
["X"]
["X"]
["X"]
["X"]
["X"]
["X"]
["X"]
["X"]
["X"]
["X"]
["X"]
["X"]
["X"]
["X"]
["X"]
["X"]
["X"]
["X"]
["X"]
["X"]
["X"]
["X"]
["X"]
["X"]
["X"]
["X"]
["X"]
["X"]
["X"]
["X"]
["X"]
["X"]
["X"]
["X"]
["X"]
["X"]
["X"]
["X"]
["X"]
["X"]
["X"]
["X"]
["X"]
["X"]
["X"]
["X"]
["X"]
["X"]
["X"]
["X"]
["X"]
["X"]
["X"]
["X"]
["X"]
["X"]
["X"]
["X"]
["X"]
["X"]
["X"]
["X"]
["X"]
["X"]
["X"]
["X"]
["X"]
["X"]
["X"]
["X"]
["X"]
["X"]
["X"]
["X"]
["X"]
["X"]
["X"]
["X"]
["X"]
["X"]
["X"]
["X"]
["X"]
["X"]
["X"]
["X"]
["X"]
["X"]
["X"]
["X"]
["X"]
["X"]
["X"]
["X"]
["X"]
["X"]
["X"]
["X"]
["X"]
["X"]
["X"]
["X"]
["X"]
["X"]
["X"]
["X"]
["X"]
["X"]
["X"]
["X"]
["X"]
["X"]
["X"]
["X"]
["X"]
["X"]
["X"]
["X"]
["X"]
["X"]
["X"]
["X"]
["X"]
["X"]
["X"]
["X"]
["X"]
["X"]
["X"]
["X"]
["X"]
["X"]
["X"]
["X"]
["X"]
["X"]
["X"]
["X"]
["X"]
["X"]
["X"]
["X"]
["X"]
["X"]
["X"]
["X"]
["X"]
["X"]
["X"]
["X"]
["X"]
["X"]
["X"]
["X"]
["X"]
["X"]
["X"]
["X"]
["X"]
["X"]
["X"]
["X"]
["X"]
["X"]
["X"]
["X"]
["X"]
["X"]
["X"]
["X"]
["X"]
["X"]
["X"]
["X"]
["X"]
["X"]
["X"]
["X"]
["X"]
["X"]
["X"]
["X"]
["X"]
["X"]
["X"]
["X"]
["X"]
["X"]
["X"]
["X"]
["X"]
["X"]
["X"]
["X"]
["X"]
["X"]
["X"]
["X"]
["X"]
["X"]
["X"]
["X"]
["X"]
["X"]
["X"]
["X"]
["X"]
["X"]
["X"]
["X"]
["X"]
["X"]
["X"]
["X"]
["X"]
["X"]
["X"]
["X"]
["X"]
["X"]
["X"]
["X"]
["X"]
["X"]
["X"]
["X"]
["X"]
["X"]
["X"]
["X"]
["X"]
["X"]
["X"]
["X"]
["X"]
["X"]
["X"]
["X"]
["X"]
["X"]
["X"]
["X"]
["X"]
["X"]
["X"]
["X"]
["X"]
["X"]
["X"]
["X"]
["X"]
["X"]
["X"]
["X"]
["X"]
["X"]
["X"]
["X"]
["X"]
["X"]
["X"]
["X"]
["X"]
["X"]
["X"]
["X"]
["X"]
["X"]
["X"]
["X"]
["X"]
["X"]
["X"]
["X"]
["X"]
["X"]
["X"]
["X"]
["X"]
["X"]
["X"]
["X"]
["X"]
["X"]
["X"]
["X"]
["X"]
["X"]
["X"]
["X"]
["X"]
["X"]
["X"]
["X"]
["X"]
["X"]
["X"]
["X"]
["X"]
["X"]
["X"]
["X"]
["X"]
["X"]
["X"]
["X"]
["X"]
["X"]
["X"]
["X"]
["X"]
["X"]
["X"]
["X"]
["X"]
["X"]
["X"]
["X"]
["X"]
["X"]
["X"]
["X"]
["X"]
["X"]
["X"]
["X"]
["X"]
["X"]
["X"]
["X"]
["X"]
["X"]
["X"]
["X"]
["X"]
["X"]
["X"]
["X"]
["X"]
["X"]
["X"]
["X"]
["X"]
["X"]
["X"]
["X"]
["X"]
["X"]
["X"]
["X"]
["X"]
["X"]
["X"]
["X"]
["X"]
["X"]
["X"]
["X"]
["X"]
["X"]
["X"]
["X"]
["X"]
["X"]
["X"]
["X"]
["X"]
["X"]
["X"]
["X"]
["X"]
["X"]
["X"]
["X"]
["X"]
["X"]
["X"]
["X"]
["X"]
["X"]
["X"]
["X"]
["X"]
["X"]
["X"]
["X"]
["X"]
["X"]
["X"]
["X"]
["X"]
["X"]
["X"]
["X"]
["X"]
["X"]
["X"]
["X"]
["X"]
["X"]
["X"]
["X"]
["X"]
["X"]
["X"]
["X"]
["X"]
["X"]
["X"]
["X"]
["X"]
["X"]
["X"]
["X"]
["X"]
["X"]
["X"]
["X"]
["X"]
["X"]
["X"]
["X"]
["X"]
["X"]
["X"]
["X"]
["X"]
["X"]
["X"]
["X"]
["X"]
["X"]
["X"]
["X"]
["X"]
["X"]
["X"]
["X"]
["X"]
["X"]
["X"]
["X"]
["X"]
["X"]
["X"]
["X"]
["X"]
["X"]
["X"]
["X"]
["X"]
["X"]
["X"]
["X"]
["X"]
["X"]
["X"]
["X"]
["X"]
["X"]
["X"]
["X"]
["X"]
["X"]
["X"]
["X"]
["X"]
["X"]
["X"]
["X"]
["X"]
["X"]
["X"]
["X"]
["X"]
["X"]
["X"]
["X"]
["X"]
["X"]
["X"]
["X"]
["X"]
["X"]
["X"]
["X"]
["X"]
["X"]
["X"]
["X"]
["X"]
["X"]
["X"]
["X"]
["X"]
["X"]
["X"]
["X"]
["X"]
["X"]
["X"]
["X"]
["X"]
["X"]
["X"]
["X"]
["X"]
["X"]
["X"]
["X"]
["X"]
["X"]
["X"]
["X"]
["X"]
["X"]
["X"]
["X"]
["X"]
["X"]
["X"]
["X"]
["X"]
["X"]
["X"]
["X"]
["X"]
["X"]
["X"]
["X"]
["X"]
["X"]
["X"]
["X"]
["X"]
["X"]
["X"]
["X"]
["X"]
["X"]
["X"]
["X"]
["X"]
["X"]
["X"]
["X"]
["X"]
["X"]
["X"]
["X"]
["X"]
["X"]
["X"]
["X"]
["X"]
["X"]
["X"]
["X"]
["X"]
["X"]
["X"]
["X"]
["X"]
["X"]
["X"]
["X"]
["X"]
["X"]
["X"]
["X"]
["X"]
["X"]
["X"]
["X"]
["X"]
["X"]
["X"]
["X"]
["X"]
["X"]
["X"]
["X"]
["X"]
["X"]
["X"]
["X"]
["X"]
["X"]
["X"]
["X"]
["X"]
["X"]
["X"]
["X"]
["X"]
["X"]
["X"]
["X"]
["X"]
["X"]
["X"]
["X"]
["X"]
["X"]
["X"]
["X"]
["X"]
["X"]
["X"]
["X"]
["X"]
["X"]
["X"]
["X"]
["X"]
["X"]
["X"]
["X"]
["X"]
["X"]
["X"]
["X"]
["X"]
["X"]
["X"]
["X"]
["X"]
["X"]
["X"]
["X"]
["X"]
["X"]
["X"]
["X"]
["X"]
["X"]
["X"]
["X"]
["X"]
["X"]
["X"]
["X"]
["X"]
["X"]
["X"]
["X"]
["X"]
["X"]
["X"]
["X"]
["X"]
["X"]
["X"]
["X"]
["X"]
["X"]
["X"]
["X"]
["X"]
["X"]
["X"]
["X"]
["X"]
["X"]
["X"]
["X"]
["X"]
["X"]
["X"]
["X"]
["X"]
["X"]
["X"]
["X"]
["X"]
["X"]
["X"]
["X"]
["X"]
["X"]
["X"]
["X"]
["X"]
["X"]
["X"]
["X"]
["X"]
["X"]
["X"]
["X"]
["X"]
["X"]
["X"]
["X"]
["X"]
["X"]
["X"]
["X"]
["X"]
["X"]
["X"]
["X"]
["X"]
["X"]
["X"]
["X"]
["X"]
["X"]
["X"]
["X"]
["X"]
["X"]
["X"]
["X"]
["X"]
["X"]
["X"]
["X"]
["X"]
["X"]
["X"]
["X"]
["X"]
["X"]
["X"]
["X"]
["X"]
["X"]
["X"]
["X"]
["X"]
["X"]
["X"]
["X"]
["X"]
["X"]
["X"]
["X"]
["X"]
["X"]
["X"]
["X"]
["X"]
["X"]
["X"]
["X"]
["X"]
["X"]
["X"]
["X"]
["X"]
["X"]
["X"]
["X"]
["X"]
["X"]
["X"]
["X"]
["X"]
["X"]
["X"]
["X"]
["X"]
["X"]
["X"]
["X"]
["X"]
["X"]
["X"]
["X"]
["X"]
["X"]
["X"]
["X"]
["X"]
["X"]
["X"]
["X"]
["X"]
["X"]
["X"]
["X"]
["X"]
["X"]
["X"]
["X"]
["X"]
["X"]
["X"]
["X"]
["X"]
["X"]
["X"]
["X"]
["X"]
["X"]
["X"]
["X"]
["X"]
["X"]
["X"]
["X"]
["X"]
["X"]
["X"]
["X"]
["X"]
["X"]
["X"]
["X"]
["X"]
["X"]
["X"]
["X"]
["X"]
["X"]
["X"]
["X"]
["X"]
["X"]
["X"]
["X"]
["X"]
["X"]
["X"]
["X"]
["X"]
["X"]
["X"]
["X"]
["X"]
["X"]
["X"]
["X"]
["X"]
["X"]
["X"]
["X"]
["X"]
["X"]
["X"]
["X"]
["X"]
["X"]
["X"]
["X"]
["X"]
["X"]
["X"]
["X"]
["X"]
["X"]
["X"]
["X"]
["X"]
["X"]
["X"]
["X"]
["X"]
["X"]
["X"]
["X"]
["X"]
["X"]
["X"]
["X"]
["X"]
["X"]
["X"]
["X"]
["X"]
["X"]
["X"]
["X"]
["X"]
["X"]
["X"]
["X"]
["X"]
["X"]
["X"]
["X"]
["X"]
["X"]
["X"]
["X"]
["X"]
["X"]
["X"]
["X"]
["X"]
["X"]
["X"]
["X"]
["X"]
["X"]
["X"]
["X"]
["X"]
["X"]
["X"]
["X"]
["X"]
["X"]
["X"]
["X"]
["X"]
["X"]
["X"]
["X"]
["X"]
["X"]
["X"]
["X"]
["X"]
["X"]
["X"]
["X"]
["X"]
["X"]
["X"]
["X"]
["X"]
["X"]
["X"]
["X"]
["X"]
["X"]
["X"]
["X"]
["X"]
["X"]
["X"]
["X"]
["X"]
["X"]
["X"]
["X"]
["X"]
["X"]
["X"]
["X"]
["X"]
["X"]
["X"]
["X"]
["X"]
["X"]
["X"]
["X"]
["X"]
["X"]
["X"]
["X"]
["X"]
["X"]
["X"]
["X"]
["X"]
["X"]
["X"]
["X"]
["X"]
["X"]
["X"]
["X"]
["X"]
["X"]
["X"]
["X"]
["X"]
["X"]
["X"]
["X"]
["X"]
["X"]
["X"]
["X"]
["X"]
["X"]
["X"]
["X"]
["X"]
["X"]
["X"]
["X"]
["X"]
["X"]
["X"]
["X"]
["X"]
["X"]
["X"]
["X"]
["X"]
["X"]
["X"]
["X"]
["X"]
["X"]
["X"]
["X"]
["X"]
["X"]
["X"]
["X"]
["X"]
["X"]
["X"]
["X"]
["X"]
["X"]
["X"]
["X"]
["X"]
["X"]
["X"]
["X"]
["X"]
["X"]
["X"]
["X"]
["X"]
["X"]
["X"]
["X"]
["X"]
["X"]
["X"]
["X"]
["X"]
["X"]
["X"]
["X"]
["X"]
["X"]
["X"]
["X"]
["X"]
["X"]
["X"]
["X"]
["X"]
["X"]
["X"]
["X"]
["X"]
["X"]
["X"]
["X"]
["X"]
["X"]
["X"]
["X"]
["X"]
["X"]
["X"]
["X"]
["X"]
["X"]
["X"]
["X"]
["X"]
["X"]
["X"]
["X"]
["X"]
["X"]
["X"]
["X"]
["X"]
["X"]
["X"]
["X"]
["X"]
["X"]
["X"]
["X"]
["X"]
["X"]
["X"]
["X"]
["X"]
["X"]
["X"]
["X"]
["X"]
["X"]
["X"]
["X"]
["X"]
["X"]
["X"]
["X"]
["X"]
["X"]
["X"]
["X"]
["X"]
["X"]
["X"]
["X"]
["X"]
["X"]
["X"]
["X"]
["X"]
["X"]
["X"]
["X"]
["X"]
["X"]
["X"]
["X"]
["X"]
["X"]
["X"]
["X"]
["X"]
["X"]
["X"]
["X"]
["X"]
["X"]
["X"]
["X"]
["X"]
["X"]
["X"]
["X"]
["X"]
["X"]
["X"]
["X"]
["X"]
["X"]
["X"]
["X"]
["X"]
["X"]
["X"]
["X"]
["X"]
["X"]
["X"]
["X"]
["X"]
["X"]
["X"]
["X"]
["X"]
["X"]
["X"]
["X"]
["X"]
["X"]
["X"]
["X"]
["X"]
["X"]
["X"]
["X"]
["X"]
["X"]
["X"]
["X"]
["X"]
["X"]
["X"]
["X"]
["X"]
["X"]
["X"]
["X"]
["X"]
["X"]
["X"]
["X"]
["X"]
["X"]
["X"]
["X"]
["X"]
["X"]
["X"]
["X"]
["X"]
["X"]
["X"]
["X"]
["X"]
["X"]
["X"]
["X"]
["X"]
["X"]
["X"]
["X"]
["X"]
["X"]
["X"]
["X"]
["X"]
["X"]
["X"]
["X"]
["X"]
["X"]
["X"]
["X"]
["X"]
["X"]
["X"]
["X"]
["X"]
["X"]
["X"]
["X"]
["X"]
["X"]
["X"]
["X"]
["X"]
["X"]
["X"]
["X"]
["X"]
["X"]
["X"]
["X"]
["X"]
["X"]
["X"]
["X"]
["X"]
["X"]
["X"]
["X"]
["X"]
["X"]
["X"]
["X"]
["X"]
["X"]
["X"]
["X"]
["X"]
["X"]
["X"]
["X"]
["X"]
["X"]
["X"]
["X"]
["X"]
["X"]
["X"]
["X"]
["X"]
["X"]
["X"]
["X"]
["X"]
["X"]
["X"]
["X"]
["X"]
["X"]
["X"]
["X"]
["X"]
["X"]
["X"]
["X"]
["X"]
["X"]
["X"]
["X"]
["X"]
["X"]
["X"]
["X"]
["X"]
["X"]
["X"]
["X"]
["X"]
["X"]
["X"]
["X"]
["X"]
["X"]
["X"]
["X"]
["X"]
["X"]
["X"]
["X"]
["X"]
["X"]
["X"]
["X"]
["X"]
["X"]
["X"]
["X"]
["X"]
["X"]
["X"]
["X"]
["X"]
["X"]
["X"]
["X"]
["X"]
["X"]
["X"]
["X"]
["X"]
["X"]
["X"]
["X"]
["X"]
["X"]
["X"]
["X"]
["X"]
["X"]
["X"]
["X"]
["X"]
["X"]
["X"]
["X"]
["X"]
["X"]
["X"]
["X"]
["X"]
["X"]
["X"]
["X"]
["X"]
["X"]
["X"]
["X"]
["X"]
["X"]
["X"]
["X"]
["X"]
["X"]
["X"]
["X"]
["X"]
["X"]
["X"]
["X"]
["X"]
["X"]
["X"]
["X"]
["X"]
["X"]
["X"]
["X"]
["X"]
["X"]
["X"]
["X"]
["X"]
["X"]
["X"]
["X"]
["X"]
["X"]
["X"]
["X"]
["X"]
["X"]
["X"]
["X"]
["X"]
["X"]
["X"]
["X"]
["X"]
["X"]
["X"]
["X"]
["X"]
["X"]
["X"]
["X"]
["X"]
["X"]
["X"]
["X"]
["X"]
["X"]
["X"]
["X"]
["X"]
["X"]
["X"]
["X"]
["X"]
["X"]
["X"]
["X"]
["X"]
["X"]
["X"]
["X"]
["X"]
["X"]
["X"]
["X"]
["X"]
["X"]
["X"]
["X"]
["X"]
["X"]
["X"]
["X"]
["X"]
["X"]
["X"]
["X"]
["X"]
["X"]
["X"]
["X"]
["X"]
["X"]
["X"]
["X"]
["X"]
["X"]
["X"]
["X"]
["X"]
["X"]
["X"]
["X"]
["X"]
["X"]
["X"]
["X"]
["X"]
["X"]
["X"]
["X"]
["X"]
["X"]
["X"]
["X"]
["X"]
["X"]
["X"]
["X"]
["X"]
["X"]
["X"]
["X"]
["X"]
["X"]
["X"]
["X"]
["X"]
["X"]
["X"]
["X"]
["X"]
["X"]
["X"]
["X"]
["X"]
["X"]
["X"]
["X"]
["X"]
["X"]
["X"]
["X"]
["X"]
["X"]
["X"]
["X"]
["X"]
["X"]
["X"]
["X"]
["X"]
["X"]
["X"]
["X"]
["X"]
["X"]
["X"]
["X"]
["X"]
["X"]
["X"]
["X"]
["X"]
["X"]
["X"]
["X"]
["X"]
["X"]
["X"]
["X"]
["X"]
["X"]
["X"]
["X"]
["X"]
["X"]
["X"]
["X"]
["X"]
["X"]
["X"]
["X"]
["X"]
["X"]
["X"]
["X"]
["X"]
["X"]
["X"]
["X"]
["X"]
["X"]
["X"]
["X"]
["X"]
["X"]
["X"]
["X"]
["X"]
["X"]
["X"]
["X"]
["X"]
["X"]
["X"]
["X"]
["X"]
["X"]
["X"]
["X"]
["X"]
["X"]
["X"]
["X"]
["X"]
["X"]
["X"]
["X"]
["X"]
["X"]
["X"]
["X"]
["X"]
["X"]
["X"]
["X"]
["X"]
["X"]
["X"]
["X"]
["X"]
["X"]
["X"]
["X"]
["X"]
["X"]
["X"]
["X"]
["X"]
["X"]
["X"]
["X"]
["X"]
["X"]
["X"]
["X"]
["X"]
["X"]
["X"]
["X"]
["X"]
["X"]
["X"]
["X"]
["X"]
["X"]
["X"]
["X"]
["X"]
["X"]
["X"]
["X"]
["X"]
["X"]
["X"]
["X"]
["X"]
["X"]
["X"]
["X"]
["X"]
["X"]
["X"]
["X"]
["X"]
["X"]
["X"]
["X"]
["X"]
["X"]
["X"]
["X"]
["X"]
["X"]
["X"]
["X"]
["X"]
["X"]
["X"]
["X"]
["X"]
["X"]
["X"]
["X"]
["X"]
["X"]
["X"]
["X"]
["X"]
["X"]
["X"]
["X"]
["X"]
["X"]
["X"]
["X"]
["X"]
["X"]
["X"]
["X"]
["X"]
["X"]
["X"]
["X"]
["X"]
["X"]
["X"]
["X"]
["X"]
["X"]
["X"]
["X"]
["X"]
["X"]
["X"]
["X"]
["X"]
["X"]
["X"]
["X"]
["X"]
["X"]
["X"]
["X"]
["X"]
["X"]
["X"]
["X"]
["X"]
["X"]
["X"]
["X"]
["X"]
["X"]
["X"]
["X"]
["X"]
["X"]
["X"]
["X"]
["X"]
["X"]
["X"]
["X"]
["X"]
["X"]
["X"]
["X"]
["X"]
["X"]
["X"]
["X"]
["X"]
["X"]
["X"]
["X"]
["X"]
["X"]
["X"]
["X"]
["X"]
["X"]
["X"]
["X"]
["X"]
["X"]
["X"]
["X"]
["X"]
["X"]
["X"]
["X"]
["X"]
["X"]
["X"]
["X"]
["X"]
["X"]
["X"]
["X"]
["X"]
["X"]
["X"]
["X"]
["X"]
["X"]
["X"]
["X"]
["X"]
["X"]
["X"]
["X"]
["X"]
["X"]
["X"]
["X"]
["X"]
["X"]
["X"]
["X"]
["X"]
["X"]
["X"]
["X"]
["X"]
["X"]
["X"]
["X"]
["X"]
["X"]
["X"]
["X"]
["X"]
["X"]
["X"]
["X"]
["X"]
["X"]
["X"]
["X"]
["X"]
["X"]
["X"]
["X"]
["X"]
["X"]
["X"]
["X"]
["X"]
["X"]
["X"]
["X"]
["X"]
["X"]
["X"]
["X"]
["X"]
["X"]
["X"]
["X"]
["X"]
["X"]
["X"]
["X"]
["X"]
["X"]
["X"]
["X"]
["X"]
["X"]
["X"]
["X"]
["X"]
["X"]
["X"]
["X"]
["X"]
["X"]
["X"]
["X"]
["X"]
["X"]
["X"]
["X"]
["X"]
["X"]
["X"]
["X"]
["X"]
["X"]
["X"]
["X"]
["X"]
["X"]
["X"]
["X"]
["X"]
["X"]
["X"]
["X"]
["X"]
["X"]
["X"]
["X"]
["X"]
["X"]
["X"]
["X"]
["X"]
["X"]
["X"]
["X"]
["X"]
["X"]
["X"]
["X"]
["X"]
["X"]
["X"]
["X"]
["X"]
["X"]
["X"]
["X"]
["X"]
["X"]
["X"]
["X"]
["X"]
["X"]
["X"]
["X"]
["X"]
["X"]
["X"]
["X"]
["X"]
["X"]
["X"]
["X"]
["X"]
["X"]
["X"]
["X"]
["X"]
["X"]
["X"]
["X"]
["X"]
["X"]
["X"]
["X"]
["X"]
["X"]
["X"]
["X"]
["X"]
["X"]
["X"]
["X"]
["X"]
["X"]
["X"]
["X"]
["X"]
["X"]
["X"]
["X"]
["X"]
["X"]
["X"]
["X"]
["X"]
["X"]
["X"]
["X"]
["X"]
["X"]
["X"]
["X"]
["X"]
["X"]
["X"]
["X"]
["X"]
["X"]
["X"]
["X"]
["X"]
["X"]
["X"]
["X"]
["X"]
["X"]
["X"]
["X"]
["X"]
["X"]
["X"]
["X"]
["X"]
["X"]
["X"]
["X"]
["X"]
["X"]
["X"]
["X"]
["X"]
["X"]
["X"]
["X"]
["X"]
["X"]
["X"]
["X"]
["X"]
["X"]
["X"]
["X"]
["X"]
["X"]
["X"]
["X"]
["X"]
["X"]
["X"]
["X"]
["X"]
["X"]
["X"]
["X"]
["X"]
["X"]
["X"]
["X"]
["X"]
["X"]
["X"]
["X"]
["X"]
["X"]
["X"]
["X"]
["X"]
["X"]
["X"]
["X"]
["X"]
["X"]
["X"]
["X"]
["X"]
["X"]
["X"]
["X"]
["X"]
["X"]
["X"]
["X"]
["X"]
["X"]
["X"]
["X"]
["X"]
["X"]
["X"]
["X"]
["X"]
["X"]
["X"]
["X"]
["X"]
["X"]
["X"]
["X"]
["X"]
["X"]
["X"]
["X"]
["X"]
["X"]
["X"]
["X"]
["X"]
["X"]
["X"]
["X"]
["X"]
["X"]
["X"]
["X"]
["X"]
["X"]
["X"]
["X"]
["X"]
["X"]
["X"]
["X"]
["X"]
["X"]
["X"]
["X"]
["X"]
["X"]
["X"]
["X"]
["X"]
["X"]
["X"]
["X"]
["X"]
["X"]
["X"]
["X"]
["X"]
["X"]
["X"]
["X"]
["X"]
["X"]
["X"]
["X"]
["X"]
["X"]
["X"]
["X"]
["X"]
["X"]
["X"]
["X"]
["X"]
["X"]
["X"]
["X"]
["X"]
["X"]
["X"]
["X"]
["X"]
["X"]
["X"]
["X"]
["X"]
["X"]
["X"]
["X"]
["X"]
["X"]
["X"]
["X"]
["X"]
["X"]
["X"]
["X"]
["X"]
["X"]
["X"]
["X"]
["X"]
["X"]
["X"]
["X"]
["X"]
["X"]
["X"]
["X"]
["X"]
["X"]
["X"]
["X"]
["X"]
["X"]
["X"]
["X"]
["X"]
["X"]
["X"]
["X"]
["X"]
["X"]
["X"]
["X"]
["X"]
["X"]
["X"]
["X"]
["X"]
["X"]
["X"]
["X"]
["X"]
["X"]
["X"]
["X"]
["X"]
["X"]
["X"]
["X"]
["X"]
["X"]
["X"]
["X"]
["X"]
["X"]
["X"]
["X"]
["X"]
["X"]
["X"]
["X"]
["X"]
["X"]
["X"]
["X"]
["X"]
["X"]
["X"]
["X"]
["X"]
["X"]
["X"]
["X"]
["X"]
["X"]
["X"]
["X"]
["X"]
["X"]
["X"]
["X"]
["X"]
["X"]
["X"]
["X"]
["X"]
["X"]
["X"]
["X"]
["X"]
["X"]
["X"]
["X"]
["X"]
["X"]
["X"]
["X"]
["X"]
["X"]
["X"]
["X"]
["X"]
["X"]
["X"]
["X"]
["X"]
["X"]
["X"]
["X"]
["X"]
["X"]
["X"]
["X"]
["X"]
["X"]
["X"]
["X"]
["X"]
["X"]
["X"]
["X"]
["X"]
["X"]
["X"]
["X"]
["X"]
["X"]
["X"]
["X"]
["X"]
["X"]
["X"]
["X"]
["X"]
["X"]
["X"]
["X"]
["X"]
["X"]
["X"]
["X"]
["X"]
["X"]
["X"]
["X"]
["X"]
["X"]
["X"]
["X"]
["X"]
["X"]
["X"]
["X"]
["X"]
["X"]
["X"]
["X"]
["X"]
["X"]
["X"]
["X"]
["X"]
["X"]
["X"]
["X"]
["X"]
["X"]
["X"]
["X"]
["X"]
["X"]
["X"]
["X"]
["X"]
["X"]
["X"]
["X"]
["X"]
["X"]
["X"]
["X"]
["X"]
["X"]
["X"]
["X"]
["X"]
["X"]
["X"]
["X"]
["X"]
["X"]
["X"]
["X"]
["X"]
["X"]
["X"]
["X"]
["X"]
["X"]
["X"]
["X"]
["X"]
["X"]
["X"]
["X"]
["X"]
["X"]
["X"]
["X"]
["X"]
["X"]
["X"]
["X"]
["X"]
["X"]
["X"]
["X"]
["X"]
["X"]
["X"]
["X"]
["X"]
["X"]
["X"]
["X"]
["X"]
["X"]
["X"]
["X"]
["X"]
["X"]
["X"]
["X"]
["X"]
["X"]
["X"]
["X"]
["X"]
["X"]
["X"]
["X"]
["X"]
["X"]
["X"]
["X"]
["X"]
["X"]
["X"]
["X"]
["X"]
["X"]
["X"]
["X"]
["X"]
["X"]
["X"]
["X"]
["X"]
["X"]
["X"]
["X"]
["X"]
["X"]
["X"]
["X"]
["X"]
["X"]
["X"]
["X"]
["X"]
["X"]
["X"]
["X"]
["X"]
["X"]
["X"]
["X"]
["X"]
["X"]
["X"]
["X"]
["X"]
["X"]
["X"]
["X"]
["X"]
["X"]
["X"]
["X"]
["X"]
["X"]
["X"]
["X"]
["X"]
["X"]
["X"]
["X"]
["X"]
["X"]
["X"]
["X"]
["X"]
["X"]
["X"]
["X"]
["X"]
["X"]
["X"]
["X"]
["X"]
["X"]
["X"]
["X"]
["X"]
["X"]
["X"]
["X"]
["X"]
["X"]
["X"]
["X"]
["X"]
["X"]
["X"]
["X"]
["X"]
["X"]
["X"]
["X"]
["X"]
["X"]
["X"]
["X"]
["X"]
["X"]
["X"]
["X"]
["X"]
["X"]
["X"]
["X"]
["X"]
["X"]
["X"]
["X"]
["X"]
["X"]
["X"]
["X"]
["X"]
["X"]
["X"]
["X"]
["X"]
["X"]
["X"]
["X"]
["X"]
["X"]
["X"]
["X"]
["X"]
["X"]
["X"]
["X"]
["X"]
["X"]
["X"]
["X"]
["X"]
["X"]
["X"]
["X"]
["X"]
["X"]
["X"]
["X"]
["X"]
["X"]
["X"]
["X"]
["X"]
["X"]
["X"]
["X"]
["X"]
["X"]
["X"]
["X"]
["X"]
["X"]
["X"]
["X"]
["X"]
["X"]
["X"]
["X"]
["X"]
["X"]
["X"]
["X"]
["X"]
["X"]
["X"]
["X"]
["X"]
["X"]
["X"]
["X"]
["X"]
["X"]
["X"]
["X"]
["X"]
["X"]
["X"]
["X"]
["X"]
["X"]
["X"]
["X"]
["X"]
["X"]
["X"]
["X"]
["X"]
["X"]
["X"]
["X"]
["X"]
["X"]
["X"]
["X"]
["X"]
["X"]
["X"]
["X"]
["X"]
["X"]
["X"]
["X"]
["X"]
["X"]
["X"]
["X"]
["X"]
["X"]
["X"]
["X"]
["X"]
["X"]
["X"]
["X"]
["X"]
["X"]
["X"]
["X"]
["X"]
["X"]
["X"]
["X"]
["X"]
["X"]
["X"]
["X"]
["X"]
["X"]
["X"]
["X"]
["X"]
["X"]
["X"]
["X"]
["X"]
["X"]
["X"]
["X"]
["X"]
["X"]
["X"]
["X"]
["X"]
["X"]
["X"]
["X"]
["X"]
["X"]
["X"]
["X"]
["X"]
["X"]
["X"]
["X"]
["X"]
["X"]
["X"]
["X"]
["X"]
["X"]
["X"]
["X"]
["X"]
["X"]
["X"]
["X"]
["X"]
["X"]
["X"]
["X"]
["X"]
["X"]
["X"]
["X"]
["X"]
["X"]
["X"]
["X"]
["X"]
["X"]
["X"]
["X"]
["X"]
["X"]
["X"]
["X"]
["X"]
["X"]
["X"]
["X"]
["X"]
["X"]
["X"]
["X"]
["X"]
["X"]
["X"]
["X"]
["X"]
["X"]
["X"]
["X"]
["X"]
["X"]
["X"]
["X"]
["X"]
["X"]
["X"]
["X"]
["X"]
["X"]
["X"]
["X"]
["X"]
["X"]
["X"]
["X"]
["X"]
["X"]
["X"]
["X"]
["X"]
["X"]
["X"]
["X"]
["X"]
["X"]
["X"]
["X"]
["X"]
["X"]
["X"]
["X"]
["X"]
["X"]
["X"]
["X"]
["X"]
["X"]
["X"]
["X"]
["X"]
["X"]
["X"]
["X"]
["X"]
["X"]
["X"]
["X"]
["X"]
["X"]
["X"]
["X"]
["X"]
["X"]
["X"]
["X"]
["X"]
["X"]
["X"]
["X"]
["X"]
["X"]
["X"]
["X"]
["X"]
["X"]
["X"]
["X"]
["X"]
["X"]
["X"]
["X"]
["X"]
["X"]
["X"]
["X"]
["X"]
["X"]
["X"]
["X"]
["X"]
["X"]
["X"]
["X"]
["X"]
["X"]
["X"]
["X"]
["X"]
["X"]
["X"]
["X"]
["X"]
["X"]
["X"]
["X"]
["X"]
["X"]
["X"]
["X"]
["X"]
["X"]
["X"]
["X"]
["X"]
["X"]
["X"]
["X"]
["X"]
["X"]
["X"]
["X"]
["X"]
["X"]
["X"]
["X"]
["X"]
["X"]
["X"]
["X"]
["X"]
["X"]
["X"]
["X"]
["X"]
["X"]
["X"]
["X"]
["X"]
["X"]
["X"]
["X"]
["X"]
["X"]
["X"]
["X"]
["X"]
["X"]
["X"]
["X"]
["X"]
["X"]
["X"]
["X"]
["X"]
["X"]
["X"]
["X"]
["X"]
["X"]
["X"]
["X"]
["X"]
["X"]
["X"]
["X"]
["X"]
["X"]
["X"]
["X"]
["X"]
["X"]
["X"]
["X"]
["X"]
["X"]
["X"]
["X"]
["X"]
["X"]
["X"]
["X"]
["X"]
["X"]
["X"]
["X"]
["X"]
["X"]
["X"]
["X"]
["X"]
["X"]
["X"]
["X"]
["X"]
["X"]
["X"]
["X"]
["X"]
["X"]
["X"]
["X"]
["X"]
["X"]
["X"]
["X"]
["X"]
["X"]
["X"]
["X"]
["X"]
["X"]
["X"]
["X"]
["X"]
["X"]
["X"]
["X"]
["X"]
["X"]
["X"]
["X"]
["X"]
["X"]
["X"]
["X"]
["X"]
["X"]
["X"]
["X"]
["X"]
["X"]
["X"]
["X"]
["X"]
["X"]
["X"]
["X"]
["X"]
["X"]
["X"]
["X"]
["X"]
["X"]
["X"]
["X"]
["X"]
["X"]
["X"]
["X"]
["X"]
["X"]
["X"]
["X"]
["X"]
["X"]
["X"]
["X"]
["X"]
["X"]
["X"]
["X"]
["X"]
["X"]
["X"]
["X"]
["X"]
["X"]
["X"]
["X"]
["X"]
["X"]
["X"]
["X"]
["X"]
["X"]
["X"]
["X"]
["X"]
["X"]
["X"]
["X"]
["X"]
["X"]
["X"]
["X"]
["X"]
["X"]
["X"]
["X"]
["X"]
["X"]
["X"]
["X"]
["X"]
["X"]
["X"]
["X"]
["X"]
["X"]
["X"]
["X"]
["X"]
["X"]
["X"]
["X"]
["X"]
["X"]
["X"]
["X"]
["X"]
["X"]
["X"]
["X"]
["X"]
["X"]
["X"]
["X"]
["X"]
["X"]
["X"]
["X"]
["X"]
["X"]
["X"]
["X"]
["X"]
["X"]
["X"]
["X"]
["X"]
["X"]
["X"]
["X"]
["X"]
["X"]
["X"]
["X"]
["X"]
["X"]
["X"]
["X"]
["X"]
["X"]
["X"]
["X"]
["X"]
["X"]
["X"]
["X"]
["X"]
["X"]
["X"]
["X"]
["X"]
["X"]
["X"]
["X"]
["X"]
["X"]
["X"]
["X"]
["X"]
["X"]
["X"]
["X"]
["X"]
["X"]
["X"]
["X"]
["X"]
["X"]
["X"]
["X"]
["X"]
["X"]
["X"]
["X"]
["X"]
["X"]
["X"]
["X"]
["X"]
["X"]
["X"]
["X"]
["X"]
["X"]
["X"]
["X"]
["X"]
["X"]
["X"]
["X"]
["X"]
["X"]
["X"]
["X"]
["X"]
["X"]
["X"]
["X"]
["X"]
["X"]
["X"]
["X"]
["X"]
["X"]
["X"]
["X"]
["X"]
["X"]
["X"]
["X"]
["X"]
["X"]
["X"]
["X"]
["X"]
["X"]
["X"]
["X"]
["X"]
["X"]
["X"]
["X"]
["X"]
["X"]
["X"]
["X"]
["X"]
["X"]
["X"]
["X"]
["X"]
["X"]
["X"]
["X"]
["X"]
["X"]
["X"]
["X"]
["X"]
["X"]
["X"]
["X"]
["X"]
["X"]
["X"]
["X"]
["X"]
["X"]
["X"]
["X"]
["X"]
["X"]
["X"]
["X"]
["X"]
["X"]
["X"]
["X"]
["X"]
["X"]
["X"]
["X"]
["X"]
["X"]
["X"]
["X"]
["X"]
["X"]
["X"]
["X"]
["X"]
["X"]
["X"]
["X"]
["X"]
["X"]
["X"]
["X"]
["X"]
["X"]
["X"]
["X"]
["X"]
["X"]
["X"]
["X"]
["X"]
["X"]
["X"]
["X"]
["X"]
["X"]
["X"]
["X"]
["X"]
["X"]
["X"]
["X"]
["X"]
["X"]
["X"]
["X"]
["X"]
["X"]
["X"]
["X"]
["X"]
["X"]
["X"]
["X"]
["X"]
["X"]
["X"]
["X"]
["X"]
["X"]
["X"]
["X"]
["X"]
["X"]
["X"]
["X"]
["X"]
["X"]
["X"]
["X"]
["X"]
["X"]
["X"]
["X"]
["X"]
["X"]
["X"]
["X"]
["X"]
["X"]
["X"]
["X"]
["X"]
["X"]
["X"]
["X"]
["X"]
["X"]
["X"]
["X"]
["X"]
["X"]
["X"]
["X"]
["X"]
["X"]
["X"]
["X"]
["X"]
["X"]
["X"]
["X"]
["X"]
["X"]
["X"]
["X"]
["X"]
["X"]
["X"]
["X"]
["X"]
["X"]
["X"]
["X"]
["X"]
["X"]
["X"]
["X"]
["X"]
["X"]
["X"]
["X"]
["X"]
["X"]
["X"]
["X"]
["X"]
["X"]
["X"]
["X"]
["X"]
["X"]
["X"]
["X"]
["X"]
["X"]
["X"]
["X"]
["X"]
["X"]
["X"]
["X"]
["X"]
["X"]
["X"]
["X"]
["X"]
["X"]
["X"]
["X"]
["X"]
["X"]
["X"]
["X"]
["X"]
["X"]
["X"]
["X"]
["X"]
["X"]
["X"]
["X"]
["X"]
["X"]
["X"]
["X"]
["X"]
["X"]
["X"]
["X"]
["X"]
["X"]
["X"]
["X"]
["X"]
["X"]
["X"]
["X"]
["X"]
["X"]
["X"]
["X"]
["X"]
["X"]
["X"]
["X"]
["X"]
["X"]
["X"]
["X"]
["X"]
["X"]
["X"]
["X"]
["X"]
["X"]
["X"]
["X"]
["X"]
["X"]
["X"]
["X"]
["X"]
["X"]
["X"]
["X"]
["X"]
["X"]
["X"]
["X"]
["X"]
["X"]
["X"]
["X"]
["X"]
["X"]
["X"]
["X"]
["X"]
["X"]
["X"]
["X"]
["X"]
["X"]
["X"]
["X"]
["X"]
["X"]
["X"]
["X"]
["X"]
["X"]
["X"]
["X"]
["X"]
["X"]
["X"]
["X"]
["X"]
["X"]
["X"]
["X"]
["X"]
["X"]
["X"]
["X"]
["X"]
["X"]
["X"]
["X"]
["X"]
["X"]
["X"]
["X"]
["X"]
["X"]
["X"]
["X"]
["X"]
["X"]
["X"]
["X"]
["X"]
["X"]
["X"]
["X"]
["X"]
["X"]
["X"]
["X"]
["X"]
["X"]
["X"]
["X"]
["X"]
["X"]
["X"]
["X"]
["X"]
["X"]
["X"]
["X"]
["X"]
["X"]
["X"]
["X"]
["X"]
["X"]
["X"]
["X"]
["X"]
["X"]
["X"]
["X"]
["X"]
["X"]
["X"]
["X"]
["X"]
["X"]
["X"]
["X"]
["X"]
["X"]
["X"]
["X"]
["X"]
["X"]
["X"]
["X"]
["X"]
["X"]
["X"]
["X"]
["X"]
["X"]
["X"]
["X"]
["X"]
["X"]
["X"]
["X"]
["X"]
["X"]
["X"]
["X"]
["X"]
["X"]
["X"]
["X"]
["X"]
["X"]
["X"]
["X"]
["X"]
["X"]
["X"]
["X"]
["X"]
["X"]
["X"]
["X"]
["X"]
["X"]
["X"]
["X"]
["X"]
["X"]
["X"]
["X"]
["X"]
["X"]
["X"]
["X"]
["X"]
["X"]
["X"]
["X"]
["X"]
["X"]
["X"]
["X"]
["X"]
["X"]
["X"]
["X"]
["X"]
["X"]
["X"]
["X"]
["X"]
["X"]
["X"]
["X"]
["X"]
["X"]
["X"]
["X"]
["X"]
["X"]
["X"]
["X"]
["X"]
["X"]
["X"]
["X"]
["X"]
["X"]
["X"]
["X"]
["X"]
["X"]
["X"]
["X"]
["X"]
["X"]
["X"]
["X"]
["X"]
["X"]
["X"]
["X"]
["X"]
["X"]
["X"]
["X"]
["X"]
["X"]
["X"]
["X"]
["X"]
["X"]
["X"]
["X"]
["X"]
["X"]
["X"]
["X"]
["X"]
["X"]
["X"]
["X"]
["X"]
["X"]
["X"]
["X"]
["X"]
["X"]
["X"]
["X"]
["X"]
["X"]
["X"]
["X"]
["X"]
["X"]
["X"]
["X"]
["X"]
["X"]
["X"]
["X"]
["X"]
["X"]
["X"]
["X"]
["X"]
["X"]
["X"]
["X"]
["X"]
["X"]
["X"]
["X"]
["X"]
["X"]
["X"]
["X"]
["X"]
["X"]
["X"]
["X"]
["X"]
["X"]
["X"]
["X"]
["X"]
["X"]
["X"]
["X"]
["X"]
["X"]
["X"]
["X"]
["X"]
["X"]
["X"]
["X"]
["X"]
["X"]
["X"]
["X"]
["X"]
["X"]
["X"]
["X"]
["X"]
["X"]
["X"]
["X"]
["X"]
["X"]
["X"]
["X"]
["X"]
["X"]
["X"]
["X"]
["X"]
["X"]
["X"]
["X"]
["X"]
["X"]
["X"]
["X"]
["X"]
["X"]
["X"]
["X"]
["X"]
["X"]
["X"]
["X"]
["X"]
["X"]
["X"]
["X"]
["X"]
["X"]
["X"]
["X"]
["X"]
["X"]
["X"]
["X"]
["X"]
["X"]
["X"]
["X"]
["X"]
["X"]
["X"]
["X"]
["X"]
["X"]
["X"]
["X"]
["X"]
["X"]
["X"]
["X"]
["X"]
["X"]
["X"]
["X"]
["X"]
["X"]
["X"]
["X"]
["X"]
["X"]
["X"]
["X"]
["X"]
["X"]
["X"]
["X"]
["X"]
["X"]
["X"]
["X"]
["X"]
["X"]
["X"]
["X"]
["X"]
["X"]
["X"]
["X"]
["X"]
["X"]
["X"]
["X"]
["X"]
["X"]
["X"]
["X"]
["X"]
["X"]
["X"]
["X"]
["X"]
["X"]
["X"]
["X"]
["X"]
["X"]
["X"]
["X"]
["X"]
["X"]
["X"]
["X"]
["X"]
["X"]
["X"]
["X"]
["X"]
["X"]
["X"]
["X"]
["X"]
["X"]
["X"]
["X"]
["X"]
["X"]
["X"]
["X"]
["X"]
["X"]
["X"]
["X"]
["X"]
["X"]
["X"]
["X"]
["X"]
["X"]
["X"]
["X"]
["X"]
["X"]
["X"]
["X"]
["X"]
["X"]
["X"]
["X"]
["X"]
["X"]
["X"]
["X"]
["X"]
["X"]
["X"]
["X"]
["X"]
["X"]
["X"]
["X"]
["X"]
["X"]
["X"]
["X"]
["X"]
["X"]
["X"]
["X"]
["X"]
["X"]
["X"]
["X"]
["X"]
["X"]
["X"]
["X"]
["X"]
["X"]
["X"]
["X"]
["X"]
["X"]
["X"]
["X"]
["X"]
["X"]
["X"]
["X"]
["X"]
["X"]
["X"]
["X"]
["X"]
["X"]
["X"]
["X"]
["X"]
["X"]
["X"]
["X"]
["X"]
["X"]
["X"]
["X"]
["X"]
["X"]
["X"]
["X"]
["X"]
["X"]
["X"]
["X"]
["X"]
["X"]
["X"]
["X"]
["X"]
["X"]
["X"]
["X"]
["X"]
["X"]
["X"]
["X"]
["X"]
["X"]
["X"]
["X"]
["X"]
["X"]
["X"]
["X"]
["X"]
["X"]
["X"]
["X"]
["X"]
["X"]
["X"]
["X"]
["X"]
["X"]
["X"]
["X"]
["X"]
["X"]
["X"]
["X"]
["X"]
["X"]
["X"]
["X"]
["X"]
["X"]
["X"]
["X"]
["X"]
["X"]
["X"]
["X"]
["X"]
["X"]
["X"]
["X"]
["X"]
["X"]
["X"]
["X"]
["X"]
["X"]
["X"]
["X"]
["X"]
["X"]
["X"]
["X"]
["X"]
["X"]
["X"]
["X"]
["X"]
["X"]
["X"]
["X"]
["X"]
["X"]
["X"]
["X"]
["X"]
["X"]
["X"]
["X"]
["X"]
["X"]
["X"]
["X"]
["X"]
["X"]
["X"]
["X"]
["X"]
["X"]
["X"]
["X"]
["X"]
["X"]
["X"]
["X"]
["X"]
["X"]
["X"]
["X"]
["X"]
["X"]
["X"]
["X"]
["X"]
["X"]
["X"]
["X"]
["X"]
["X"]
["X"]
["X"]
["X"]
["X"]
["X"]
["X"]
["X"]
["X"]
["X"]
["X"]
["X"]
["X"]
["X"]
["X"]
["X"]
["X"]
["X"]
["X"]
["X"]
["X"]
["X"]
["X"]
["X"]
["X"]
["X"]
["X"]
["X"]
["X"]
["X"]
["X"]
["X"]
["X"]
["X"]
["X"]
["X"]
["X"]
["X"]
["X"]
["X"]
["X"]
["X"]
["X"]
["X"]
["X"]
["X"]
["X"]
["X"]
["X"]
["X"]
["X"]
["X"]
["X"]
["X"]
["X"]
["X"]
["X"]
["X"]
["X"]
["X"]
["X"]
["X"]
["X"]
["X"]
["X"]
["X"]
["X"]
["X"]
["X"]
["X"]
["X"]
["X"]
["X"]
["X"]
["X"]
["X"]
["X"]
["X"]
["X"]
["X"]
["X"]
["X"]
["X"]
["X"]
["X"]
["X"]
["X"]
["X"]
["X"]
["X"]
["X"]
["X"]
["X"]
["X"]
["X"]
["X"]
["X"]
["X"]
["X"]
["X"]
["X"]
["X"]
["X"]
["X"]
["X"]
["X"]
["X"]
["X"]
["X"]
["X"]
["X"]
["X"]
["X"]
["X"]
["X"]
["X"]
["X"]
["X"]
["X"]
["X"]
["X"]
["X"]
["X"]
["X"]
["X"]
["X"]
["X"]
["X"]
["X"]
["X"]
["X"]
["X"]
["X"]
["X"]
["X"]
["X"]
["X"]
["X"]
["X"]
["X"]
["X"]
["X"]
["X"]
["X"]
["X"]
["X"]
["X"]
["X"]
["X"]
["X"]
["X"]
["X"]
["X"]
["X"]
["X"]
["X"]
["X"]
["X"]
["X"]
["X"]
["X"]
["X"]
["X"]
["X"]
["X"]
["X"]
["X"]
["X"]
["X"]
["X"]
["X"]
["X"]
["X"]
["X"]
["X"]
["X"]
["X"]
["X"]
["X"]
["X"]
["X"]
["X"]
["X"]
["X"]
["X"]
["X"]
["X"]
["X"]
["X"]
["X"]
["X"]
["X"]
["X"]
["X"]
["X"]
["X"]
["X"]
["X"]
["X"]
["X"]
["X"]
["X"]
["X"]
["X"]
["X"]
["X"]
["X"]
["X"]
["X"]
["X"]
["X"]
["X"]
["X"]
["X"]
["X"]
["X"]
["X"]
["X"]
["X"]
["X"]
["X"]
["X"]
["X"]
["X"]
["X"]
["X"]
["X"]
["X"]
["X"]
["X"]
["X"]
["X"]
["X"]
["X"]
["X"]
["X"]
["X"]
["X"]
["X"]
["X"]
["X"]
["X"]
["X"]
["X"]
["X"]
["X"]
["X"]
["X"]
["X"]
["X"]
["X"]
["X"]
["X"]
["X"]
["X"]
["X"]
["X"]
["X"]
["X"]
["X"]
["X"]
["X"]
["X"]
["X"]
["X"]
["X"]
["X"]
["X"]
["X"]
["X"]
["X"]
["X"]
["X"]
["X"]
["X"]
["X"]
["X"]
["X"]
["X"]
["X"]
["X"]
["X"]
["X"]
["X"]
["X"]
["X"]
["X"]
["X"]
["X"]
["X"]
["X"]
["X"]
["X"]
["X"]
["X"]
["X"]
["X"]
["X"]
["X"]
["X"]
["X"]
["X"]
["X"]
["X"]
["X"]
["X"]
["X"]
["X"]
["X"]
["X"]
["X"]
["X"]
["X"]
["X"]
["X"]
["X"]
["X"]
["X"]
["X"]
["X"]
["X"]
["X"]
["X"]
["X"]
["X"]
["X"]
["X"]
["X"]
["X"]
["X"]
["X"]
["X"]
["X"]
["X"]
["X"]
["X"]
["X"]
["X"]
["X"]
["X"]
["X"]
["X"]
["X"]
["X"]
["X"]
["X"]
["X"]
["X"]
["X"]
["X"]
["X"]
["X"]
["X"]
["X"]
["X"]
["X"]
["X"]
["X"]
["X"]
["X"]
["X"]
["X"]
["X"]
["X"]
["X"]
["X"]
["X"]
["X"]
["X"]
["X"]
["X"]
["X"]
["X"]
["X"]
["X"]
["X"]
["X"]
["X"]
["X"]
["X"]
["X"]
["X"]
["X"]
["X"]
["X"]
["X"]
["X"]
["X"]
["X"]
["X"]
["X"]
["X"]
["X"]
["X"]
["X"]
["X"]
["X"]
["X"]
["X"]
["X"]
["X"]
["X"]
["X"]
["X"]
["X"]
["X"]
["X"]
["X"]
["X"]
["X"]
["X"]
["X"]
["X"]
["X"]
["X"]
["X"]
["X"]
["X"]
["X"]
["X"]
["X"]
["X"]
["X"]
["X"]
["X"]
["X"]
["X"]
["X"]
["X"]
["X"]
["X"]
["X"]
["X"]
["X"]
["X"]
["X"]
["X"]
["X"]
["X"]
["X"]
["X"]
["X"]
["X"]
["X"]
["X"]
["X"]
["X"]
["X"]
["X"]
["X"]
["X"]
["X"]
["X"]
["X"]
["X"]
["X"]
["X"]
["X"]
["X"]
["X"]
["X"]
["X"]
["X"]
["X"]
["X"]
["X"]
["X"]
["X"]
["X"]
["X"]
["X"]
["X"]
["X"]
["X"]
["X"]
["X"]
["X"]
["X"]
["X"]
["X"]
["X"]
["X"]
["X"]
["X"]
["X"]
["X"]
["X"]
["X"]
["X"]
["X"]
["X"]
["X"]
["X"]
["X"]
["X"]
["X"]
["X"]
["X"]
["X"]
["X"]
["X"]
["X"]
["X"]
["X"]
["X"]
["X"]
["X"]
["X"]
["X"]
["X"]
["X"]
["X"]
["X"]
["X"]
["X"]
["X"]
["X"]
["X"]
["X"]
["X"]
["X"]
["X"]
["X"]
["X"]
["X"]
["X"]
["X"]
["X"]
["X"]
["X"]
["X"]
["X"]
["X"]
["X"]
["X"]
["X"]
["X"]
["X"]
["X"]
["X"]
["X"]
["X"]
["X"]
["X"]
["X"]
["X"]
["X"]
["X"]
["X"]
["X"]
["X"]
["X"]
["X"]
["X"]
["X"]
["X"]
["X"]
["X"]
["X"]
["X"]
["X"]
["X"]
["X"]
["X"]
["X"]
["X"]
["X"]
["X"]
["X"]
["X"]
["X"]
["X"]
["X"]
["X"]
["X"]
["X"]
["X"]
["X"]
["X"]
["X"]
["X"]
["X"]
["X"]
["X"]
["X"]
["X"]
["X"]
["X"]
["X"]
["X"]
["X"]
["X"]
["X"]
["X"]
["X"]
["X"]
["X"]
["X"]
["X"]
["X"]
["X"]
["X"]
["X"]
["X"]
["X"]
["X"]
["X"]
["X"]
["X"]
["X"]
["X"]
["X"]
["X"]
["X"]
["X"]
["X"]
["X"]
["X"]
["X"]
["X"]
["X"]
["X"]
["X"]
["X"]
["X"]
["X"]
["X"]
["X"]
["X"]
["X"]
["X"]
["X"]
["X"]
["X"]
["X"]
["X"]
["X"]
["X"]
["X"]
["X"]
["X"]
["X"]
["X"]
["X"]
["X"]
["X"]
["X"]
["X"]
["X"]
["X"]
["X"]
["X"]
["X"]
["X"]
["X"]
["X"]
["X"]
["X"]
["X"]
["X"]
["X"]
["X"]
["X"]
["X"]
["X"]
["X"]
["X"]
["X"]
["X"]
["X"]
["X"]
["X"]
["X"]
["X"]
["X"]
["X"]
["X"]
["X"]
["X"]
["X"]
["X"]
["X"]
["X"]
["X"]
["X"]
["X"]
["X"]
["X"]
["X"]
["X"]
["X"]
["X"]
["X"]
["X"]
["X"]
["X"]
["X"]
["X"]
["X"]
["X"]
["X"]
["X"]
["X"]
["X"]
["X"]
["X"]
["X"]
["X"]
["X"]
["X"]
["X"]
["X"]
["X"]
["X"]
["X"]
["X"]
["X"]
["X"]
["X"]
["X"]
["X"]
["X"]
["X"]
["X"]
["X"]
["X"]
["X"]
["X"]
["X"]
["X"]
["X"]
["X"]
["X"]
["X"]
["X"]
["X"]
["X"]
["X"]
["X"]
["X"]
["X"]
["X"]
["X"]
["X"]
["X"]
["X"]
["X"]
["X"]
["X"]
["X"]
["X"]
["X"]
["X"]
["X"]
["X"]
["X"]
["X"]
["X"]
["X"]
["X"]
["X"]
["X"]
["X"]
["X"]
["X"]
["X"]
["X"]
["X"]
["X"]
["X"]
["X"]
["X"]
["X"]
["X"]
["X"]
["X"]
["X"]
["X"]
["X"]
["X"]
["X"]
["X"]
["X"]
["X"]
["X"]
["X"]
["X"]
["X"]
["X"]
["X"]
["X"]
["X"]
["X"]
["X"]
["X"]
["X"]
["X"]
["X"]
["X"]
["X"]
["X"]
["X"]
["X"]
["X"]
["X"]
["X"]
["X"]
["X"]
["X"]
["X"]
["X"]
["X"]
["X"]
["X"]
["X"]
["X"]
["X"]
["X"]
["X"]
["X"]
["X"]
["X"]
["X"]
["X"]
["X"]
["X"]
["X"]
["X"]
["X"]
["X"]
["X"]
["X"]
["X"]
["X"]
["X"]
["X"]
["X"]
["X"]
["X"]
["X"]
["X"]
["X"]
["X"]
["X"]
["X"]
["X"]
["X"]
["X"]
["X"]
["X"]
["X"]
["X"]
["X"]
["X"]
["X"]
["X"]
["X"]
["X"]
["X"]
["X"]
["X"]
["X"]
["X"]
["X"]
["X"]
["X"]
["X"]
["X"]
["X"]
["X"]
["X"]
["X"]
["X"]
["X"]
["X"]
["X"]
["X"]
["X"]
["X"]
["X"]
["X"]
["X"]
["X"]
["X"]
["X"]
["X"]
["X"]
["X"]
["X"]
["X"]
["X"]
["X"]
["X"]
["X"]
["X"]
["X"]
["X"]
["X"]
["X"]
["X"]
["X"]
["X"]
["X"]
["X"]
["X"]
["X"]
["X"]
["X"]
["X"]
["X"]
["X"]
["X"]
["X"]
["X"]
["X"]
["X"]
["X"]
["X"]
["X"]
["X"]
["X"]
["X"]
["X"]
["X"]
["X"]
["X"]
["X"]
["X"]
["X"]
["X"]
["X"]
["X"]
["X"]
["X"]
["X"]
["X"]
["X"]
["X"]
["X"]
["X"]
["X"]
["X"]
["X"]
["X"]
["X"]
["X"]
["X"]
["X"]
["X"]
["X"]
["X"]
["X"]
["X"]
["X"]
["X"]
["X"]
["X"]
["X"]
["X"]
["X"]
["X"]
["X"]
["X"]
["X"]
["X"]
["X"]
["X"]
["X"]
["X"]
["X"]
["X"]
["X"]
["X"]
["X"]
["X"]
["X"]
["X"]
["X"]
["X"]
["X"]
["X"]
["X"]
["X"]
["X"]
["X"]
["X"]
["X"]
["X"]
["X"]
["X"]
["X"]
["X"]
["X"]
["X"]
["X"]
["X"]
["X"]
["X"]
["X"]
["X"]
["X"]
["X"]
["X"]
["X"]
["X"]
["X"]
["X"]
["X"]
["X"]
["X"]
["X"]
["X"]
["X"]
["X"]
["X"]
["X"]
["X"]
["X"]
["X"]
["X"]
["X"]
["X"]
["X"]
["X"]
["X"]
["X"]
["X"]
["X"]
["X"]
["X"]
["X"]
["X"]
["X"]
["X"]
["X"]
["X"]
["X"]
["X"]
["X"]
["X"]
["X"]
["X"]
["X"]
["X"]
["X"]
["X"]
["X"]
["X"]
["X"]
["X"]
["X"]
["X"]
["X"]
["X"]
["X"]
["X"]
["X"]
["X"]
["X"]
["X"]
["X"]
["X"]
["X"]
["X"]
["X"]
["X"]
["X"]
["X"]
["X"]
["X"]
["X"]
["X"]
["X"]
["X"]
["X"]
["X"]
["X"]
["X"]
["X"]
["X"]
["X"]
["X"]
["X"]
["X"]
["X"]
["X"]
["X"]
["X"]
["X"]
["X"]
["X"]
["X"]
["X"]
["X"]
["X"]
["X"]
["X"]
["X"]
["X"]
["X"]
["X"]
["X"]
["X"]
["X"]
["X"]
["X"]
["X"]
["X"]
["X"]
["X"]
["X"]
["X"]
["X"]
["X"]
["X"]
["X"]
["X"]
["X"]
["X"]
["X"]
["X"]

{"sheet":"ARQUIVO_TXT","index":3,"n_rows":5,"n_cols":1,"rows_kept":5,"cut":false,"hidden":false,"merged":[]}
["000^INTTRP^5.0a^GKO^FRETE"]
["200^A^44215713000300^TRANSPORTES VIA SATELITE"]
["260^^Aparecida do Taboado^MS^^ACRELANDIA^AC^"]
["265^^^^1^10^1^^02/02/2023"]
["260^^Diadema^SP^^SOBRAL^CE^"]